Workbook

Sheet Summary and Index
A1: OPC 015152
A2: FPL RC-16
A4: Summary of Model
A8: Basis for Rate Design Methodology:
A9: FPL calculated the 2017 test year base rate increases in the Utilities International system (UI) to improve rate design automation and apply a more consistent approach to rate
A10: calculations across rate classes. Both the revenue forecast, which provides rates and forecasted units by bill component for rate design, and the cost of service, which provides
A11: present revenues and revenue requirements by rate class to the rate design model, were calculated in UI. Data transfers within UI reduced the opportunity for errors that could have
A12: occurred in a manual Excel model. The majority of rate design MFRs were produced in the UI system including MFRs: A-2, A-3, E-5, E-8, E-12, E-13a, E-13c, E-13d, and portions
A13: of E-14. To provide support for calculations and to test the results of the UI system, rate design was also calculated in this Excel workbook. The results produced in UI vs. those
A14: produced in this Excel workbook, are shown on each rate class tab and are identical. Other than this workpaper, there are no MFRs with formulas in Excel as the logic for the
A15: calculations resides in the UI system. However, the calculations and supporting workpapers included in this Excel model are identical to the data in UI that was used to produce
A16: the MFRs.
A19: Index of Workpapers in this Model:
A20: Title | B20: Source | C20: Description
A21: Customers by Rate Class | B21: Utilities International (UI) system | C21: Number of customers by rate class from the Revenue Forecast
A22: Sales (kWh) by Rate Class | B22: Utilities International (UI) system | C22: Sales (kWh) by rate class from the Revenue Forecast
A23: Clause Revenues by Rate Class | B23: Revenues are from the Detailed Jurisdictional NOI. Allocations are based on the 2017 rate case load forecast. | C23: Clause revenues by rate class are used in the E-8 for total revenue percent increase calculations.
A24: CILC & CDR Credits | B24: Beginning credit balances are from the 2012 Settlement agreement. Sales are from the 2017 sales forecast. GBRA percentages are per the Canaveral, Riviera and Port Everglades GBRA filings | C24: CILC credit decreases are calculated using a dollars per kWh methodology. CDR credits are based on pre-settlement credits increased using GBRA percentages.
A25: Billing Determinants (Units) | B25: Utilities International (UI) system | C25: Billing determinants by rate code and bill component are from the Revenue Forecast.
A26: Present Base Rates by Rate Code | B26: West County Energy Center 3 (WCEC3) rate calculations | C26: Present base rates by rate code are April 2016 base rates adjusted to move WCEC3 increases from the capacity rate to the base rate as of January 2017.
A27: E-8 Parity Analysis | B27: Excel version of E-8 workpaper calculation | C27: The E-8 workpaper uses information from the MFR E-1 as a starting point to calculate revenue requirements by rate class for rate design. It demonstrates the entire process of adjusting revenue requirements for Commission guidelines and rounding through calculating final parity after rate design. The results from this workpaper are used to update the following MFRs: E-5, E-8 and portions of E-14.
A28: E-6b Proposed Equalized | B28: Data from MFR E-6b, Attachment 2 | C28: The E-6b proposed equalized workpaper includes revenue requirements and units from the MFR E-6b Attachment 2 that are used for customer charge and CDR adder calculations as well as for comparisons of final rates to unit costs. The data is also used to calculate the proposed metered lighting rates.
A29: Rate Class tabs | B29: Excel versions of rate calculations from UI | C29: Each tab shows the rate calculations for that particular rate class. To replicate rate calculations consistently in an automated system, FPL increased rates based on a percent increase methodology with adjustments for revenue neutrality and rounding. This method continues the practice of including some demand costs in the energy charge for standard and TOU rates by maintaining the relationship between demand and energy reflected in current rates. The percent increase is rate class specific based on Cost of Service allocations as adjusted in the E-8 workpaper. There are separate calculations in UI (and in this workbook) for optional rate revenue neutrality and the SDTR rates. There is also a separate calculation for the Standby & Interruptible (SST/ISST) rates as they are required to be developed using a specific formula.
A30: SL-1M & SL-2M Metered Rate WP | B30: Excel calculations of the new metered rates | C30: The SL-1M and SL-2M proposed metered lighting rates were calculated manually in Excel in these workpapers using the MFR E-6b workpaper.
A31: Transformer Credit | B31: TX Rating from FPL Distribution; Distribution Secondary Transformer costs from the MFR E-6b | C31: The ratio of Distribution Secondary transformer costs to the total TX rating is used to calculate the transformation credit.
A32: CDR Credit | B32: Current CDR Credit; CDR Credit prior to 2012 Settlement; and GBRA % increases | C32: The proposed CDR Credit is calculated by adjusting the pre-settlement CDR credit by the 2013 to 2016 GBRA % increases.

Sheet Customers by Rate Class
A1: OPC 015153
A2: FPL RC-16
A4: Rate Design (UI Report) | C4: Year 2017
A5: CILC-1D | B5: C:[Customer Bills] | C5: 3336
A6: CILC-1G | B6: C:[Customer Bills] | C6: 744
A7: CILC-1T | B7: C:[Customer Bills] | C7: 204
A8: GS(T)-1 | B8: C:[Customer Bills] | C8: 5165476
A9: GSCU-1 | B9: C:[Customer Bills] | C9: 130561
A10: GSD(T)-1 | B10: C:[Customer Bills] | C10: 1281531
A11: GSLD(T)-1 | B11: C:[Customer Bills] | C11: 37126
A12: GSLD(T)-2 | B12: C:[Customer Bills] | C12: 1890
A13: GSLD(T)-3 | B13: C:[Customer Bills] | C13: 84
A14: MET | B14: C:[Customer Bills] | C14: 324
A15: OL-1 | B15: C:[Customer Bills] | C15: 64890
A16: OS-2 | B16: C:[Customer Bills] | C16: 2183
A17: RS(T)-1 | B17: C:[Customer Bills] | C17: 52195536
A18: SL-1 | B18: C:[Customer Bills] | C18: 109249
A19: SL-2 | B19: C:[Customer Bills] | C19: 10978
A20: SST-DST | B20: C:[Customer Bills] | C20: 72
A21: SST-TST | B21: C:[Customer Bills] | C21: 168
B22: C:[Customer Bills] | C22: =SUM(C5:C21) -> 59004352

Sheet Sales kWh by Rate Class
A1: OPC 015154
A2: FPL RC-16
A5: Rate Design (UI Report) | C5: Year 2017
A7: CILC-1D | B7: E:[kWh Sales] | C7: 2687420391
A8: CILC-1G | B8: E:[kWh Sales] | C8: 101623502
A9: CILC-1T | B9: E:[kWh Sales] | C9: 1508335314
A10: GS(T)-1 | B10: E:[kWh Sales] | C10: 5968792122
A11: GSCU-1 | B11: E:[kWh Sales] | C11: 70241818
A12: GSD(T)-1 | B12: E:[kWh Sales] | C12: 25825428784
A13: GSLD(T)-1 | B13: E:[kWh Sales] | C13: 10507497706
A14: GSLD(T)-2 | B14: E:[kWh Sales] | C14: 2515470925
A15: GSLD(T)-3 | B15: E:[kWh Sales] | C15: 172992260
A16: MET | B16: E:[kWh Sales] | C16: 91208296
A17: OL-1 | B17: E:[kWh Sales] | C17: 97899984
A18: OS-2 | B18: E:[kWh Sales] | C18: 10793313
A19: RS(T)-1 | B19: E:[kWh Sales] | C19: 56993678507
A20: SL-1 | B20: E:[kWh Sales] | C20: 560806958
A21: SL-2 | B21: E:[kWh Sales] | C21: 32762626
A22: SST-DST | B22: E:[kWh Sales] | C22: 11856926
A23: SST-TST | B23: E:[kWh Sales] | C23: 89667754
C24: =SUM(C7:C23) -> 107246477186

Sheet Clause Revenues by Rate Class
A1: OPC 015155
A2: FPL RC-16
A4: Clause Revenues by Rate Class for E-8 (Source: Clauses for E-8 Based on NOI)
A8: Rate Class | B8: 2017 Clause Revenues by Rate Class | D8: 2017 Sales Forecast
A9: CILC-1D | B9: 110216025.7 | D9: 2687420391
A10: CILC-1G | B10: 4167765.693 | D10: 101623502
A11: CILC-1T | B11: 60677922.39 | D11: 1508335314
A12: GS(T)-1 | B12: 257107516.9 | D12: 5968792122
A13: GSCU-1 | B13: 2862660.652 | D13: 70241818
A14: GSD(T)-1 | B14: 1088961735 | D14: 25825428784
A15: GSLD(T)-1 | B15: 442230870.5 | D15: 10507497706
A16: GSLD(T)-2 | B16: 103114921.9 | D16: 2515470925
A17: GSLD(T)-3 | B17: 6994179.404 | D17: 172992260
A18: MET | B18: 3842212.803 | D18: 91208296
A19: OL-1 | B19: 4592785.266 | D19: 97899984
A20: OS-2 | B20: 494478.0555 | D20: 10793313
A21: RS(T)-1 | B21: 2491313329 | D21: 56993678507
A22: SL-1 | B22: 26309155.82 | D22: 560806958
A23: SL-2 | B23: 1335220.001 | D23: 32762626
A24: SST-DST | B24: 869455.9564 | D24: 11856926
A25: SST-TST | B25: 3204722.526 | D25: 89667754
B27: =SUM(B9:B25) -> 4608294958 | D27: =SUM(D9:D25) -> 107246477186

Sheet CILC & CDR Credits
B1: OPC 015156
B2: FPL RC-16
B5: Calculation to Remove Increased Credits
B9: CILC
G10: Add GBRAs | M10: 2017
G11: Canaveral | I11: Riviera | K11: Port Everglades
C12: Increased Credits | D12: 2013 kWh | E12: per kWh | G12: 0.03475 | I12: 0.04566 | K12: 0.03899 | M12: Sales | N12: Revenue
B15: CILC-1D | C15: 9406552.54 | D15: 2861942625 | E15: =ROUND(C15/D15,5) -> 0.00329 | G15: =ROUND(E15*(1+G$12),5) -> 0.0034 | I15: =ROUND(G15*(1+I$12),5) -> 0.00356 | K15: =ROUND(I15*(1+K$12),5) -> 0.0037 | M15: =708613584+1978806807 -> 2687420391 | N15: =K15*M15 -> 9943455.447
B17: CILC-1G | C17: =574.6341835248*1000 -> 574634.1835 | D17: 177616369 | E17: =ROUND(C17/D17,5) -> 0.00324 | G17: =ROUND(E17*(1+G$12),5) -> 0.00335 | I17: =ROUND(G17*(1+I$12),5) -> 0.0035 | K17: =ROUND(I17*(1+K$12),5) -> 0.00364 | M17: =27726439+73897063 -> 101623502 | N17: =K17*M17 -> 369909.5473
B19: CILC-1T | C19: =4129.349248724*1000 -> 4129349.249 | D19: 1341477742 | E19: =ROUND(C19/D19,5) -> 0.00308 | G19: =ROUND(E19*(1+G$12),5) -> 0.00319 | I19: =ROUND(G19*(1+I$12),5) -> 0.00334 | K19: =ROUND(I19*(1+K$12),5) -> 0.00347 | M19: =382658931+1125676383 -> 1508335314 | N19: =K19*M19 -> 5233923.54
B22: CDR Credit | G22: Add GBRAs | M22: 2017
C23: Presettlement Credit | D23: Settlement Credit | E23: Credit Increase | G23: Canaveral | I23: Riviera | K23: Port Everglades
C24: per kW | D24: per kW | E24: (Diff) | G24: 0.03475 | I24: 0.04566 | K24: 0.03899 | M24: LC kW | N24: Revenue
B25: GSD(T)-1 | C25: 4.68 | D25: 7.3 | E25: =D25-C25 -> 2.62 | G25: =ROUND(E25*(1+G$12),2) -> 2.71 | I25: =ROUND(G25*(1+I$12),2) -> 2.83 | K25: =ROUND(I25*(1+K$12),2) -> 2.94 | M25: 748627.5813 | N25: =K25*M25 -> 2200965.089
B27: GSLD(T)-1 | C27: 4.68 | D27: 7.3 | E27: =D27-C27 -> 2.62 | G27: =ROUND(E27*(1+G$12),2) -> 2.71 | I27: =ROUND(G27*(1+I$12),2) -> 2.83 | K27: =ROUND(I27*(1+K$12),2) -> 2.94 | M27: 1412082.819 | N27: =K27*M27 -> 4151523.488
B29: GSLD(T)-2 | C29: 4.68 | D29: 7.3 | E29: 2.62 | G29: =ROUND(E29*(1+G$12),2) -> 2.71 | I29: =ROUND(G29*(1+I$12),2) -> 2.83 | K29: =ROUND(I29*(1+K$12),2) -> 2.94 | M29: 363600.9481 | N29: 1068986.788
B32: Totals | N32: =N15+N17+N19+N25+N27+N29 -> 22968763.9

Sheet Billing Determinants (Units)
A1: OPC 015157
A2: FPL RC-16
A4: Rate Design (UI Report)
B5: Dec 2017
A9: OL-1 - 11Non-Fuel Energy | B9: 97899984
A10: OL-1 - 11Customer | B10: 64890
A11: OL-1 - 11Non-Fuel Energy | B11: 0
A12: OL-1 - 11First 1,000 kWh | B12: 0
A13: OL-1 - 11All additional kWh | B13: 0
A14: OL-1 - 11Non-Fuel Energy - On Peak | B14: 0
A15: OL-1 - 11Non-Fuel Energy - Off Peak | B15: 0
A16: OL-1 - 11Non-Fuel Energy - Seasonal On Peak | B16: 0
A17: OL-1 - 11Non-Fuel Energy - Seasonal Off Peak | B17: 0
A18: OL-1 - 11Non-Fuel Energy - Non-Seasonal | B18: 0
A19: OL-1 - 11Non-Fuel Energy - Non-Seasonal On Peak | B19: 0
A20: OL-1 - 11Non-Fuel Energy - Non-Seasonal Off Peak | B20: 0
A21: OL-1 - 11Demand | B21: 0
A22: OL-1 - 11Demand - Maximum | B22: 0
A23: OL-1 - 11Demand - On-Peak | B23: 0
A24: OL-1 - 11Demand - Seasonal On-Peak | B24: 0
A25: OL-1 - 11Demand - Non-Seasonal | B25: 0
A26: OL-1 - 11Demand - Non-Seasonal On Peak | B26: 0
A27: OL-1 - 11Load Control On-Peak | B27: 0
A28: OL-1 - 11Firm On-Peak | B28: 0
A29: OL-1 - 11Distribution CSD | B29: 0
A30: OL-1 - 11Reservation/kW | B30: 0
A31: OL-1 - 11Daily Demand | B31: 0
A32: OL-1 - 11CSD - Max On-Peak | B32: 0
A33: OL-1 - 11Curtailable Credit | B33: 0
A34: OL-1 - 11Unmetered Service Credit | B34: 0
A35: OL-1 - 11Transformation Credit | B35: 0
A36: OL-1 - 11Adder | B36: 0
A37: OL-1 - 11Credit | B37: 0
A38: 145 - RTR-1 - Residential Time of Use Rider | B38: 0
B39: 0
A40: RTR-1 - 145Non-Fuel Energy | B40: 3311269
A41: RTR-1 - 145Customer | B41: 1404
A42: RTR-1 - 145Non-Fuel Energy | B42: 0
A43: RTR-1 - 145First 1,000 kWh | B43: 1362905
A44: RTR-1 - 145All additional kWh | B44: 1948364
A45: RTR-1 - 145Non-Fuel Energy - On Peak | B45: 718999
A46: RTR-1 - 145Non-Fuel Energy - Off Peak | B46: 2592270
A47: RTR-1 - 145Non-Fuel Energy - Seasonal On Peak | B47: 0
A48: RTR-1 - 145Non-Fuel Energy - Seasonal Off Peak | B48: 0
A49: RTR-1 - 145Non-Fuel Energy - Non-Seasonal | B49: 0
A50: RTR-1 - 145Non-Fuel Energy - Non-Seasonal On Peak | B50: 0
A51: RTR-1 - 145Non-Fuel Energy - Non-Seasonal Off Peak | B51: 0
A52: RTR-1 - 145Demand | B52: 0
A53: RTR-1 - 145Demand - Maximum | B53: 0
A54: RTR-1 - 145Demand - On-Peak | B54: 0
A55: RTR-1 - 145Demand - Seasonal On-Peak | B55: 0
A56: RTR-1 - 145Demand - Non-Seasonal | B56: 0
A57: RTR-1 - 145Demand - Non-Seasonal On Peak | B57: 0
A58: RTR-1 - 145Load Control On-Peak | B58: 0
A59: RTR-1 - 145Firm On-Peak | B59: 0
A60: RTR-1 - 145Distribution CSD | B60: 0
A61: RTR-1 - 145Reservation/kW | B61: 0
A62: RTR-1 - 145Daily Demand | B62: 0
A63: RTR-1 - 145CSD - Max On-Peak | B63: 0
A64: RTR-1 - 145Curtailable Credit | B64: 0
A65: RTR-1 - 145Unmetered Service Credit | B65: 0
A66: RTR-1 - 145Transformation Credit | B66: 0
A67: RTR-1 - 145Adder | B67: 0
A68: RTR-1 - 145Credit | B68: 0
A69: 164 - HLFT-2 - High Load Factor TOU (500 - 1,999 kW) | B69: 0
B70: 0
A71: HLFT - 164Non-Fuel Energy | B71: 1418015489
A72: HLFT - 164Customer | B72: 3430
A73: HLFT - 164Non-Fuel Energy | B73: 0
A74: HLFT - 164First 1,000 kWh | B74: 0
A75: HLFT - 164All additional kWh | B75: 0
A76: HLFT - 164Non-Fuel Energy - On Peak | B76: 359378356
A77: HLFT - 164Non-Fuel Energy - Off Peak | B77: 1058637133
A78: HLFT - 164Non-Fuel Energy - Seasonal On Peak | B78: 0
A79: HLFT - 164Non-Fuel Energy - Seasonal Off Peak | B79: 0
A80: HLFT - 164Non-Fuel Energy - Non-Seasonal | B80: 0
A81: HLFT - 164Non-Fuel Energy - Non-Seasonal On Peak | B81: 0
A82: HLFT - 164Non-Fuel Energy - Non-Seasonal Off Peak | B82: 0
A83: HLFT - 164Demand | B83: 0
A84: HLFT - 164Demand - Maximum | B84: 2477396
A85: HLFT - 164Demand - On-Peak | B85: 2335909
A86: HLFT - 164Demand - Seasonal On-Peak | B86: 0
A87: HLFT - 164Demand - Non-Seasonal | B87: 0
A88: HLFT - 164Demand - Non-Seasonal On Peak | B88: 0
A89: HLFT - 164Load Control On-Peak | B89: 0
A90: HLFT - 164Firm On-Peak | B90: 0
A91: HLFT - 164Distribution CSD | B91: 0
A92: HLFT - 164Reservation/kW | B92: 0
A93: HLFT - 164Daily Demand | B93: 0
A94: HLFT - 164CSD - Max On-Peak | B94: 0
A95: HLFT - 164Curtailable Credit | B95: 0
A96: HLFT - 164Unmetered Service Credit | B96: 0
A97: HLFT - 164Transformation Credit | B97: 82217
A98: HLFT - 164Adder | B98: 48
A99: HLFT - 164Credit | B99: 20064.7733
A100: 165 - HLFT-3 - High Load Factor TOU (2,000+ kW) | B100: 0
B101: 0
A102: HLFT - 165Non-Fuel Energy | B102: 878778314
A103: HLFT - 165Customer | B103: 420
A104: HLFT - 165Non-Fuel Energy | B104: 0
A105: HLFT - 165First 1,000 kWh | B105: 0
A106: HLFT - 165All additional kWh | B106: 0
A107: HLFT - 165Non-Fuel Energy - On Peak | B107: 226149568
A108: HLFT - 165Non-Fuel Energy - Off Peak | B108: 652628746
A109: HLFT - 165Non-Fuel Energy - Seasonal On Peak | B109: 0
A110: HLFT - 165Non-Fuel Energy - Seasonal Off Peak | B110: 0
A111: HLFT - 165Non-Fuel Energy - Non-Seasonal | B111: 0
A112: HLFT - 165Non-Fuel Energy - Non-Seasonal On Peak | B112: 0
A113: HLFT - 165Non-Fuel Energy - Non-Seasonal Off Peak | B113: 0
A114: HLFT - 165Demand | B114: 0
A115: HLFT - 165Demand - Maximum | B115: 1462801
A116: HLFT - 165Demand - On-Peak | B116: 1430474
A117: HLFT - 165Demand - Seasonal On-Peak | B117: 0
A118: HLFT - 165Demand - Non-Seasonal | B118: 0
A119: HLFT - 165Demand - Non-Seasonal On Peak | B119: 0
A120: HLFT - 165Load Control On-Peak | B120: 0
A121: HLFT - 165Firm On-Peak | B121: 0
A122: HLFT - 165Distribution CSD | B122: 0
A123: HLFT - 165Reservation/kW | B123: 0
A124: HLFT - 165Daily Demand | B124: 0
A125: HLFT - 165CSD - Max On-Peak | B125: 0
A126: HLFT - 165Curtailable Credit | B126: 0
A127: HLFT - 165Unmetered Service Credit | B127: 0
A128: HLFT - 165Transformation Credit | B128: 179828
A129: HLFT - 165Adder | B129: 24
A130: HLFT - 165Credit | B130: 17580.32876
A131: 168 - GSCU-1 - General Service Constant Usage | B131: 0
B132: 0
A133: GSCU - 168Non-Fuel Energy | B133: 70241818
A134: GSCU - 168Customer | B134: 130561
A135: GSCU - 168Non-Fuel Energy | B135: 70241818
A136: GSCU - 168First 1,000 kWh | B136: 0
A137: GSCU - 168All additional kWh | B137: 0
A138: GSCU - 168Non-Fuel Energy - On Peak | B138: 0
A139: GSCU - 168Non-Fuel Energy - Off Peak | B139: 0
A140: GSCU - 168Non-Fuel Energy - Seasonal On Peak | B140: 0
A141: GSCU - 168Non-Fuel Energy - Seasonal Off Peak | B141: 0
A142: GSCU - 168Non-Fuel Energy - Non-Seasonal | B142: 0
A143: GSCU - 168Non-Fuel Energy - Non-Seasonal On Peak | B143: 0
A144: GSCU - 168Non-Fuel Energy - Non-Seasonal Off Peak | B144: 0
A145: GSCU - 168Demand | B145: 0
A146: GSCU - 168Demand - Maximum | B146: 0
A147: GSCU - 168Demand - On-Peak | B147: 0
A148: GSCU - 168Demand - Seasonal On-Peak | B148: 0
A149: GSCU - 168Demand - Non-Seasonal | B149: 0
A150: GSCU - 168Demand - Non-Seasonal On Peak | B150: 0
A151: GSCU - 168Load Control On-Peak | B151: 0
A152: GSCU - 168Firm On-Peak | B152: 0
A153: GSCU - 168Distribution CSD | B153: 0
A154: GSCU - 168Reservation/kW | B154: 0
A155: GSCU - 168Daily Demand | B155: 0
A156: GSCU - 168CSD - Max On-Peak | B156: 0
A157: GSCU - 168Curtailable Credit | B157: 0
A158: GSCU - 168Unmetered Service Credit | B158: 0
A159: GSCU - 168Transformation Credit | B159: 0
A160: GSCU - 168Adder | B160: 0
A161: GSCU - 168Credit | B161: 0
A162: 170 - HLFT-1 - High Load Factor TOU (21 - 499 kW) | B162: 0
B163: 0
A164: HLFT - 170Non-Fuel Energy | B164: 1089229137
A165: HLFT - 170Customer | B165: 10448
A166: HLFT - 170Non-Fuel Energy | B166: 0
A167: HLFT - 170First 1,000 kWh | B167: 0
A168: HLFT - 170All additional kWh | B168: 0
A169: HLFT - 170Non-Fuel Energy - On Peak | B169: 269003112
A170: HLFT - 170Non-Fuel Energy - Off Peak | B170: 820226025
A171: HLFT - 170Non-Fuel Energy - Seasonal On Peak | B171: 0
A172: HLFT - 170Non-Fuel Energy - Seasonal Off Peak | B172: 0
A173: HLFT - 170Non-Fuel Energy - Non-Seasonal | B173: 0
A174: HLFT - 170Non-Fuel Energy - Non-Seasonal On Peak | B174: 0
A175: HLFT - 170Non-Fuel Energy - Non-Seasonal Off Peak | B175: 0
A176: HLFT - 170Demand | B176: 0
A177: HLFT - 170Demand - Maximum | B177: 1912575
A178: HLFT - 170Demand - On-Peak | B178: 1757749
A179: HLFT - 170Demand - Seasonal On-Peak | B179: 0
A180: HLFT - 170Demand - Non-Seasonal | B180: 0
A181: HLFT - 170Demand - Non-Seasonal On Peak | B181: 0
A182: HLFT - 170Load Control On-Peak | B182: 0
A183: HLFT - 170Firm On-Peak | B183: 0
A184: HLFT - 170Distribution CSD | B184: 0
A185: HLFT - 170Reservation/kW | B185: 0
A186: HLFT - 170Daily Demand | B186: 0
A187: HLFT - 170CSD - Max On-Peak | B187: 0
A188: HLFT - 170Curtailable Credit | B188: 0
A189: HLFT - 170Unmetered Service Credit | B189: 0
A190: HLFT - 170Transformation Credit | B190: 6525
A191: HLFT - 170Adder | B191: 352
A192: HLFT - 170Credit | B192: 121378.308
A193: 19 - OS-2 - Sports Field Service | B193: 0
B194: 0
A195: OS-2 -19Non-Fuel Energy | B195: 10793313
A196: OS-2 -19Customer | B196: 2183
A197: OS-2 -19Non-Fuel Energy | B197: 10793313
A198: OS-2 -19First 1,000 kWh | B198: 0
A199: OS-2 -19All additional kWh | B199: 0
A200: OS-2 -19Non-Fuel Energy - On Peak | B200: 0
A201: OS-2 -19Non-Fuel Energy - Off Peak | B201: 0
A202: OS-2 -19Non-Fuel Energy - Seasonal On Peak | B202: 0
A203: OS-2 -19Non-Fuel Energy - Seasonal Off Peak | B203: 0
A204: OS-2 -19Non-Fuel Energy - Non-Seasonal | B204: 0
... 949 more rows

Sheet Present Base Rates by Rate Code
A1: OPC 015158
A2: FPL RC-16
A4: Business Base Rates - Current from Revenue Forecast | B4: 0 | C4: Rate class | D4: Customer Charge | E4: Demand Charge $/kW | F4: On-Peak Demand Charge $/kW | G4: Firm On-Peak Demand Charge $/kW | H4: Maximum Demand Charge $/kW | I4: Energy Charges $/kWh | J4: On-Peak Energy Charge $/kWh | K4: Off-Peak Energy Charge $/kWh | S4: Curtailment Credit ($/kW) | T4: Commercial / Industrial Demand Rider Credit (CDR) ($/kW) | U4: Commercial / Industrial Demand Rider (CDR) Adder per Customer | V4: Transformation Rider Credit ($/kW) | W4: Min Demand | X4: Max Demand | Y4: TOU CHECK | Z4: Rate Code | AA4: Rate Class
Y5: NTOU
A6: General Service Non-Demand (GS-1) | C6: GST-1 | D6: 7.75 | E6: 0 | F6: 0 | G6: 0 | H6: 0 | I6: 0.05515 | J6: 0 | K6: 0 | S6: =ROUND(,2) -> 0 | T6: 0 | U6: 0 | V6: 0 | Y6: NTOU | Z6: 68 | AA6: GST-1 | AB6: General Service Non-Demand (GS-1)
A7: General Service Non-Demand-TOU (GST-1) | C7: GST-1 | D7: 15.21 | E7: 0 | F7: 0 | G7: 0 | H7: 0 | I7: 0 | J7: 0.10042 | K7: 0.03489 | S7: 0 | T7: 0 | U7: 0 | V7: 0 | Y7: TOU | Z7: 69 | AA7: GST-1 | AB7: General Service Non-Demand-TOU (GST-1)
A8: General Service Constant Usage (GSCU-1) | D8: 13.5 | E8: 0 | F8: 0 | G8: 0 | H8: 0 | I8: 0.03446 | J8: 0 | K8: 0 | S8: 0 | T8: 0 | U8: 0 | V8: 0 | Y8: NTOU | Z8: 168 | AA8: GST-1 | AB8: General Service Constant Usage (GSCU-1)
D9: 0 | E9: 0 | F9: 0 | G9: 0 | H9: 0 | I9: 0 | J9: 0 | K9: 0 | S9: 0 | T9: 0 | U9: 0 | V9: 0 | Y9: NTOU | AB9: 0
A10: General Service Demand (GSD-1) | B10: CDR eligible | C10: GSDT-1 | D10: 20.24 | E10: 8.7 | F10: 0 | G10: 0 | H10: 0 | I10: 0.01934 | J10: 0 | K10: 0 | S10: =ROUND(,2) -> 0 | T10: =ROUND('CDR Credit'!$D$7,2) -> -8.2 | U10: =ROUND(81.15*(1+3.899%),2) -> 84.31 | V10: =ROUND(-0.29*(1+3.899%),2) -> -0.3 | W10: 21 | X10: 499 | Y10: NTOU | Z10: 72 | AA10: GSDT-1 | AB10: General Service Demand (GSD-1)
A11: C/I Load Control, General Service [CILC-1(G)] | D11: 112.42 | E11: 3.82 | F11: 2.54 | G11: 9.3 | H11: 0 | I11: 0 | J11: 0.01425 | K11: 0.01425 | S11: 0 | T11: =ROUND('CDR Credit'!$D$7,2) -> -8.2 | U11: 84.31 | V11: -0.3 | W11: 200 | X11: 999999999999 | Y11: TOU | Z11: 56 | AA11: CILC | AB11: C/I Load Control, General Service [CILC-1(G)]
A12: General Service Demand-TOU (GSDT-1) | B12: CDR eligible | C12: GSDT-1 | D12: 26.97 | E12: 0 | F12: 8.7 | G12: 0 | H12: 0 | I12: 0 | J12: 0.04114 | K12: 0.01045 | S12: 0 | T12: =ROUND('CDR Credit'!$D$7,2) -> -8.2 | U12: 84.31 | V12: -0.3 | W12: 21 | X12: 499 | Y12: TOU | Z12: 70 | AA12: GSDT-1 | AB12: General Service Demand-TOU (GSDT-1)
A13: High Load Factor-TOU (21 - 499 kW) | B13: CDR eligible | C13: GSDT-1 | D13: 26.97 | E13: 0 | F13: 10.27 | G13: 0 | H13: 2.14 | I13: 0 | J13: 0.01617 | K13: 0.01045 | S13: 0 | T13: =ROUND('CDR Credit'!$D$7,2) -> -8.2 | U13: 84.31 | V13: -0.3 | W13: 21 | X13: 499 | Y13: TOU | Z13: 170 | AA13: GSDT-1 | AB13: High Load Factor-TOU (21 - 499 kW)
A14: Seasonal Demand TOU Rider (SDTR) (21-499 kW) Option A Summer | B14: Jun-Sep | C14: GSDT-1 | D14: 26.97 | E14: 0 | F14: 10.04 | G14: 0 | H14: 0 | I14: 0 | J14: 0.07278 | K14: 0.01371 | S14: 0 | T14: =ROUND('CDR Credit'!$D$7,2) -> -8.2 | U14: 84.31 | V14: -0.3 | W14: 21 | X14: 499 | Y14: TOU | AB14: Seasonal Demand TOU Rider (SDTR) (21-499 kW) Option A Summer
A15: Seasonal Demand TOU Rider (SDTR) (21-499 kW) Option A Winter | B15: Jan-May/Oct-Dec | C15: GSDT-1 | D15: 26.97 | E15: 8.36 | F15: 0 | G15: 0 | H15: 0 | I15: 0.01934 | J15: 0 | K15: 0 | S15: 0 | T15: =ROUND('CDR Credit'!$D$7,2) -> -8.2 | U15: 84.31 | V15: -0.3 | W15: 21 | X15: 499 | Y15: NTOU | AB15: Seasonal Demand TOU Rider (SDTR) (21-499 kW) Option A Winter
A16: Seasonal Demand TOU Rider (SDTR) (21-499 kW) Option B Summer | B16: Jun-Sep | C16: GSDT-1 | D16: 26.97 | E16: 0 | F16: 10.04 | G16: 0 | H16: 0 | I16: 0 | J16: 0.07278 | K16: 0.01371 | S16: 0 | T16: =ROUND('CDR Credit'!$D$7,2) -> -8.2 | U16: 84.31 | V16: -0.3 | W16: 21 | X16: 499 | Y16: TOU | AB16: Seasonal Demand TOU Rider (SDTR) (21-499 kW) Option B Summer
A17: Seasonal Demand TOU Rider (SDTR) (21-499 kW) Option B Winter | B17: Jan-May/Oct-Dec | C17: GSDT-1 | D17: 26.97 | E17: 0 | F17: 8.36 | G17: 0 | H17: 0 | I17: 0 | J17: 0.03881 | K17: 0.01371 | S17: 0 | T17: =ROUND('CDR Credit'!$D$7,2) -> -8.2 | U17: 84.31 | V17: -0.3 | W17: 21 | X17: 499 | Y17: TOU | AB17: Seasonal Demand TOU Rider (SDTR) (21-499 kW) Option B Winter
D18: 0 | E18: 0 | F18: 0 | G18: 0 | H18: 0 | I18: 0 | J18: 0 | K18: 0 | S18: 0 | T18: =ROUND(,2) -> 0 | U18: =ROUND(,2) -> 0 | V18: =ROUND(,2) -> 0 | Y18: NTOU | AB18: 0
A19: General Service Large Demand (GSLD-1) | B19: CDR eligible | C19: GSLDT-1 | D19: 61.83 | E19: 9.96 | F19: 0 | G19: 0 | H19: 0 | I19: 0.0143 | J19: 0 | K19: 0 | S19: 0 | T19: =ROUND('CDR Credit'!$D$7,2) -> -8.2 | U19: =ROUND(135.25*(1+3.899%),2) -> 140.52 | V19: =ROUND(-0.29*(1+3.899%),2) -> -0.3 | W19: 500 | X19: 1999 | Y19: NTOU | Z19: 62 | AA19: GSLDT-1 | AB19: General Service Large Demand (GSLD-1)
A20: General Service Large Demand-TOU (GSLDT-1) | B20: CDR eligible | C20: GSLDT-1 | D20: 61.83 | E20: 0 | F20: 9.96 | G20: 0 | H20: 0 | I20: 0 | J20: 0.0238 | K20: 0.01035 | S20: 0 | T20: =ROUND('CDR Credit'!$D$7,2) -> -8.2 | U20: 140.52 | V20: -0.3 | W20: 500 | X20: 1999 | Y20: TOU | Z20: 64 | AA20: GSLDT-1 | AB20: General Service Large Demand-TOU (GSLDT-1)
A21: Curtailable Service (CS-1) | C21: GSLDT-1 | D21: 89.93 | E21: 9.96 | F21: 0 | G21: 0 | H21: 0 | I21: 0.0143 | J21: 0 | K21: 0 | S21: =ROUND(-1.86*(1+3.899%),2) -> -1.93 | T21: =ROUND('CDR Credit'!$D$7,2) -> -8.2 | U21: 140.52 | V21: -0.3 | W21: 500 | X21: 1999 | Y21: NTOU | Z21: 73 | AA21: GSLDT-1 | AB21: Curtailable Service (CS-1)
A22: Curtailable Service-TOU (CST-1) | C22: GSLDT-1 | D22: 89.93 | E22: 0 | F22: 9.96 | G22: 0 | H22: 0 | I22: 0 | J22: 0.0238 | K22: 0.01035 | S22: =ROUND(-1.86*(1+3.899%),2) -> -1.93 | T22: =ROUND('CDR Credit'!$D$7,2) -> -8.2 | U22: 140.52 | V22: -0.3 | W22: 500 | X22: 1999 | Y22: TOU | Z22: 74 | AA22: GSLDT-1 | AB22: Curtailable Service-TOU (CST-1)
A23: High Load Factor-TOU (500 - 1,999 kW) | B23: CDR eligible | C23: GSLDT-1 | D23: 61.83 | E23: 0 | F23: 10.52 | G23: 0 | H23: 2.24 | I23: 0 | J23: 0.00885 | K23: 0.00885 | S23: =ROUND(,2) -> 0 | T23: =ROUND('CDR Credit'!$D$7,2) -> -8.2 | U23: 140.52 | V23: -0.3 | W23: 500 | X23: 1999 | Y23: TOU | Z23: 164 | AA23: GSLDT-1 | AB23: High Load Factor-TOU (500 - 1,999 kW)
A24: Seasonal Demand TOU Rider (SDTR) (500 - 1,999 kW) Option A Summer | B24: Jun-Sep | C24: GSLDT-1 | D24: 61.83 | E24: 0 | F24: 10.96 | G24: 0 | H24: 0 | I24: 0 | J24: 0.0504 | K24: 0.01035 | S24: 0 | T24: =ROUND('CDR Credit'!$D$7,2) -> -8.2 | U24: 140.52 | V24: -0.3 | W24: 500 | X24: 1999 | Y24: TOU | AB24: Seasonal Demand TOU Rider (SDTR) (500 - 1,999 kW) Option A Summer
A25: Seasonal Demand TOU Rider (SDTR) (500 - 1,999 kW) Option A Winter | B25: Jan-May/Oct-Dec | C25: GSLDT-1 | D25: 61.83 | E25: 9.61 | F25: 0 | G25: 0 | H25: 0 | I25: 0.0143 | J25: 0 | K25: 0 | S25: 0 | T25: =ROUND('CDR Credit'!$D$7,2) -> -8.2 | U25: 140.52 | V25: -0.3 | W25: 500 | X25: 1999 | Y25: NTOU | AB25: Seasonal Demand TOU Rider (SDTR) (500 - 1,999 kW) Option A Winter
A26: Seasonal Demand TOU Rider (SDTR) (500 - 1,999 kW) Option B Summer | B26: Jun-Sep | C26: GSLDT-1 | D26: 61.83 | E26: 0 | F26: 10.96 | G26: 0 | H26: 0 | I26: 0 | J26: 0.0504 | K26: 0.01035 | S26: 0 | T26: =ROUND('CDR Credit'!$D$7,2) -> -8.2 | U26: 140.52 | V26: -0.3 | W26: 500 | X26: 1999 | Y26: TOU | AB26: Seasonal Demand TOU Rider (SDTR) (500 - 1,999 kW) Option B Summer
A27: Seasonal Demand TOU Rider (SDTR) (500 - 1,999 kW) Option B Winter | B27: Jan-May/Oct-Dec | C27: GSLDT-1 | D27: 61.83 | E27: 0 | F27: 9.61 | G27: 0 | H27: 0 | I27: 0 | J27: 0.0271 | K27: 0.01035 | S27: 0 | T27: =ROUND('CDR Credit'!$D$7,2) -> -8.2 | U27: 140.52 | V27: -0.3 | W27: 500 | X27: 1999 | Y27: TOU | AB27: Seasonal Demand TOU Rider (SDTR) (500 - 1,999 kW) Option B Winter
D28: 0 | E28: 0 | F28: 0 | G28: 0 | H28: 0 | I28: 0 | J28: 0 | K28: 0 | S28: 0 | T28: =ROUND(,2) -> 0 | U28: =ROUND(,2) -> 0 | V28: =ROUND(,2) -> 0 | Y28: NTOU | AB28: 0
A29: General Service Large Demand (GSLD-2) | B29: CDR eligible | C29: GSLDT-2 | D29: 219.22 | E29: 10.28 | F29: 0 | G29: 0 | H29: 0 | I29: 0.01287 | J29: 0 | K29: 0 | S29: 0 | T29: =ROUND('CDR Credit'!$D$7,2) -> -8.2 | U29: =ROUND(54.1*(1+3.899%),2) -> 56.21 | V29: =ROUND(-0.29*(1+3.899%),2) -> -0.3 | W29: 2000 | X29: 999999999999 | Y29: NTOU | Z29: 63 | AA29: GSLDT-2 | AB29: General Service Large Demand (GSLD-2)
A30: General Service Large Demand-TOU (GSLDT-2) | B30: CDR eligible | C30: GSLDT-2 | D30: 219.22 | E30: 0 | F30: 10.28 | G30: 0 | H30: 0 | I30: 0 | J30: 0.02041 | K30: 0.01003 | S30: 0 | T30: =ROUND('CDR Credit'!$D$7,2) -> -8.2 | U30: 56.21 | V30: -0.3 | W30: 2000 | X30: 999999999999 | Y30: TOU | Z30: 65 | AA30: GSLDT-2 | AB30: General Service Large Demand-TOU (GSLDT-2)
A31: Curtailable Service (CS-2) | C31: GSLDT-2 | D31: 247.32 | E31: 10.28 | F31: 0 | G31: 0 | H31: 0 | I31: 0.01287 | J31: 0 | K31: 0 | S31: =ROUND(-1.86*(1+3.899%),2) -> -1.93 | T31: =ROUND('CDR Credit'!$D$7,2) -> -8.2 | U31: 56.21 | V31: -0.3 | W31: 2000 | X31: 999999999999 | Y31: NTOU | Z31: 71 | AA31: GSLDT-2 | AB31: Curtailable Service (CS-2)
A32: Curtailable Service-TOU (CST-2) | C32: GSLDT-2 | D32: 247.32 | E32: 0 | F32: 10.28 | G32: 0 | H32: 0 | I32: 0 | J32: 0.02041 | K32: 0.01003 | S32: =ROUND(-1.86*(1+3.899%),2) -> -1.93 | T32: =ROUND('CDR Credit'!$D$7,2) -> -8.2 | U32: 56.21 | V32: -0.3 | W32: 2000 | X32: 999999999999 | Y32: TOU | Z32: 75 | AA32: GSLDT-2 | AB32: Curtailable Service-TOU (CST-2)
A33: High Load Factor-TOU (2,000 kW or more) | B33: CDR eligible | C33: GSLDT-2 | D33: 219.22 | E33: 0 | F33: 10.51 | G33: 0 | H33: 2.24 | I33: 0 | J33: 0.0081 | K33: 0.0081 | S33: =ROUND(,2) -> 0 | T33: =ROUND('CDR Credit'!$D$7,2) -> -8.2 | U33: 56.21 | V33: -0.3 | W33: 2000 | X33: 999999999999 | Y33: TOU | Z33: 165 | AA33: GSLDT-2 | AB33: High Load Factor-TOU (2,000 kW or more)
A34: Seasonal Demand TOU Rider (SDTR) (2,000 kW and greater) Option A Summer | B34: Jun-Sep | C34: GSLDT-2 | D34: 219.22 | E34: 0 | F34: 11.29 | G34: 0 | H34: 0 | I34: 0 | J34: 0.04302 | K34: 0.00931 | S34: 0 | T34: =ROUND('CDR Credit'!$D$7,2) -> -8.2 | U34: 56.21 | V34: -0.3 | W34: 2000 | X34: 999999999999 | Y34: TOU | AB34: Seasonal Demand TOU Rider (SDTR) (2,000 kW and greater) Option A Summer
A35: Seasonal Demand TOU Rider (SDTR) (2,000 kW and greater) Option A Winter | B35: Jan-May/Oct-Dec | C35: GSLDT-2 | D35: 219.22 | E35: 10.05 | F35: 0 | G35: 0 | H35: 0 | I35: 0.01287 | J35: 0 | K35: 0 | S35: 0 | T35: =ROUND('CDR Credit'!$D$7,2) -> -8.2 | U35: 56.21 | V35: -0.3 | W35: 2000 | X35: 999999999999 | Y35: NTOU | AB35: Seasonal Demand TOU Rider (SDTR) (2,000 kW and greater) Option A Winter
A36: Seasonal Demand TOU Rider (SDTR) (2,000 kW and greater) Option B Summer | B36: Jun-Sep | C36: GSLDT-2 | D36: 219.22 | E36: 0 | F36: 11.29 | G36: 0 | H36: 0 | I36: 0 | J36: 0.04302 | K36: 0.00931 | S36: 0 | T36: =ROUND('CDR Credit'!$D$7,2) -> -8.2 | U36: 56.21 | V36: -0.3 | W36: 2000 | X36: 999999999999 | Y36: TOU | AB36: Seasonal Demand TOU Rider (SDTR) (2,000 kW and greater) Option B Summer
A37: Seasonal Demand TOU Rider (SDTR) (2,000 kW and greater) Option B Winter | B37: Jan-May/Oct-Dec | C37: GSLDT-2 | D37: 219.22 | E37: 0 | F37: 10.05 | G37: 0 | H37: 0 | I37: 0 | J37: 0.02479 | K37: 0.00931 | S37: 0 | T37: =ROUND('CDR Credit'!$D$7,2) -> -8.2 | U37: 56.21 | V37: -0.3 | W37: 2000 | X37: 999999999999 | Y37: TOU | AB37: Seasonal Demand TOU Rider (SDTR) (2,000 kW and greater) Option B Winter
D38: 0 | E38: 0 | F38: 0 | G38: 0 | H38: 0 | I38: 0 | J38: 0 | K38: 0 | S38: 0 | T38: =ROUND(,2) -> 0 | U38: =ROUND(,2) -> 0 | V38: =ROUND(,2) -> 0 | Y38: NTOU | AB38: 0
A39: General Service Large Demand (GSLD-3) | B39: CDR eligible | C39: GSLDT-3 | D39: 1620.94 | E39: 8.2 | F39: 0 | G39: 0 | H39: 0 | I39: 0.00932 | J39: 0 | K39: 0 | S39: 0 | T39: =ROUND('CDR Credit'!$D$7,2) -> -8.2 | U39: =ROUND(513.95*(1+3.899%),2) -> 533.99 | V39: =ROUND(,2) -> 0 | W39: 2000 | X39: 999999999999 | Y39: NTOU | Z39: 91 | AA39: GSLDT-3 | AB39: General Service Large Demand (GSLD-3) | AE39: A
A40: General Service Large Demand-TOU (GSLDT-3) | B40: CDR eligible | C40: GSLDT-3 | D40: 1620.94 | E40: 0 | F40: 8.2 | G40: 0 | H40: 0 | I40: 0 | J40: 0.01043 | K40: 0.00892 | S40: 0 | T40: =ROUND('CDR Credit'!$D$7,2) -> -8.2 | U40: =ROUND(513.95*(1+3.899%),2) -> 533.99 | V40: 0 | W40: 2000 | X40: 999999999999 | Y40: TOU | Z40: 90 | AA40: GSLDT-3 | AB40: General Service Large Demand-TOU (GSLDT-3) | AE40: A
A41: Curtailable Service (CS-3) | C41: GSLDT-3 | D41: 1649.04 | E41: 8.2 | F41: 0 | G41: 0 | H41: 0 | I41: 0.00932 | J41: 0 | K41: 0 | S41: =ROUND(-1.86*(1+3.899%),2) -> -1.93 | T41: =ROUND('CDR Credit'!$D$7,2) -> -8.2 | U41: =ROUND(513.95*(1+3.899%),2) -> 533.99 | V41: 0 | W41: 2000 | X41: 999999999999 | Y41: NTOU | Z41: 92 | AA41: GSLDT-3 | AB41: Curtailable Service (CS-3)
A42: Curtailable Service-TOU (CST-3) | C42: GSLDT-3 | D42: 1649.04 | E42: 0 | F42: 8.2 | G42: 0 | H42: 0 | I42: 0 | J42: 0.01043 | K42: 0.00892 | S42: =ROUND(-1.86*(1+3.899%),2) -> -1.93 | T42: =ROUND('CDR Credit'!$D$7,2) -> -8.2 | U42: =ROUND(513.95*(1+3.899%),2) -> 533.99 | V42: 0 | W42: 2000 | X42: 999999999999 | Y42: TOU | Z42: 82 | AA42: GSLDT-3 | AB42: Curtailable Service-TOU (CST-3)
D43: 0 | E43: 0 | F43: 0 | G43: 0 | H43: 0 | I43: 0 | J43: 0 | K43: 0 | S43: =ROUND(,2) -> 0 | T43: 0 | U43: 0 | V43: 0 | Y43: NTOU | AB43: 0
A44: C/I Load Control Program, Transmission [CILC-1(T)] | D44: 2220.26 | E44: 0 | F44: 2.49 | G44: 9.17 | H44: 0 | I44: 0 | J44: 0.00731 | K44: 0.00731 | S44: 0 | T44: 0 | U44: 0 | V44: 0 | W44: 200 | X44: 999999999999 | Y44: TOU | Z44: 55 | AA44: CILC | AB44: C/I Load Control Program, Transmission [CILC-1(T)]
A45: C/I Load Control Program, Distribution [CILC-1(D)] | D45: 168.63 | E45: 3.49 | F45: 2.54 | G45: 9.08 | H45: 0 | I45: 0 | J45: 0.00822 | K45: 0.00822 | S45: 0 | T45: 0 | U45: 0 | V45: =ROUND(-0.29*(1+3.899%),2) -> -0.3 | W45: 200 | X45: 999999999999 | Y45: TOU | Z45: 54 | AA45: CILC | AB45: C/I Load Control Program, Distribution [CILC-1(D)]
A46: Metrorail (MET) | D46: 449.67 | E46: 12.4 | F46: 0 | G46: 0 | H46: 0 | I46: 0.01661 | J46: 0 | K46: 0 | S46: 0 | T46: 0 | U46: 0 | V46: =ROUND(,2) -> 0 | Y46: NTOU | AB46: Metrorail (MET)
A47: Sportsfield Lighting (OS-2) | D47: 115.8 | E47: 0 | F47: 0 | G47: 0 | H47: 0 | I47: 0.06847 | J47: 0 | K47: 0 | S47: 0 | T47: 0 | U47: 0 | V47: =ROUND(,2) -> 0 | Y47: NTOU | AB47: Sportsfield Lighting (OS-2)
A48: Street Lighting (SL-1 and PL-1) | D48: 0 | E48: 0 | F48: 0 | G48: 0 | H48: 0 | I48: 0.02792 | J48: 0 | K48: 0 | S48: 0 | T48: 0 | U48: 0 | V48: =ROUND(,2) -> 0 | Y48: NTOU | AB48: Street Lighting (SL-1 and PL-1)
A49: Outdoor Lighting (OL-1) | D49: 0 | E49: 0 | F49: 0 | G49: 0 | H49: 0 | I49: 0.02817 | J49: 0 | K49: 0 | S49: 0 | T49: 0 | U49: 0 | V49: =ROUND(,2) -> 0 | Y49: NTOU | AB49: Outdoor Lighting (OL-1)
A50: Traffic Signals (SL-2) | D50: 0 | E50: 0 | F50: 0 | G50: 0 | H50: 0 | I50: 0.04601 | J50: 0 | K50: 0 | S50: 0 | T50: 0 | U50: 0 | V50: =ROUND(,2) -> 0 | Y50: NTOU | AB50: Traffic Signals (SL-2)
Y51: NTOU | AB51: 0
AB52: 0
AB53: 0
AB54: 0
AB55: 0
AB56: 0
AB57: 0
AB58: 0
AB59: 0
AB60: 0
AB61: 0
AB62: 0
AB63: 0
AB64: 0
AB65: RIDER Commercial/Industrial Demand Reduction Rider
AB66: 0
AB67: 0
AB68: TRANSFORMATION RIDER
AB69: 0
AB70: 0
AB71: 0
D72: Customer Charge | E72: Contract Standby Demand Charge $/kW | F72: Reservation Demand Charge Interruptible $/kW | G72: Reservation Demand Charge Firm $/Kw | H72: Demand Charge $/Kw RDC | I72: Daily Demand Charge Interruptible $/kW | J72: Daily Demand Charge Firm $/Kw | K72: Demand Charge $/Kw DDC | L72: On-Peak Energy Charge ¢/kWh | M72: Off-Peak Energy Charge ¢/kWh | AB72: 0
A73: Standby and Supplemental (SST-1D) | D73: =ROUND(108.2*(1+3.899%),2) -> 112.42 | E73: =ROUND(2.92*(1+3.899%),2) -> 3.03 | F73: =ROUND(0*(1+3.899%),2) -> 0 | G73: 0 | H73: 1.23 | I73: =ROUND(0*(1+3.899%),2) -> 0 | J73: 0 | K73: 0.6 | L73: 0.00984 | M73: 0.00984 | AB73: Standby and Supplemental (SST-1D)
AB74: 0
A75: Standby and Supplemental (SST-2D) | D75: =ROUND(108.2*(1+3.899%),2) -> 112.42 | E75: =ROUND(2.92*(1+3.899%),2) -> 3.03 | F75: 0 | G75: 0 | H75: 1.23 | I75: 0 | J75: 0 | K75: 0.6 | L75: 0.00984 | M75: 0.00984 | AB75: Standby and Supplemental (SST-2D)
AB76: 0
A77: Standby and Supplemental (SST-3D) | D77: =ROUND(405.75*(1+3.899%),2) -> 421.57 | E77: =ROUND(2.92*(1+3.899%),2) -> 3.03 | F77: 0 | G77: 0 | H77: 1.23 | I77: 0 | J77: 0 | K77: 0.6 | L77: 0.00984 | M77: 0.00984 | AB77: Standby and Supplemental (SST-3D)
AB78: 0
A79: Standby and Supplemental (SST-1T) | D79: =ROUND(1570.75*(1+3.899%),2) -> 1631.99 | E79: =ROUND(0*(1+3.899%),2) -> 0 | F79: 0 | G79: 0 | H79: 1.28 | I79: 0 | J79: 0 | K79: 0.37 | L79: 0.00957 | M79: 0.00957 | AB79: Standby and Supplemental (SST-1T)
AB80: 0
A81: Interruptible Standby and Supplemental (ISST-1D) | D81: =ROUND(405.75*(1+3.899%),2) -> 421.57 | E81: =ROUND(2.92*(1+3.899%),2) -> 3.03 | F81: 0.22 | G81: 1.23 | H81: =ROUND(0*(1+3.899%),2) -> 0 | I81: 0.1 | J81: 0.6 | K81: =ROUND(0*(1+3.899%),2) -> 0 | L81: 0.00984 | M81: 0.00984 | AB81: Interruptible Standby and Supplemental (ISST-1D)
AB82: 0
A83: Interruptible Standby and Supplemental (ISST-1T) | D83: =ROUND(2046.05*(1+3.899%),2) -> 2125.83 | E83: =ROUND(0*(1+3.899%),2) -> 0 | F83: 0.3 | G83: 1.03 | H83: =ROUND(0*(1+3.899%),2) -> 0 | I83: 0.12 | J83: 0.48 | K83: =ROUND(0*(1+3.899%),2) -> 0 | L83: 0.009 | M83: 0.009 | AB83: Interruptible Standby and Supplemental (ISST-1T)
AB84: 0
AB85: 0
AB86: 0
AB87: 0
AB88: 0
AB89: 0
AB90: 0
AB91: 0
AB92: 0
AB93: 0
AB94: 0
AB95: 0
AB96: 0
AB97: 0
AB98: 0
AB99: 0
AB100: 0
AB101: 0
AB102: 0
A103: Residential Rates - Current from Revenue Forecast | D103: Customer Charge | J103: < 1,000 kWh/ On-Peak Energy Charge ¢/kWh | K103: > 1,000 kWh/ Off-Peak Energy Charge ¢/kWh | AB103: Residential Rates & Clauses
A104: Residential Service (RS-1) | C104: RST-1 | D104: =ROUND(7.57*(1+3.899%),2) -> 7.87 | E104: 0 | F104: 0 | G104: 0 | H104: 0 | I104: 0 | J104: 0.05057 | K104: 0.06182 | Z104: 44 | AA104: RST-1 | AB104: Residential Service (RS-1)
A105: Residential TOU Service (RTR-1) | C105: RST-1 | D105: =ROUND(11.9*(1+3.899%),2) -> 12.36 | E105: 0 | F105: 0 | G105: 0 | H105: 0 | I105: 0 | J105: =ROUND(0.0881*(1+3.899%),5) -> 0.09154 | K105: =ROUND(-0.03919*(1+3.899%),5) -> -0.04072 | Z105: 145 | AA105: RST-1 | AB105: Residential TOU Service (RTR-1)

Sheet Table
E2: Table X
E3: SFHHA Proposed 2017 Rate Schedule Increases
E4: (12 CP +25% MDS Cost Study w/o CILC/CDR Reset)
E5: With 1.5 Times CAP Applied Only to Base Revenues
G7: SFHHA Base | I7: SFHHA "Base +Clause" | K7: SFHHA "Base"
E8: Rate | G8: Increase | I8: Percentage Increase | K8: Percentage Increase
E10: CILC-1D | G10: ='E-8 Parity Analysis Final'!AB15 -> 19545.71089 | I10: ='E-8 Parity Analysis Final'!AF15 -> 0.09808799246 | K10: ='E-8 Parity Analysis Final'!AG15 -> 0.2194887441
E11: CILC-1G | G11: ='E-8 Parity Analysis Final'!AB16 -> 342.0086001 | I11: ='E-8 Parity Analysis Final'!AF16 -> 0.04106088589 | K11: ='E-8 Parity Analysis Final'!AG16 -> 0.08218321611
E12: CILC-1T | G12: ='E-8 Parity Analysis Final'!AB17 -> 7968.737522 | I12: ='E-8 Parity Analysis Final'!AF17 -> 0.08216440502 | K12: ='E-8 Parity Analysis Final'!AG17 -> 0.2194799859
E13: GS(T)-1 | G13: ='E-8 Parity Analysis Final'!AB18 -> 31094.19684 | I13: ='E-8 Parity Analysis Final'!AF18 -> 0.04863871667 | K13: ='E-8 Parity Analysis Final'!AG18 -> 0.0813597668
E14: GSCU-1 | G14: ='E-8 Parity Analysis Final'!AB19 -> 224.9958484 | I14: ='E-8 Parity Analysis Final'!AF19 -> 0.03125380509 | K14: ='E-8 Parity Analysis Final'!AG19 -> 0.05188623841
E15: GSD(T)-1 | G15: ='E-8 Parity Analysis Final'!AB20 -> 166184.7721 | I15: ='E-8 Parity Analysis Final'!AF20 -> 0.0740016157 | K15: ='E-8 Parity Analysis Final'!AG20 -> 0.1436678039
E16: GSLD(T)-1 | G16: ='E-8 Parity Analysis Final'!AB21 -> 85021.36271 | I16: ='E-8 Parity Analysis Final'!AF21 -> 0.1024889098 | K16: ='E-8 Parity Analysis Final'!AG21 -> 0.2195030966
E17: GSLD(T)-2 | G17: ='E-8 Parity Analysis Final'!AB22 -> 17479.37032 | I17: ='E-8 Parity Analysis Final'!AF22 -> 0.0956499 | K17: ='E-8 Parity Analysis Final'!AG22 -> 0.2195120536
E18: GSLD(T)-3 | G18: ='E-8 Parity Analysis Final'!AB23 -> 1014.264499 | I18: ='E-8 Parity Analysis Final'!AF23 -> 0.08732199058 | K18: ='E-8 Parity Analysis Final'!AG23 -> 0.2194881336
E19: MET | G19: ='E-8 Parity Analysis Final'!AB24 -> 404.2451623 | I19: ='E-8 Parity Analysis Final'!AF24 -> 0.05061225807 | K19: ='E-8 Parity Analysis Final'!AG24 -> 0.09752863014
E20: OL-1 | G20: ='E-8 Parity Analysis Final'!AB25 -> 111.9965185 | I20: ='E-8 Parity Analysis Final'!AF25 -> 0.005804178059 | K20: ='E-8 Parity Analysis Final'!AG25 -> 0.007617225444
E21: OS-2 | G21: ='E-8 Parity Analysis Final'!AB26 -> 222.9833217 | I21: ='E-8 Parity Analysis Final'!AF26 -> 0.147618167 | K21: ='E-8 Parity Analysis Final'!AG26 -> 0.2194581361
E22: RS(T)-1 | G22: ='E-8 Parity Analysis Final'!AB27 -> 531074.982 | I22: ='E-8 Parity Analysis Final'!AF27 -> 0.08635136795 | K22: ='E-8 Parity Analysis Final'!AG27 -> 0.1451480766
E23: SL-1 | G23: ='E-8 Parity Analysis Final'!AB28 -> 5555.774368 | I23: ='E-8 Parity Analysis Final'!AF28 -> 0.04681491186 | K23: ='E-8 Parity Analysis Final'!AG28 -> 0.06014945813
E24: SL-2 | G24: ='E-8 Parity Analysis Final'!AB29 -> 14.4346359 | I24: ='E-8 Parity Analysis Final'!AF29 -> 0.005047044322 | K24: ='E-8 Parity Analysis Final'!AG29 -> 0.009466591058
E25: SST-DST | G25: ='E-8 Parity Analysis Final'!AB30 -> 55.6378784 | I25: ='E-8 Parity Analysis Final'!AF30 -> 0.03303403878 | K25: ='E-8 Parity Analysis Final'!AG30 -> 0.068283834
E26: SST-TST | G26: ='E-8 Parity Analysis Final'!AB31 -> 38.48242888 | I26: ='E-8 Parity Analysis Final'!AF31 -> 0.005038095895 | K26: ='E-8 Parity Analysis Final'!AG31 -> 0.008679792053
E27: Total Retail | G27: =SUM(G10:G26) -> 866353.9557 | I27: ='E-8 Parity Analysis Final'!AF32 -> 0.08227092294 | K27: ='E-8 Parity Analysis Final'!AG32 -> 0.1462890843
E29: "1.5 X Limit" | I29: =1.5*I27 -> 0.1234063844 | K29: =1.5*K27 -> 0.2194336265

Sheet SJB-17
B3: SFHHA Proposed 2017 Revenue Distribution | N3: SFHHA Proposed 2017 Revenue Distribution
B4: 12 CP and 25% with MDS Cost of Service Study | N4: 12 CP and 25% with MDS Cost of Service Study
B5: 1.5 Limitation Applied to Base Revenue Increase | N5: 1.5 Limitation Applied to Base Revenue Increase
A7: Rate Class | B7: Present Operating Revenues | D7: Proposed Operating Revenues | F7: Proposed Equalized Increase | H7: Proposed Unbilled Revenues - Allocated on Sales | I7: Proposed Misc. Service Charges | J7: Total Revenue Requirements less Unbilled and Misc. Service Charges | K7: Reverse Additional CILC/CDR Credits | L7: Base Adjustment | M7: Rounding adjustment | N7: Total Proposed Increase - Base | O7: Unbilled Revenues - Allocated on Sales | P7: Misc. Service Charges | Q7: Total Proposed Increase | R7: Total Proposed Revenues | S7: Clause Revenues | T7: Proposed Operating Revenues (with Clauses) | U7: Percent Increase (with Clauses) | V7: Percent Increase (without Clauses)
A8: CILC-1D | B8: ='E-8 Parity Analysis Final'!C15 -> 89051.08538 | D8: ='E-8 Parity Analysis Final'!K15 -> 112117.8584 | F8: ='E-8 Parity Analysis Final'!L15 -> 23066.773 | H8: ='E-8 Parity Analysis Final'!P15 -> 2.997043546 | I8: ='E-8 Parity Analysis Final'!Q15 -> 1.911237298 | J8: ='E-8 Parity Analysis Final'!R15 -> 23061.86472 | K8: ='E-8 Parity Analysis Final'!S15 -> 0 | L8: ='E-8 Parity Analysis Final'!T15 -> -3521.062112 | M8: ='E-8 Parity Analysis Final'!U15 -> 0 | N8: ='E-8 Parity Analysis Final'!W15 -> 19540.80261 | O8: ='E-8 Parity Analysis Final'!Z15 -> 2.997043546 | P8: ='E-8 Parity Analysis Final'!AA15 -> 1.911237298 | Q8: ='E-8 Parity Analysis Final'!AB15 -> 19545.71089 | R8: ='E-8 Parity Analysis Final'!AC15 -> 108596.7963 | S8: ='E-8 Parity Analysis Final'!AD15 -> 110216.0257 | T8: ='E-8 Parity Analysis Final'!AE15 -> 218812.822 | U8: ='E-8 Parity Analysis Final'!AF15 -> 0.09808799246 | V8: ='E-8 Parity Analysis Final'!AG15 -> 0.2194887441
A9: CILC-1G | B9: ='E-8 Parity Analysis Final'!C16 -> 4161.538284 | D9: ='E-8 Parity Analysis Final'!K16 -> 4476.101642 | F9: ='E-8 Parity Analysis Final'!L16 -> 314.5633582 | H9: ='E-8 Parity Analysis Final'!P16 -> 0.1133317518 | I9: ='E-8 Parity Analysis Final'!Q16 -> 0.1209519072 | J9: ='E-8 Parity Analysis Final'!R16 -> 314.3290746 | K9: ='E-8 Parity Analysis Final'!S16 -> 0 | L9: ='E-8 Parity Analysis Final'!T16 -> 0 | M9: ='E-8 Parity Analysis Final'!U16 -> 27.44524187 | N9: ='E-8 Parity Analysis Final'!W16 -> 341.7743165 | O9: ='E-8 Parity Analysis Final'!Z16 -> 0.1133317518 | P9: ='E-8 Parity Analysis Final'!AA16 -> 0.1209519072 | Q9: ='E-8 Parity Analysis Final'!AB16 -> 342.0086001 | R9: ='E-8 Parity Analysis Final'!AC16 -> 4503.546884 | S9: ='E-8 Parity Analysis Final'!AD16 -> 4167.765693 | T9: ='E-8 Parity Analysis Final'!AE16 -> 8671.312577 | U9: ='E-8 Parity Analysis Final'!AF16 -> 0.04106088589 | V9: ='E-8 Parity Analysis Final'!AG16 -> 0.08218321611
A10: CILC-1T | B10: ='E-8 Parity Analysis Final'!C17 -> 36307.3539 | D10: ='E-8 Parity Analysis Final'!K17 -> 48119.96238 | F10: ='E-8 Parity Analysis Final'!L17 -> 11812.60849 | H10: ='E-8 Parity Analysis Final'!P17 -> 1.682113685 | I10: ='E-8 Parity Analysis Final'!Q17 -> 0.001074135062 | J10: ='E-8 Parity Analysis Final'!R17 -> 11810.9253 | K10: ='E-8 Parity Analysis Final'!S17 -> 0 | L10: ='E-8 Parity Analysis Final'!T17 -> -3843.870965 | M10: ='E-8 Parity Analysis Final'!U17 -> 0 | N10: ='E-8 Parity Analysis Final'!W17 -> 7967.054334 | O10: ='E-8 Parity Analysis Final'!Z17 -> 1.682113685 | P10: ='E-8 Parity Analysis Final'!AA17 -> 0.001074135062 | Q10: ='E-8 Parity Analysis Final'!AB17 -> 7968.737522 | R10: ='E-8 Parity Analysis Final'!AC17 -> 44276.09142 | S10: ='E-8 Parity Analysis Final'!AD17 -> 60677.92239 | T10: ='E-8 Parity Analysis Final'!AE17 -> 104954.0138 | U10: ='E-8 Parity Analysis Final'!AF17 -> 0.08216440502 | V10: ='E-8 Parity Analysis Final'!AG17 -> 0.2194799859
A11: GS(T)-1 | B11: ='E-8 Parity Analysis Final'!C18 -> 382181.4892 | D11: ='E-8 Parity Analysis Final'!K18 -> 410776.9839 | F11: ='E-8 Parity Analysis Final'!L18 -> 28595.49473 | H11: ='E-8 Parity Analysis Final'!P18 -> 6.65646877 | I11: ='E-8 Parity Analysis Final'!Q18 -> -28.6804426 | J11: ='E-8 Parity Analysis Final'!R18 -> 28617.5187 | K11: ='E-8 Parity Analysis Final'!S18 -> 0 | L11: ='E-8 Parity Analysis Final'!T18 -> 0 | M11: ='E-8 Parity Analysis Final'!U18 -> 2498.702111 | N11: ='E-8 Parity Analysis Final'!W18 -> 31116.22081 | O11: ='E-8 Parity Analysis Final'!Z18 -> 6.65646877 | P11: ='E-8 Parity Analysis Final'!AA18 -> -28.6804426 | Q11: ='E-8 Parity Analysis Final'!AB18 -> 31094.19684 | R11: ='E-8 Parity Analysis Final'!AC18 -> 413275.686 | S11: ='E-8 Parity Analysis Final'!AD18 -> 257107.5169 | T11: ='E-8 Parity Analysis Final'!AE18 -> 670383.203 | U11: ='E-8 Parity Analysis Final'!AF18 -> 0.04863871667 | V11: ='E-8 Parity Analysis Final'!AG18 -> 0.0813597668
A12: GSCU-1 | B12: ='E-8 Parity Analysis Final'!C19 -> 4336.329927 | D12: ='E-8 Parity Analysis Final'!K19 -> 4543.430898 | F12: ='E-8 Parity Analysis Final'!L19 -> 207.1009709 | H12: ='E-8 Parity Analysis Final'!P19 -> 0.07833452034 | I12: ='E-8 Parity Analysis Final'!Q19 -> 2.073439317 | J12: ='E-8 Parity Analysis Final'!R19 -> 204.9491971 | K12: ='E-8 Parity Analysis Final'!S19 -> 0 | L12: ='E-8 Parity Analysis Final'!T19 -> 0 | M12: ='E-8 Parity Analysis Final'!U19 -> 17.8948775 | N12: ='E-8 Parity Analysis Final'!W19 -> 222.8440746 | O12: ='E-8 Parity Analysis Final'!Z19 -> 0.07833452034 | P12: ='E-8 Parity Analysis Final'!AA19 -> 2.073439317 | Q12: ='E-8 Parity Analysis Final'!AB19 -> 224.9958484 | R12: ='E-8 Parity Analysis Final'!AC19 -> 4561.325775 | S12: ='E-8 Parity Analysis Final'!AD19 -> 2862.660652 | T12: ='E-8 Parity Analysis Final'!AE19 -> 7423.986427 | U12: ='E-8 Parity Analysis Final'!AF19 -> 0.03125380509 | V12: ='E-8 Parity Analysis Final'!AG19 -> 0.05188623841
A13: GSD(T)-1 | B13: ='E-8 Parity Analysis Final'!C20 -> 1156729.397 | D13: ='E-8 Parity Analysis Final'!K20 -> 1309579.933 | F13: ='E-8 Parity Analysis Final'!L20 -> 152850.5364 | H13: ='E-8 Parity Analysis Final'!P20 -> 28.80082882 | I13: ='E-8 Parity Analysis Final'!Q20 -> 105.3562656 | J13: ='E-8 Parity Analysis Final'!R20 -> 152716.3793 | K13: ='E-8 Parity Analysis Final'!S20 -> 0 | L13: ='E-8 Parity Analysis Final'!T20 -> 0 | M13: ='E-8 Parity Analysis Final'!U20 -> 13334.2357 | N13: ='E-8 Parity Analysis Final'!W20 -> 166050.615 | O13: ='E-8 Parity Analysis Final'!Z20 -> 28.80082882 | P13: ='E-8 Parity Analysis Final'!AA20 -> 105.3562656 | Q13: ='E-8 Parity Analysis Final'!AB20 -> 166184.7721 | R13: ='E-8 Parity Analysis Final'!AC20 -> 1322914.169 | S13: ='E-8 Parity Analysis Final'!AD20 -> 1088961.735 | T13: ='E-8 Parity Analysis Final'!AE20 -> 2411875.904 | U13: ='E-8 Parity Analysis Final'!AF20 -> 0.0740016157 | V13: ='E-8 Parity Analysis Final'!AG20 -> 0.1436678039
A14: GSLD(T)-1 | B14: ='E-8 Parity Analysis Final'!C21 -> 387335.5958 | D14: ='E-8 Parity Analysis Final'!K21 -> 518367.8691 | F14: ='E-8 Parity Analysis Final'!L21 -> 131032.2733 | H14: ='E-8 Parity Analysis Final'!P21 -> 11.71808783 | I14: ='E-8 Parity Analysis Final'!Q21 -> 15.19017594 | J14: ='E-8 Parity Analysis Final'!R21 -> 131005.3651 | K14: ='E-8 Parity Analysis Final'!S21 -> 0 | L14: ='E-8 Parity Analysis Final'!T21 -> -46010.91064 | M14: ='E-8 Parity Analysis Final'!U21 -> 0 | N14: ='E-8 Parity Analysis Final'!W21 -> 84994.45444 | O14: ='E-8 Parity Analysis Final'!Z21 -> 11.71808783 | P14: ='E-8 Parity Analysis Final'!AA21 -> 15.19017594 | Q14: ='E-8 Parity Analysis Final'!AB21 -> 85021.36271 | R14: ='E-8 Parity Analysis Final'!AC21 -> 472356.9585 | S14: ='E-8 Parity Analysis Final'!AD21 -> 442230.8705 | T14: ='E-8 Parity Analysis Final'!AE21 -> 914587.829 | U14: ='E-8 Parity Analysis Final'!AF21 -> 0.1024889098 | V14: ='E-8 Parity Analysis Final'!AG21 -> 0.2195030966
A15: GSLD(T)-2 | B15: ='E-8 Parity Analysis Final'!C22 -> 79628.29393 | D15: ='E-8 Parity Analysis Final'!K22 -> 105833.3886 | F15: ='E-8 Parity Analysis Final'!L22 -> 26205.09463 | H15: ='E-8 Parity Analysis Final'!P22 -> 2.805283433 | I15: ='E-8 Parity Analysis Final'!Q22 -> 3.439734519 | J15: ='E-8 Parity Analysis Final'!R22 -> 26198.84961 | K15: ='E-8 Parity Analysis Final'!S22 -> 0 | L15: ='E-8 Parity Analysis Final'!T22 -> -8725.724303 | M15: ='E-8 Parity Analysis Final'!U22 -> 0 | N15: ='E-8 Parity Analysis Final'!W22 -> 17473.12531 | O15: ='E-8 Parity Analysis Final'!Z22 -> 2.805283433 | P15: ='E-8 Parity Analysis Final'!AA22 -> 3.439734519 | Q15: ='E-8 Parity Analysis Final'!AB22 -> 17479.37032 | R15: ='E-8 Parity Analysis Final'!AC22 -> 97107.66425 | S15: ='E-8 Parity Analysis Final'!AD22 -> 103114.9219 | T15: ='E-8 Parity Analysis Final'!AE22 -> 200222.5862 | U15: ='E-8 Parity Analysis Final'!AF22 -> 0.0956499 | V15: ='E-8 Parity Analysis Final'!AG22 -> 0.2195120536
A16: GSLD(T)-3 | B16: ='E-8 Parity Analysis Final'!C23 -> 4621.0448 | D16: ='E-8 Parity Analysis Final'!K23 -> 5842.25701 | F16: ='E-8 Parity Analysis Final'!L23 -> 1221.21221 | H16: ='E-8 Parity Analysis Final'!P23 -> 0.1929230492 | I16: ='E-8 Parity Analysis Final'!Q23 -> 0.05895697151 | J16: ='E-8 Parity Analysis Final'!R23 -> 1220.96033 | K16: ='E-8 Parity Analysis Final'!S23 -> 0 | L16: ='E-8 Parity Analysis Final'!T23 -> -206.9477113 | M16: ='E-8 Parity Analysis Final'!U23 -> 0 | N16: ='E-8 Parity Analysis Final'!W23 -> 1014.012619 | O16: ='E-8 Parity Analysis Final'!Z23 -> 0.1929230492 | P16: ='E-8 Parity Analysis Final'!AA23 -> 0.05895697151 | Q16: ='E-8 Parity Analysis Final'!AB23 -> 1014.264499 | R16: ='E-8 Parity Analysis Final'!AC23 -> 5635.309298 | S16: ='E-8 Parity Analysis Final'!AD23 -> 6994.179404 | T16: ='E-8 Parity Analysis Final'!AE23 -> 12629.4887 | U16: ='E-8 Parity Analysis Final'!AF23 -> 0.08732199058 | V16: ='E-8 Parity Analysis Final'!AG23 -> 0.2194881336
A17: MET | B17: ='E-8 Parity Analysis Final'!C24 -> 4144.887114 | D17: ='E-8 Parity Analysis Final'!K24 -> 4516.67879 | F17: ='E-8 Parity Analysis Final'!L24 -> 371.7916768 | H17: ='E-8 Parity Analysis Final'!P24 -> 0.1017165888 | I17: ='E-8 Parity Analysis Final'!Q24 -> 0.001705979217 | J17: ='E-8 Parity Analysis Final'!R24 -> 371.6882543 | K17: ='E-8 Parity Analysis Final'!S24 -> 0 | L17: ='E-8 Parity Analysis Final'!T24 -> 0 | M17: ='E-8 Parity Analysis Final'!U24 -> 32.45348541 | N17: ='E-8 Parity Analysis Final'!W24 -> 404.1417397 | O17: ='E-8 Parity Analysis Final'!Z24 -> 0.1017165888 | P17: ='E-8 Parity Analysis Final'!AA24 -> 0.001705979217 | Q17: ='E-8 Parity Analysis Final'!AB24 -> 404.2451623 | R17: ='E-8 Parity Analysis Final'!AC24 -> 4549.132276 | S17: ='E-8 Parity Analysis Final'!AD24 -> 3842.212803 | T17: ='E-8 Parity Analysis Final'!AE24 -> 8391.345079 | U17: ='E-8 Parity Analysis Final'!AF24 -> 0.05061225807 | V17: ='E-8 Parity Analysis Final'!AG24 -> 0.09752863014
A18: OL-1 | B18: ='E-8 Parity Analysis Final'!C25 -> 14703.05944 | D18: ='E-8 Parity Analysis Final'!K25 -> 13292.7461 | F18: ='E-8 Parity Analysis Final'!L25 -> -1410.313342 | H18: ='E-8 Parity Analysis Final'!P25 -> 0.1091792398 | I18: ='E-8 Parity Analysis Final'!Q25 -> 15.40811571 | J18: ='E-8 Parity Analysis Final'!R25 -> -1425.830637 | K18: ='E-8 Parity Analysis Final'!S25 -> 0 | L18: ='E-8 Parity Analysis Final'!T25 -> 1522.30986 | M18: ='E-8 Parity Analysis Final'!U25 -> 0 | N18: ='E-8 Parity Analysis Final'!W25 -> 96.47922356 | O18: ='E-8 Parity Analysis Final'!Z25 -> 0.1091792398 | P18: ='E-8 Parity Analysis Final'!AA25 -> 15.40811571 | Q18: ='E-8 Parity Analysis Final'!AB25 -> 111.9965185 | R18: ='E-8 Parity Analysis Final'!AC25 -> 14815.05596 | S18: ='E-8 Parity Analysis Final'!AD25 -> 4592.785266 | T18: ='E-8 Parity Analysis Final'!AE25 -> 19407.84123 | U18: ='E-8 Parity Analysis Final'!AF25 -> 0.005804178059 | V18: ='E-8 Parity Analysis Final'!AG25 -> 0.007617225444
A19: OS-2 | B19: ='E-8 Parity Analysis Final'!C26 -> 1016.063135 | D19: ='E-8 Parity Analysis Final'!K26 -> 1342.328161 | F19: ='E-8 Parity Analysis Final'!L26 -> 326.2650258 | H19: ='E-8 Parity Analysis Final'!P26 -> 0.01203683249 | I19: ='E-8 Parity Analysis Final'!Q26 -> 0.01286647394 | J19: ='E-8 Parity Analysis Final'!R26 -> 326.2401225 | K19: ='E-8 Parity Analysis Final'!S26 -> 0 | L19: ='E-8 Parity Analysis Final'!T26 -> -103.281704 | M19: ='E-8 Parity Analysis Final'!U26 -> 0 | N19: ='E-8 Parity Analysis Final'!W26 -> 222.9584184 | O19: ='E-8 Parity Analysis Final'!Z26 -> 0.01203683249 | P19: ='E-8 Parity Analysis Final'!AA26 -> 0.01286647394 | Q19: ='E-8 Parity Analysis Final'!AB26 -> 222.9833217 | R19: ='E-8 Parity Analysis Final'!AC26 -> 1239.046457 | S19: ='E-8 Parity Analysis Final'!AD26 -> 494.4780555 | T19: ='E-8 Parity Analysis Final'!AE26 -> 1733.524512 | U19: ='E-8 Parity Analysis Final'!AF26 -> 0.147618167 | V19: ='E-8 Parity Analysis Final'!AG26 -> 0.2194581361
A20: RS(T)-1 | B20: ='E-8 Parity Analysis Final'!C27 -> 3658849.6 | D20: ='E-8 Parity Analysis Final'!K27 -> 4146961.82 | F20: ='E-8 Parity Analysis Final'!L27 -> 488112.2199 | H20: ='E-8 Parity Analysis Final'!P27 -> 63.56003582 | I20: ='E-8 Parity Analysis Final'!Q27 -> -4001.850294 | J20: ='E-8 Parity Analysis Final'!R27 -> 492050.5101 | K20: ='E-8 Parity Analysis Final'!S27 -> 0 | L20: ='E-8 Parity Analysis Final'!T27 -> 0 | M20: ='E-8 Parity Analysis Final'!U27 -> 42962.76213 | N20: ='E-8 Parity Analysis Final'!W27 -> 535013.2723 | O20: ='E-8 Parity Analysis Final'!Z27 -> 63.56003582 | P20: ='E-8 Parity Analysis Final'!AA27 -> -4001.850294 | Q20: ='E-8 Parity Analysis Final'!AB27 -> 531074.982 | R20: ='E-8 Parity Analysis Final'!AC27 -> 4189924.582 | S20: ='E-8 Parity Analysis Final'!AD27 -> 2491313.329 | T20: ='E-8 Parity Analysis Final'!AE27 -> 6681237.911 | U20: ='E-8 Parity Analysis Final'!AF27 -> 0.08635136795 | V20: ='E-8 Parity Analysis Final'!AG27 -> 0.1451480766
A21: SL-1 | B21: ='E-8 Parity Analysis Final'!C28 -> 92366.15823 | D21: ='E-8 Parity Analysis Final'!K28 -> 97476.00814 | F21: ='E-8 Parity Analysis Final'!L28 -> 5109.849906 | H21: ='E-8 Parity Analysis Final'!P28 -> 0.6254186652 | I21: ='E-8 Parity Analysis Final'!Q28 -> 2.07243335 | J21: ='E-8 Parity Analysis Final'!R28 -> 5107.152054 | K21: ='E-8 Parity Analysis Final'!S28 -> 0 | L21: ='E-8 Parity Analysis Final'!T28 -> 0 | M21: ='E-8 Parity Analysis Final'!U28 -> 445.9244617 | N21: ='E-8 Parity Analysis Final'!W28 -> 5553.076516 | O21: ='E-8 Parity Analysis Final'!Z28 -> 0.6254186652 | P21: ='E-8 Parity Analysis Final'!AA28 -> 2.07243335 | Q21: ='E-8 Parity Analysis Final'!AB28 -> 5555.774368 | R21: ='E-8 Parity Analysis Final'!AC28 -> 97921.9326 | S21: ='E-8 Parity Analysis Final'!AD28 -> 26309.15582 | T21: ='E-8 Parity Analysis Final'!AE28 -> 124231.0884 | U21: ='E-8 Parity Analysis Final'!AF28 -> 0.04681491186 | V21: ='E-8 Parity Analysis Final'!AG28 -> 0.06014945813
A22: SL-2 | B22: ='E-8 Parity Analysis Final'!C29 -> 1524.797661 | D22: ='E-8 Parity Analysis Final'!K29 -> 1372.497376 | F22: ='E-8 Parity Analysis Final'!L29 -> -152.3002857 | H22: ='E-8 Parity Analysis Final'!P29 -> 0.0365372746 | I22: ='E-8 Parity Analysis Final'!Q29 -> 0.09801031858 | J22: ='E-8 Parity Analysis Final'!R29 -> -152.4348333 | K22: ='E-8 Parity Analysis Final'!S29 -> 0 | L22: ='E-8 Parity Analysis Final'!T29 -> 166.7349216 | M22: ='E-8 Parity Analysis Final'!U29 -> 0 | N22: ='E-8 Parity Analysis Final'!W29 -> 14.30008831 | O22: ='E-8 Parity Analysis Final'!Z29 -> 0.0365372746 | P22: ='E-8 Parity Analysis Final'!AA29 -> 0.09801031858 | Q22: ='E-8 Parity Analysis Final'!AB29 -> 14.4346359 | R22: ='E-8 Parity Analysis Final'!AC29 -> 1539.232297 | S22: ='E-8 Parity Analysis Final'!AD29 -> 1335.220001 | T22: ='E-8 Parity Analysis Final'!AE29 -> 2874.452298 | U22: ='E-8 Parity Analysis Final'!AF29 -> 0.005047044322 | V22: ='E-8 Parity Analysis Final'!AG29 -> 0.009466591058
A23: SST-DST | B23: ='E-8 Parity Analysis Final'!C30 -> 814.8030821 | D23: ='E-8 Parity Analysis Final'!K30 -> 865.9777531 | F23: ='E-8 Parity Analysis Final'!L30 -> 51.17467094 | H23: ='E-8 Parity Analysis Final'!P30 -> 0.0132229865 | I23: ='E-8 Parity Analysis Final'!Q30 -> 0.04454121566 | J23: ='E-8 Parity Analysis Final'!R30 -> 51.11690674 | K23: ='E-8 Parity Analysis Final'!S30 -> 0 | L23: ='E-8 Parity Analysis Final'!T30 -> 0 | M23: ='E-8 Parity Analysis Final'!U30 -> 4.463207455 | N23: ='E-8 Parity Analysis Final'!W30 -> 55.5801142 | O23: ='E-8 Parity Analysis Final'!Z30 -> 0.0132229865 | P23: ='E-8 Parity Analysis Final'!AA30 -> 0.04454121566 | Q23: ='E-8 Parity Analysis Final'!AB30 -> 55.6378784 | R23: ='E-8 Parity Analysis Final'!AC30 -> 870.4409605 | S23: ='E-8 Parity Analysis Final'!AD30 -> 869.4559564 | T23: ='E-8 Parity Analysis Final'!AE30 -> 1739.896917 | U23: ='E-8 Parity Analysis Final'!AF30 -> 0.03303403878 | V23: ='E-8 Parity Analysis Final'!AG30 -> 0.068283834
A24: SST-TST | B24: ='E-8 Parity Analysis Final'!C31 -> 4433.565763 | D24: ='E-8 Parity Analysis Final'!K31 -> 3073.176754 | F24: ='E-8 Parity Analysis Final'!L31 -> -1360.389009 | H24: ='E-8 Parity Analysis Final'!P31 -> 0.09999855783 | I24: ='E-8 Parity Analysis Final'!Q31 -> 0.1909888728 | J24: ='E-8 Parity Analysis Final'!R31 -> -1360.679997 | K24: ='E-8 Parity Analysis Final'!S31 -> 0 | L24: ='E-8 Parity Analysis Final'!T31 -> 1398.871438 | M24: ='E-8 Parity Analysis Final'!U31 -> 0 | N24: ='E-8 Parity Analysis Final'!W31 -> 38.19144145 | O24: ='E-8 Parity Analysis Final'!Z31 -> 0.09999855783 | P24: ='E-8 Parity Analysis Final'!AA31 -> 0.1909888728 | Q24: ='E-8 Parity Analysis Final'!AB31 -> 38.48242888 | R24: ='E-8 Parity Analysis Final'!AC31 -> 4472.048192 | S24: ='E-8 Parity Analysis Final'!AD31 -> 3204.722526 | T24: ='E-8 Parity Analysis Final'!AE31 -> 7676.770718 | U24: ='E-8 Parity Analysis Final'!AF31 -> 0.005038095895 | V24: ='E-8 Parity Analysis Final'!AG31 -> 0.008679792053
A25: Total Retail | B25: 5922205.062 | D25: 6788559.018 | F25: 866353.9557 | H25: 119.6025614 | I25: -3884.550239 | J25: 870118.9034 | K25: 0 | L25: -47166.18628 | M25: 47166.18628 | N25: 870118.9034 | O25: 119.6025614 | P25: -3884.550239 | Q25: 866353.9557 | R25: 6788559.018 | S25: 4608294.958 | T25: 11396853.98 | U25: 0.08227092294 | V25: 0.1462890843

Sheet E-8 Parity Analysis Final
A1: OPC 015159
A2: FPL RC-16
A4: 2017 E-8 Workpaper - Manual Version
A5: ($000 WHERE APPLICABLE)
B8: 2017 MFR E-1 - Attachment 1 | K8: 2017 MFR E-1 - Attachment 2 | N8: Calculation of Proposed
A9: Description | B9: Used for Rate of Return Calculation (Present and Proposed) | C9: Used for Net Income Calc.; Total Proposed Revenues; and % Increase Calc.; | D9: Used for Net Income Calc. for Present and Proposed | E9: Used for Net Income Calc. for Present and Proposed | F9: Used for Net Income Calc. for Present and Proposed | G9: Calculated - Revenues minus Expenses | H9: Calculated - Present Net Income divided by Rate Base equals return on Rate Base | I9: Calculated (Parity) - Each Rate Class' return as a percent of overall average return | K9: Revenues at Proposed Rates - Used as starting allocation for Proposed Increase | L9: Operating Revenues Equalized Proposed less Operating Revenues Present | O9: Proposed Increase per E-1, Attachment 2 | P9: Unbilled Revenues (Proposed) Removed for Rate Design | Q9: Proposed Miscellaneous Service Charges Removed for Rate Design | R9: Beginning Balance for Rate Design Adjustments | S9: Reverse Additional CILC/CDR Credits per Settlement E-5 - adjusted for GBRAs (see workpaper) | T9: Adjustment needed to ensure that increase is not higher than max increase or lower than min increase | U9: Second adjustment needed to spread differences from adj. in col. 16. | V9: Final Adjustments - Needed for Rounding Differences from Rate Design | W9: Proposed Increase to be used as beginning Target Increase in Rate Calculations | X9: Proposed Increase after Rate Design Calculations - Used in MFRs | Y9: Add back increases/decreases from other sources before applying Comm. Guidelines | Z9: Add back increases/decreases from other sources before applying Comm. Guidelines | AA9: Add back increases/decreases from other sources before applying Comm. Guidelines | AB9: Proposed Increase used for applying Commission Guidelines | AC9: Present Revenues + Proposed Increase | AD9: Clauses are added to Present Op. Revenues before applying Comm. Guidelines to Total Proposed Increases in Col. 19 | AE9: Present + Proposed + Clause Revenues - For Calculating Proposed Rate of Return | AF9: % Increase (with Clauses) by Rate Class after a applying Comm. Guidelines. INCLUDES INCREASE FROM CDR CREDIT "RESET" | AG9: % Increase (without Clauses) by Rate Class after a applying Comm. Guidelines. INCLUDES CDR CRDIT "RESET" | AH9: Total Proposed Increase multiplied by Tax Factor - This calculates the portion of the increase that relates to taxes | AI9: Adds the tax expenses for the proposed increase to Total Operating Expenses | AJ9: Net Income (with proposed increase) without clauses | AK9: Net Income (after increase) divided by Rate Base | AL9: Calculated (Parity) - Each Rate Class' return as a percent of overall average return - following increase | AO9: Max is calculated as the max increase allowed - No more than 1.5X system average increase | AP9: Min is calculated as a minimum 0.5% increase to each rate class - this .05% should be an input
A10: Source/Calc. | B10: E-1, Attachment 1, Line 12 | C10: E-1, Attachment 1, Line 17 | D10: E-1, Attachment 1, Line 25 | E10: E-1, Attachment 1, Line 28 | F10: E-1, Attachment 1, Line 34 | G10: Sum: Col. 2 : 5 | H10: Col. 6 / Col. 1 | I10: Col. 7 / Total Col. 7 | K10: E-1, Attachment 2, line 17 | L10: Col. 9 - Col. 2 | O10: Col. 10 | P10: MFR E-12 (based on (kWh) Sales Allocation | Q10: MFR E-13b - Allocated based on Present Miscellaneous Service Revenues | R10: Calculated | S10: E-14, Attachment 5 | T10: Solve for Base Adjustment Using Col. 35 as a Max and Col. 36 as a Min. | U10: Solve for Rounding Adjustment - Spread difference generated in Col. 16 based on Col. 14 | V10: Manual Adjustments (Col. 35 - Col. 24 corrects 1.5X violations caused by adjustments in column 17) | W10: Used for Rate Design to account for rounding differences | X10: Final Proposed Increases after Rate Design and final manual adjustments - See Rate Class tabs | Y10: Reverse Col. 15 | Z10: Col. 12 | AA10: Col. 13 | AB10: Sum: Col. 20 - 23 | AC10: Col. 2 + Col. 24 | AD10: Revenue Requirements per NOI with Allocations from 2017 COS | AE10: Col. 2 + Col. 24 + Col. 26 | AF10: Col. 24 / Col. 2 + Col. 26 | AG10: Col. 24 / Col. 2 | AH10: Col. 24 X Expansion Factor per COS | AI10: (Sum: Col. 3: Col. 5) + Col. 30 | AJ10: (Col. 27 - Col. 26) + Col. 31 | AK10: (Col. 32 / Col. 1) | AL10: Col. 33 / Total Col. 33 | AO10: (Col. 2 + Col. 26) * (1.5X Average Increase per Col. 28) | AP10: (Col. 2 + Col. 26) * 1/2% (Min. Increase)
A13: Column # | B13: 1 | C13: =B13+1 -> 2 | D13: =C13+1 -> 3 | E13: 4 | F13: 5 | G13: 6 | H13: 7 | I13: 8 | K13: =I13+1 -> 9 | L13: =K13+1 -> 10 | O13: =L13+1 -> 11 | P13: =O13+1 -> 12 | Q13: =P13+1 -> 13 | R13: 14 | S13: 15 | T13: 16 | U13: 17 | V13: 18 | W13: 19 | X13: 20 | Y13: 21 | Z13: 22 | AA13: 23 | AB13: 24 | AC13: 25 | AD13: 26 | AE13: 27 | AF13: 28 | AG13: 29 | AH13: 30 | AI13: 31 | AJ13: 32 | AK13: 33 | AL13: 34 | AO13: =AL13+1 -> 35 | AP13: =AO13+1 -> 36
A14: Rate Class | B14: Total Rate Base | C14: Operating Revenues | D14: Operating Expenses | E14: Income Taxes | F14: Curtailment Credits | G14: Net Operating Income | H14: Rate of Return | I14: Parity | K14: Operating Revenues | L14: Proposed Equalized Increase | O14: Proposed Increase - Base | P14: Proposed Unbilled Revenues - Allocated on Sales | Q14: Proposed Misc. Service Charges | R14: Total Revenue Requirements less Unbilled and Misc. Service Charges | S14: Reverse Additional CILC/CDR Credits | T14: Base Adjustment | U14: Rounding adjustment | V14: Manual Adjustments | W14: Total Proposed Increase - Base | X14: Total Proposed Increase - Base After Rate Design-AASUME EQUAL TO PROPOSED INCREASE | Y14: CILC / CDR Revenue collected through ECCR | Z14: Unbilled Revenues - Allocated on Sales | AA14: Misc. Service Charges | AB14: Total Proposed Increase | AC14: Total Proposed Revenues | AD14: Clause Revenues | AE14: Proposed Operating Revenues (with Clauses_ | AF14: Percent Increase (with Clauses) | AG14: Percent Increase (without Clauses) | AH14: Taxes on Proposed Increase | AI14: Operating Expenses (Grossed up for Taxes) | AJ14: Net Operating Income (Proposed) - Without Clauses | AK14: Rate of Return | AL14: Parity | AO14: Max increase - Not greater than 1.5X Average | AP14: Min increase - Not less than 0.5%
A15: CILC-1D | B15: 545384.8618 | C15: 89051.08538 | D15: -58574.27034 | E15: -8586.561323 | F15: -6.692415499 | G15: =SUM(C15:F15) -> 21883.56129 | H15: =G15/B15 -> 0.04012498848 | I15: =H15/$H$32 -> 0.8067717648 | K15: =(K$40-H15)*B15*K$39+C15 -> 112117.8584 | L15: =K15-C15 -> 23066.773 | N15: CILC-1D | O15: =L15 -> 23066.773 | P15: =D42 -> 2.997043546 | Q15: =E42 -> 1.911237298 | R15: =O15-P15-Q15 -> 23061.86472 | S15: =P39 -> 0 | T15: =IF(SUM(R15+S15)<0,AP15-SUM(R15+S15),IF(SUM(R15+S15)>AO15,AO15-SUM(R15+S15),0)) -> -3521.062112 | U15: =IF(T15=0,-T$32*R15/SUMIF($T$15:$T$31,"0",$R$15:$R$31),0) -> 0 | W15: =SUM(R15:V15)-S15 -> 19540.80261 | X15: =W15 -> 19540.80261 | Y15: =-S15 -> 0 | Z15: =D42 -> 2.997043546 | AA15: =E42 -> 1.911237298 | AB15: =SUM(X15:AA15)-Y15 -> 19545.71089 | AC15: =C15+AB15 -> 108596.7963 | AD15: 110216.0257 | AE15: =C15+AB15+AD15 -> 218812.822 | AF15: =AB15/(C15+AD15) -> 0.09808799246 | AG15: =AB15/C15 -> 0.2194887441 | AH15: =-(AB15*($AH$36)) -> -7556.253292 | AI15: =(SUM(D15:F15))+AH15 -> -74723.77738 | AJ15: =AE15-AD15+AI15 -> 33873.01889 | AK15: =AJ15/B15 -> 0.0621084692 | AL15: =AK15/$AK$32 -> 0.940059133 | AO15: =(C15)*$AG$37 -> 19540.80261 | AP15: =(C15+AD15)*0.005 -> 996.3355554
A16: CILC-1G | B16: 21712.00625 | C16: 4161.538284 | D16: -2340.303772 | E16: -579.4442962 | F16: -0.2616209638 | G16: =SUM(C16:F16) -> 1241.528595 | H16: =G16/B16 -> 0.05718166162 | I16: =H16/$H$32 -> 1.149721204 | K16: =(K$40-H16)*B16*K$39+C16 -> 4476.101642 | L16: =K16-C16 -> 314.5633582 | N16: CILC-1G | O16: =L16 -> 314.5633582 | P16: 0.1133317518 | Q16: 0.1209519072 | R16: =O16-P16-Q16 -> 314.3290746 | S16: =P40 -> 0 | T16: =IF(SUM(R16+S16)<0,AP16-SUM(R16+S16),IF(SUM(R16+S16)>AO16,AO16-SUM(R16+S16),0)) -> 0 | U16: 27.44524187 | W16: =SUM(R16:V16)-S16 -> 341.7743165 | X16: =W16 -> 341.7743165 | Y16: 0 | Z16: 0.1133317518 | AA16: 0.1209519072 | AB16: =SUM(X16:AA16)-Y16 -> 342.0086001 | AC16: =C16+AB16 -> 4503.546884 | AD16: 4167.765693 | AE16: =C16+AB16+AD16 -> 8671.312577 | AF16: =AB16/(C16+AD16) -> 0.04106088589 | AG16: 0.08218321611 | AH16: =-(AB16*($AH$36)) -> -132.2184507 | AI16: -3052.22814 | AJ16: =AE16-AD16+AI16 -> 1451.318744 | AK16: =AJ16/B16 -> 0.0668440644 | AL16: 1.011735984 | AO16: =(C16)*$AG$37 -> 913.1814373 | AP16: 41.64651988
A17: CILC-1T | B17: 230863.5108 | C17: 36307.3539 | D17: -25452.898 | E17: -2844.042108 | F17: -3.491274549 | G17: 8006.922514 | H17: 0.0346824948 | I17: 0.6973424441 | K17: 48119.96238 | L17: =K17-C17 -> 11812.60849 | N17: CILC-1T | O17: 11812.60849 | P17: 1.682113685 | Q17: 0.001074135062 | R17: 11810.9253 | S17: =P41 -> 0 | T17: -3843.870965 | U17: =IF(T17=0,-T$32*R17/SUMIF($T$15:$T$31,"0",$R$15:$R$31),0) -> 0 | W17: =SUM(R17:V17)-S17 -> 7967.054334 | X17: 7967.054334 | Y17: 0 | Z17: 1.682113685 | AA17: 0.001074135062 | AB17: 7968.737522 | AC17: 44276.09142 | AD17: 60677.92239 | AE17: 104954.0138 | AF17: 0.08216440502 | AG17: 0.2194799859 | AH17: -3080.665599 | AI17: -31381.09698 | AJ17: 12894.99444 | AK17: 0.05585548963 | AL17: 0.8454155099 | AO17: 7967.054334 | AP17: 484.9263814
A18: GS(T)-1 | B18: 1936447.738 | C18: 382181.4892 | D18: -220409.3537 | E18: -51354.03834 | F18: -20.19457161 | G18: 110397.9026 | H18: 0.0570105252 | I18: 1.146280255 | K18: 410776.9839 | L18: 28595.49473 | N18: GS(T)-1 | O18: 28595.49473 | P18: 6.65646877 | Q18: -28.6804426 | R18: 28617.5187 | S18: =U42 -> 0 | T18: 0 | U18: 2498.702111 | W18: 31116.22081 | X18: 31116.22081 | Z18: 6.65646877 | AA18: -28.6804426 | AB18: 31094.19684 | AC18: 413275.686 | AD18: 257107.5169 | AE18: 670383.203 | AF18: 0.04863871667 | AG18: 0.0813597668 | AH18: -12020.82792 | AI18: -283804.4145 | AJ18: 129471.2715 | AK18: 0.06686019403 | AL18: 1.011980119 | AO18: 83863.47015 | AP18: 3196.445031
A19: GSCU-1 | B19: 20524.92576 | C19: 4336.329927 | D19: -2525.64318 | E19: -581.5064889 | F19: -0.1624277781 | G19: 1229.017829 | H19: 0.05987928258 | I19: 1.203960831 | K19: 4543.430898 | L19: 207.1009709 | N19: GSCU-1 | O19: 207.1009709 | P19: 0.07833452034 | Q19: 2.073439317 | R19: 204.9491971 | S19: 0 | T19: 0 | U19: 17.8948775 | W19: 222.8440746 | X19: 222.8440746 | Y19: 0 | Z19: 0.07833452034 | AA19: 2.073439317 | AB19: 224.9958484 | AC19: 4561.325775 | AD19: 2862.660652 | AE19: 7423.986427 | AF19: 0.03125380509 | AG19: 0.05188623841 | AH19: -86.98203048 | AI19: -3194.294128 | AJ19: 1367.031647 | AK19: 0.06660348805 | AL19: 1.008094677 | AO19: 951.5366014 | AP19: 35.99495289
A20: GSD(T)-1 | B20: 6386203.202 | C20: 1156729.397 | D20: -681878.8831 | E20: -146603.8463 | F20: -78.07605068 | G20: 328168.5912 | H20: 0.05138712015 | I20: 1.033213446 | K20: 1309579.933 | L20: 152850.5364 | N20: GSD(T)-1 | O20: 152850.5364 | P20: 28.80082882 | Q20: 105.3562656 | R20: 152716.3793 | S20: =P44 -> 0 | T20: 0 | U20: 13334.2357 | W20: 166050.615 | X20: 166050.615 | Y20: 0 | Z20: 28.80082882 | AA20: 105.3562656 | AB20: 166184.7721 | AC20: 1322914.169 | AD20: 1088961.735 | AE20: 2411875.904 | AF20: 0.0740016157 | AG20: 0.1436678039 | AH20: -64246.02505 | AI20: -892806.8305 | AJ20: 430107.3383 | AK20: 0.06734946019 | AL20: 1.019385536 | AO20: 253825.3264 | AP20: 11228.45566
A21: GSLD(T)-1 | B21: 2543963.329 | C21: 387335.5958 | D21: -269209.4169 | E21: -30632.10871 | F21: 206.2464125 | G21: 87700.31653 | H21: 0.0344738918 | I21: 0.6931481747 | K21: 518367.8691 | L21: 131032.2733 | N21: GSLD(T)-1 | O21: 131032.2733 | P21: 11.71808783 | Q21: 15.19017594 | R21: 131005.3651 | S21: =P45 -> 0 | T21: -46010.91064 | U21: 0 | W21: 84994.45444 | X21: 84994.45444 | Y21: 0 | Z21: 11.71808783 | AA21: 15.19017594 | AB21: 85021.36271 | AC21: 472356.9585 | AD21: 442230.8705 | AE21: 914587.829 | AF21: 0.1024889098 | AG21: 0.2195030966 | AH21: -32868.7432 | AI21: -332504.0224 | AJ21: 139852.936 | AK21: 0.05497443082 | AL21: 0.8320800117 | AO21: 84994.45444 | AP21: 4147.832331
A22: GSLD(T)-2 | B22: 516122.9779 | C22: 79628.29393 | D22: -55326.64728 | E22: -6349.678692 | F22: 73.23367969 | G22: 18025.20164 | H22: 0.03492423784 | I22: 0.7022030427 | K22: 105833.3886 | L22: 26205.09463 | N22: GSLD(T)-2 | O22: 26205.09463 | P22: 2.805283433 | Q22: 3.439734519 | R22: 26198.84961 | S22: 0 | T22: -8725.724303 | U22: 0 | W22: 17473.12531 | X22: 17473.12531 | Y22: 0 | Z22: 2.805283433 | AA22: 3.439734519 | AB22: 17479.37032 | AC22: 97107.66425 | AD22: 103114.9219 | AE22: 200222.5862 | AF22: 0.0956499 | AG22: 0.2195120536 | AH22: -6757.418562 | AI22: -68360.51085 | AJ22: 28747.1534 | AK22: 0.05569826307 | AL22: 0.8430357657 | AO22: 17473.12531 | AP22: 913.7160794
A23: GSLD(T)-3 | B23: 28634.19585 | C23: 4621.0448 | D23: -3099.497456 | E23: -421.0461836 | F23: 42.22348304 | G23: 1142.724644 | H23: 0.03990769112 | I23: 0.8024026826 | K23: 5842.25701 | L23: 1221.21221 | N23: GSLD(T)-3 | O23: 1221.21221 | P23: 0.1929230492 | Q23: 0.05895697151 | R23: 1220.96033 | S23: 0 | T23: -206.9477113 | U23: 0 | W23: 1014.012619 | X23: 1014.012619 | Y23: 0 | Z23: 0.1929230492 | AA23: 0.05895697151 | AB23: 1014.264499 | AC23: 5635.309298 | AD23: 6994.179404 | AE23: 12629.4887 | AF23: 0.08732199058 | AG23: 0.2194881336 | AH23: -392.108504 | AI23: -3870.42866 | AJ23: 1764.880638 | AK23: 0.06163541827 | AL23: 0.9328991456 | AO23: 1014.012619 | AP23: 58.07612102
A24: MET | B24: 21989.67557 | C24: 4144.887114 | D24: -2354.090136 | E24: -565.7551474 | F24: -0.2721867818 | G24: 1224.769643 | H24: 0.05569748582 | I24: 1.119879672 | K24: 4516.67879 | L24: 371.7916768 | N24: MET | O24: 371.7916768 | P24: 0.1017165888 | Q24: 0.001705979217 | R24: 371.6882543 | S24: 0 | T24: 0 | U24: 32.45348541 | W24: 404.1417397 | X24: 404.1417397 | Y24: 0 | Z24: 0.1017165888 | AA24: 0.001705979217 | AB24: 404.2451623 | AC24: 4549.132276 | AD24: 3842.212803 | AE24: 8391.345079 | AF24: 0.05061225807 | AG24: 0.09752863014 | AH24: -156.2787281 | AI24: -3076.396198 | AJ24: 1472.736077 | AK24: 0.06697397934 | AL24: 1.013702346 | AO24: 909.5276107 | AP24: 39.93549958
A25: OL-1 | B25: 64721.18667 | C25: 14703.05944 | D25: -6928.20609 | E25: -2633.679135 | F25: -0.03587392464 | G25: 5141.138346 | H25: 0.07943516815 | I25: 1.597160603 | K25: 13292.7461 | L25: -1410.313342 | N25: OL-1 | O25: -1410.313342 | P25: 0.1091792398 | Q25: 15.40811571 | R25: -1425.830637 | S25: 0 | T25: 1522.30986 | U25: 0 | W25: 96.47922356 | X25: 96.47922356 | Y25: 0 | Z25: 0.1091792398 | AA25: 15.40811571 | AB25: 111.9965185 | AC25: 14815.05596 | AD25: 4592.785266 | AE25: 19407.84123 | AF25: 0.005804178059 | AG25: 0.007617225444 | AH25: -43.29717484 | AI25: -9605.218274 | AJ25: 5209.83769 | AK25: 0.08049663422 | AL25: 1.218378059 | AO25: 3226.345654 | AP25: 96.47922356
A26: OS-2 | B26: 6588.13131 | C26: 1016.063135 | D26: -697.1817473 | E26: -83.72014319 | F26: -0.02502845227 | G26: 235.136216 | H26: 0.03569088182 | I26: 0.7176175447 | K26: 1342.328161 | L26: 326.2650258 | N26: OS-2 | O26: 326.2650258 | P26: 0.01203683249 | Q26: 0.01286647394 | R26: 326.2401225 | S26: 0 | T26: -103.281704 | U26: 0 | W26: 222.9584184 | X26: 222.9584184 | Y26: 0 | Z26: 0.01203683249 | AA26: 0.01286647394 | AB26: 222.9833217 | AC26: 1239.046457 | AD26: 494.4780555 | AE26: 1733.524512 | AF26: 0.147618167 | AG26: 0.2194581361 | AH26: -86.20399988 | AI26: -867.1309188 | AJ26: 371.9155379 | AK26: 0.05645235658 | AL26: 0.854449547 | AO26: 222.9584184 | AP26: 7.552705952
A27: RS(T)-1 | B27: 19767081.09 | C27: 3658849.6 | D27: -2205145.67 | E27: -446917.9075 | F27: -211.996753 | G27: 1006574.026 | H27: 0.05092173301 | I27: 1.023856155 | K27: 4146961.82 | L27: 488112.2199 | N27: RS(T)-1 | O27: 488112.2199 | P27: 63.56003582 | Q27: -4001.850294 | R27: 492050.5101 | S27: 0 | T27: 0 | U27: 42962.76213 | W27: 535013.2723 | X27: 535013.2723 | Y27: 0 | Z27: 63.56003582 | AA27: -4001.850294 | AB27: 531074.982 | AC27: 4189924.582 | AD27: 2491313.329 | AE27: 6681237.911 | AF27: 0.08635136795 | AG27: 0.1451480766 | AH27: -205310.3673 | AI27: -2857585.942 | AJ27: 1332338.64 | AK27: 0.06740189077 | AL27: 1.020179113 | AO27: 802874.6364 | AP27: 30750.81464
A28: SL-1 | B28: 419899.6416 | C28: 92366.15823 | D28: -56277.76236 | E28: -11480.38138 | F28: -0.21095125 | G28: 24607.80355 | H28: 0.05860401178 | I28: 1.178319641 | K28: 97476.00814 | L28: 5109.849906 | N28: SL-1 | O28: 5109.849906 | P28: 0.6254186652 | Q28: 2.07243335 | R28: 5107.152054 | S28: 0 | T28: 0 | U28: 445.9244617 | W28: 5553.076516 | X28: 5553.076516 | Y28: 0 | Z28: 0.6254186652 | AA28: 2.07243335 | AB28: 5555.774368 | AC28: =C28+AB28 -> 97921.9326 | AD28: 26309.15582 | AE28: 124231.0884 | AF28: 0.04681491186 | AG28: 0.06014945813 | AH28: -2147.828677 | AI28: -69906.18336 | AJ28: 28015.74924 | AK28: 0.06672010752 | AL28: 1.009859802 | AO28: 20268.24107 | AP28: 593.3765703
A29: SL-2 | B29: 6486.155639 | C29: 1524.797661 | D29: -732.655297 | E29: -270.1129774 | F29: -0.07570476915 | G29: 521.953682 | H29: 0.08047196384 | I29: 1.618006902 | K29: 1372.497376 | L29: -152.3002857 | N29: SL-2 | O29: -152.3002857 | P29: 0.0365372746 | Q29: 0.09801031858 | R29: -152.4348333 | S29: 0 | T29: 166.7349216 | U29: 0 | W29: 14.30008831 | X29: 14.30008831 | Y29: 0 | Z29: 0.0365372746 | AA29: 0.09801031858 | AB29: 14.4346359 | AC29: 1539.232297 | AD29: 1335.220001 | AE29: 2874.452298 | AF29: 0.005047044322 | AG29: 0.009466591058 | AH29: -5.5803427 | AI29: -1008.424322 | AJ29: 530.8079752 | AK29: 0.08183707034 | AL29: 1.238666584 | AO29: 334.5918804 | AP29: 14.30008831
A30: SST-DST | B30: 4318.668617 | C30: 814.8030821 | D30: -441.524851 | E30: -119.3079362 | F30: -0.0323990536 | G30: 253.9378959 | H30: 0.05880004196 | I30: 1.182261115 | K30: 865.9777531 | L30: 51.17467094 | N30: SST-DST | O30: 51.17467094 | P30: 0.0132229865 | Q30: 0.04454121566 | R30: 51.11690674 | S30: 0 | T30: 0 | U30: 4.463207455 | W30: 55.5801142 | X30: 55.5801142 | Y30: =-S30 -> 0 | Z30: 0.0132229865 | AA30: 0.04454121566 | AB30: 55.6378784 | AC30: 870.4409605 | AD30: 869.4559564 | AE30: 1739.896917 | AF30: 0.03303403878 | AG30: 0.068283834 | AH30: -21.50926637 | AI30: -582.3744526 | AJ30: 288.0665079 | AK30: 0.06670261914 | AL30: 1.009595102 | AO30: 178.7951952 | AP30: 8.421295192
A31: SST-TST | B31: 15175.20405 | C31: 4433.565763 | D31: -1568.647593 | E31: -1027.665233 | F31: -0.1763169271 | G31: 1837.07662 | H31: 0.121057787 | I31: 2.434044424 | K31: 3073.176754 | L31: -1360.389009 | N31: SST-TST | O31: -1360.389009 | P31: 0.09999855783 | Q31: 0.1909888728 | R31: -1360.679997 | S31: 0 | T31: 1398.871438 | U31: 0 | W31: 38.19144145 | X31: 38.19144145 | Y31: 0 | Z31: 0.09999855783 | AA31: 0.1909888728 | AB31: 38.48242888 | AC31: 4472.048192 | AD31: 3204.722526 | AE31: 7676.770718 | AF31: 0.005038095895 | AG31: 0.008679792053 | AH31: -14.87707362 | AI31: -2611.366217 | AJ31: 1860.681975 | AK31: 0.1226133084 | AL31: 1.855846101 | AO31: 972.8734136 | AP31: 38.19144145
A32: Total Retail | B32: =SUM(B15:B31) -> 32536116.5 | C32: 5922205.062 | D32: -3592962.652 | E32: -711050.8019 | F32: 2.581268532e-14 | G32: 1618191.608 | H32: 0.0497352414 | I32: 1 | K32: =SUM(K15:K31) -> 6788559.018 | L32: =SUM(L15:L31) -> 866353.9557 | N32: Total Retail | O32: =(L32/$L$32)*$O$33 -> 866353.9557 | P32: =SUM(P15:P31) -> 119.6025614 | Q32: -3884.550239 | R32: =SUM(R15:R31) -> 870118.9034 | S32: 0 | T32: =SUM(T15:T31) -> -59323.88121 | U32: 59323.88121 | V32: 0 | W32: =SUM(W15:W31) -> 870118.9034 | X32: =SUM(X15:X31) -> 870118.9034 | Y32: 0 | Z32: 119.6025614 | AA32: -3884.550239 | AB32: =SUM(AB15:AB31) -> 866353.9557 | AC32: 6788559.018 | AD32: =SUM(AD15:AD31) -> 4608294.958 | AE32: 11396853.98 | AF32: =(AB32)/(C32+AD32) -> 0.08227092294 | AG32: 0.1462890843 | AH32: =SUM(AH15:AH31) -> -334927.1852 | AI32: -4638940.639 | AJ32: 2149618.379 | AK32: 0.06606868337 | AL32: 1
N33: CHECK | O33: =L32 -> 866353.9557 | U33: =T32+U32 -> 0 | W33: =SUM(R32:U32) -> 870118.9034 | X33: =X32-W32 -> 0 | AA33: Overall Inc | AB33: 866353.9557 | AC33: This number drives the Manual Adjustment | AE33: 1.5x | AF33: =AF32*1.5 -> 0.1234063844 | AG33: =AG32*1.5 -> 0.2194336265
X34: =X32-W33 -> 0 | AA34: Difference | AB34: =AB32-AB33 -> -7.110764273e-06
A36: From ROR & Parity | F36: Per E-5 | AB36: CDR RESET | AF36: 0.08227092294 | AG36: 0.1462890843 | AH36: 0.3865939354 | AI36: Expansion Factor per COS
A37: Proposed | F37: Actuals | AD37: DOES NOT INCLUSE CDR RESET ADJUSTMENT | AF37: 0.1234063844 | AG37: 0.2194336265 | AN37: 3.062670913
B38: Retail Sales (KWh) by Rate Class | C38: % Sales by Rate Class | D38: Unbilled Revenue is allocated based on Sales per UI E-5 | E38: Estimated decrease in Misc. Service Charges allocated based on - present - From E-5 | F38: Allocation of Misc Revenues per actuals - from COS | O38: CILC/CDR Credits - Additional Credits awarded thru Settlement (source is Settlement E-5) | P38: 2017 CILC/CDR Credits - CILC & CDR Credits workpapers | U38: The 1.5 Times cost is spread to rate classes that are not CAPPED on the basis of Column "R"
B39: 2 | C39: 3 | D39: 4 | E39: 5 | F39: 6 | K39: 1.630241463 | N39: CILC-1D | O39: 9406.55254 | AF39: =AF15/AF36 -> 1.19225589
K40: 0.06606868337 | N40: CILC-1G | O40: 574.6341835
B41: Sales Allocation Per E-6a in UI (Sales FC) | C41: % Sales Allocation per Col. 2 | D41: Allocation of Unbilled Revenue (Based on Col. 3) | E41: Misc Service Charges | F41: % of Misc. Service Charges per E-5 Actuals UI | N41: CILC-1T | O41: 4129.349249
A42: CILC-1D | B42: =('Sales kWh by Rate Class'!C7)/1000 -> 2687420.391 | C42: =B42/$B$59 -> 0.02505835587 | D42: =$C$66*C42 -> 2.997043546 | E42: 1.911237298 | F42: 0.0005460827435 | K42: =(K$40-H15)*B15*K$39+C15 -> 112117.8584 | L42: 20358.25196 | N42: GS(T)-1 | O42: 0
A43: CILC-1G | B43: =('Sales kWh by Rate Class'!C8)/1000 -> 101623.502 | C43: 0.0009475696048 | D43: =$C$66*C43 -> 0.1133317518 | E43: 0.1209519072 | F43: 4.528754933e-05 | K43: =(K$40-H16)*B16*K$39+C16 -> 4476.101642 | L43: 219.2210148 | N43: GSCU-1 | O43: 0
A44: CILC-1T | B44: =('Sales kWh by Rate Class'!C9)/1000 -> 1508335.314 | C44: 0.01406419449 | D44: 1.682113685 | E44: 0.001074135062 | F44: 7.159089253e-07 | K44: 48119.96238 | L44: 10109.74171 | N44: GSD(T)-1 | O44: 1830.971415
A45: GS(T)-1 | B45: =('Sales kWh by Rate Class'!C10)/1000 -> 5968792.122 | C45: 0.05565490148 | D45: 6.65646877 | E45: -28.6804426 | F45: 0.07470264228 | K45: 410776.9839 | L45: 28768.30072 | N45: GSLD(T)-1 | O45: 3337.099922
A46: GSCU-1 | B46: =('Sales kWh by Rate Class'!C11)/1000 -> 70241.818 | C46: 0.0006549568792 | D46: 0.07833452034 | E46: 2.073439317 | F46: 0.0005322037929 | K46: 4543.430898 | L46: 119.0923601 | N46: GSLD(T)-2 | O46: 600.5641603
A47: GSD(T)-1 | B47: =('Sales kWh by Rate Class'!C12)/1000 -> 25825428.78 | C47: 0.2408044484 | D47: 28.80082882 | E47: 105.3562656 | F47: 0.04037401226 | K47: 1309579.933 | L47: 142472.2064 | N47: GSLD(T)-3 | O47: 0
A48: GSLD(T)-1 | B48: =('Sales kWh by Rate Class'!C13)/1000 -> 10507497.71 | C48: 0.09797522475 | D48: 11.71808783 | E48: 15.19017594 | F48: 0.004395837802 | K48: 518367.8691 | L48: 126546.6866 | N48: MET | O48: 0
A49: GSLD(T)-2 | B49: =('Sales kWh by Rate Class'!C14)/1000 -> 2515470.925 | C49: 0.02345504478 | D49: 2.805283433 | E49: 3.439734519 | F49: 0.001312696211 | K49: 105833.3886 | L49: 23651.85305 | N49: OL-1 | O49: 0
A50: GSLD(T)-3 | B50: =('Sales kWh by Rate Class'!C15)/1000 -> 172992.26 | C50: 0.001613034428 | D50: 0.1929230492 | E50: 0.05895697151 | F50: 2.857749076e-05 | K50: 5842.25701 | L50: 1054.595061 | N50: OS-2 | O50: 0
A51: MET | B51: =('Sales kWh by Rate Class'!C16)/1000 -> 91208.296 | C51: 0.000850454937 | D51: 0.1017165888 | E51: 0.001705979217 | F51: 8.710346526e-06 | K51: 4516.67879 | L51: 338.5306704 | N51: RS(T)-1 | O51: 0
A52: OL-1 | B52: =('Sales kWh by Rate Class'!C17)/1000 -> 97899.984 | C52: 0.0009128503478 | D52: 0.1091792398 | E52: 15.40811571 | F52: 0.004868257886 | K52: 13292.7461 | L52: -1761.016861 | N52: SL-1 | O52: 0
A53: OS-2 | B53: =('Sales kWh by Rate Class'!C18)/1000 -> 10793.313 | C53: 0.0001006402568 | D53: 0.01203683249 | E53: 0.01286647394 | F53: 7.777166598e-06 | K53: 1342.328161 | L53: 313.7337546 | N53: SL-2 | O53: 0
A54: RS(T)-1 | B54: =('Sales kWh by Rate Class'!C19)/1000 -> 56993678.51 | C54: 0.5314270455 | D54: 63.56003582 | E54: -4001.850294 | F54: 0.8713287189 | K54: 4146961.82 | L54: 512704.4602 | N54: SST-DST | O54: 0
A55: SL-1 | B55: =('Sales kWh by Rate Class'!C20)/1000 -> 560806.958 | C55: 0.005229141066 | D55: 0.6254186652 | E55: 2.07243335 | F55: 0.001673963799 | K55: 97476.00814 | L55: 3107.449525 | N55: SST-TST | O55: 0
A56: SL-2 | B56: =('Sales kWh by Rate Class'!C21)/1000 -> 32762.626 | C56: 0.0003054890646 | D56: 0.0365372746 | E56: 0.09801031858 | F56: 4.951644419e-05 | K56: 1372.497376 | L56: -193.4170561 | N56: Total Retail | O56: =SUM(O39:O55) -> 19879.17147 | P56: =SUM(P39:P55) -> 0
A57: SST-DST | B57: =('Sales kWh by Rate Class'!C22)/1000 -> 11856.926 | C57: 0.00011055772 | D57: 0.0132229865 | E57: 0.04454121566 | F57: 7.227241966e-06 | K57: 865.9777531 | L57: 43.2780463
A58: SST-TST | B58: =('Sales kWh by Rate Class'!C23)/1000 -> 89667.754 | C58: 0.0008360904372 | D58: 0.09999855783 | E58: 0.1909888728 | F58: 0.000117772194 | K58: 3073.176754 | L58: -1499.011453
A59: Total Retail | B59: =SUM(B42:B58) -> 107246477.2 | C59: =SUM(C42:C58) -> 1 | D59: =SUM(D42:D58) -> 119.6025614 | E59: =SUM(E42:E58) -> -3884.550239 | F59: =SUM(F42:F58) -> 1 | K59: =SUM(K42:K58) -> 6788559.018 | L59: 866353.9557
E60: 3885
L61: =L15-L42 -> 2708.521037
A62: Calc of Unbilled Revenue - MFR E-12 | L62: =L16-L43 -> 95.34234346
A63: Total Prop. Base Inc. per COS | C63: =O32 -> 866353.9557 | L63: 1702.866778
C64: =C63/B59 -> 0.008078157702 | D64: Increase divided by Retail Sales | L64: -172.8059954
A65: Unbilled Sales | C65: 14805.673 | D65: Per Sales FC - diff. between Unbilled at beg of 2017 and end of 2017 | L65: 88.00861075
A66: Unbilled Revenue | C66: =C64*C65 -> 119.6025614 | D66: Unbilled revenue associated with Increase only (doesn't include present unbilled) | L66: 10378.33006
L67: 4485.586727
L68: 2553.241579
L69: 166.6171485
L70: 33.2610064
L71: 350.7035196
L72: 12.53127112
L73: -24592.24031
L74: 2002.400381
L75: 41.11677044
L76: 7.896624648
L77: 138.6224434
L78: -3.152759746e-06
L79: 0
L80: -2708.521037
L81: -95.34234346
L82: -1702.866778
L83: 172.8059954
L84: -88.00861075
L85: -10378.33006
L86: -4485.586727

Sheet E-6b Proposed Equalized
A1: OPC 015160
A2: FPL RC-16
A4: MFR E-6b - COST OF SERVICE STUDY - UNIT COSTS
A5: (12CP & 25% PROD and 12CP TRAN)
A6: 2017 PROPOSED RATES - EQUALIZED - DETAIL
A7: ($000 WHERE APPLICABLE)
B9: -1 | C9: =B9-1 -> -2 | D9: =C9-1 -> -3 | E9: -4 | F9: -5 | G9: -6 | H9: -7 | I9: -8 | J9: -9 | K9: -10 | L9: -11 | M9: -12 | N9: -13 | O9: -14 | P9: -15 | Q9: -16 | R9: -17 | S9: -18 | T9: -19
A11: Line No. | C11: Total Retail | D11: CILC-1D | E11: CILC-1G | F11: CILC-1T | G11: GS(T)-1 | H11: GSCU-1 | I11: GSD(T)-1 | J11: GSLD(T)-1 | K11: GSLD(T)-2 | L11: GSLD(T)-3 | M11: MET | N11: OL-1 | O11: OS-2 | P11: RS(T)-1 | Q11: SL-1 | R11: SL-2 | S11: SST-DST | T11: SST-TST
A12: 1 | B12: Demand
A13: =A12+1 -> 2 | B13: Revenue Requirements
A14: 3 | B14: Production - Steam | C14: =SUM(D14:T14) -> 201380.5387 | D14: 3747.379394 | E14: 146.6153114 | F14: 1955.221485 | G14: 11338.46199 | H14: 91.14052668 | I14: 43766.30929 | J14: 17331.49202 | K14: 3396.585967 | L14: 178.2397971 | M14: 152.5503582 | N14: 20.17088528 | O14: 14.00122487 | P14: 118964.2071 | Q14: 118.3469048 | R14: 42.48262638 | S14: 18.1495841 | T14: 99.18422009
A15: 4 | B15: Production - Nuclear | C15: 955529.0574 | D15: 17738.10173 | E15: 694.0527516 | F15: 9255.180544 | G15: 53675.01501 | H15: 431.4910121 | I15: 207174.1476 | J15: 83519.78878 | K15: 16576.65645 | L15: 1123.68726 | M15: 722.141703 | N15: 95.48894636 | O15: 66.2663667 | P15: 563140.122 | Q15: 560.1829687 | R15: 201.1293018 | S15: 85.91210266 | T15: 469.6928579
A16: 5 | B16: Production - Other Production | C16: 1345420.477 | D16: 24973.15613 | E16: 977.3747913 | F16: 13031.0533 | G16: 75588.50043 | H16: 607.8309078 | I16: 291709.9223 | J16: 117566.7344 | K16: 23334.39799 | L16: 1581.46838 | M16: 1016.902015 | N16: 134.4830325 | O16: 93.26113699 | P16: 792950.3038 | Q16: 788.637936 | R16: 283.333345 | S16: 120.9611982 | T16: 662.1554433
A17: 6 | B17: Production - Other Power Supply | C17: 10340.38498 | D17: 192.0100733 | E17: 7.508333401 | F17: 100.1677647 | G17: 580.6100916 | H17: 4.663933965 | I17: 2241.942357 | J17: 904.4635989 | K17: 179.5092145 | L17: 12.17462172 | M17: 7.81276255 | N17: 1.032726763 | O17: 0.7179960268 | P17: 6093.536681 | Q17: 6.064507131 | R17: 2.173834504 | S17: 0.9298341136 | T17: 5.066648337
A18: 7 | B18: Production - Curtailment Credit | C18: 517.3253417 | D18: 9.195246156 | E18: 0.3810083949 | F18: 4.74805135 | G18: 29.87171587 | H18: 0.2460588689 | I18: 112.0391338 | J18: 41.62425449 | K18: 8.311473454 | L18: 0.5888885013 | M18: 0.3953393185 | N18: 0.05433099812 | O18: 0.03217503897 | P18: 309.0918362 | Q18: 0.3092055298 | R18: 0.1145068912 | S18: 0.04671345965 | T18: 0.2754032858
A19: 8 | B19: Transmission | C19: 554216.9719 | D19: 10286.82053 | E19: 402.6225116 | F19: 5367.779626 | G19: 31138.45398 | H19: 250.4143885 | I19: 120163.7212 | J19: 48425.25655 | K19: 9611.373736 | L19: 651.3696358 | M19: 418.9022693 | N19: 55.40101923 | O19: 38.41172765 | P19: 326642.1876 | Q19: 324.8493208 | R19: 116.7285819 | S19: 49.82667495 | T19: 272.8524764
A20: 9 | B20: Distribution - Land & Land Rights | C20: 10359.58353 | D20: 173.8302416 | E20: 6.809425932 | F20: 0 | G20: 612.4878443 | H20: 4.183502696 | I20: 2196.390899 | J20: 899.4829311 | K20: 170.8667976 | L20: 0 | M20: 7.817793785 | N20: 12.43650553 | O20: 5.447374806 | P20: 6191.91526 | Q20: 72.25717133 | R20: 1.923109817 | S20: 3.734670456 | T20: 0
A21: 10 | B21: Distribution - Structures & Improvements | C21: 22560.71963 | D21: 378.8126903 | E21: 14.81863397 | F21: 0 | G21: 1332.618269 | H21: 9.08690699 | I21: 4783.1496 | J21: 1962.052306 | K21: 372.6895777 | L21: 0 | M21: 17.01574211 | N21: 27.04728955 | O21: 11.89632145 | P21: 13481.72574 | Q21: 157.4943907 | R21: 4.176538677 | S21: 8.135625624 | T21: 0
A22: 11 | B22: Distribution - Station Equipment | C22: 242701.8365 | D22: 4075.533077 | E22: 159.3982438 | F22: 0 | G22: 14334.04634 | H22: 97.71787665 | I22: 51455.64973 | J22: 21111.99729 | K22: 4010.164447 | L22: 0 | M22: 183.0358376 | N22: 290.9117853 | O22: 128.0276276 | P22: 145028.4231 | Q22: 1694.494272 | R22: 44.91228265 | S22: 87.52452355 | T22: 0
A23: 12 | B23: Distribution - Poles, Towers & Fixtures | C23: 225260.1677 | D23: 3712.478895 | E23: 147.9758316 | F23: 0 | G23: 13316.39802 | H23: 90.79502941 | I23: 47791.72277 | J23: 19570.81246 | K23: 3665.017427 | L23: 0 | M23: 161.5108602 | N23: 270.2690132 | O23: 117.4299018 | P23: 134722.8784 | Q23: 1573.922673 | R23: 41.73105818 | S23: 77.22530529 | T23: 0
A24: 13 | B24: Distribution - Overhead Conductors & Devices | C24: 466418.5058 | D24: 7248.096694 | E24: 306.4476424 | F24: 0 | G24: 27633.52206 | H24: 188.2834818 | I24: 99169.17171 | J24: 40416.60052 | K24: 7237.674324 | L24: 0 | M24: 281.5333239 | N24: 560.7551057 | O24: 234.8040422 | P24: 279651.8973 | Q24: 3268.523473 | R24: 86.53324474 | S24: 134.662869 | T24: 0
A25: 14 | B25: Distribution - Underground Conduit | C25: 210669.255 | D25: 3445.909755 | E25: 138.4089782 | F25: 0 | G25: 12459.1462 | H25: 84.96410742 | I25: 44708.66956 | J25: 18292.51926 | K25: 3406.233176 | L25: 0 | M25: 147.9559595 | N25: 252.8804125 | O25: 109.2886042 | P25: 126041.1487 | Q25: 1472.340512 | R25: 39.05163307 | S25: 70.73815126 | T25: 0
A26: 15 | B26: Distribution - Underground Conductors & Devices | C26: 307637.0899 | D26: 4905.141404 | E26: 202.1405638 | F26: 0 | G26: 18212.51184 | H26: 124.17426 | I26: 65348.83674 | J26: 26678.98618 | K26: 4872.307376 | L26: 0 | M26: 200.796982 | N26: 369.6375309 | O26: 157.1583313 | P26: 184259.6276 | Q26: 2152.687299 | R26: 57.07260519 | S26: 96.01122427 | T26: 0
A27: 16 | B27: Distribution - Primary Capacitors and Regulators | C27: 25128.34627 | D27: 421.9616433 | E27: 16.50352923 | F27: 0 | G27: 1484.098788 | H27: 10.11751277 | I27: 5327.506136 | J27: 2185.820945 | K27: 415.1907492 | L27: 0 | M27: 18.95085834 | N27: 30.12012517 | O27: 13.25516068 | P27: 15015.66901 | Q27: 175.4397789 | R27: 4.650132869 | S27: 9.061907193 | T27: 0
A28: 17 | B28: Distribution - Secondary Transformers | C28: 206306.9404 | D28: 1253.901354 | E28: 80.79199227 | F28: 0 | G28: 9937.199447 | H28: 42.95942385 | I28: 28779.29263 | J28: 10058.19127 | K28: 1434.53316 | L28: 0 | M28: 0 | N28: 122.4050039 | O28: 51.13394276 | P28: 153814.6658 | Q28: 712.9687113 | R28: 18.89764829 | S28: 0 | T28: 0
A29: =A28+1 -> 18 | B29: Sub-Total Revenue Requirements | C29: =SUM(C14:C28) -> 4784447.199 | D29: =SUM(D14:D28) -> 82562.32885 | E29: 3301.849549 | F29: 29714.15077 | G29: 271672.942 | H29: 2038.068929 | I29: 1014728.472 | J29: 408965.8228 | K29: 78691.51186 | L29: 3547.528583 | M29: 3337.321805 | N29: 2243.093713 | O29: 1041.131934 | P29: 2866307.4 | Q29: 13078.51912 | R29: 944.9104498 | S29: 762.9203841 | T29: 1509.227049
A30: 23 | B30: Sub-Total Billing Units (Annual) | C30: =SUM(D30:T30) -> 6.384605451e+10 | D30: 5184882.538 | E30: 204233.1641 | F30: 2778867.285 | G30: 5968792122 | H30: 70241818 | I30: 70516172.2 | J30: 25368291.95 | K30: 5230119.669 | L30: 426632.1625 | M30: 230383.6528 | N30: 97899984 | O30: 10793313 | P30: 56993678507 | Q30: 560806958 | R30: 32762626 | S30: 54705.95745 | T30: 1084894.772
B31: Demand Unit Costs - Equalized | D31: =ROUND((D29*1000)/D30,2) -> 15.92 | E31: =ROUND((E29*1000)/E30,2) -> 16.17 | F31: 10.69 | G31: 0.05 | H31: 0.03 | I31: 14.39 | J31: 16.12 | K31: 15.05 | L31: 8.32 | M31: 14.49 | N31: 0.02 | O31: 0.1 | P31: =ROUND((P29*1000)/P30,5) -> 0.05029 | Q31: 0.02 | R31: 0.03 | S31: 13.95 | T31: 1.39
B32: % Distribution to Total | C32: =SUM(C20:C28)/C29 -> 0.358880007 | D32: =SUM(D20:D28)/D29 -> 0.3102585175 | E32: 0.3250586756 | F32: 0 | G32: 0.365594115 | H32: 0.3200490877 | I32: 0.3444866282 | J32: 0.3452035728 | K32: 0.3251262612 | L32: 0 | M32: 0.3052199988 | N32: 0.8632999864 | O32: 0.795712128 | P32: 0.3691885772 | Q32: 0.8624927772 | R32: 0.3163773388 | S32: 0.638460168 | T32: 0
A33: =A30+1 -> 24 | B33: Energy
A34: =A33+1 -> 25 | B34: Revenue Requirements
A35: 15 | B35: Production - Steam | C35: =SUM(D35:T35) -> 142265.3549 | D35: 3534.258815 | E35: 134.8063931 | F35: 1939.637148 | G35: 7934.911898 | H35: 93.32710437 | I35: 34273.93016 | J35: 13914.9131 | K35: 3309.886853 | L35: 222.2128342 | M35: 118.5026649 | N35: 130.3387028 | O35: 13.9951081 | P35: 75724.94507 | Q35: 744.9050741 | R35: 43.53406493 | S35: 15.39722306 | T35: 115.8527089
A36: 16 | B36: Production - Nuclear | C36: =SUM(D36:T36) -> 578876.1083 | D36: 14381.05057 | E36: 548.5192225 | F36: 7892.442975 | G36: 32286.53947 | H36: 379.7314938 | I36: 139460.0982 | J36: 56621.34603 | K36: 13468.28027 | L36: 904.213959 | M36: 482.1814504 | N36: 530.3335458 | O36: 56.9486742 | P36: 308122.2517 | Q36: 3031.030634 | R36: 177.1321424 | S36: 62.65125263 | T36: 471.3567329
A37: 17 | B37: Production - Other Production | C37: =SUM(D37:T37) -> 549110.3674 | D37: 13640.98552 | E37: 520.3476989 | F37: 7486.552837 | G37: 30628.76876 | H37: 360.2856663 | I37: 132289.7709 | J37: 53703.50765 | K37: 12774.2796 | L37: 857.5286509 | M37: 457.4108599 | N37: 503.118904 | O37: 54.00872272 | P37: 292283.9688 | Q37: 2874.949692 | R37: 168.0635947 | S37: 59.42831491 | T37: 447.391169
A38: 18 | B38: Customer - Uncollectible Accounts | C38: =SUM(D38:T38) -> -229.0264497 | D38: 0 | E38: 0 | F38: 0 | G38: -20.7530648 | H38: 0 | I38: -19.67638044 | J38: -1.066237417 | K38: 0 | L38: 0 | M38: 0 | N38: -1.398521697 | O38: 0 | P38: -180.3238968 | Q38: -5.808348489 | R38: 0 | S38: 0 | T38: 0
A39: =A38+1 -> 19 | B39: Sub-Total Revenue Requirements | C39: =SUM(C35:C38) -> 1270022.804 | D39: 31556.29491 | E39: 1203.673315 | F39: 17318.63296 | G39: 70829.46706 | H39: 833.3442645 | I39: 306004.1228 | J39: 124238.7006 | K39: 29552.44673 | L39: 1983.955444 | M39: 1058.094975 | N39: 1162.392631 | O39: 124.952505 | P39: 675950.8417 | Q39: 6645.077051 | R39: 388.7298021 | S39: 137.4767906 | T39: 1034.600611
A40: 23 | B40: Sub-Total Billing Units (Annual) | C40: =SUM(D40:T40) -> 107246477186 | D40: 2687420391 | E40: 101623502 | F40: 1508335314 | G40: 5968792122 | H40: 70241818 | I40: 25825428784 | J40: 10507497706 | K40: 2515470925 | L40: 172992260 | M40: 91208296 | N40: 97899984 | O40: 10793313 | P40: 56993678507 | Q40: 560806958 | R40: 32762626 | S40: 11856926 | T40: 89667754
A41: =A40+1 -> 24 | B41: Energy Unit Costs - Equalized | D41: =ROUND((D39*1000)/D40,5) -> 0.01174 | E41: =ROUND((E39*1000)/E40,5) -> 0.01184 | F41: 0.01148 | G41: 0.01187 | H41: 0.01186 | I41: 0.01185 | J41: 0.01182 | K41: 0.01175 | L41: 0.01147 | M41: 0.0116 | N41: 0.01187 | O41: 0.01158 | P41: 0.01186 | Q41: 0.01185 | R41: 0.01187 | S41: 0.01159 | T41: 0.01154
A42: =A41+1 -> 25 | B42: Customer
A43: =A42+1 -> 26 | B43: Revenue Requirements
A44: 4 | B44: Transmission Pull-Offs | C44: =SUM(D44:T44) -> 1204.557951 | D44: 0 | E44: 0 | F44: 537.6788807 | G44: 0 | H44: 0 | I44: 0 | J44: 0 | K44: 0 | L44: 220.9854861 | M44: 0 | N44: 0 | O44: 0 | P44: 0 | Q44: 0 | R44: 0 | S44: 0 | T44: 445.8935837
A45: 5 | B45: Distribution - Meters | C45: 153384.3109 | D45: 736.9565694 | E45: 77.28049325 | F45: 109.6947744 | G45: 15872.1656 | H45: 191.3928487 | I45: 13802.23841 | J45: 1661.564618 | K45: 450.9926321 | L45: 36.072053 | M45: 177.3999321 | N45: 0 | O45: 151.6366901 | P45: 120042.1594 | Q45: 0 | R45: 0 | S45: 19.51223301 | T45: 55.24464905
A46: 6 | B46: Distribution - Installation on Customer's Premises | C46: 2265.092773 | D46: 0.126777597 | E46: 0.02827246652 | F46: 0 | G46: 196.6332402 | H46: 4.961480956 | I46: 48.73433533 | J46: 1.411434137 | K46: 0.07184632372 | L46: 0 | M46: 0.0123145994 | N46: 26.24037431 | O46: 0.08299575948 | P46: 1986.786964 | Q46: 0 | R46: 0 | S46: 0.002736780279 | T46: 0
A47: 7 | B47: Distribution - Services | C47: 180251.5539 | D47: 107.5314258 | E47: 3.416281305 | F47: 0 | G47: 15784.91554 | H47: 398.851133 | I47: 4102.403794 | J47: 235.6958344 | K47: 70.85170427 | L47: 0 | M47: 45.03207633 | N47: 0 | O47: 97.30423335 | P47: 159395.5518 | Q47: 0 | R47: 0 | S47: 10.00004037 | T47: 0
A48: 8 | B48: Customer - Meter Reading | C48: 21916.52756 | D48: 68.31888578 | E48: 10.80394601 | F48: 4.3637601 | G48: 4358.661403 | H48: 22.02563129 | I48: 3154.805254 | J48: 379.2056526 | K48: 61.49212381 | L48: 1.599760436 | M48: 7.857939772 | N48: 0 | O48: 20.32252807 | P48: 13823.72098 | Q48: 0 | R48: 0 | S48: 0.872968257 | T48: 2.476725969
A49: 9 | B49: Customer - Collections, Service and Sales | C49: 194305.7134 | D49: 10.96553528 | E49: 2.446276057 | F49: 0.6705582632 | G49: 17014.59568 | H49: 429.5022962 | I49: 4215.973123 | J49: 122.0508507 | K49: 6.212864588 | L49: 0.2760837297 | M49: 1.065477442 | N49: 214.0155416 | O49: 7.174741092 | P49: 171884.0327 | Q49: 359.8269807 | R49: 36.11488813 | S49: 0.2367380248 | T49: 0.5530854746
A50: 10 | B50: Customer - Field Collection - Late Pay Charges | C50: -61644.21234 | D50: -71.72725919 | E50: -4.689671026 | F50: 0 | G50: -4442.800976 | H50: -52.95857679 | I50: -3809.01143 | J50: -534.1036061 | K50: -130.6323383 | L50: -2.235844384 | M50: 0 | N50: -577.2535564 | O50: -0.05243083072 | P50: -51950.95055 | Q50: -57.30847038 | R50: -1.536313186 | S50: -1.687433883 | T50: -7.263883361
A51: 11 | B51: Customer - Initial Connection Charges | C51: -1687.310586 | D51: -0.06791871565 | E51: 0 | F51: 0 | G51: -452.4213816 | H51: 0 | I51: -50.8591491 | J51: -1.018961699 | K51: -0.03396365706 | L51: 0 | M51: 0 | N51: 0 | O51: 0 | P51: -1182.909211 | Q51: 0 | R51: 0 | S51: 0 | T51: 0
A52: 12 | B52: Customer - Connection of Existing Acct Charges | C52: -14185.7679 | D52: -0.04770978528 | E52: -0.02385672318 | F52: 0 | G52: -720.1445595 | H52: 0 | I52: -82.92267696 | J52: -1.169322146 | K52: -0.01193059107 | L52: 0 | M52: 0 | N52: 0 | O52: 0 | P52: -13381.44784 | Q52: 0 | R52: 0 | S52: 0 | T52: 0
A53: 13 | B53: Customer - Reconnection Charges | C53: -10849.44303 | D53: 0 | E53: 0 | F53: 0 | G53: -559.4480629 | H53: 0 | I53: -22.99361861 | J53: 0 | K53: 0 | L53: 0 | M53: 0 | N53: 0 | O53: 0 | P53: -10267.00135 | Q53: 0 | R53: 0 | S53: 0 | T53: 0
A54: 14 | B54: Customer - Returned Check Charges | C54: -6059.730557 | D54: -3.606086345 | E54: 0 | F54: 0 | G54: -267.0349275 | H54: 0 | I54: -155.3801669 | J54: -10.15073019 | K54: 0 | L54: 0 | M54: 0 | N54: -9.278837 | O54: 0 | P54: -5613.972144 | Q54: -0.3076657638 | R54: 0 | S54: 0 | T54: 0
A55: 15 | B55: Customer - Current Diversion Charges | C55: -2185.451232 | D55: 0 | E55: 0 | F55: 0 | G55: -48.42720435 | H55: 0 | I55: -18.09474169 | J55: -2.465944198 | K55: 0 | L55: 0 | M55: 0 | N55: 0 | O55: 0 | P55: -2116.463342 | Q55: 0 | R55: 0 | S55: 0 | T55: 0
A56: 16 | B56: Customer - Other Billings (Charges) | C56: -2125.979236 | D56: -0.1200267661 | E56: -0.02676997366 | F56: -0.007339406954 | G56: -186.1390219 | H56: -4.698460756 | I56: -46.13711913 | J56: -1.336105728 | K56: -0.06801312016 | L56: -0.003022882225 | M56: -0.01165969153 | N56: -2.340741681 | O56: -0.07855899562 | P56: -1880.671126 | Q56: -3.937571259 | R56: -0.3950620564 | S56: -0.002591043079 | T56: -0.006045766986
A57: 17 | B57: Customer - Reimbursements - Other Charges | C57: =SUM(D57:T57) -> 1429.200701 | D57: 0.1492527823 | E57: 0.04975400665 | F57: 0 | G57: 208.412572 | H57: 2.562795322 | I57: 49.89909728 | J57: 1.181937075 | K57: 0.07464226074 | L57: 0 | M57: 0 | N57: 2.94421271 | O57: 0.09952604554 | P57: 1159.091677 | Q57: 4.299808797 | R57: 0.4354263399 | S57: 0 | T57: 0
A58: =A57+1 -> 18 | B58: Sub-Total Revenue Requirements | C58: =SUM(C44:C57) -> 456019.0623 | D58: =SUM(D44:D57) -> 848.4794459 | E58: 89.28472537 | F58: 652.4006341 | G58: 46758.9679 | H58: 991.6391479 | I58: 21188.65511 | J58: 1850.865657 | K58: 458.9495677 | L58: 256.694516 | M58: 231.3560805 | N58: -345.6730065 | O58: 276.4897246 | P58: 381897.9279 | Q58: 302.5730821 | R58: 34.61893923 | S58: 28.93469152 | T58: 496.8981151
A59: 23 | B59: Sub-Total Billing Units (Annual) | C59: =SUM(D59:T59) -> 750288803 | D59: 3336 | E59: 744 | F59: 204 | G59: 5165476 | H59: 130561 | I59: 1281531 | J59: 37126 | K59: 1890 | L59: 84 | M59: 324 | N59: 97899984 | O59: 2183 | P59: 52195536 | Q59: 560806958 | R59: 32762626 | S59: 72 | T59: 168
B61: Total Revenue Requirements | C61: =SUM(D61:T61) -> 6510489.066 | D61: =D58+D39+D29 -> 114967.1032 | E61: 4594.807589 | F61: 47685.18436 | G61: 389261.377 | H61: 3863.052342 | I61: 1341921.25 | J61: 535055.389 | K61: 108702.9082 | L61: 5788.178544 | M61: 4626.772861 | N61: 3059.813337 | O61: 1442.574164 | P61: 3924156.17 | Q61: 20026.16926 | R61: 1368.259191 | S61: 929.3318662 | T61: 3040.725775
B63: Customer Unit Costs - Equalized | D63: =ROUND((D58*1000)/D59,0) -> 254 | E63: =ROUND((E58*1000)/E59,0) -> 120 | F63: 3198 | G63: 9 | H63: 8 | I63: =ROUND((I58*1000)/I59,0) -> 17 | J63: 50 | K63: 243 | L63: 3056 | M63: 714 | N63: 0 | O63: 127 | P63: 7 | Q63: 0 | R63: =ROUND(((R58+R29)*1000)/R59,0) -> 0 | S63: 402 | T63: 2958
B65: Unmetered Service Credit | G65: 5 | H65: override to match UI calc. (rounding)
B67: Current Customer Charge | D67: ='CILC-1D'!G12 -> 168.63 | E67: ='CILC-1G'!G12 -> 112.42 | F67: ='CILC-1T'!$G$12 -> 2220.26 | G67: ='GS(T)-1'!$I$13 -> 7.75 | H67: ='GSCU-1'!$H$13 -> 13.5 | I67: ='GSD(T)-1'!$K$12 -> 20.24 | J67: ='GSLD(T)-1'!$K$13 -> 61.83 | K67: ='GSLD(T)-2'!$K$13 -> 219.22 | L67: ='GSLD(T)-3'!$I$13 -> 1620.94 | M67: =MET!$H$13 -> 449.67 | O67: ='OS-2'!$G$13 -> 115.8 | P67: ='RS(T)-1'!$G$13 -> 7.87 | S67: ='SST-DST'!$G$13 -> 112.42 | T67: ='SST-TST'!$H$13 -> 1631.99
S68: ='SST-DST'!$G$41 -> 421.57 | T68: ='SST-TST'!$H$27 -> 2125.83
B69: Final Non-TOU & TOU Customer Charge to Use | D69: 275 | E69: 125 | F69: 3200 | G69: =G63+2 -> 11 | H69: 14 | I69: 25 | J69: 75 | K69: 250 | L69: 3075 | M69: 725 | O69: 150 | P69: 10 | S69: 125 | T69: 2975
S70: 425 | T70: 2975
B71: Current CDR Admin Adder | I71: ='GSD(T)-1'!K19 -> 84.31 | J71: ='GSLD(T)-1'!K19 -> 140.52 | K71: ='GSLD(T)-2'!K19 -> 56.21 | L71: ='GSLD(T)-3'!I18 -> 533.99
B73: Difference between CILC Cust Charge & corresponding GSD(L)(T) rate | I73: =E69-I69 -> 100 | J73: =D69-J69 -> 200 | K73: =D69-K69 -> 25 | L73: =F69-L69 -> 125
B75: CDR Admin Adder to Use | I75: 100 | J75: 150 | K75: 75 | L75: =L73 -> 125
B78: 1 For rate classes other than RS(T)-1 and GS(T)-1, the customer charge is set at the higher of current customer charge or unit cost rounded up to the nearest $25.
B79: 2 For rate classes RS(T)-1 and GS(T)-1, the customer charge is set at the higher of the current customer charge or unit cost rounded to the nearest dollar and then an additional $2 is added.
B80: 3 The TOU customer charge is set the same as the Non-TOU customer charge as there is no longer a significant difference between TOU and Non-TOU meter costs.
B81: 4Curtailable service customer charges are set to the proposed customer charge for the standard rate and then an additional $25 is added to cover program cost.
B82: 5The calculation for proposed metered lighting rate customer charges are shown on a separate workpaper.
B83: 6The "CDR Adder to Use" is based on the current CDR Adder rounded up to the nearest $25 except for the GSLDT-3 Adder which was set to the calculated amount due to the large difference in the calculated amount vs. the current adder.

Sheet CILC-1D
A1: OPC 015161
A2: FPL RC-16
D4: MFR E-14 Workpapers - 2017
D5: Rate Class CILC-1D | F5: Present Revenues (with WCEC3 in Base) | J5: Percent increase calculation | N5: Rounded | R5: Final adjustments to achieve target revenues
M6: =L30 -> 0.3156071229 | Q6: =P30 -> 0 | X6: =(T22-H22)/H22 -> 0.3131693464
A7: Ref. for linking data | E7: -1 | F7: =E7-1 -> -2 | G7: =F7-1 -> -3 | H7: -4 | I7: -5 | J7: -6 | K7: -7 | L7: -8 | M7: -9 | N7: -10 | O7: -11 | P7: -12 | Q7: -13 | R7: -14 | S7: -15 | T7: -16 | U7: -17 | V7: -18 | W7: -19 | X7: -20 | AA7: Override
D8: Line | E8: Type of | F8: Present Revenue Calculation | J8: Proposed Revenue Calculation | N8: Proposed Revenue Calculation | R8: Proposed Revenue Calculation | X8: Percent | AA8: Calculated
D9: No. | E9: Charges | F9: Units | G9: Charge/Unit | H9: $ Revenue | J9: Units | K9: Charge/Unit | L9: $ Revenue | N9: Units | O9: Charge/Unit | P9: $ Revenue | R9: Units | S9: Charge/Unit | T9: $ Revenue | X9: Increase
A10: Reference for Billing Units | B10: Reference for Rates | C10: Reference for Rates | D10: 1 | E10: RATE SCHEDULE CILC-1D - 54 | M10: Override | Q10: Override | Y10: Comparison of Unit Costs to Calculated Rates
D11: =D10+1 -> 2 | M11: Revenue | Q11: Revenue
A12: CILC-1D - 54Customer | B12: C/I Load Control Program, Distribution [CILC-1(D)] | C12: Customer Charge | D12: =D11+1 -> 3 | E12: Customer | F12: =VLOOKUP($A12,'Billing Determinants (Units)'!$A$9:$B$1153,2,FALSE) -> 3336 | G12: =INDEX('Present Base Rates by Rate Code'!$A$4:$V$50,MATCH('CILC-1D'!$B12,'Present Base Rates by Rate Code'!$A$4:$A$50,0),MATCH('CILC-1D'!$C12,'Present Base Rates by Rate Code'!$A$4:$V$4,0)) -> 168.63 | H12: =F12*G12 -> 562549.68 | J12: =F12 -> 3336 | K12: ='E-6b Proposed Equalized'!$D$69 -> 275 | L12: =J12*K12 -> 917400 | M12: =L12-H12 -> 354850.32 | N12: =F12 -> 3336 | O12: =ROUND(K12,0) -> 275 | P12: =N12*O12 -> 917400 | Q12: =P12-L12 -> 0 | R12: =F12 -> 3336 | S12: =O12 -> 275 | T12: =R12*S12 -> 917400 | V12: =S12/G12-1 -> 0.630789302 | W12: =S12-G12 -> 106.37
B13: C/I Load Control Program, Distribution [CILC-1(D)] | D13: 4 | E13: Non-Fuel Energy | J13: =F13 -> 0 | N13: =F13 -> 0 | AA13: On-Peak
A14: CILC-1D - 54Non-Fuel Energy - On Peak | B14: C/I Load Control Program, Distribution [CILC-1(D)] | C14: On-Peak Energy Charge $/kWh | D14: 5 | E14: On Peak | F14: =VLOOKUP($A14,'Billing Determinants (Units)'!$A$9:$B$1153,2,FALSE) -> 708613584 | G14: =INDEX('Present Base Rates by Rate Code'!$A$4:$V$50,MATCH('CILC-1D'!$B14,'Present Base Rates by Rate Code'!$A$4:$A$50,0),MATCH('CILC-1D'!$C14,'Present Base Rates by Rate Code'!$A$4:$V$4,0)) -> 0.00822 | H14: =F14*G14 -> 5824803.66 | J14: 708613584 | K14: =G14*(1+$M$6) -> 0.01081429055 | L14: =J14*K14 -> 7663153.185 | N14: 708613584 | O14: =ROUND(K14*(1+$Q$6),5) -> 0.01081 | P14: =N14*O14 -> 7660112.843 | R14: =F14 -> 708613584 | S14: =O14+T27 -> 0.01067 | T14: =R14*S14 -> 7560906.941 | V14: =S14/G14-1 -> 0.298053528 | W14: =S14-G14 -> 0.00245 | AA14: Demand | AC14: Energy
A15: CILC-1D - 54Non-Fuel Energy - Off Peak | B15: C/I Load Control Program, Distribution [CILC-1(D)] | C15: Off-Peak Energy Charge $/kWh | D15: 6 | E15: Off Peak | F15: =VLOOKUP($A15,'Billing Determinants (Units)'!$A$9:$B$1153,2,FALSE) -> 1978806807 | G15: =INDEX('Present Base Rates by Rate Code'!$A$4:$V$50,MATCH('CILC-1D'!$B15,'Present Base Rates by Rate Code'!$A$4:$A$50,0),MATCH('CILC-1D'!$C15,'Present Base Rates by Rate Code'!$A$4:$V$4,0)) -> 0.00822 | H15: =F15*G15 -> 16265791.95 | J15: 1978806807 | K15: =G15*(1+$M$6) -> 0.01081429055 | L15: =J15*K15 -> 21399391.75 | N15: 1978806807 | O15: =ROUND(K15*(1+$Q$6),5) -> 0.01081 | P15: =N15*O15 -> 21390901.58 | R15: =F15 -> 1978806807 | S15: =O15+T27 -> 0.01067 | T15: =R15*S15 -> 21113868.63 | V15: =S15/G15-1 -> 0.298053528 | W15: =S15-G15 -> 0.00245
B16: C/I Load Control Program, Distribution [CILC-1(D)] | D16: 7 | E16: Demand | J16: 0 | N16: 0
A17: CILC-1D - 54Demand - Maximum | B17: C/I Load Control Program, Distribution [CILC-1(D)] | C17: Demand Charge $/kW | D17: 8 | E17: Max Demand | F17: =VLOOKUP($A17,'Billing Determinants (Units)'!$A$9:$B$1153,2,FALSE) -> 6058815 | G17: =INDEX('Present Base Rates by Rate Code'!$A$4:$V$50,MATCH('CILC-1D'!$B17,'Present Base Rates by Rate Code'!$A$4:$A$50,0),MATCH('CILC-1D'!$C17,'Present Base Rates by Rate Code'!$A$4:$V$4,0)) -> 3.49 | H17: =F17*G17 -> 21145264.35 | J17: 6058815 | K17: =G17*(1+$M$6) -> 4.591468859 | L17: =J17*K17 -> 27818860.4 | N17: 6058815 | O17: =ROUND(K17*(1+$Q$6),1) -> 4.6 | P17: =N17*O17 -> 27870549 | R17: =F17 -> 6058815 | S17: =O17 -> 4.6 | T17: =R17*S17 -> 27870549 | V17: =S17/G17-1 -> 0.3180515759 | W17: =S17-G17 -> 1.11 | Y17: Billing Units | Z17: kW | AA17: =R18+R19 -> 5062071 | AB17: kWh | AC17: =R14+R15 -> 2687420391
A18: CILC-1D - 54Load Control On-Peak | B18: C/I Load Control Program, Distribution [CILC-1(D)] | C18: On-Peak Demand Charge $/kW | D18: 9 | E18: Load Control On-Peak | F18: =VLOOKUP($A18,'Billing Determinants (Units)'!$A$9:$B$1153,2,FALSE) -> 4390087 | G18: =INDEX('Present Base Rates by Rate Code'!$A$4:$V$50,MATCH('CILC-1D'!$B18,'Present Base Rates by Rate Code'!$A$4:$A$50,0),MATCH('CILC-1D'!$C18,'Present Base Rates by Rate Code'!$A$4:$V$4,0)) -> 2.54 | H18: =F18*G18 -> 11150820.98 | J18: 4390087 | K18: =G18*(1+$M$6) -> 3.341642092 | L18: =J18*K18 -> 14670099.51 | N18: 4390087 | O18: =ROUND(K18*(1+$Q$6),1) -> 3.3 | P18: =N18*O18 -> 14487287.1 | R18: =F18 -> 4390087 | S18: =O18 -> 3.3 | T18: =R18*S18 -> 14487287.1 | V18: =S18/G18-1 -> 0.2992125984 | W18: =S18-G18 -> 0.76
A19: CILC-1D - 54Firm On-Peak | B19: C/I Load Control Program, Distribution [CILC-1(D)] | C19: Firm On-Peak Demand Charge $/kW | D19: 10 | E19: Firm On-Peak | F19: =VLOOKUP($A19,'Billing Determinants (Units)'!$A$9:$B$1153,2,FALSE) -> 671984 | G19: =INDEX('Present Base Rates by Rate Code'!$A$4:$V$50,MATCH('CILC-1D'!$B19,'Present Base Rates by Rate Code'!$A$4:$A$50,0),MATCH('CILC-1D'!$C19,'Present Base Rates by Rate Code'!$A$4:$V$4,0)) -> 9.08 | H19: =F19*G19 -> 6101614.72 | J19: 671984 | K19: =G19*(1+$M$6) -> 11.94571268 | L19: =J19*K19 -> 8027327.787 | N19: 671984 | O19: =ROUND(K19*(1+$Q$6),1) -> 11.9 | P19: =N19*O19 -> 7996609.6 | R19: =F19 -> 671984 | S19: =O19 -> 11.9 | T19: =R19*S19 -> 7996609.6 | V19: =S19/G19-1 -> 0.3105726872 | W19: =S19-G19 -> 2.82 | Y19: Unit Costs per E-6b | AA19: ='E-6b Proposed Equalized'!D31 -> 15.92 | AC19: ='E-6b Proposed Equalized'!D41 -> 0.01174
A20: CILC-1D - 54Transformation Credit | B20: C/I Load Control Program, Distribution [CILC-1(D)] | C20: Transformation Rider Credit ($/kW) | D20: 11 | E20: Transformation Credit | F20: =VLOOKUP($A20,'Billing Determinants (Units)'!$A$9:$B$1153,2,FALSE) -> 1363076 | G20: =INDEX('Present Base Rates by Rate Code'!$A$4:$V$50,MATCH('CILC-1D'!$B20,'Present Base Rates by Rate Code'!$A$4:$A$50,0),MATCH('CILC-1D'!$C20,'Present Base Rates by Rate Code'!$A$4:$V$4,0)) -> -0.3 | H20: =F20*G20 -> -408922.8 | J20: 1363076 | K20: ='Transformer Credit'!$E$9 -> -0.23 | L20: =J20*K20 -> -313507.48 | M20: =L20-H20 -> 95415.32 | N20: 1363076 | O20: =K20 -> -0.23 | P20: =N20*O20 -> -313507.48 | Q20: =P20-L20 -> 0 | R20: =F20 -> 1363076 | S20: =O20 -> -0.23 | T20: =R20*S20 -> -313507.48 | V20: =S20/G20-1 -> -0.2333333333 | W20: =S20-G20 -> 0.07
D21: 12 | Y21: Rate Calculated | AA21: =S19+S18 -> 15.2 | AC21: =S14 -> 0.01067
D22: 13 | E22: TOTAL | H22: =SUM(H12:H21) -> 60641922.54 | L22: =SUM(L12:L21) -> 80182725.15 | M22: =SUM(M12:M20) -> 450265.64 | P22: =SUM(P12:P21) -> 80009352.65 | Q22: =SUM(Q12:Q20) -> 0 | T22: =SUM(T12:T21) -> 79633113.79 | X22: =T22/H22-1 -> 0.3131693464
D23: 14 | Y23: Difference | AA23: =AA21-AA19 -> -0.72 | AC23: =AC21-AC19 -> -0.00107
D24: 15 | J24: a | K24: target revenue | L24: =('E-8 Parity Analysis Final'!W15*1000)+H22 -> 80182725.15 | N24: a | O24: target revenue | P24: =L24 -> 80182725.15 | S24: Increase | T24: =+T22-H22 -> 18991191.25
D25: 16 | J25: b | K25: Present revenue | L25: =H22 -> 60641922.54 | N25: b | O25: Present revenue | P25: =L22 -> 80182725.15 | S25: Target revenues | T25: =L34 -> 19540802.61 | Y25: % Difference | AA25: =AA23/AA19 -> -0.04522613065 | AC25: =AC23/AC19 -> -0.09114139693
D26: 17 | J26: c | K26: Proposed Increase | L26: =L24-L25 -> 19540802.61 | N26: c | O26: Proposed Increase | P26: =P24-P25 -> 0 | S26: Difference | T26: =+T24-T25 -> -549611.3585
D27: 18 | J27: d | K27: Override Revenue | L27: =M22 -> 450265.64 | N27: d | O27: Override Revenue | P27: =Q22 -> 0 | S27: Adjustment | T27: -0.00014 | Y27: Note: Unit costs per E-6b did not include an adjustment to reset
D28: 19 | J28: e | K28: Increase of Non-Override Revenue | L28: =L26-L27 -> 19090536.97 | N28: e | O28: Increase of Non-Override Revenue | P28: =P26-P27 -> 0 | Y28: the CILC load control "credit".
D29: 20 | J29: f | K29: Non-Override Revenue | L29: =H14+H15+H17+H18+H19 -> 60488295.66 | N29: f | O29: Non-Override Revenue | P29: =L14+L15+L17+L18+L19 -> 79578832.63 | S29: Per UII | T29: 95213883
D30: 21 | J30: g | K30: adjustment factor | L30: =L28/L29 -> 0.3156071229 | N30: g | O30: adjustment factor | P30: =P28/P29 -> 0 | S30: Difference | T30: =T22-T29 -> -15580769.21
D31: 22
D32: 23
D33: 24 | K33: Increase | L33: =L22-H22 -> 19540802.61 | O33: Increase | P33: =P22-L22 -> -173372.5037 | S33: Clause Revenues | T33: ='E-8 Parity Analysis Final'!AD15*1000 -> 110216025.7 | X33: =(T22+T33)/(T33+H22)-1 -> 0.1111519332
D34: 25 | K34: Target Increase | L34: =L26 -> 19540802.61 | O34: Target Increase | P34: =P24-L22 -> 0
D35: 26 | K35: Difference | L35: =L33-L34 -> 0 | O35: Difference | P35: =P33-P34 -> -173372.5037
D36: =D35+1 -> 27
D37: 28
D38: 29
D39: 30
D40: 31 | E40: Step 1 - Set customer charge and CDR adder (if applicable) based on customer charge workpaper; transformation credit (if applicable) based on transformer credit workpaper; curtailment credit (if applicable) based on present curtailment credit;
D41: 32 | E41: and CDR credit (if applicable) based on CILC/CDR credit workpaper. These revenues/credits become "override revenues". Exclude override revenue from % increase calculations and apply the percent increase to only non-override rates.
D42: 33 | E42: Step 2 - Round results of Step 1
D43: 34 | E43: Step 3 - Calculate revenue neutral and/or rounding adjustment. For rate classes with SDTR, refer to SDTR workpaper.
D44: 35 | E44: Step 4 - Compare to Unit Costs for reasonableness. Depending on changes in other rates (Customer, Demand, etc.), unit costs may differ from final energy rates to achieve target revenues.
D45: 36
D46: 37 | E46: Footnotes:
D47: 38 | E47: 1 Firm On_Peak and Load Control On-Peak unit costs are calculated based on total On-Peak demand. When calculating revenues for rate design, however, the firm on-peak rate is multiplied by firm demand and the load control on-peak demand is multiplied by load control on-peak
D48: 39 | E48: demand. This results in a difference between the rates needed to obtain target revenue requirements and the unit costs calculated.

Sheet CILC-1G
A1: OPC 015162
A2: FPL RC-16
D4: MFR E-14 Workpapers - 2017
D5: Rate Class CILC-1G | F5: Present Revenues (with WCEC3 in Base) | J5: Percent increase calculation | N5: Rounded | R5: Final adjustments to achieve target revenues
M6: =L30 -> 0.1077920874 | Q6: 0 | X6: =(T22-H22)/H22 -> 0.1032474923
A7: Ref. for linking data | E7: -1 | F7: =E7-1 -> -2 | G7: =F7-1 -> -3 | H7: -4 | I7: -5 | J7: -6 | K7: -7 | L7: -8 | M7: -9 | N7: -10 | O7: -11 | P7: -12 | Q7: -13 | R7: -14 | S7: -15 | T7: -16 | U7: -17 | V7: -18 | W7: -19 | X7: -20 | AA7: Override
D8: Line | E8: Type of | F8: Present Revenue Calculation | J8: Proposed Revenue Calculation | N8: Proposed Revenue Calculation | R8: Proposed Revenue Calculation | X8: Percent | AA8: Calculated
D9: No. | E9: Charges | F9: Units | G9: Charge/Unit | H9: $ Revenue | J9: Units | K9: Charge/Unit | L9: $ Revenue | N9: Units | O9: Charge/Unit | P9: $ Revenue | R9: Units | S9: Charge/Unit | T9: $ Revenue | X9: Increase
A10: Reference for Billing Units | B10: Reference for Rates | C10: Reference for Rates | D10: 1 | E10: RATE SCHEDULE CILC-1G - 56 | M10: Override | Q10: Override | Y10: Comparison of Unit Costs to Calculated Rates
D11: =D10+1 -> 2 | M11: Revenue | Q11: Revenue
A12: CILC-1G - 56Customer | B12: C/I Load Control, General Service [CILC-1(G)] | C12: Customer Charge | D12: =D11+1 -> 3 | E12: Customer | F12: =VLOOKUP($A12,'Billing Determinants (Units)'!$A$9:$B$1153,2,FALSE) -> 744 | G12: =INDEX('Present Base Rates by Rate Code'!$A$4:$V$50,MATCH('CILC-1G'!$B12,'Present Base Rates by Rate Code'!$A$4:$A$50,0),MATCH('CILC-1G'!$C12,'Present Base Rates by Rate Code'!$A$4:$V$4,0)) -> 112.42 | H12: =F12*G12 -> 83640.48 | J12: =F12 -> 744 | K12: ='E-6b Proposed Equalized'!$E$69 -> 125 | L12: =J12*K12 -> 93000 | M12: =L12-H12 -> 9359.52 | N12: =F12 -> 744 | O12: =ROUND(K12,0) -> 125 | P12: =N12*O12 -> 93000 | Q12: =P12-L12 -> 0 | R12: =F12 -> 744 | S12: =O12 -> 125 | T12: =R12*S12 -> 93000 | V12: =S12/G12-1 -> 0.1119017968 | W12: =S12-G12 -> 12.58
B13: C/I Load Control, General Service [CILC-1(G)] | D13: 4 | E13: Non-Fuel Energy | J13: =F13 -> 0 | N13: =F13 -> 0 | AA13: On-Peak
A14: CILC-1G - 56Non-Fuel Energy - On Peak | B14: C/I Load Control, General Service [CILC-1(G)] | C14: On-Peak Energy Charge $/kWh | D14: 5 | E14: On Peak | F14: =VLOOKUP($A14,'Billing Determinants (Units)'!$A$9:$B$1153,2,FALSE) -> 27726439 | G14: =INDEX('Present Base Rates by Rate Code'!$A$4:$V$50,MATCH('CILC-1G'!$B14,'Present Base Rates by Rate Code'!$A$4:$A$50,0),MATCH('CILC-1G'!$C14,'Present Base Rates by Rate Code'!$A$4:$V$4,0)) -> 0.01425 | H14: =F14*G14 -> 395101.7558 | J14: 27726439 | K14: =G14*(1+$M$6) -> 0.01578603725 | L14: =J14*K14 -> 437690.5987 | N14: 27726439 | O14: =ROUND(K14*(1+$Q$6),5) -> 0.01579 | P14: =N14*O14 -> 437800.4718 | R14: =F14 -> 27726439 | S14: =O14+T27 -> 0.01575 | T14: =R14*S14 -> 436691.4143 | V14: =S14/G14-1 -> 0.1052631579 | W14: =S14-G14 -> 0.0015 | AA14: Demand | AC14: Energy
A15: CILC-1G - 56Non-Fuel Energy - Off Peak | B15: C/I Load Control, General Service [CILC-1(G)] | C15: Off-Peak Energy Charge $/kWh | D15: 6 | E15: Off Peak | F15: =VLOOKUP($A15,'Billing Determinants (Units)'!$A$9:$B$1153,2,FALSE) -> 73897063 | G15: =INDEX('Present Base Rates by Rate Code'!$A$4:$V$50,MATCH('CILC-1G'!$B15,'Present Base Rates by Rate Code'!$A$4:$A$50,0),MATCH('CILC-1G'!$C15,'Present Base Rates by Rate Code'!$A$4:$V$4,0)) -> 0.01425 | H15: =F15*G15 -> 1053033.148 | J15: 73897063 | K15: =G15*(1+$M$6) -> 0.01578603725 | L15: =J15*K15 -> 1166541.789 | N15: 73897063 | O15: =ROUND(K15*(1+$Q$6),5) -> 0.01579 | P15: =N15*O15 -> 1166834.625 | R15: =F15 -> 73897063 | S15: =O15+T27 -> 0.01575 | T15: =R15*S15 -> 1163878.742 | V15: =S15/G15-1 -> 0.1052631579 | W15: =S15-G15 -> 0.0015
B16: C/I Load Control, General Service [CILC-1(G)] | D16: 7 | E16: Demand | J16: 0 | N16: 0
A17: CILC-1G - 56Demand - Maximum | B17: C/I Load Control, General Service [CILC-1(G)] | C17: Demand Charge $/kW | D17: 8 | E17: Max Demand | F17: =VLOOKUP($A17,'Billing Determinants (Units)'!$A$9:$B$1153,2,FALSE) -> 275810 | G17: =INDEX('Present Base Rates by Rate Code'!$A$4:$V$50,MATCH('CILC-1G'!$B17,'Present Base Rates by Rate Code'!$A$4:$A$50,0),MATCH('CILC-1G'!$C17,'Present Base Rates by Rate Code'!$A$4:$V$4,0)) -> 3.82 | H17: =F17*G17 -> 1053594.2 | J17: 275810 | K17: =G17*(1+$M$6) -> 4.231765774 | L17: =J17*K17 -> 1167163.318 | N17: 275810 | O17: =ROUND(K17*(1+$Q$6),1) -> 4.2 | P17: =N17*O17 -> 1158402 | R17: =F17 -> 275810 | S17: =O17 -> 4.2 | T17: =R17*S17 -> 1158402 | V17: =S17/G17-1 -> 0.09947643979 | W17: =S17-G17 -> 0.38 | Y17: Billing Units | Z17: kW | AA17: =R18+R19 -> 212379 | AB17: kWh | AC17: =R14+R15 -> 101623502
A18: CILC-1G - 56Load Control On-Peak | B18: C/I Load Control, General Service [CILC-1(G)] | C18: On-Peak Demand Charge $/kW | D18: 9 | E18: Load Control On-Peak | F18: =VLOOKUP($A18,'Billing Determinants (Units)'!$A$9:$B$1153,2,FALSE) -> 206603 | G18: =INDEX('Present Base Rates by Rate Code'!$A$4:$V$50,MATCH('CILC-1G'!$B18,'Present Base Rates by Rate Code'!$A$4:$A$50,0),MATCH('CILC-1G'!$C18,'Present Base Rates by Rate Code'!$A$4:$V$4,0)) -> 2.54 | H18: =F18*G18 -> 524771.62 | J18: 206603 | K18: =G18*(1+$M$6) -> 2.813791902 | L18: =J18*K18 -> 581337.8483 | N18: 206603 | O18: =ROUND(K18*(1+$Q$6),1) -> 2.8 | P18: =N18*O18 -> 578488.4 | R18: =F18 -> 206603 | S18: =O18 -> 2.8 | T18: =R18*S18 -> 578488.4 | V18: =S18/G18-1 -> 0.1023622047 | W18: =S18-G18 -> 0.26
A19: CILC-1G - 56Firm On-Peak | B19: C/I Load Control, General Service [CILC-1(G)] | C19: Firm On-Peak Demand Charge $/kW | D19: 10 | E19: Firm On-Peak | F19: =VLOOKUP($A19,'Billing Determinants (Units)'!$A$9:$B$1153,2,FALSE) -> 5776 | G19: =INDEX('Present Base Rates by Rate Code'!$A$4:$V$50,MATCH('CILC-1G'!$B19,'Present Base Rates by Rate Code'!$A$4:$A$50,0),MATCH('CILC-1G'!$C19,'Present Base Rates by Rate Code'!$A$4:$V$4,0)) -> 9.3 | H19: =F19*G19 -> 53716.8 | J19: 5776 | K19: =G19*(1+$M$6) -> 10.30246641 | L19: =J19*K19 -> 59507.046 | N19: 5776 | O19: =ROUND(K19*(1+$Q$6),1) -> 10.3 | P19: =N19*O19 -> 59492.8 | R19: =F19 -> 5776 | S19: =O19 -> 10.3 | T19: =R19*S19 -> 59492.8 | V19: =S19/G19-1 -> 0.1075268817 | W19: =S19-G19 -> 1 | Y19: Unit Costs per E-6b | AA19: ='E-6b Proposed Equalized'!E31 -> 16.17 | AC19: ='E-6b Proposed Equalized'!E41 -> 0.01184
A20: CILC-1G - 56Transformation Credit | B20: C/I Load Control, General Service [CILC-1(G)] | C20: Transformation Rider Credit ($/kW) | D20: 11 | E20: Transformation Credit | F20: =VLOOKUP($A20,'Billing Determinants (Units)'!$A$9:$B$1153,2,FALSE) -> 5596 | G20: =INDEX('Present Base Rates by Rate Code'!$A$4:$V$50,MATCH('CILC-1G'!$B20,'Present Base Rates by Rate Code'!$A$4:$A$50,0),MATCH('CILC-1G'!$C20,'Present Base Rates by Rate Code'!$A$4:$V$4,0)) -> -0.3 | H20: =F20*G20 -> -1678.8 | J20: 5596 | K20: -0.23 | L20: =J20*K20 -> -1287.08 | M20: =L20-H20 -> 391.72 | N20: 5596 | O20: =K20 -> -0.23 | P20: =N20*O20 -> -1287.08 | Q20: =P20-L20 -> 0 | R20: =F20 -> 5596 | S20: =O20 -> -0.23 | T20: =R20*S20 -> -1287.08 | V20: =S20/G20-1 -> -0.2333333333 | W20: =S20-G20 -> 0.07
D21: 12 | Y21: Rate Calculated | AA21: =S19+S18 -> 13.1 | AC21: =S14 -> 0.01575
D22: 13 | E22: TOTAL | H22: =SUM(H12:H21) -> 3162179.203 | L22: =SUM(L12:L21) -> 3503953.52 | M22: =SUM(M12:M20) -> 9751.24 | P22: =SUM(P12:P21) -> 3492731.217 | Q22: =SUM(Q12:Q20) -> 0 | T22: =SUM(T12:T21) -> 3488666.276 | X22: =T22/H22-1 -> 0.1032474923
D23: 14 | Y23: Difference | AA23: =AA21-AA19 -> -3.07 | AC23: =AC21-AC19 -> 0.00391
D24: 15 | J24: a | K24: target revenue | L24: =('E-8 Parity Analysis Final'!W16*1000)+H22 -> 3503953.52 | N24: a | O24: target revenue | P24: =L24 -> 3503953.52 | S24: Increase | T24: =+T22-H22 -> 326487.073
D25: 16 | J25: b | K25: Present revenue | L25: =H22 -> 3162179.203 | N25: b | O25: Present revenue | P25: =L22 -> 3503953.52 | S25: Target revenues | T25: =L34 -> 341774.3165 | Y25: % Difference | AA25: =AA23/AA19 -> -0.1898577613 | AC25: =AC23/AC19 -> 0.3302364865
D26: 17 | J26: c | K26: Proposed Increase | L26: =L24-L25 -> 341774.3165 | N26: c | O26: Proposed Increase | P26: =P24-P25 -> 0 | S26: Difference | T26: =+T24-T25 -> -15287.24345
D27: 18 | J27: d | K27: Override Revenue | L27: =M22 -> 9751.24 | N27: d | O27: Override Revenue | P27: =Q22 -> 0 | S27: Adjustment | T27: -4e-05 | Y27: Note: Unit costs per E-6b did not include an adjustment to reset
D28: 19 | J28: e | K28: Increase of Non-Override Revenue | L28: =L26-L27 -> 332023.0765 | N28: e | O28: Increase of Energy and/or Demand | P28: =P26-P27 -> 0 | Y28: the CILC load control "credit".
D29: 20 | J29: f | K29: Non-Override Revenue | L29: =H14+H15+H17+H18+H19 -> 3080217.524 | N29: f | O29: Energy and/or Demand Revenue | P29: =L14+L15+L17+L18+L19 -> 3412240.6 | S29: Per UI | T29: 4051961
D30: 21 | J30: g | K30: adjustment factor | L30: =L28/L29 -> 0.1077920874 | N30: g | O30: adjustment factor | P30: =P28/P29 -> 0 | S30: Difference | T30: =T22-T29 -> -563294.7235
D31: 22
D32: 23
D33: 24 | K33: Increase | L33: =L22-H22 -> 341774.3165 | O33: Increase | P33: =P22-L22 -> -11222.30337
D34: 25 | K34: Target Increase | L34: =L26 -> 341774.3165 | O34: Target Increase | P34: =P26 -> 0
D35: =D34+1 -> 26 | K35: Difference | L35: =L33-L34 -> 0 | O35: Difference | P35: =P33-P34 -> -11222.30337
D36: =D35+1 -> 27
D37: 28
D38: 29
D39: 30
D40: 31 | E40: Step 1 - Set customer charge and CDR adder (if applicable) based on customer charge workpaper; transformation credit (if applicable) based on transformer credit workpaper; curtailment credit (if applicable) based on present curtailment credit;
D41: 32 | E41: and CDR credit (if applicable) based on CILC/CDR credit workpaper. These revenues/credits become "override revenues". Exclude override revenue from % increase calculations and apply the percent increase to only non-override rates.
D42: 33 | E42: Step 2 - Round results of Step 1
D43: 34 | E43: Step 3 - Calculate revenue neutral and/or rounding adjustment. For rate classes with SDTR, refer to SDTR workpaper.
D44: 35 | E44: Step 4 - Compare to Unit Costs for reasonableness. Depending on changes in other rates (Customer, Demand, etc.), unit costs may differ from final energy rates to achieve target revenues.
D45: 36
D46: 37 | E46: Footnotes:
D47: 38 | E47: 1 Firm On_Peak and Load Control On-Peak unit costs are calculated based on total On-Peak demand. When calculating revenues for rate design, however, the firm on-peak rate is multiplied by firm demand and the load control on-peak demand is multiplied by load control on-peak
D48: 39 | E48: demand. This results in a difference between the rates needed to obtain target revenue requirements and the unit costs calculated.

Sheet CILC-1T
A1: OPC 015163
A2: FPL RC-16
D4: MFR E-14 Workpapers - 2017
D5: Rate Class CILC-1T | F5: Present Revenues (with WCEC3 in Base) | J5: Percent increase calculation | N5: Rounded | R5: Final adjustments to achieve target revenues
M6: =L30 -> 0.3578062333 | Q6: 0 | X6: =(T22-H22)/H22 -> 0.3649895475
A7: Ref. for linking data | E7: -1 | F7: =E7-1 -> -2 | G7: =F7-1 -> -3 | H7: -4 | I7: -5 | J7: -6 | K7: -7 | L7: -8 | M7: -9 | N7: -10 | O7: -11 | P7: -12 | Q7: -13 | R7: -14 | S7: -15 | T7: -16 | U7: -17 | V7: -18 | W7: -19 | X7: -20 | AA7: Override
D8: Line | E8: Type of | F8: Present Revenue Calculation | J8: Proposed Revenue Calculation | N8: Proposed Revenue Calculation | R8: Proposed Revenue Calculation | X8: Percent | AA8: Calculated
D9: No. | E9: Charges | F9: Units | G9: Charge/Unit | H9: $ Revenue | J9: Units | K9: Charge/Unit | L9: $ Revenue | N9: Units | O9: Charge/Unit | P9: $ Revenue | R9: Units | S9: Charge/Unit | T9: $ Revenue | X9: Increase
A10: Reference for Billing Units | B10: Reference for Rates | C10: Reference for Rates | D10: 1 | E10: RATE SCHEDULE CILC-1T - 55 | M10: Override | Q10: Override | Y10: Comparison of Unit Costs to Calculated Rates
D11: =D10+1 -> 2 | M11: Revenue | Q11: Revenue
A12: CILC-1T - 55Customer | B12: C/I Load Control Program, Transmission [CILC-1(T)] | C12: Customer Charge | D12: =D11+1 -> 3 | E12: Customer | F12: =VLOOKUP($A12,'Billing Determinants (Units)'!$A$9:$B$1153,2,FALSE) -> 204 | G12: =INDEX('Present Base Rates by Rate Code'!$A$4:$V$50,MATCH('CILC-1T'!$B12,'Present Base Rates by Rate Code'!$A$4:$A$50,0),MATCH('CILC-1T'!$C12,'Present Base Rates by Rate Code'!$A$4:$V$4,0)) -> 2220.26 | H12: =F12*G12 -> 452933.04 | J12: =F12 -> 204 | K12: ='E-6b Proposed Equalized'!$F$69 -> 3200 | L12: =J12*K12 -> 652800 | M12: =L12-H12 -> 199866.96 | N12: =F12 -> 204 | O12: =ROUND(K12,0) -> 3200 | P12: =N12*O12 -> 652800 | Q12: =P12-L12 -> 0 | R12: =F12 -> 204 | S12: =O12 -> 3200 | T12: =R12*S12 -> 652800 | V12: =S12/G12-1 -> 0.4412726437 | W12: =S12-G12 -> 979.74
B13: C/I Load Control Program, Transmission [CILC-1(T)] | D13: 4 | E13: Non-Fuel Energy | J13: =F13 -> 0 | N13: =F13 -> 0 | AA13: On-Peak
A14: CILC-1T - 55Non-Fuel Energy - On Peak | B14: C/I Load Control Program, Transmission [CILC-1(T)] | C14: On-Peak Energy Charge $/kWh | D14: 5 | E14: On Peak | F14: =VLOOKUP($A14,'Billing Determinants (Units)'!$A$9:$B$1153,2,FALSE) -> 382658931 | G14: =INDEX('Present Base Rates by Rate Code'!$A$4:$V$50,MATCH('CILC-1T'!$B14,'Present Base Rates by Rate Code'!$A$4:$A$50,0),MATCH('CILC-1T'!$C14,'Present Base Rates by Rate Code'!$A$4:$V$4,0)) -> 0.00731 | H14: =F14*G14 -> 2797236.786 | J14: 382658931 | K14: =G14*(1+$M$6) -> 0.009925563566 | L14: =J14*K14 -> 3798105.544 | N14: 382658931 | O14: =ROUND(K14*(1+$Q$6),5) -> 0.00993 | P14: =N14*O14 -> 3799803.185 | R14: =F14 -> 382658931 | S14: =O14+T27 -> 0.00996 | T14: =R14*S14 -> 3811282.953 | V14: =S14/G14-1 -> 0.3625170999 | W14: =S14-G14 -> 0.00265 | AA14: Demand | AC14: Energy
A15: CILC-1T - 55Non-Fuel Energy - Off Peak | B15: C/I Load Control Program, Transmission [CILC-1(T)] | C15: Off-Peak Energy Charge $/kWh | D15: 6 | E15: Off Peak | F15: =VLOOKUP($A15,'Billing Determinants (Units)'!$A$9:$B$1153,2,FALSE) -> 1125676383 | G15: =INDEX('Present Base Rates by Rate Code'!$A$4:$V$50,MATCH('CILC-1T'!$B15,'Present Base Rates by Rate Code'!$A$4:$A$50,0),MATCH('CILC-1T'!$C15,'Present Base Rates by Rate Code'!$A$4:$V$4,0)) -> 0.00731 | H15: =F15*G15 -> 8228694.36 | J15: 1125676383 | K15: =G15*(1+$M$6) -> 0.009925563566 | L15: =J15*K15 -> 11172972.49 | N15: 1125676383 | O15: =ROUND(K15*(1+$Q$6),5) -> 0.00993 | P15: =N15*O15 -> 11177966.48 | R15: =F15 -> 1125676383 | S15: =O15+T27 -> 0.00996 | T15: =R15*S15 -> 11211736.77 | V15: =S15/G15-1 -> 0.3625170999 | W15: =S15-G15 -> 0.00265
B16: C/I Load Control Program, Transmission [CILC-1(T)] | D16: 7 | E16: Demand | J16: 0 | N16: 0
A17: CILC-1T - 55Demand - Maximum | B17: C/I Load Control Program, Transmission [CILC-1(T)] | C17: Demand Charge $/kW | D17: 8 | E17: Max Demand | F17: =VLOOKUP($A17,'Billing Determinants (Units)'!$A$9:$B$1153,2,FALSE) -> 0 | G17: =INDEX('Present Base Rates by Rate Code'!$A$4:$V$50,MATCH('CILC-1T'!$B17,'Present Base Rates by Rate Code'!$A$4:$A$50,0),MATCH('CILC-1T'!$C17,'Present Base Rates by Rate Code'!$A$4:$V$4,0)) -> 0 | H17: =F17*G17 -> 0 | J17: 0 | L17: =J17*K17 -> 0 | N17: 0 | P17: =N17*O17 -> 0 | R17: =F17 -> 0 | T17: =R17*S17 -> 0 | W17: =S17-G17 -> 0 | Y17: Billing Units | Z17: kW | AA17: =R18+R19 -> 2735215 | AB17: kWh | AC17: =R14+R15 -> 1508335314
A18: CILC-1T - 55Load Control On-Peak | B18: C/I Load Control Program, Transmission [CILC-1(T)] | C18: On-Peak Demand Charge $/kW | D18: 9 | E18: Load Control On-Peak | F18: =VLOOKUP($A18,'Billing Determinants (Units)'!$A$9:$B$1153,2,FALSE) -> 2155696 | G18: =INDEX('Present Base Rates by Rate Code'!$A$4:$V$50,MATCH('CILC-1T'!$B18,'Present Base Rates by Rate Code'!$A$4:$A$50,0),MATCH('CILC-1T'!$C18,'Present Base Rates by Rate Code'!$A$4:$V$4,0)) -> 2.49 | H18: =F18*G18 -> 5367683.04 | J18: 2155696 | K18: =G18*(1+$M$6) -> 3.380937521 | L18: =J18*K18 -> 7288273.49 | N18: 2155696 | O18: =ROUND(K18*(1+$Q$6),1) -> 3.4 | P18: =N18*O18 -> 7329366.4 | R18: =F18 -> 2155696 | S18: =O18 -> 3.4 | T18: =R18*S18 -> 7329366.4 | V18: =S18/G18-1 -> 0.3654618474 | W18: =S18-G18 -> 0.91
A19: CILC-1T - 55Firm On-Peak | B19: C/I Load Control Program, Transmission [CILC-1(T)] | C19: Firm On-Peak Demand Charge $/kW | D19: 10 | E19: Firm On-Peak | F19: =VLOOKUP($A19,'Billing Determinants (Units)'!$A$9:$B$1153,2,FALSE) -> 579519 | G19: =INDEX('Present Base Rates by Rate Code'!$A$4:$V$50,MATCH('CILC-1T'!$B19,'Present Base Rates by Rate Code'!$A$4:$A$50,0),MATCH('CILC-1T'!$C19,'Present Base Rates by Rate Code'!$A$4:$V$4,0)) -> 9.17 | H19: =F19*G19 -> 5314189.23 | J19: 579519 | K19: =G19*(1+$M$6) -> 12.45108316 | L19: =J19*K19 -> 7215639.262 | N19: 579519 | O19: =ROUND(K19*(1+$Q$6),1) -> 12.5 | P19: =N19*O19 -> 7243987.5 | R19: =F19 -> 579519 | S19: =O19 -> 12.5 | T19: =R19*S19 -> 7243987.5 | V19: =S19/G19-1 -> 0.3631406761 | W19: =S19-G19 -> 3.33 | Y19: Unit Costs per E-6b | AA19: ='E-6b Proposed Equalized'!F31 -> 10.69 | AC19: ='E-6b Proposed Equalized'!F41 -> 0.01148
A20: CILC-1T - 55Transformation Credit | B20: C/I Load Control Program, Transmission [CILC-1(T)] | C20: Transformation Rider Credit ($/kW) | D20: 11
D21: 12 | Y21: Rate Calculated | AA21: =S19+S18 -> 15.9 | AC21: =S14 -> 0.00996
D22: 13 | E22: TOTAL | H22: =SUM(H12:H21) -> 22160736.46 | L22: =SUM(L12:L21) -> 30127790.79 | M22: =SUM(M12:M20) -> 199866.96 | P22: =SUM(P12:P21) -> 30203923.57 | Q22: =SUM(Q12:Q20) -> 0 | T22: =SUM(T12:T21) -> 30249173.63 | X22: =T22/H22-1 -> 0.3649895475
D23: 14 | Y23: Difference | AA23: =AA21-AA19 -> 5.21 | AC23: =AC21-AC19 -> -0.00152
D24: 15 | J24: a | K24: target revenue | L24: =('E-8 Parity Analysis Final'!W17*1000)+H22 -> 30127790.79 | N24: a | O24: target revenue | P24: =L24 -> 30127790.79 | S24: Increase | T24: =+T22-H22 -> 8088437.172
D25: 16 | J25: b | K25: Present revenue | L25: =H22 -> 22160736.46 | N25: b | O25: Present revenue | P25: =L22 -> 30127790.79 | S25: Target revenues | T25: =L34 -> 7967054.334 | Y25: % Difference | AA25: =AA23/AA19 -> 0.4873713751 | AC25: =AC23/AC19 -> -0.1324041812
D26: 17 | J26: c | K26: Proposed Increase | L26: =L24-L25 -> 7967054.334 | N26: c | O26: Proposed Increase | P26: =P24-P25 -> 0 | S26: Difference | T26: =+T24-T25 -> 121382.8384
D27: 18 | J27: d | K27: Override Revenue | L27: =M22 -> 199866.96 | N27: d | O27: Override Revenue | P27: =Q22 -> 0 | S27: Adjustment | T27: 3e-05 | Y27: Note: Unit costs per E-6b did not include an adjustment to reset
D28: 19 | J28: e | K28: Increase of Non-Override Revenue | L28: =L26-L27 -> 7767187.374 | N28: e | O28: Increase of Energy and/or Demand | P28: =P26-P27 -> 0 | Y28: the CILC load control "credit".
D29: 20 | J29: f | K29: Non-Override Revenue | L29: =H14+H15+H17+H18+H19 -> 21707803.42 | N29: f | O29: Energy and/or Demand Revenue | P29: =L14+L15+L17+L18+L19 -> 29474990.79 | S29: Per UI | T29: 39355917
D30: 21 | J30: g | K30: adjustment factor | L30: =L28/L29 -> 0.3578062333 | N30: g | O30: adjustment factor | P30: =P28/P29 -> 0 | S30: Difference | T30: =T22-T29 -> -9106743.373
D31: 22
D32: 23
D33: 24 | K33: Increase | L33: =L22-H22 -> 7967054.334 | O33: Increase | P33: =P22-L22 -> 76132.77899
D34: 25 | K34: Target Increase | L34: =L26 -> 7967054.334 | O34: Target Increase | P34: =P26 -> 0
D35: 26 | K35: Difference | L35: =L33-L34 -> 0 | O35: Difference | P35: =P33-P34 -> 76132.77899
D36: 27
D37: 28
D38: 29
D39: 30
D40: 31 | E40: Step 1 - Set customer charge and CDR adder (if applicable) based on customer charge workpaper; transformation credit (if applicable) based on transformer credit workpaper; curtailment credit (if applicable) based on present curtailment credit;
D41: 32 | E41: and CDR credit (if applicable) based on CILC/CDR credit workpaper. These revenues/credits become "override revenues". Exclude override revenue from % increase calculations and apply the percent increase to only non-override rates.
D42: 33 | E42: Step 2 - Round results of Step 1
D43: 34 | E43: Step 3 - Calculate revenue neutral and/or rounding adjustment. For rate classes with SDTR, refer to SDTR workpaper.
D44: 35 | E44: Step 4 - Compare to Unit Costs for reasonableness. Depending on changes in other rates (Customer, Demand, etc.), unit costs may differ from final energy rates to achieve target revenues.
D45: 36
D46: 37 | E46: Footnotes:
D47: 38 | E47: 1 Firm On_Peak and Load Control On-Peak unit costs are calculated based on total On-Peak demand. When calculating revenues for rate design, however, the firm on-peak rate is multiplied by firm demand and the load control on-peak demand is multiplied by load control on-peak
D48: 39 | E48: demand. This results in a difference between the rates needed to obtain target revenue requirements and the unit costs calculated.

Sheet GS(T)-1
A1: OPC 015164
A2: FPL RC-16
D4: MFR E-14 Workpapers - 2017
D5: Rate Class GS(T)-1 | H5: Present Revenues (with WCEC3 in Base) | L5: Percent increase calculation | P5: Rounded | T5: Final adjustments to achieve target revenues
O6: =N39 -> 0.04362732769 | S6: 0 | Y6: =(V31-J31)/J31 -> 0.08437434366
A7: Ref. for linking data | E7: -1 | F7: =E7-1 -> -2 | G7: =F7-1 -> -3 | H7: -4 | I7: -5 | J7: -6 | K7: -7 | L7: -8 | M7: -9 | N7: -10 | O7: -11 | P7: -12 | Q7: -13 | R7: -14 | S7: -15 | T7: -16 | U7: -17 | V7: -18 | W7: -19 | X7: -20 | Y7: -21 | AA7: Override
D8: Line | E8: TYPE OF | H8: PRESENT REVENUE CALCULATION | L8: PROPOSED REVENUE CALCULATION | P8: PROPOSED REVENUE CALCULATION | T8: PROPOSED REVENUE CALCULATION | Y8: PERCENT | AA8: Calculated
D9: No. | E9: CHARGES | H9: UNITS | I9: CHARGE/UNIT | J9: $ REVENUE | L9: UNITS | M9: CHARGE/UNIT | N9: $ REVENUE | P9: UNITS | Q9: CHARGE/UNIT | R9: $ REVENUE | T9: UNITS | U9: CHARGE/UNIT | V9: $ REVENUE | Y9: INCREASE
A10: Reference for Billing Units | B10: Reference for Rates | C10: Reference for Rates
D11: 1 | E11: RATE SCHEDULE GS-1 - 68 | O11: Override | S11: Override | Z11: Comparison of Unit Costs to Calculated Rates
D12: =D11+1 -> 2 | O12: Revenue | S12: Revenue
A13: GS-1 - 68Customer | B13: General Service Non-Demand (GS-1) | C13: Customer Charge | D13: =D12+1 -> 3 | E13: Customer | H13: =VLOOKUP($A13,'Billing Determinants (Units)'!$A$9:$B$1153,2,FALSE) -> 5159362 | I13: =INDEX('Present Base Rates by Rate Code'!$A$4:$V$50,MATCH('GS(T)-1'!$B13,'Present Base Rates by Rate Code'!$A$4:$A$50,0),MATCH('GS(T)-1'!C13,'Present Base Rates by Rate Code'!$A$4:$V$4,0)) -> 7.75 | J13: =H13*I13 -> 39985055.5 | L13: =H13 -> 5159362 | M13: ='E-6b Proposed Equalized'!$G$69 -> 11 | N13: =L13*M13 -> 56752982 | O13: =N13-J13 -> 16767926.5 | P13: =H13 -> 5159362 | Q13: =ROUND(M13,0) -> 11 | R13: =P13*Q13 -> 56752982 | S13: =R13-N13 -> 0 | T13: =H13 -> 5159362 | U13: =Q13 -> 11 | V13: =T13*U13 -> 56752982 | W13: =U13/I13-1 -> 0.4193548387 | X13: =U13-I13 -> 3.25 | AB13: Energy
D14: 4 | E14: NSMR | J14: 42228 | N14: =J14 -> 42228 | O14: =N14-J14 -> 0 | R14: =N14 -> 42228 | S14: =R14-N14 -> 0 | V14: =R14 -> 42228
A15: GS-1 - 68Non-Fuel Energy | B15: General Service Non-Demand (GS-1) | C15: Energy Charges $/kWh | D15: 5 | E15: Non-Fuel Energy | H15: =VLOOKUP($A15,'Billing Determinants (Units)'!$A$9:$B$1153,2,FALSE) -> 5949851976 | I15: =INDEX('Present Base Rates by Rate Code'!$A$4:$V$50,MATCH('GS(T)-1'!$B15,'Present Base Rates by Rate Code'!$A$4:$A$50,0),MATCH('GS(T)-1'!C15,'Present Base Rates by Rate Code'!$A$4:$V$4,0)) -> 0.05515 | J15: =H15*I15 -> 328134336.5 | L15: =H15 -> 5949851976 | M15: =I15*(1+$O$6) -> 0.05755604712 | N15: =L15*M15 -> 342449960.7 | P15: =H15 -> 5949851976 | Q15: =ROUND(M15*(1+$S$6),5) -> 0.05756 | R15: =P15*Q15 -> 342473479.7 | T15: =H15 -> 5949851976 | U15: =Q15+V36 -> 0.05756 | V15: =T15*U15 -> 342473479.7 | W15: =U15/I15-1 -> 0.04369900272 | X15: =U15-I15 -> 0.00241 | Z15: Billing Units | AB15: =H15+H25+H26 -> 5968792122
D16: 6 | E16: Demand
A17: GS-1 - 68Unmetered Service Credit | B17: General Service Non-Demand (GS-1) | D17: 7 | E17: Unmetered Service Credit | H17: =VLOOKUP($A17,'Billing Determinants (Units)'!$A$9:$B$1153,2,FALSE) -> 9526 | I17: -6.77 | J17: =H17*I17 -> -64491.02 | L17: 9526 | M17: =-'E-6b Proposed Equalized'!G65 -> -5 | N17: =L17*M17 -> -47630 | O17: =N17-J17 -> 16861.02 | P17: 9526 | Q17: =M17 -> -5 | R17: =P17*Q17 -> -47630 | S17: =R17-N17 -> 0 | T17: =H17 -> 9526 | U17: =Q17 -> -5 | V17: =T17*U17 -> -47630 | W17: =U17/I17-1 -> -0.2614475628 | X17: =U17-I17 -> 1.77 | Z17: Unit Costs per E-6b | AB17: ='E-6b Proposed Equalized'!G41+'E-6b Proposed Equalized'!G31 -> 0.06187
D18: 8 | L18: 0 | Z18: (Demand & Energy)
D19: 9 | E19: Total | J19: =SUM(J13:J18) -> 368097129 | L19: 0 | N19: =SUM(N13:N18) -> 399197540.7 | R19: =SUM(R13:R18) -> 399221059.7 | V19: =SUM(V13:V18) -> 399221059.7 | Y19: =V19/J19-1 -> 0.08455358201 | Z19: Rate Calculated | AB19: =U15 -> 0.05756
D20: 10 | L20: 0
D21: 11 | E21: RATE SCHEDULE GST-1 - 69 | L21: 0 | Z21: Difference | AB21: =AB19-AB17 -> -0.00431
D22: 12 | L22: 0 | Z22: % Difference | AB22: =AB21/AB17 -> -0.06966219492
A23: GST-1 - 69Customer | B23: General Service Non-Demand-TOU (GST-1) | C23: Customer Charge | D23: 13 | E23: Customer | H23: =VLOOKUP($A23,'Billing Determinants (Units)'!$A$9:$B$1153,2,FALSE) -> 6114 | I23: =INDEX('Present Base Rates by Rate Code'!$A$4:$V$50,MATCH('GS(T)-1'!$B23,'Present Base Rates by Rate Code'!$A$4:$A$50,0),MATCH('GS(T)-1'!C23,'Present Base Rates by Rate Code'!$A$4:$V$4,0)) -> 15.21 | J23: =H23*I23 -> 92993.94 | L23: 6114 | M23: =M13 -> 11 | N23: =L23*M23 -> 67254 | O23: =N23-J23 -> -25739.94 | P23: 6114 | Q23: =ROUND(M23,0) -> 11 | R23: =P23*Q23 -> 67254 | S23: =R23-N23 -> 0 | T23: =H23 -> 6114 | U23: =Q23 -> 11 | V23: =T23*U23 -> 67254 | W23: =U23/I23-1 -> -0.2767915845 | X23: =U23-I23 -> -4.21
D24: 14 | E24: Non-Fuel Energy | L24: 0 | P24: 0
A25: GST-1 - 69Non-Fuel Energy - On Peak | B25: General Service Non-Demand-TOU (GST-1) | C25: On-Peak Energy Charge $/kWh | D25: 15 | E25: On Peak | H25: =VLOOKUP($A25,'Billing Determinants (Units)'!$A$9:$B$1153,2,FALSE) -> 4448959 | I25: =INDEX('Present Base Rates by Rate Code'!$A$4:$V$50,MATCH('GS(T)-1'!$B25,'Present Base Rates by Rate Code'!$A$4:$A$50,0),MATCH('GS(T)-1'!C25,'Present Base Rates by Rate Code'!$A$4:$V$4,0)) -> 0.10042 | J25: =H25*I25 -> 446764.4628 | L25: 4448959 | M25: =I25*(1+$O$6) -> 0.1048010562 | N25: =L25*M25 -> 466255.6024 | P25: 4448959 | Q25: =ROUND(M25*(1+$S$6),5) -> 0.1048 | R25: =P25*Q25 -> 466250.9032 | T25: =H25 -> 4448959 | U25: =I41 -> 0.10625 | V25: =T25*U25 -> 472701.8937 | W25: =U25/I25-1 -> 0.05805616411 | X25: =U25-I25 -> 0.00583
A26: GST-1 - 69Non-Fuel Energy - Off Peak | B26: General Service Non-Demand-TOU (GST-1) | C26: Off-Peak Energy Charge $/kWh | D26: 16 | E26: Off Peak | H26: =VLOOKUP($A26,'Billing Determinants (Units)'!$A$9:$B$1153,2,FALSE) -> 14491187 | I26: =INDEX('Present Base Rates by Rate Code'!$A$4:$V$50,MATCH('GS(T)-1'!$B26,'Present Base Rates by Rate Code'!$A$4:$A$50,0),MATCH('GS(T)-1'!C26,'Present Base Rates by Rate Code'!$A$4:$V$4,0)) -> 0.03489 | J26: =H26*I26 -> 505597.5144 | L26: 14491187 | M26: =I26*(1+$O$6) -> 0.03641215746 | N26: =L26*M26 -> 527655.3829 | P26: 14491187 | Q26: =ROUND(M26*(1+$S$6),5) -> 0.03641 | R26: =P26*Q26 -> 527624.1187 | T26: =H26 -> 14491187 | U26: =I42 -> 0.03641 | V26: =T26*U26 -> 527624.1187 | W26: 0.04356549154 | X26: =U26-I26 -> 0.00152
D27: 17 | E27: Demand
D28: 18
D29: 19 | E29: Total | J29: =SUM(J23:J28) -> 1045355.917 | N29: =SUM(N23:N28) -> 1061164.985 | R29: =SUM(R23:R28) -> 1061129.022 | V29: =SUM(V23:V28) -> 1067580.012 | Y29: =V29/J29-1 -> 0.02125983586
D30: 20
D31: 21 | E31: TOTALS | J31: =J19+J29 -> 369142484.9 | N31: =N19+N29 -> 400258705.7 | O31: =SUM(O13:O28) -> 16759047.58 | R31: =R19+R29 -> 400282188.8 | S31: =SUM(S13:S28) -> 0 | V31: =V19+V29 -> 400288639.8
D32: 22
D33: 23 | L33: a | M33: target revenue | N33: =('E-8 Parity Analysis Final'!W18*1000)+J31 -> 400258705.7 | P33: a | Q33: target revenue | R33: =N33 -> 400258705.7 | U33: Increase | V33: =+V31-J31 -> 31146154.88
D34: 24 | L34: b | M34: Present revenue | N34: =J31 -> 369142484.9 | P34: b | Q34: Present revenue | R34: =N31 -> 400258705.7 | U34: Target | V34: =N43 -> 31116220.81
D35: 25 | L35: c | M35: Proposed Increase | N35: =N33-N34 -> 31116220.81 | P35: c | Q35: Proposed Increase | R35: =R33-R34 -> 0 | U35: Difference | V35: =+V33-V34 -> 29934.06599
D36: 26 | L36: d | M36: Override Revenue | N36: =O31 -> 16759047.58 | P36: d | Q36: Override Revenue | R36: =S31 -> 0 | U36: adjustment
D37: 27 | L37: e | M37: Increase of Non-Override Revenue | N37: =N35-N36 -> 14357173.23 | P37: e | Q37: Increase of Energy and/or Demand | R37: =R35-R36 -> 0
D38: 28 | E38: Revenue Neutral Calc | L38: f | M38: Non-Override Revenue | N38: =J15+J25+J26 -> 329086698.5 | P38: f | Q38: Energy and/or Demand Revenue | R38: =N15+N25+N26 -> 343443871.7 | U38: Per UI | V38: 391576467
D39: 29 | E39: TOU revenue neutral calculation | L39: g | M39: adjustment factor | N39: =N37/N38 -> 0.04362732769 | P39: g | Q39: adjustment factor | R39: =R37/R38 -> 0 | U39: Difference | V39: =V31-V38 -> 8712172.751
D40: 30 | E40: on pk class ave per Load FC | F40: 0.3028530704 | H40: Energy Revenue
D41: 31 | E41: on peak | F41: =SUM(H25:H26)*F40 -> 5736081.371 | G41: =ROUND((H44-H42)/F41,5) -> 0.10625 | H41: =F41*G41 -> 609458.6456 | I41: =G41 -> 0.10625
D42: 32 | E42: off peak | F42: =SUM(H25:H26)-F41 -> 13204064.63 | G42: =Q26 -> 0.03641 | H42: =F42*G42 -> 480759.9932 | I42: =IF(G41>G42,G42,I41) -> 0.03641 | M42: Increase | N42: =N31-J31 -> 31116220.81 | Q42: Increase | R42: =R31-N31 -> 23483.07544
D43: 33 | E43: total at class on-pk | H43: =SUM(H41:H42) -> 1090218.639 | M43: Target Increase | N43: =N33-J31 -> 31116220.81 | Q43: Target Increase | R43: =R33-N31 -> 0
D44: 34 | E44: total rev required at Rg1 rates | F44: =F41+F42 -> 18940146 | G44: =U15 -> 0.05756 | H44: =G44*F44 -> 1090194.804 | M44: Difference | N44: =N42-N43 -> 5.960464478e-08 | Q44: Difference | R44: =R42-R43 -> 23483.07544
D45: 35 | E45: Difference | H45: =+H43-H44 -> 23.83502696
D46: 36
D47: 37
D48: 38 | E48: Step 1 - Set customer charge and CDR adder (if applicable) based on customer charge workpaper; transformation credit (if applicable) based on transformer credit workpaper; curtailment credit (if applicable) based on present curtailment credit;
D49: 39 | E49: and CDR credit (if applicable) based on CILC/CDR credit workpaper. These revenues/credits become "override revenues". Exclude override revenue from % increase calculations and apply the percent increase to only non-override rates.
D50: 40 | E50: Step 2 - Round results of Step 1
D51: 41 | E51: Step 3 - Calculate revenue neutral and/or rounding adjustment. For rate classes with SDTR, refer to SDTR workpaper.
D52: 42 | E52: Step 4 - Compare to Unit Costs for reasonableness. Depending on changes in other rates (Customer, Demand, etc.), unit costs may differ from final energy rates to achieve target revenues.

Sheet GSCU-1
A1: OPC 015165
A2: FPL RC-16
D4: MFR E-14 Workpapers - 2017
D5: Rate Class GSCU | G5: Present Revenues (with WCEC3 in Base) | K5: Percent increase calculation | O5: Rounded | S5: Final adjustments to achieve target revenues
N6: =M27 -> 0.06509457686 | R6: 0 | Y6: =U22/I19 -> 0.05327238787
A7: Ref. for linking data | E7: -1 | F7: =E7-1 -> -2 | G7: =F7-1 -> -3 | H7: -4 | I7: -5 | J7: -6 | K7: -7 | L7: -8 | M7: -9 | N7: -10 | O7: -11 | P7: -12 | Q7: -13 | R7: -14 | S7: -15 | T7: -16 | U7: -17 | V7: -18 | W7: -19 | X7: -20 | Y7: -21 | AB7: Override
D8: Line | E8: Type of | G8: Present Revenue Calculation | K8: Proposed Revenue Calculation | O8: Proposed Revenue Calculation | S8: Proposed Revenue Calculation | Y8: Percent | AB8: Calculated
D9: No. | E9: Charges | G9: Units | H9: Charge/Unit | I9: $ Revenue | K9: Units | L9: Charge/Unit | M9: $ Revenue | O9: Units | P9: Charge/Unit | Q9: $ Revenue | S9: Units | T9: Charge/Unit | U9: $ Revenue | Y9: Increase
A11: Reference for Billing Units | B11: Reference for Rates | C11: Reference for Rates | D11: 1 | E11: RATE SCHEDULE GSCU-1 - 168 | N11: Override | R11: Override | Z11: Comparison of Unit Costs to Calculated Rates
D12: =D11+1 -> 2 | N12: Revenue | R12: Revenue
A13: GSCU - 168Customer | B13: General Service Constant Usage (GSCU-1) | C13: Customer Charge | D13: =D12+1 -> 3 | E13: Customer* | G13: =VLOOKUP($A13,'Billing Determinants (Units)'!$A$9:$B$1153,2,FALSE) -> 130561 | H13: =INDEX('Present Base Rates by Rate Code'!$A$4:$V$50,MATCH(B13,'Present Base Rates by Rate Code'!$A$4:$A$50,0),MATCH(C13,'Present Base Rates by Rate Code'!$A$4:$V$4,0)) -> 13.5 | I13: =G13*H13 -> 1762573.5 | K13: =G13 -> 130561 | L13: ='E-6b Proposed Equalized'!$H$69 -> 14 | M13: =K13*L13 -> 1827854 | N13: =M13-I13 -> 65280.5 | O13: =G13 -> 130561 | P13: =ROUND(L13,0) -> 14 | Q13: =O13*P13 -> 1827854 | R13: =Q13-M13 -> 0 | S13: =G13 -> 130561 | T13: =P13 -> 14 | U13: =S13*T13 -> 1827854 | V13: =T13/H13-1 -> 0.03703703704 | W13: =T13-H13 -> 0.5 | AB13: Energy
A14: GSCU - 168Non-Fuel Energy | B14: General Service Constant Usage (GSCU-1) | C14: Energy Charges $/kWh | D14: 4 | E14: Non-Fuel Energy | G14: =VLOOKUP($A14,'Billing Determinants (Units)'!$A$9:$B$1153,2,FALSE) -> 70241818 | H14: =INDEX('Present Base Rates by Rate Code'!$A$4:$V$50,MATCH(B14,'Present Base Rates by Rate Code'!$A$4:$A$50,0),MATCH(C14,'Present Base Rates by Rate Code'!$A$4:$V$4,0)) -> 0.03446 | I14: =G14*H14 -> 2420533.048 | K14: =G14 -> 70241818 | L14: =H14*(1+$N$6) -> 0.03670315912 | M14: =K14*L14 -> 2578096.623 | O14: =G14 -> 70241818 | P14: =ROUND(L14*(1+$R$6),5) -> 0.0367 | Q14: =O14*P14 -> 2577874.721 | S14: =G14 -> 70241818 | T14: =P14+U24 -> 0.0367 | U14: =S14*T14 -> 2577874.721 | V14: =T14/H14-1 -> 0.06500290192 | W14: =T14-H14 -> 0.00224
D15: 5 | E15: Demand | G15: 0 | H15: 0 | I15: =G15*H15 -> 0 | K15: =G15 -> 0 | L15: 0 | M15: =K15*L15 -> 0 | O15: 0 | P15: 0 | Q15: =O15*P15 -> 0 | S15: 0 | T15: 0 | U15: =S15*T15 -> 0 | Z15: Billing Units | AB15: =S14 -> 70241818
D16: 6 | E16: Unmetered Service Credit | G16: 0 | H16: 0 | I16: =G16*H16 -> 0 | K16: =G16 -> 0 | L16: 0 | M16: =K16*L16 -> 0 | O16: 0 | P16: 0 | Q16: =O16*P16 -> 0 | S16: 0 | T16: 0 | U16: =S16*T16 -> 0
D17: 7 | E17: Total | I17: =SUM(I13:I16) -> 4183106.548 | M17: =SUM(M13:M16) -> 4405950.623 | Q17: =SUM(Q13:Q16) -> 4405728.721 | U17: =SUM(U13:U16) -> 4405728.721 | Y17: =U17/I17-1 -> 0.05321934064 | Z17: Unit Costs per E-6b | AB17: ='E-6b Proposed Equalized'!H41+'E-6b Proposed Equalized'!H31 -> 0.04186
D18: 8 | Z18: (Demand & Energy)
D19: 9 | E19: TOTAL | I19: =I17 -> 4183106.548 | M19: =M17 -> 4405950.623 | N19: =SUM(N13:N15) -> 65280.5 | Q19: =Q17 -> 4405728.721 | R19: =SUM(R13:R15) -> 0 | U19: =U17 -> 4405728.721 | Z19: Rate Calculated | AB19: =T14 -> 0.0367
D20: 10
D21: 11 | K21: a | L21: target revenue | M21: =('E-8 Parity Analysis Final'!W19*1000)+I19 -> 4405950.623 | O21: a | P21: target revenue | Q21: =M21 -> 4405950.623 | T21: Increase | U21: =+U19-I19 -> 222622.1723 | Z21: Difference | AB21: =AB19-AB17 -> -0.00516
D22: 12 | K22: b | L22: Present revenue | M22: =I19 -> 4183106.548 | O22: b | P22: Present revenue | Q22: =M19 -> 4405950.623 | T22: Target | U22: =M31 -> 222844.0746 | Z22: % Difference | AB22: =AB21/AB17 -> -0.1232680363
D23: 13 | K23: c | L23: Proposed Increase | M23: =M21-M22 -> 222844.0746 | O23: c | P23: Proposed Increase | Q23: =Q21-Q22 -> 0 | T23: Difference | U23: =+U21-U22 -> -221.9022392
D24: 14 | K24: d | L24: Override Revenue | M24: =N19 -> 65280.5 | O24: d | P24: Override Revenue | Q24: =R19 -> 0 | T24: Adj.
D25: 15 | K25: e | L25: Increase of Non-Override Revenue | M25: =M23-M24 -> 157563.5746 | O25: e | P25: Increase of Energy and/or Demand | Q25: =Q23-Q24 -> 0
D26: 16 | K26: f | L26: Non-Override Revenue | M26: =I14 -> 2420533.048 | O26: f | P26: Energy and/or Demand Revenue | Q26: =M14 -> 2578096.623
D27: 17 | K27: g | L27: adjustment factor | M27: =M25/M26 -> 0.06509457686 | O27: g | P27: adjustment factor | Q27: =Q25/Q26 -> 0 | T27: Per UI | U27: 4218885
D28: 18 | T28: Difference | U28: =U19-U27 -> 186843.7206
D29: 19
D30: 20 | L30: Increase | M30: =M19-I19 -> 222844.0746 | P30: Increase | Q30: =Q19-M19 -> -221.9022392
D31: 21 | L31: Target Increase | M31: =M23 -> 222844.0746 | P31: Target Increase | Q31: =Q23 -> 0
D32: 22 | L32: Difference | M32: =M30-M31 -> 0 | P32: Difference | Q32: =Q30-Q31 -> -221.9022392
D33: 23
D34: 24
D35: 25
D36: 26
D37: 27
D38: 28
D39: 29
D40: 30 | E40: Step 1 - Set customer charge and CDR adder (if applicable) based on customer charge workpaper; transformation credit (if applicable) based on transformer credit workpaper; curtailment credit (if applicable) based on present curtailment credit;
D41: 31 | E41: and CDR credit (if applicable) based on CILC/CDR credit workpaper. These revenues/credits become "override revenues". Exclude override revenue from % increase calculations and apply the percent increase to only non-override rates.
D42: 32 | E42: Step 2 - Round results of Step 1
D43: 33 | E43: Step 3 - Calculate revenue neutral and/or rounding adjustment. For rate classes with SDTR, refer to SDTR workpaper.
D44: 34 | E44: Step 4 - Compare to Unit Costs for reasonableness. Depending on changes in other rates (Customer, Demand, etc.), unit costs may differ from final energy rates to achieve target revenues.

Sheet GSD(T)-1
A1: OPC 015166
A2: FPL RC-16
D4: MFR E-14 Workpapers - 2017
D5: Rate Class GSD(T)-1 | J5: Present Revenues (with WCEC3 in Base) | N5: Percent increase calculation | S5: Rounded | X5: Final adjustments to achieve target revenues
Q6: =P92 -> 0.1424559645 | V6: 0 | AB6: Final Increase % | AD6: =(Z84-L84)/L84 -> 0.1435544975
A7: Ref. for linking data | E7: -1 | F7: =E7-1 -> -2 | G7: =F7-1 -> -3 | H7: -4 | I7: -5 | J7: -6 | K7: -7 | L7: -8 | M7: -9 | N7: -10 | O7: -11 | P7: -12 | Q7: -13 | R7: -14 | S7: -15 | T7: -16 | U7: -17 | V7: -18 | W7: -19 | X7: -20 | Y7: -21 | Z7: -22 | AA7: -23 | AB7: -24 | AC7: -25
D8: Line | E8: TYPE OF | H8: PRESENT REVENUE CALCULATION | N8: PROPOSED REVENUE CALCULATION -STEP 1 | S8: PROPOSED REVENUE CALCULATION - STEP 2 | X8: PROPOSED REVENUE CALCULATION - REV NEUTRAL | AE8: Override
D9: No. | E9: CHARGES | H9: UNITS | K9: CHARGE/UNIT | L9: $ REVENUE | N9: UNITS | O9: CHARGE/UNIT | P9: $ REVENUE | S9: UNITS | T9: CHARGE/UNIT | U9: $ REVENUE | X9: UNITS | Y9: CHARGE/UNIT | Z9: $ REVENUE | AC9: INCREASE | AE9: Calculated
A10: Reference for Billing Units | B10: Reference for Rates | C10: Reference for Rates | D10: 1 | E10: RATE SCHEDULE GSD-1 - 72 | H10: Current Units | J10: Final Units to Use | Q10: Override | V10: Override
D11: =D10+1 -> 2 | Q11: Revenue | V11: Revenue | AF11: Comparison of Unit Costs to Calculated Rates
A12: GSD-1 - 72Customer | B12: General Service Demand (GSD-1) | C12: Customer Charge | D12: =D11+1 -> 3 | E12: Customer Charge | H12: =VLOOKUP($A12,'Billing Determinants (Units)'!$A$9:$B$1153,2,FALSE) -> 1198265 | J12: =H12+I12 -> 1198265 | K12: =INDEX('Present Base Rates by Rate Code'!$A$4:$V$50,MATCH('GSD(T)-1'!$B12,'Present Base Rates by Rate Code'!$A$4:$A$50,0),MATCH('GSD(T)-1'!C12,'Present Base Rates by Rate Code'!$A$4:$V$4,0)) -> 20.24 | L12: =J12*K12 -> 24252883.6 | N12: =J12 -> 1198265 | O12: ='E-6b Proposed Equalized'!$I$69 -> 25 | P12: =N12*O12 -> 29956625 | Q12: =P12-L12 -> 5703741.4 | S12: =N12 -> 1198265 | T12: =ROUND(O12,0) -> 25 | U12: =S12*T12 -> 29956625 | V12: =U12-P12 -> 0 | X12: =J12 -> 1198265 | Y12: =T12 -> 25 | Z12: =X12*Y12 -> 29956625 | AB12: =Y12/K12-1 -> 0.2351778656 | AC12: =Y12-K12 -> 4.76
D13: 4 | E13: NSMR | L13: 7932 | P13: =L13 -> 7932 | Q13: =P13-L13 -> 0 | U13: =P13 -> 7932 | V13: =U13-P13 -> 0 | Z13: =U13 -> 7932
A14: GSD-1 - 72Non-Fuel Energy | B14: General Service Demand (GSD-1) | C14: Energy Charges $/kWh | D14: 5 | E14: Non-Fuel Energy | H14: =VLOOKUP($A14,'Billing Determinants (Units)'!$A$9:$B$1153,2,FALSE) -> 21577278972 | J14: =H14+I14 -> 21577278972 | K14: =INDEX('Present Base Rates by Rate Code'!$A$4:$V$50,MATCH('GSD(T)-1'!$B14,'Present Base Rates by Rate Code'!$A$4:$A$50,0),MATCH('GSD(T)-1'!C14,'Present Base Rates by Rate Code'!$A$4:$V$4,0)) -> 0.01934 | L14: =J14*K14 -> 417304575.3 | N14: =J14 -> 21577278972 | O14: =K14*(1+$Q$6) -> 0.02209509835 | P14: =N14*O14 -> 476752101.1 | S14: =N14 -> 21577278972 | T14: =ROUND(O14*(1+$V$6),5) -> 0.0221 | U14: =S14*T14 -> 476857865.3 | X14: =J14 -> 21577278972 | Y14: =T14+Z89 -> 0.02211 | Z14: =X14*Y14 -> 477073638.1 | AB14: =Y14/K14-1 -> 0.1432264736 | AC14: =Y14-K14 -> 0.00277
A15: GSD-1 - 72Demand | B15: General Service Demand (GSD-1) | C15: Demand Charge $/kW | D15: 6 | E15: Demand | H15: =VLOOKUP($A15,'Billing Determinants (Units)'!$A$9:$B$1153,2,FALSE) -> 61186937 | J15: 61186937 | K15: =INDEX('Present Base Rates by Rate Code'!$A$4:$V$50,MATCH('GSD(T)-1'!$B15,'Present Base Rates by Rate Code'!$A$4:$A$50,0),MATCH('GSD(T)-1'!C15,'Present Base Rates by Rate Code'!$A$4:$V$4,0)) -> 8.7 | L15: =J15*K15 -> 532326351.9 | N15: 61186937 | O15: =K15*(1+$Q$6) -> 9.939366891 | P15: =N15*O15 -> 608159415.8 | S15: =N15 -> 61186937 | T15: =ROUND(O15*(1+$V$6),1) -> 9.9 | U15: =S15*T15 -> 605750676.3 | X15: =J15 -> 61186937 | Y15: =T15 -> 9.9 | Z15: =X15*Y15 -> 605750676.3 | AB15: =Y15/K15-1 -> 0.1379310345 | AC15: =Y15-K15 -> 1.2 | AH15: Demand | AK15: Energy
A16: GSD-1 - 72Transformation Credit | B16: General Service Demand (GSD-1) | C16: Transformation Rider Credit ($/kW) | D16: 7 | E16: Transformation Credit | H16: =VLOOKUP($A16,'Billing Determinants (Units)'!$A$9:$B$1153,2,FALSE) -> 78320 | J16: 78320 | K16: =INDEX('Present Base Rates by Rate Code'!$A$4:$V$50,MATCH('GSD(T)-1'!$B16,'Present Base Rates by Rate Code'!$A$4:$A$50,0),MATCH('GSD(T)-1'!C16,'Present Base Rates by Rate Code'!$A$4:$V$4,0)) -> -0.3 | L16: =J16*K16 -> -23496 | N16: 78320 | O16: ='Transformer Credit'!$E$9 -> -0.23 | P16: =N16*O16 -> -18013.6 | Q16: =P16-L16 -> 5482.4 | S16: =N16 -> 78320 | T16: =O16 -> -0.23 | U16: =S16*T16 -> -18013.6 | V16: =U16-P16 -> 0 | X16: =J16 -> 78320 | Y16: =T16 -> -0.23 | Z16: =X16*Y16 -> -18013.6 | AB16: =Y16/K16-1 -> -0.2333333333 | AC16: =Y16-K16 -> 0.07
A17: GSD-1 - 72Subtotal | B17: General Service Demand (GSD-1) | D17: 8 | E17: Subtotal | L17: =SUM(L12:L16) -> 973868246.8 | P17: =SUM(P12:P16) -> 1114858060 | U17: =SUM(U12:U16) -> 1112555085 | Z17: =SUM(Z12:Z16) -> 1112770858 | AC17: =Z17/L17-1 -> 0.1426297771
A18: GSD-1 - 72CDR Credit | B18: General Service Demand (GSD-1) | D18: 9 | E18: CDR Credit | AF18: Billing Units | AG18: kW | AH18: =X15+X42+X58+X59+X75+X76+X29+X43 -> 72797642 | AJ18: kWh | AK18: =X14+X40+X41+X55+X56+X57+X71+X72+X73+X74+X27+X28 -> 25825428784
A19: GSD-1 - 72Adder | B19: General Service Demand (GSD-1) | C19: Commercial / Industrial Demand Rider (CDR) Adder per Customer | D19: 10 | E19: Adder | H19: =VLOOKUP($A19,'Billing Determinants (Units)'!$A$9:$B$1153,2,FALSE) -> 194 | J19: 194 | K19: =INDEX('Present Base Rates by Rate Code'!$A$4:$V$50,MATCH('GSD(T)-1'!$B19,'Present Base Rates by Rate Code'!$A$4:$A$50,0),MATCH('GSD(T)-1'!C19,'Present Base Rates by Rate Code'!$A$4:$V$4,0)) -> 84.31 | L19: =J19*K19 -> 16356.14 | N19: 194 | O19: ='E-6b Proposed Equalized'!$I$75 -> 100 | P19: =N19*O19 -> 19400 | Q19: =P19-L19 -> 3043.86 | S19: =N19 -> 194 | T19: =O19 -> 100 | U19: =S19*T19 -> 19400 | V19: =U19-P19 -> 0 | X19: =J19 -> 194 | Y19: =T19 -> 100 | Z19: =X19*Y19 -> 19400 | AB19: =Y19/K19-1 -> 0.1860989206 | AC19: =Y19-K19 -> 15.69
A20: GSD-1 - 72Credit | B20: General Service Demand (GSD-1) | C20: Commercial / Industrial Demand Rider Credit (CDR) ($/kW) | D20: 11 | E20: Credit | H20: =VLOOKUP($A20,'Billing Determinants (Units)'!$A$9:$B$1153,2,FALSE) -> 48502.90878 | J20: 48502.90878 | K20: =INDEX('Present Base Rates by Rate Code'!$A$4:$V$50,MATCH('GSD(T)-1'!$B20,'Present Base Rates by Rate Code'!$A$4:$A$50,0),MATCH('GSD(T)-1'!C20,'Present Base Rates by Rate Code'!$A$4:$V$4,0)) -> -8.2 | L20: =J20*K20 -> -397723.852 | N20: 48502.90878 | O20: ='CDR Credit'!D13 -> -5.26 | P20: =N20*O20 -> -255125.3002 | Q20: =P20-L20 -> 142598.5518 | S20: =N20 -> 48502.90878 | T20: =O20 -> -5.26 | U20: =S20*T20 -> -255125.3002 | V20: =U20-P20 -> 0 | X20: =J20 -> 48502.90878 | Y20: =T20 -> -5.26 | Z20: =X20*Y20 -> -255125.3002 | AB20: =Y20/K20-1 -> -0.3585365854 | AC20: =Y20-K20 -> 2.94 | AF20: Unit Costs per E-6b | AH20: ='E-6b Proposed Equalized'!I31 -> 14.39 | AK20: ='E-6b Proposed Equalized'!I41 -> 0.01185
A21: Total | B21: General Service Demand (GSD-1) | D21: 12 | E21: Total | L21: =SUM(L17:L20) -> 973486879.1 | P21: =SUM(P17:P20) -> 1114622335 | U21: =SUM(U17:U20) -> 1112319360 | Z21: =SUM(Z17:Z20) -> 1112535132 | AC21: =Z21/L21-1 -> 0.1428352619
D22: 13 | AF22: Rate Calculated | AH22: =Y15 -> 9.9 | AK22: =Y28 -> 0.01194
A23: RATE SCHEDULE GSDT-1 - 70 | D23: 14 | E23: RATE SCHEDULE GSDT-1 - 70
D24: 15 | AF24: Difference | AH24: =AH22-AH20 -> -4.49 | AK24: =AK22-AK20 -> 9e-05
A25: GSDT-1 - 70Customer | B25: General Service Demand-TOU (GSDT-1) | C25: Customer Charge | D25: 16 | E25: Customer | H25: =VLOOKUP($A25,'Billing Determinants (Units)'!$A$9:$B$1153,2,FALSE) -> 50146 | J25: 50146 | K25: =INDEX('Present Base Rates by Rate Code'!$A$4:$V$50,MATCH('GSD(T)-1'!$B25,'Present Base Rates by Rate Code'!$A$4:$A$50,0),MATCH('GSD(T)-1'!C25,'Present Base Rates by Rate Code'!$A$4:$V$4,0)) -> 26.97 | L25: =J25*K25 -> 1352437.62 | N25: 50146 | O25: =O12 -> 25 | P25: =N25*O25 -> 1253650 | Q25: =P25-L25 -> -98787.62 | S25: =N25 -> 50146 | T25: =ROUND(O25,0) -> 25 | U25: =S25*T25 -> 1253650 | V25: =U25-P25 -> 0 | X25: =J25 -> 50146 | Y25: =T25 -> 25 | Z25: =X25*Y25 -> 1253650 | AB25: =Y25/K25-1 -> -0.0730441231 | AC25: =Y25-K25 -> -1.97
A26: GSDT-1 - 70Non-Fuel Energy | B26: General Service Demand-TOU (GSDT-1) | D26: 17 | E26: Non-Fuel Energy | X26: 0 | AF26: % Difference | AH26: =AH24/AH20 -> -0.3120222377 | AK26: =AK24/AK20 -> 0.007594936709
A27: GSDT-1 - 70Non-Fuel Energy - On Peak | B27: General Service Demand-TOU (GSDT-1) | C27: On-Peak Energy Charge $/kWh | D27: 18 | E27: Non-Fuel Energy - On Peak | H27: =VLOOKUP($A27,'Billing Determinants (Units)'!$A$9:$B$1153,2,FALSE) -> 548337572 | J27: 548337572 | K27: =INDEX('Present Base Rates by Rate Code'!$A$4:$V$50,MATCH('GSD(T)-1'!$B27,'Present Base Rates by Rate Code'!$A$4:$A$50,0),MATCH('GSD(T)-1'!C27,'Present Base Rates by Rate Code'!$A$4:$V$4,0)) -> 0.04114 | L27: =J27*K27 -> 22558607.71 | N27: 548337572 | O27: =K27*(1+$Q$6) -> 0.04700063838 | P27: =N27*O27 -> 25772215.93 | S27: =N27 -> 548337572 | T27: =ROUND(O27*(1+$V$6),5) -> 0.047 | U27: =S27*T27 -> 25771865.88 | X27: 548337572 | Y27: =G96 -> 0.04508 | Z27: =X27*Y27 -> 24719057.75 | AB27: =Y27/K27-1 -> 0.09577053962 | AC27: =Y27-K27 -> 0.00394
A28: GSDT-1 - 70Non-Fuel Energy - Off Peak | B28: General Service Demand-TOU (GSDT-1) | C28: Off-Peak Energy Charge $/kWh | D28: 19 | E28: Non-Fuel Energy - Off Peak | H28: =VLOOKUP($A28,'Billing Determinants (Units)'!$A$9:$B$1153,2,FALSE) -> 1799299182 | J28: 1799299182 | K28: =INDEX('Present Base Rates by Rate Code'!$A$4:$V$50,MATCH('GSD(T)-1'!$B28,'Present Base Rates by Rate Code'!$A$4:$A$50,0),MATCH('GSD(T)-1'!C28,'Present Base Rates by Rate Code'!$A$4:$V$4,0)) -> 0.01045 | L28: =J28*K28 -> 18802676.45 | N28: 1799299182 | O28: =K28*(1+$Q$6) -> 0.01193866483 | P28: =N28*O28 -> 21481229.86 | S28: =N28 -> 1799299182 | T28: =ROUND(O28*(1+$V$6),5) -> 0.01194 | U28: =S28*T28 -> 21483632.23 | X28: 1799299182 | Y28: =T28 -> 0.01194 | Z28: =X28*Y28 -> 21483632.23 | AB28: =Y28/K28-1 -> 0.1425837321 | AC28: =Y28-K28 -> 0.00149 | AF28: Note: The use of the percent increase method maintains the shift of some demand costs to
A29: GSDT-1 - 70Demand | B29: General Service Demand-TOU (GSDT-1) | C29: On-Peak Demand Charge $/kW | D29: 20 | E29: Demand | H29: =VLOOKUP($A29,'Billing Determinants (Units)'!$A$9:$B$1153,2,FALSE) -> 5126891 | J29: 5126891 | K29: =INDEX('Present Base Rates by Rate Code'!$A$4:$V$50,MATCH('GSD(T)-1'!$B29,'Present Base Rates by Rate Code'!$A$4:$A$50,0),MATCH('GSD(T)-1'!C29,'Present Base Rates by Rate Code'!$A$4:$V$4,0)) -> 8.7 | L29: =J29*K29 -> 44603951.7 | N29: 5126891 | O29: =K29*(1+$Q$6) -> 9.939366891 | P29: =N29*O29 -> 50958050.66 | S29: =N29 -> 5126891 | T29: =ROUND(O29*(1+$V$6),1) -> 9.9 | U29: =S29*T29 -> 50756220.9 | X29: 5126891 | Y29: =T29 -> 9.9 | Z29: =X29*Y29 -> 50756220.9 | AB29: =Y29/K29-1 -> 0.1379310345 | AC29: =Y29-K29 -> 1.2 | AF29: energy charges approved in past rate cases to limit impacts to low load factor customers.
A30: GSDT-1 - 70Transformation Credit | B30: General Service Demand-TOU (GSDT-1) | C30: Transformation Rider Credit ($/kW) | D30: 21 | E30: Transformation Credit | H30: =VLOOKUP($A30,'Billing Determinants (Units)'!$A$9:$B$1153,2,FALSE) -> 11213 | J30: 11213 | K30: =INDEX('Present Base Rates by Rate Code'!$A$4:$V$50,MATCH('GSD(T)-1'!$B30,'Present Base Rates by Rate Code'!$A$4:$A$50,0),MATCH('GSD(T)-1'!C30,'Present Base Rates by Rate Code'!$A$4:$V$4,0)) -> -0.3 | L30: =J30*K30 -> -3363.9 | N30: 11213 | O30: =$O$16 -> -0.23 | P30: =N30*O30 -> -2578.99 | Q30: =P30-L30 -> 784.91 | S30: =N30 -> 11213 | T30: =$O$16 -> -0.23 | U30: =S30*T30 -> -2578.99 | V30: =U30-P30 -> 0 | X30: 11213 | Y30: =+Y16 -> -0.23 | Z30: =X30*Y30 -> -2578.99 | AB30: =Y30/K30-1 -> -0.2333333333 | AC30: =Y30-K30 -> 0.07
A31: GSDT-1 - 70Subtotal | B31: General Service Demand-TOU (GSDT-1) | D31: 22 | E31: Subtotal | L31: =SUM(L25:L30) -> 87314309.58 | P31: =SUM(P25:P30) -> 99462567.46 | U31: =SUM(U25:U30) -> 99262790.03 | Z31: =SUM(Z25:Z30) -> 98209981.89 | AC31: =Z31/L31-1 -> 0.1247867887
A32: GSDT-1 - 70CDR Credit | B32: General Service Demand-TOU (GSDT-1) | D32: 23 | E32: CDR Credit
A33: GSDT-1 - 70Adder | B33: General Service Demand-TOU (GSDT-1) | C33: Commercial / Industrial Demand Rider (CDR) Adder per Customer | D33: 24 | E33: Adder | H33: =VLOOKUP($A33,'Billing Determinants (Units)'!$A$9:$B$1153,2,FALSE) -> 1958 | J33: 1958 | K33: =INDEX('Present Base Rates by Rate Code'!$A$4:$V$50,MATCH('GSD(T)-1'!$B33,'Present Base Rates by Rate Code'!$A$4:$A$50,0),MATCH('GSD(T)-1'!C33,'Present Base Rates by Rate Code'!$A$4:$V$4,0)) -> 84.31 | L33: =J33*K33 -> 165078.98 | N33: 1958 | O33: =$O$19 -> 100 | P33: =N33*O33 -> 195800 | Q33: =P33-L33 -> 30721.02 | S33: =N33 -> 1958 | T33: =$O$19 -> 100 | U33: =S33*T33 -> 195800 | V33: =U33-P33 -> 0 | X33: =J33 -> 1958 | Y33: =Y19 -> 100 | Z33: =X33*Y33 -> 195800 | AB33: =Y33/K33-1 -> 0.1860989206 | AC33: =Y33-K33 -> 15.69
A34: GSDT-1 - 70Credit | B34: General Service Demand-TOU (GSDT-1) | C34: Commercial / Industrial Demand Rider Credit (CDR) ($/kW) | D34: 25 | E34: Credit | H34: =VLOOKUP($A34,'Billing Determinants (Units)'!$A$9:$B$1153,2,FALSE) -> 578746.3646 | J34: 578746.3646 | K34: =INDEX('Present Base Rates by Rate Code'!$A$4:$V$50,MATCH('GSD(T)-1'!$B34,'Present Base Rates by Rate Code'!$A$4:$A$50,0),MATCH('GSD(T)-1'!C34,'Present Base Rates by Rate Code'!$A$4:$V$4,0)) -> -8.2 | L34: =J34*K34 -> -4745720.189 | N34: 578746.3646 | O34: =$O$20 -> -5.26 | P34: =N34*O34 -> -3044205.878 | Q34: =P34-L34 -> 1701514.312 | S34: =N34 -> 578746.3646 | T34: =$O$20 -> -5.26 | U34: =S34*T34 -> -3044205.878 | V34: =U34-P34 -> 0 | X34: =J34 -> 578746.3646 | Y34: =Y20 -> -5.26 | Z34: =X34*Y34 -> -3044205.878 | AB34: =Y34/K34-1 -> -0.3585365854 | AC34: =Y34-K34 -> 2.94
A35: Total | B35: General Service Demand-TOU (GSDT-1) | D35: 26 | E35: Total | L35: =SUM(L31:L34) -> 82733668.37 | P35: =SUM(P31:P34) -> 96614161.58 | U35: =SUM(U31:U34) -> 96414384.15 | Z35: =SUM(Z31:Z34) -> 95361576.01 | AC35: =Z35/L35-1 -> 0.1526332373
D36: 27
A37: RATE SCHEDULE HLFT - 170 | D37: 28 | E37: RATE SCHEDULE HLFT - 170
D38: 29
A39: HLFT - 170Customer | B39: High Load Factor-TOU (21 - 499 kW) | C39: Customer Charge | D39: 30 | E39: Customer | H39: =VLOOKUP($A39,'Billing Determinants (Units)'!$A$9:$B$1153,2,FALSE) -> 10448 | J39: 10448 | K39: =INDEX('Present Base Rates by Rate Code'!$A$4:$V$50,MATCH('GSD(T)-1'!$B39,'Present Base Rates by Rate Code'!$A$4:$A$50,0),MATCH('GSD(T)-1'!C39,'Present Base Rates by Rate Code'!$A$4:$V$4,0)) -> 26.97 | L39: =J39*K39 -> 281782.56 | N39: 10448 | O39: =O25 -> 25 | P39: =N39*O39 -> 261200 | Q39: =P39-L39 -> -20582.56 | S39: =N39 -> 10448 | T39: =$T$25 -> 25 | U39: =S39*T39 -> 261200 | V39: =U39-P39 -> 0 | X39: =J39 -> 10448 | Y39: =Y25 -> 25 | Z39: =X39*Y39 -> 261200 | AB39: =Y39/K39-1 -> -0.0730441231 | AC39: =Y39-K39 -> -1.97
A40: HLFT - 170Non-Fuel Energy - On Peak | B40: High Load Factor-TOU (21 - 499 kW) | C40: On-Peak Energy Charge $/kWh | D40: 31 | E40: Non-Fuel Energy - On Peak | H40: =VLOOKUP($A40,'Billing Determinants (Units)'!$A$9:$B$1153,2,FALSE) -> 269003112 | J40: 269003112 | K40: =INDEX('Present Base Rates by Rate Code'!$A$4:$V$50,MATCH('GSD(T)-1'!$B40,'Present Base Rates by Rate Code'!$A$4:$A$50,0),MATCH('GSD(T)-1'!C40,'Present Base Rates by Rate Code'!$A$4:$V$4,0)) -> 0.01617 | L40: 4349780.321 | N40: 269003112 | O40: =K40*(1+$Q$6) -> 0.01847351295 | P40: 4969432.472 | S40: 269003112 | T40: =ROUND(O40*(1+$V$6),5) -> 0.01847 | U40: 4968487.479 | X40: 269003112 | Y40: =J119 -> 0.01923 | Z40: 5172929.844 | AB40: 0.1892393321 | AC40: 0.00306
A41: HLFT - 170Non-Fuel Energy - Off Peak | B41: High Load Factor-TOU (21 - 499 kW) | C41: Off-Peak Energy Charge $/kWh | D41: 32 | E41: Non-Fuel Energy - Off Peak | H41: =VLOOKUP($A41,'Billing Determinants (Units)'!$A$9:$B$1153,2,FALSE) -> 820226025 | J41: 820226025 | K41: =INDEX('Present Base Rates by Rate Code'!$A$4:$V$50,MATCH('GSD(T)-1'!$B41,'Present Base Rates by Rate Code'!$A$4:$A$50,0),MATCH('GSD(T)-1'!C41,'Present Base Rates by Rate Code'!$A$4:$V$4,0)) -> 0.01045 | L41: 8571361.961 | N41: 820226025 | O41: =K41*(1+$Q$6) -> 0.01193866483 | P41: 9792403.596 | S41: 820226025 | T41: =ROUND(O41*(1+$V$6),5) -> 0.01194 | U41: 9793498.738 | X41: 820226025 | Y41: =H120 -> 0.01194 | Z41: 9793498.738 | AB41: 0.1425837321 | AC41: 0.00149
A42: HLFT - 170Demand - Maximum | B42: High Load Factor-TOU (21 - 499 kW) | C42: Maximum Demand Charge $/kW | D42: 33 | E42: Demand - Maximum | H42: =VLOOKUP($A42,'Billing Determinants (Units)'!$A$9:$B$1153,2,FALSE) -> 1912575 | J42: 1912575 | K42: =INDEX('Present Base Rates by Rate Code'!$A$4:$V$50,MATCH('GSD(T)-1'!$B42,'Present Base Rates by Rate Code'!$A$4:$A$50,0),MATCH('GSD(T)-1'!C42,'Present Base Rates by Rate Code'!$A$4:$V$4,0)) -> 2.14 | L42: 4092910.5 | N42: 1912575 | O42: =K42*(1+$Q$6) -> 2.444855764 | P42: 4675970.013 | S42: 1912575 | T42: =ROUND(O42*(1+$V$6),1) -> 2.4 | U42: 4590180 | X42: 1912575 | Y42: =ROUND(T42,1) -> 2.4 | Z42: 4590180 | AB42: 0.1214953271 | AC42: 0.26
A43: HLFT - 170Demand - On-Peak | B43: High Load Factor-TOU (21 - 499 kW) | C43: On-Peak Demand Charge $/kW | D43: 34 | E43: Demand - On-Peak | H43: =VLOOKUP($A43,'Billing Determinants (Units)'!$A$9:$B$1153,2,FALSE) -> 1757749 | J43: 1757749 | K43: =INDEX('Present Base Rates by Rate Code'!$A$4:$V$50,MATCH('GSD(T)-1'!$B43,'Present Base Rates by Rate Code'!$A$4:$A$50,0),MATCH('GSD(T)-1'!C43,'Present Base Rates by Rate Code'!$A$4:$V$4,0)) -> 10.27 | L43: 18052082.23 | N43: 1757749 | O43: =K43*(1+$Q$6) -> 11.73302276 | P43: 20623709.01 | S43: 1757749 | T43: =ROUND(O43*(1+$V$6),1) -> 11.7 | U43: 20565663.3 | X43: 1757749 | Y43: =ROUND(T43,1) -> 11.7 | Z43: 20565663.3 | AB43: 0.1392405063 | AC43: 1.43
A44: HLFT - 170Transformation Credit | B44: High Load Factor-TOU (21 - 499 kW) | C44: Transformation Rider Credit ($/kW) | D44: 35 | E44: Transformation Credit | H44: =VLOOKUP($A44,'Billing Determinants (Units)'!$A$9:$B$1153,2,FALSE) -> 6525 | J44: 6525 | K44: =INDEX('Present Base Rates by Rate Code'!$A$4:$V$50,MATCH('GSD(T)-1'!$B44,'Present Base Rates by Rate Code'!$A$4:$A$50,0),MATCH('GSD(T)-1'!C44,'Present Base Rates by Rate Code'!$A$4:$V$4,0)) -> -0.3 | L44: -1957.5 | N44: 6525 | O44: =$O$16 -> -0.23 | P44: -1500.75 | Q44: =P44-L44 -> 456.75 | S44: 6525 | T44: =$O$16 -> -0.23 | U44: -1500.75 | V44: =U44-P44 -> 0 | X44: 6525 | Y44: =Y16 -> -0.23 | Z44: -1500.75 | AB44: -0.2333333333 | AC44: 0.07
A45: HLFT - 170Subtotal | B45: High Load Factor-TOU (21 - 499 kW) | D45: 36 | E45: Subtotal | L45: =SUM(L39:L44) -> 35345960.07 | P45: =SUM(P39:P44) -> 40321214.35 | U45: =SUM(U39:U44) -> 40177528.77 | Z45: =SUM(Z39:Z44) -> 40381971.13 | AC45: =Z45/L45-1 -> 0.142477699
A46: HLFT - 170CDR Credit | B46: High Load Factor-TOU (21 - 499 kW) | D46: 37 | E46: CDR Credit
A47: HLFT - 170Adder | B47: High Load Factor-TOU (21 - 499 kW) | C47: Commercial / Industrial Demand Rider (CDR) Adder per Customer | D47: 38 | E47: Adder | H47: =VLOOKUP($A47,'Billing Determinants (Units)'!$A$9:$B$1153,2,FALSE) -> 352 | J47: 352 | K47: =INDEX('Present Base Rates by Rate Code'!$A$4:$V$50,MATCH('GSD(T)-1'!$B47,'Present Base Rates by Rate Code'!$A$4:$A$50,0),MATCH('GSD(T)-1'!C47,'Present Base Rates by Rate Code'!$A$4:$V$4,0)) -> 84.31 | L47: =J47*K47 -> 29677.12 | N47: 352 | O47: =$O$19 -> 100 | P47: =N47*O47 -> 35200 | Q47: =P47-L47 -> 5522.88 | S47: =N47 -> 352 | T47: =$O$19 -> 100 | U47: =S47*T47 -> 35200 | V47: =U47-P47 -> 0 | X47: =J47 -> 352 | Y47: =Y19 -> 100 | Z47: =X47*Y47 -> 35200 | AB47: =Y47/K47-1 -> 0.1860989206 | AC47: =Y47-K47 -> 15.69
A48: HLFT - 170Credit | B48: High Load Factor-TOU (21 - 499 kW) | C48: Commercial / Industrial Demand Rider Credit (CDR) ($/kW) | D48: 39 | E48: Credit | H48: =VLOOKUP($A48,'Billing Determinants (Units)'!$A$9:$B$1153,2,FALSE) -> 121378.308 | J48: 121378.308 | K48: =INDEX('Present Base Rates by Rate Code'!$A$4:$V$50,MATCH('GSD(T)-1'!$B48,'Present Base Rates by Rate Code'!$A$4:$A$50,0),MATCH('GSD(T)-1'!C48,'Present Base Rates by Rate Code'!$A$4:$V$4,0)) -> -8.2 | L48: =J48*K48 -> -995302.1252 | N48: 121378.308 | O48: =$O$20 -> -5.26 | P48: =N48*O48 -> -638449.8998 | Q48: =P48-L48 -> 356852.2254 | S48: =N48 -> 121378.308 | T48: =$O$20 -> -5.26 | U48: =S48*T48 -> -638449.8998 | V48: =U48-P48 -> 0 | X48: =J48 -> 121378.308 | Y48: =Y20 -> -5.26 | Z48: =X48*Y48 -> -638449.8998 | AB48: =Y48/K48-1 -> -0.3585365854 | AC48: =Y48-K48 -> 2.94
A49: Total | B49: High Load Factor-TOU (21 - 499 kW) | D49: 40 | E49: Total | L49: =SUM(L45:L48) -> 34380335.07 | P49: =SUM(P45:P48) -> 39717964.45 | U49: =SUM(U45:U48) -> 39574278.87 | Z49: =SUM(Z45:Z48) -> 39778721.23 | AC49: =Z49/L49-1 -> 0.1570195914
D50: 41
A51: RATE SCHEDULE SDTR - 270 | D51: 42 | E51: RATE SCHEDULE SDTR - 270
D52: 43 | N52: Option A - GSD-1 | S52: Option A - GSD-1 | X52: Option A - GSD-1
D53: 44
A54: SDTR - 270Customer | B54: Seasonal Demand TOU Rider (SDTR) (21-499 kW) Option A Summer | C54: Customer Charge | D54: 45 | E54: Customer | H54: =VLOOKUP($A54,'Billing Determinants (Units)'!$A$9:$B$1153,2,FALSE) -> 21407 | J54: 21407 | K54: =INDEX('Present Base Rates by Rate Code'!$A$4:$V$50,MATCH('GSD(T)-1'!$B54,'Present Base Rates by Rate Code'!$A$4:$A$50,0),MATCH('GSD(T)-1'!C54,'Present Base Rates by Rate Code'!$A$4:$V$4,0)) -> 26.97 | L54: =J54*K54 -> 577346.79 | N54: =J54 -> 21407 | O54: =O25 -> 25 | P54: =N54*O54 -> 535175 | Q54: =P54-L54 -> -42171.79 | S54: =N54 -> 21407 | T54: =$T$25 -> 25 | U54: =S54*T54 -> 535175 | V54: =U54-P54 -> 0 | X54: =J54 -> 21407 | Y54: =T54 -> 25 | Z54: =X54*Y54 -> 535175 | AB54: =Y54/K54-1 -> -0.0730441231 | AC54: =Y54-K54 -> -1.97
A55: SDTR - 270Non-Fuel Energy - Seasonal On Peak | B55: Seasonal Demand TOU Rider (SDTR) (21-499 kW) Option A Summer | C55: On-Peak Energy Charge $/kWh | D55: 46 | E55: Non-Fuel Energy - Seasonal On Peak | H55: =VLOOKUP($A55,'Billing Determinants (Units)'!$A$9:$B$1153,2,FALSE) -> 23657000 | J55: 23657000 | K55: =INDEX('Present Base Rates by Rate Code'!$A$4:$V$50,MATCH('GSD(T)-1'!$B55,'Present Base Rates by Rate Code'!$A$4:$A$50,0),MATCH('GSD(T)-1'!C55,'Present Base Rates by Rate Code'!$A$4:$V$4,0)) -> 0.07278 | L55: 1721756.46 | N55: =J55 -> 23657000 | O55: =K55*(1+$Q$6) -> 0.08314794509 | P55: 1967030.937 | S55: =N55 -> 23657000 | T55: =ROUND(O55*(1+$V$6),5) -> 0.08315 | U55: 1967079.55 | X55: 23657000 | Y55: ='SDTR Workpaper'!C42 -> 0.08795 | Z55: 2080633.15 | AB55: 0.2084363836 | AC55: 0.01517
A56: SDTR - 270Non-Fuel Energy - Seasonal Off Peak | B56: Seasonal Demand TOU Rider (SDTR) (21-499 kW) Option A Summer | C56: Off-Peak Energy Charge $/kWh | D56: 47 | E56: Non-Fuel Energy - Seasonal Off Peak | H56: =VLOOKUP($A56,'Billing Determinants (Units)'!$A$9:$B$1153,2,FALSE) -> 249085556 | J56: 249085556 | K56: =INDEX('Present Base Rates by Rate Code'!$A$4:$V$50,MATCH('GSD(T)-1'!$B56,'Present Base Rates by Rate Code'!$A$4:$A$50,0),MATCH('GSD(T)-1'!C56,'Present Base Rates by Rate Code'!$A$4:$V$4,0)) -> 0.01371 | L56: 3414962.973 | N56: 249085556 | O56: =K56*(1+$Q$6) -> 0.01566307127 | P56: 3901444.817 | S56: 249085556 | T56: =ROUND(O56*(1+$V$6),5) -> 0.01566 | U56: 3900679.807 | X56: 249085556 | Y56: ='SDTR Workpaper'!C43 -> 0.01585 | Z56: 3948006.063 | AB56: 0.1560904449 | AC56: 0.00214
A57: SDTR - 270Non-Fuel Energy - Non-Seasonal | B57: Seasonal Demand TOU Rider (SDTR) (21-499 kW) Option A Winter | C57: Energy Charges $/kWh | D57: 48 | E57: Non-Fuel Energy - Non-Seasonal | H57: =VLOOKUP($A57,'Billing Determinants (Units)'!$A$9:$B$1153,2,FALSE) -> 515063630 | J57: 515063630 | K57: =INDEX('Present Base Rates by Rate Code'!$A$4:$V$50,MATCH('GSD(T)-1'!$B57,'Present Base Rates by Rate Code'!$A$4:$A$50,0),MATCH('GSD(T)-1'!C57,'Present Base Rates by Rate Code'!$A$4:$V$4,0)) -> 0.01934 | L57: 9961330.604 | N57: 515063630 | O57: =K57*(1+$Q$6) -> 0.02209509835 | P57: 11380381.56 | S57: 515063630 | T57: =ROUND(O57*(1+$V$6),5) -> 0.0221 | U57: 11382906.22 | X57: 515063630 | Y57: ='SDTR Workpaper'!C45 -> 0.02211 | Z57: 11388056.86 | AB57: 0.1432264736 | AC57: 0.00277
A58: SDTR - 270Demand - Seasonal On-Peak | B58: Seasonal Demand TOU Rider (SDTR) (21-499 kW) Option A Summer | C58: On-Peak Demand Charge $/kW | D58: 49 | E58: Demand - Seasonal On-Peak | H58: =VLOOKUP($A58,'Billing Determinants (Units)'!$A$9:$B$1153,2,FALSE) -> 722413 | J58: 722413 | K58: =INDEX('Present Base Rates by Rate Code'!$A$4:$V$50,MATCH('GSD(T)-1'!$B58,'Present Base Rates by Rate Code'!$A$4:$A$50,0),MATCH('GSD(T)-1'!C58,'Present Base Rates by Rate Code'!$A$4:$V$4,0)) -> 10.04 | L58: 7253026.52 | N58: 722413 | O58: =K58*(1+$Q$6) -> 11.47025788 | P58: 8286263.408 | S58: 722413 | T58: =ROUND(O58*(1+$V$6),1) -> 11.5 | U58: 8307749.5 | X58: 722413 | Y58: ='SDTR Workpaper'!C39 -> 10.9 | Z58: 7874301.7 | AB58: 0.08565737052 | AC58: 0.86
A59: SDTR - 270Demand - Non-Seasonal | B59: Seasonal Demand TOU Rider (SDTR) (21-499 kW) Option A Winter | C59: Demand Charge $/kW | D59: 50 | E59: Demand - Non-Seasonal | H59: =VLOOKUP($A59,'Billing Determinants (Units)'!$A$9:$B$1153,2,FALSE) -> 2024927 | J59: 2024927 | K59: =INDEX('Present Base Rates by Rate Code'!$A$4:$V$50,MATCH('GSD(T)-1'!$B59,'Present Base Rates by Rate Code'!$A$4:$A$50,0),MATCH('GSD(T)-1'!C59,'Present Base Rates by Rate Code'!$A$4:$V$4,0)) -> 8.36 | L59: 16928389.72 | N59: 2024927 | O59: =K59*(1+$Q$6) -> 9.550931863 | P59: 19339939.8 | S59: 2024927 | T59: =ROUND(O59*(1+$V$6),1) -> 9.6 | U59: 19439299.2 | X59: 2024927 | Y59: ='SDTR Workpaper'!C40 -> 9.5 | Z59: 19236806.5 | AB59: 0.1363636364 | AC59: 1.14
A60: SDTR - 270Transformation Credit | B60: Seasonal Demand TOU Rider (SDTR) (21-499 kW) Option A Summer | C60: Transformation Rider Credit ($/kW) | D60: 51 | E60: Transformation Credit | H60: =VLOOKUP($A60,'Billing Determinants (Units)'!$A$9:$B$1153,2,FALSE) -> 5970 | J60: 5970 | K60: =INDEX('Present Base Rates by Rate Code'!$A$4:$V$50,MATCH('GSD(T)-1'!$B60,'Present Base Rates by Rate Code'!$A$4:$A$50,0),MATCH('GSD(T)-1'!C60,'Present Base Rates by Rate Code'!$A$4:$V$4,0)) -> -0.3 | L60: -1791 | N60: 5970 | O60: =$O$16 -> -0.23 | P60: -1373.1 | Q60: =P60-L60 -> 417.9 | S60: 5970 | T60: =$O$16 -> -0.23 | U60: -1373.1 | V60: =U60-P60 -> 0 | X60: 5970 | Y60: =Y16 -> -0.23 | Z60: -1373.1 | AB60: -0.2333333333 | AC60: 0.07
A61: SDTR - 270Subtotal | B61: Seasonal Demand TOU Rider (SDTR) (21-499 kW) Option A Summer | D61: 52 | E61: Subtotal | L61: =SUM(L54:L60) -> 39855022.07 | P61: =SUM(P54:P60) -> 45408862.43 | U61: =SUM(U54:U60) -> 45531516.18 | Z61: =SUM(Z54:Z60) -> 45061606.17 | AC61: =Z61/L61-1 -> 0.1306380936
A62: SDTR - 270CDR Credit | B62: Seasonal Demand TOU Rider (SDTR) (21-499 kW) Option A Summer | D62: 53 | E62: CDR Credit
A63: SDTR - 270Adder | B63: Seasonal Demand TOU Rider (SDTR) (21-499 kW) Option A Summer | C63: Commercial / Industrial Demand Rider (CDR) Adder per Customer | D63: 54 | E63: Adder | J63: 0 | K63: =INDEX('Present Base Rates by Rate Code'!$A$4:$V$50,MATCH('GSD(T)-1'!$B63,'Present Base Rates by Rate Code'!$A$4:$A$50,0),MATCH('GSD(T)-1'!C63,'Present Base Rates by Rate Code'!$A$4:$V$4,0)) -> 84.31 | L63: =J63*K63 -> 0 | N63: 0 | O63: =$O$19 -> 100 | P63: =N63*O63 -> 0 | Q63: =P63-L63 -> 0 | S63: =N63 -> 0 | T63: =$O$19 -> 100 | U63: =S63*T63 -> 0 | V63: =U63-P63 -> 0 | X63: =J63 -> 0 | Y63: =Y19 -> 100 | Z63: =X63*Y63 -> 0 | AB63: =Y63/K63-1 -> 0.1860989206 | AC63: =Y63-K63 -> 15.69
A64: SDTR - 270Credit | B64: Seasonal Demand TOU Rider (SDTR) (21-499 kW) Option A Summer | C64: Commercial / Industrial Demand Rider Credit (CDR) ($/kW) | D64: 55 | E64: Credit | J64: 0 | K64: =INDEX('Present Base Rates by Rate Code'!$A$4:$V$50,MATCH('GSD(T)-1'!$B64,'Present Base Rates by Rate Code'!$A$4:$A$50,0),MATCH('GSD(T)-1'!C64,'Present Base Rates by Rate Code'!$A$4:$V$4,0)) -> -8.2 | L64: =J64*K64 -> 0 | N64: 0 | O64: =$O$20 -> -5.26 | P64: =N64*O64 -> 0 | Q64: =P64-L64 -> 0 | S64: =N64 -> 0 | T64: =$O$20 -> -5.26 | U64: =S64*T64 -> 0 | V64: =U64-P64 -> 0 | X64: =J64 -> 0 | Y64: =Y20 -> -5.26 | Z64: =X64*Y64 -> 0 | AB64: =Y64/K64-1 -> -0.3585365854 | AC64: =Y64-K64 -> 2.94
A65: Total | B65: Seasonal Demand TOU Rider (SDTR) (21-499 kW) Option A Summer | D65: 56 | E65: Total | J65: 0 | L65: =SUM(L61:L64) -> 39855022.07 | P65: =SUM(P61:P64) -> 45408862.43 | U65: =SUM(U61:U64) -> 45531516.18 | Z65: =SUM(Z61:Z64) -> 45061606.17 | AC65: =Z65/L65-1 -> 0.1306380936
D66: 57
A67: RATE SCHEDULE SDTR - 370 | D67: 58 | E67: RATE SCHEDULE SDTR - 370
D68: 59 | N68: Option B - GSDT-1 | S68: Option B - GSDT-1 | X68: Option B - GSDT-1
D69: 60
A70: SDTR - 370Customer | B70: Seasonal Demand TOU Rider (SDTR) (21-499 kW) Option B Summer | C70: Customer Charge | D70: 61 | E70: Customer | H70: =VLOOKUP($A70,'Billing Determinants (Units)'!$A$9:$B$1153,2,FALSE) -> 1265 | J70: 1265 | K70: =INDEX('Present Base Rates by Rate Code'!$A$4:$V$50,MATCH('GSD(T)-1'!$B70,'Present Base Rates by Rate Code'!$A$4:$A$50,0),MATCH('GSD(T)-1'!C70,'Present Base Rates by Rate Code'!$A$4:$V$4,0)) -> 26.97 | L70: =J70*K70 -> 34117.05 | N70: =J70 -> 1265 | O70: =O25 -> 25 | P70: =N70*O70 -> 31625 | Q70: =P70-L70 -> -2492.05 | S70: =N70 -> 1265 | T70: =$T$25 -> 25 | U70: =S70*T70 -> 31625 | V70: =U70-P70 -> 0 | X70: =J70 -> 1265 | Y70: =+$Y$25 -> 25 | Z70: =X70*Y70 -> 31625 | AB70: =Y70/K70-1 -> -0.0730441231 | AC70: =Y70-K70 -> -1.97
A71: SDTR - 370Non-Fuel Energy - Seasonal On Peak | B71: Seasonal Demand TOU Rider (SDTR) (21-499 kW) Option B Summer | C71: On-Peak Energy Charge $/kWh | D71: 62 | E71: Non-Fuel Energy - Seasonal On Peak | H71: =VLOOKUP($A71,'Billing Determinants (Units)'!$A$9:$B$1153,2,FALSE) -> 778312 | J71: 778312 | K71: =INDEX('Present Base Rates by Rate Code'!$A$4:$V$50,MATCH('GSD(T)-1'!$B71,'Present Base Rates by Rate Code'!$A$4:$A$50,0),MATCH('GSD(T)-1'!C71,'Present Base Rates by Rate Code'!$A$4:$V$4,0)) -> 0.07278 | L71: 56645.54736 | N71: =J71 -> 778312 | O71: =K71*(1+$Q$6) -> 0.08314794509 | P71: 64715.04344 | S71: =N71 -> 778312 | T71: =ROUND(O71*(1+$V$6),5) -> 0.08315 | U71: 64716.6428 | X71: 778312 | Y71: ='SDTR Workpaper'!C42 -> 0.08795 | Z71: 68452.5404 | AB71: 0.2084363836 | AC71: 0.01517
A72: SDTR - 370Non-Fuel Energy - Seasonal Off Peak | B72: Seasonal Demand TOU Rider (SDTR) (21-499 kW) Option B Summer | C72: Off-Peak Energy Charge $/kWh | D72: 63 | E72: Non-Fuel Energy - Seasonal Off Peak | H72: =VLOOKUP($A72,'Billing Determinants (Units)'!$A$9:$B$1153,2,FALSE) -> 7902633 | J72: 7902633 | K72: =INDEX('Present Base Rates by Rate Code'!$A$4:$V$50,MATCH('GSD(T)-1'!$B72,'Present Base Rates by Rate Code'!$A$4:$A$50,0),MATCH('GSD(T)-1'!C72,'Present Base Rates by Rate Code'!$A$4:$V$4,0)) -> 0.01371 | L72: 108345.0984 | N72: 7902633 | O72: 0.01566307127 | P72: 123779.5039 | S72: 7902633 | T72: =ROUND(O72*(1+$V$6),5) -> 0.01566 | U72: 123755.2328 | X72: 7902633 | Y72: ='SDTR Workpaper'!C43 -> 0.01585 | Z72: 125256.733 | AB72: 0.1560904449 | AC72: 0.00214
A73: SDTR - 370Non-Fuel Energy - Non-Seasonal On Peak | B73: Seasonal Demand TOU Rider (SDTR) (21-499 kW) Option B Winter | C73: On-Peak Energy Charge $/kWh | D73: 64 | E73: Non-Fuel Energy - Non-Seasonal On Peak | H73: =VLOOKUP($A73,'Billing Determinants (Units)'!$A$9:$B$1153,2,FALSE) -> 2694354 | J73: 2694354 | K73: =INDEX('Present Base Rates by Rate Code'!$A$4:$V$50,MATCH('GSD(T)-1'!$B73,'Present Base Rates by Rate Code'!$A$4:$A$50,0),MATCH('GSD(T)-1'!C73,'Present Base Rates by Rate Code'!$A$4:$V$4,0)) -> 0.03881 | L73: 104567.8787 | N73: 2694354 | O73: 0.04433871598 | P73: 119464.1968 | S73: 2694354 | T73: =ROUND(O73*(1+$V$6),5) -> 0.04434 | U73: 119467.6564 | X73: 2694354 | Y73: ='SDTR Workpaper'!C46 -> 0.05023 | Z73: 135337.4014 | AB73: 0.2942540582 | AC73: 0.01142
A74: SDTR - 370Non-Fuel Energy - Non-Seasonal Off Peak | B74: Seasonal Demand TOU Rider (SDTR) (21-499 kW) Option B Winter | C74: Off-Peak Energy Charge $/kWh | D74: 65 | E74: Non-Fuel Energy - Non-Seasonal Off Peak | H74: =VLOOKUP($A74,'Billing Determinants (Units)'!$A$9:$B$1153,2,FALSE) -> 12102436 | J74: 12102436 | K74: =INDEX('Present Base Rates by Rate Code'!$A$4:$V$50,MATCH('GSD(T)-1'!$B74,'Present Base Rates by Rate Code'!$A$4:$A$50,0),MATCH('GSD(T)-1'!C74,'Present Base Rates by Rate Code'!$A$4:$V$4,0)) -> 0.01371 | L74: 165924.3976 | N74: 12102436 | O74: 0.01566307127 | P74: 189561.3176 | S74: 12102436 | T74: =ROUND(O74*(1+$V$6),5) -> 0.01566 | U74: 189524.1478 | X74: 12102436 | Y74: ='SDTR Workpaper'!C47 -> 0.01585 | Z74: 191823.6106 | AB74: 0.1560904449 | AC74: 0.00214
A75: SDTR - 370Demand - Seasonal On-Peak | B75: Seasonal Demand TOU Rider (SDTR) (21-499 kW) Option B Summer | C75: On-Peak Demand Charge $/kW | D75: 66 | E75: Demand - Seasonal On-Peak | H75: =VLOOKUP($A75,'Billing Determinants (Units)'!$A$9:$B$1153,2,FALSE) -> 20353 | J75: 20353 | K75: =INDEX('Present Base Rates by Rate Code'!$A$4:$V$50,MATCH('GSD(T)-1'!$B75,'Present Base Rates by Rate Code'!$A$4:$A$50,0),MATCH('GSD(T)-1'!C75,'Present Base Rates by Rate Code'!$A$4:$V$4,0)) -> 10.04 | L75: 204344.12 | N75: 20353 | O75: 11.47025788 | P75: 233454.1587 | S75: 20353 | T75: =ROUND(O75*(1+$V$6),1) -> 11.5 | U75: 234059.5 | X75: 20353 | Y75: ='SDTR Workpaper'!C39 -> 10.9 | Z75: 221847.7 | AB75: 0.08565737052 | AC75: 0.86
A76: SDTR - 370Demand - Non-Seasonal On Peak | B76: Seasonal Demand TOU Rider (SDTR) (21-499 kW) Option B Winter | C76: On-Peak Demand Charge $/kW | D76: =D75+1 -> 67 | E76: Demand - Non-Seasonal On Peak | H76: =VLOOKUP($A76,'Billing Determinants (Units)'!$A$9:$B$1153,2,FALSE) -> 45797 | J76: 45797 | K76: =INDEX('Present Base Rates by Rate Code'!$A$4:$V$50,MATCH('GSD(T)-1'!$B76,'Present Base Rates by Rate Code'!$A$4:$A$50,0),MATCH('GSD(T)-1'!C76,'Present Base Rates by Rate Code'!$A$4:$V$4,0)) -> 8.36 | L76: 382862.92 | N76: 45797 | O76: 9.550931863 | P76: 437404.0265 | S76: 45797 | T76: =ROUND(O76*(1+$V$6),1) -> 9.6 | U76: 439651.2 | X76: 45797 | Y76: ='SDTR Workpaper'!C40 -> 9.5 | Z76: 435071.5 | AB76: 0.1363636364 | AC76: 1.14
A77: SDTR - 370Transformation Credit | B77: Seasonal Demand TOU Rider (SDTR) (21-499 kW) Option B Summer | C77: Transformation Rider Credit ($/kW) | D77: 68 | E77: Transformation Credit | H77: 0 | J77: =H77+I77 -> 0 | K77: =INDEX('Present Base Rates by Rate Code'!$A$4:$V$50,MATCH('GSD(T)-1'!$B77,'Present Base Rates by Rate Code'!$A$4:$A$50,0),MATCH('GSD(T)-1'!C77,'Present Base Rates by Rate Code'!$A$4:$V$4,0)) -> -0.3 | L77: 0 | N77: 0 | O77: =$O$16 -> -0.23 | P77: 0 | Q77: =P77-L77 -> 0 | S77: 0 | T77: =$O$16 -> -0.23 | U77: 0 | V77: =U77-P77 -> 0 | X77: 0 | Y77: =+Y16 -> -0.23 | Z77: 0 | AB77: -0.2333333333 | AC77: 0.07
A78: SDTR - 370Subtotal | B78: Seasonal Demand TOU Rider (SDTR) (21-499 kW) Option B Summer | D78: 69 | E78: Subtotal | L78: =SUM(L70:L77) -> 1056807.012 | P78: =SUM(P70:P77) -> 1200003.247 | U78: =SUM(U70:U77) -> 1202799.38 | Z78: =SUM(Z70:Z77) -> 1209414.485 | AC78: =Z78/L78-1 -> 0.1444042967
A79: SDTR - 370CDR Credit | B79: Seasonal Demand TOU Rider (SDTR) (21-499 kW) Option B Summer | D79: 70 | E79: CDR Credit
A80: SDTR - 370Adder | B80: Seasonal Demand TOU Rider (SDTR) (21-499 kW) Option B Summer | C80: Commercial / Industrial Demand Rider (CDR) Adder per Customer | D80: 71 | E80: Adder | H80: 0 | J80: =H80+I80 -> 0 | K80: =INDEX('Present Base Rates by Rate Code'!$A$4:$V$50,MATCH('GSD(T)-1'!$B80,'Present Base Rates by Rate Code'!$A$4:$A$50,0),MATCH('GSD(T)-1'!C80,'Present Base Rates by Rate Code'!$A$4:$V$4,0)) -> 84.31 | L80: =J80*K80 -> 0 | N80: 0 | O80: =$O$19 -> 100 | P80: =N80*O80 -> 0 | Q80: =P80-L80 -> 0 | S80: =N80 -> 0 | T80: =$O$19 -> 100 | U80: =S80*T80 -> 0 | V80: =U80-P80 -> 0 | X80: =J80 -> 0 | Y80: =Y19 -> 100 | Z80: =X80*Y80 -> 0
A81: SDTR - 370Credit | B81: Seasonal Demand TOU Rider (SDTR) (21-499 kW) Option B Summer | C81: Commercial / Industrial Demand Rider Credit (CDR) ($/kW) | D81: 72 | E81: Credit | H81: 0 | J81: =H81+I81 -> 0 | K81: =INDEX('Present Base Rates by Rate Code'!$A$4:$V$50,MATCH('GSD(T)-1'!$B81,'Present Base Rates by Rate Code'!$A$4:$A$50,0),MATCH('GSD(T)-1'!C81,'Present Base Rates by Rate Code'!$A$4:$V$4,0)) -> -8.2 | L81: =J81*K81 -> 0 | N81: 0 | O81: =$O$20 -> -5.26 | P81: =N81*O81 -> 0 | Q81: =P81-L81 -> 0 | S81: =N81 -> 0 | T81: =$O$20 -> -5.26 | U81: =S81*T81 -> 0 | V81: =U81-P81 -> 0 | X81: =J81 -> 0 | Y81: =Y20 -> -5.26 | Z81: =X81*Y81 -> 0
D82: 73 | E82: Total | L82: =SUM(L78:L81) -> 1056807.012 | P82: =SUM(P78:P81) -> 1200003.247 | U82: =SUM(U78:U81) -> 1202799.38 | Z82: =SUM(Z78:Z81) -> 1209414.485 | AC82: =Z82/L82-1 -> 0.1444042967
D83: 74
D84: 75 | E84: TOTALS | L84: =L21+L35+L49+L65+L82 -> 1131512712 | P84: =P21+P35+P49+P65+P82 -> 1297563327 | Q84: =SUM(Q12:Q82) -> 7787102.189 | U84: =U21+U35+U49+U65+U82 -> 1295042338 | V84: =SUM(V12:V82) -> 0 | Z84: =Z21+Z35+Z49+Z65+Z82 -> 1293946450
D85: 76
D86: 77 | N86: a | O86: target revenue | P86: =('E-8 Parity Analysis Final'!W20*1000)+L84 -> 1297563327 | S86: a | T86: target revenue | U86: =P86 -> 1297563327 | Y86: Increase | Z86: =+Z84-L84 -> 162433738.7
D87: 78 | N87: b | O87: Present revenue | P87: =L84 -> 1131512712 | S87: b | T87: Present revenue | U87: =P84 -> 1297563327 | Y87: Target | Z87: =P95 -> 166050615
D88: 79 | N88: c | O88: Proposed Increase | P88: =P86-P87 -> 166050615 | S88: c | T88: Proposed Increase | U88: =U86-U87 -> 0 | Y88: Difference | Z88: =+Z86-Z87 -> -3616876.28
D89: 80 | E89: Revenue Neutrality | N89: d | O89: Override Revenue | P89: =Q84 -> 7787102.189 | S89: d | T89: Override Revenue | U89: =V84 -> 0 | Y89: adjustment | Z89: 1e-05
D90: 81 | N90: e | O90: Increase of Non-Override Revenue | P90: =P88-P89 -> 158263512.8 | S90: e | T90: Increase of Non-Override Revenue | U90: =U88-U89 -> 0
D91: 82 | E91: TOU Off-Peak Energy | H91: =Y28 -> 0.01194 | N91: f | O91: Non-Override Revenue | P91: =L14+L15+L27+L28+L40+L41+L42+L43+L55+L56+L57+L58+L59+L71+L72+L73+L74+L75+L76+L29 -> 1110964454 | S91: f | T91: Non-Override Revenue | U91: =P14+P15+P27+P28+P40+P41+P42+P43+P55+P56+P57+P58+P59+P71+P72+P73+P74+P75+P76+P29 -> 1269227967
D92: 83 | N92: g | O92: adjustment factor | P92: =P90/P91 -> 0.1424559645 | S92: g | T92: adjustment factor | U92: =U90/U91 -> 0 | Y92: Per UI | Z92: 1354988885
D93: 84 | Y93: Difference | Z93: =Z84-Z92 -> -61042434.63
D94: 85 | E94: TOU revenue neutral calculation | O94: Increase | P94: =P84-L84 -> 166050615 | T94: Increase | U94: =U84-P84 -> -2520988.394
D95: 86 | E95: on pk class average per Load Research Study | F95: 0.3068908411 | H95: Energy Revenue | O95: Target Increase | P95: =P88 -> 166050615 | T95: Target Increase | U95: =U88 -> 0
D96: 87 | E96: on peak | F96: =+SUM($X$27:$X$28)*$F$95 -> 720468217.9 | G96: =ROUND((H99-H97)/F96,5) -> 0.04508 | H96: =+F96*G96 -> 32478707.26 | I96: =ROUND(IF(G96>G97,G96,H98/F99),5) -> 0.04508 | O96: Difference | P96: =P94-P95 -> 0 | T96: Difference | U96: =U94-U95 -> -2520988.394
D97: 88 | E97: off peak | F97: =+SUM($X$27:$X$28)-$F$96 -> 1627168536 | G97: =H91 -> 0.01194 | H97: =+F97*G97 -> 19428392.32 | I97: =ROUND(IF(G96>G97,G97,H98/F99),5) -> 0.01194
D98: 89 | E98: total at class on-pk | H98: =SUM(H96:H97) -> 51907099.59
D99: 90 | E99: total rev required at GSD1 rates | F99: =SUM(F96:F97) -> 2347636754 | G99: =Y14 -> 0.02211 | H99: =G99*F99 -> 51906248.63
D100: 91 | L100: Step 1 - Set customer charge and CDR adder (if applicable) based on customer charge workpaper; transformation credit (if applicable) based on transformer credit workpaper; curtailment credit (if applicable) based on present curtailment credit;
D101: 92 | E101: Difference | H101: =+H98-H99 -> 850.9541555 | L101: and CDR credit (if applicable) based on CILC/CDR credit workpaper. These revenues/credits become "override revenues". Exclude override revenue from % increase calculations and apply the percent increase to only non-override rates.
D102: 93 | L102: Step 2 - Round results of Step 1
D103: 94 | L103: Step 3 - Calculate revenue neutral and/or rounding adjustment. For rate classes with SDTR, refer to SDTR workpaper.
D104: 95 | E104: HLFT Revenue at GSD-1 rate and target Load Factor | L104: Step 4 - Compare to Unit Costs for reasonableness. Depending on changes in other rates (Customer, Demand, etc.), unit costs may differ from final energy rates to achieve target revenues.
D105: 96 | E105: Target Load Factor | G105: 0.7
D106: 97 | E106: Average Class On-Peak % | G106: =+F95 -> 0.3068908411 | H106: =100%-G106 -> 0.6931091589
D107: 98 | H107: Parent rates | I107: =G108*H108 -> 261200
D108: 99 | E108: accounts | G108: =+$X$39 -> 10448 | H108: =+$Y$12 -> 25 | I108: =G109*H109 -> 17401715.1
D109: 100 | E109: kW | F109: on-peak kw | G109: =+$X$43 -> 1757749 | H109: =+$Y$15 -> 9.9 | I109: =G110*H110 -> 21608673.99
D110: 101 | E110: kWh | F110: max pk kw *8760*70% | G110: =($X$42/12)*8760*$G$105 -> 977325825 | H110: =+$Y$14 -> 0.02211 | I110: =SUM(I107:I109) -> 39271589.09
D111: 102 | E111: Total Revenue required | I111: =+SUM(Z39,Z42:Z43) -> 25417043.3
D112: 103 | E112: Proposed HLFT Demand/Customer Rev | I112: =I110-I111 -> 13854545.79
D113: 104 | E113: Net Energy Revenue required | F113: (line 115-116)
D114: 105
D115: 106
D116: 107 | E116: Adjusted Energy Charges
D117: 108 | E117: HLFT Off-Peak Energy | H117: =Y28 -> 0.01194
D118: 109
D119: 110 | E119: kWh On-Peak | G119: =G110-G120 -> 299932344.4 | H119: =ROUND((I112-I120)/G119,5) -> 0.01923 | I119: =G119*H119 -> 5767698.983 | J119: =ROUND(IF(H119>H120,H119,I121/G121),5) -> 0.01923
D120: 111 | E120: kWh Off-Peak | G120: =G110*H106 -> 677393480.6 | H120: =H117 -> 0.01194 | I120: =G120*H120 -> 8088078.158 | J120: =ROUND(IF(H119>H120,H120,I121/G121),5) -> 0.01194
D121: 112 | E121: Total | G121: =SUM(G119:G120) -> 977325825 | I121: =SUM(I119:I120) -> 13855777.14
D122: 113 | E122: Difference | I122: =I121-I112 -> 1231.350587

Sheet GSLD(T)-1
A1: OPC 015167
A2: FPL RC-16
D4: MFR E-14 Workpapers - 2017
D5: Rate Class GSLD(T)-1 | J5: Present Revenues (with WCEC3 in Base) | N5: Percent increase calculation | R5: Rounded | V5: Final adjustments to achieve target revenues
A6: Ref. for linking data | Q6: =P111 -> 0.2120572745 | U6: 0 | AC6: =(X103-L103)/L103 -> 0.2345983325
E7: -1 | F7: =E7-1 -> -2 | G7: =F7-1 -> -3 | H7: -4 | I7: -5 | J7: -6 | K7: -7 | L7: -8 | M7: -9 | N7: -10 | O7: -11 | P7: -12 | Q7: -13 | R7: -14 | S7: -15 | T7: -16 | U7: -17 | V7: -18 | W7: -19 | X7: -20 | Y7: -21 | Z7: -22 | AA7: -23
D8: Line | E8: TYPE OF | H8: PRESENT REVENUE CALCULATION | N8: PROPOSED REVENUE CALCULATION | R8: PROPOSED REVENUE CALCULATION | V8: PROPOSED REVENUE CALCULATION | AC8: Override
D9: No. | E9: CHARGES | H9: UNITS | J9: UNITS | K9: CHARGE/UNIT | L9: $ REVENUE | N9: UNITS | O9: CHARGE/UNIT | P9: $ REVENUE | R9: UNITS | S9: CHARGE/UNIT | T9: $ REVENUE | V9: UNITS | W9: CHARGE/UNIT | X9: $ REVENUE | AA9: INCREASE | AC9: Calculated
A10: Reference for Billing Units | B10: Reference for Rates | C10: Reference for Rates | D10: 1 | Q10: Override | U10: Override
D11: =D10+1 -> 2 | E11: RATE SCHEDULE GSLD-1 - 62 | Q11: Revenue | U11: Revenue | AD11: Comparison of Unit Costs to Calculated Rates
D12: =D11+1 -> 3
A13: GSLD-1 - 62Customer | B13: General Service Large Demand (GSLD-1) | C13: Customer Charge | D13: 4 | E13: Customer | H13: =VLOOKUP($A13,'Billing Determinants (Units)'!$A$9:$B$1153,2,FALSE) -> 15083 | J13: =H13+I13 -> 15083 | K13: =INDEX('Present Base Rates by Rate Code'!$A$4:$V$50,MATCH('GSLD(T)-1'!$B13,'Present Base Rates by Rate Code'!$A$4:$A$50,0),MATCH('GSLD(T)-1'!C13,'Present Base Rates by Rate Code'!$A$4:$V$4,0)) -> 61.83 | L13: =J13*K13 -> 932581.89 | N13: =J13 -> 15083 | O13: ='E-6b Proposed Equalized'!J69 -> 75 | P13: =N13*O13 -> 1131225 | Q13: =P13-L13 -> 198643.11 | R13: =N13 -> 15083 | S13: 75 | T13: =R13*S13 -> 1131225 | U13: =T13-P13 -> 0 | V13: =N13 -> 15083 | W13: =S13 -> 75 | X13: =V13*W13 -> 1131225 | Z13: =W13/K13-1 -> 0.2130033964 | AA13: =W13-K13 -> 13.17
A14: GSLD-1 - 62Non-Fuel Energy | B14: General Service Large Demand (GSLD-1) | C14: Energy Charges $/kWh | D14: 5 | E14: Non-Fuel Energy | H14: =VLOOKUP($A14,'Billing Determinants (Units)'!$A$9:$B$1153,2,FALSE) -> 3514146195 | J14: =H14+I14 -> 3514146195 | K14: =INDEX('Present Base Rates by Rate Code'!$A$4:$V$50,MATCH('GSLD(T)-1'!$B14,'Present Base Rates by Rate Code'!$A$4:$A$50,0),MATCH('GSLD(T)-1'!C14,'Present Base Rates by Rate Code'!$A$4:$V$4,0)) -> 0.0143 | L14: =J14*K14 -> 50252290.59 | N14: =J14 -> 3514146195 | O14: =K14*(1+$Q$6) -> 0.01733241903 | P14: =N14*O14 -> 60908654.37 | R14: =N14 -> 3514146195 | S14: =ROUND(O14*(1+$U$6),5) -> 0.01733 | T14: =R14*S14 -> 60900153.56 | V14: =N14 -> 3514146195 | W14: =S14+X108 -> 0.01752 | X14: =V14*W14 -> 61567841.34 | Z14: =W14/K14-1 -> 0.2251748252 | AA14: =W14-K14 -> 0.00322 | AF14: Demand | AH14: Energy
A15: GSLD-1 - 62Demand | B15: General Service Large Demand (GSLD-1) | C15: Demand Charge $/kW | D15: 6 | E15: Demand | H15: =VLOOKUP($A15,'Billing Determinants (Units)'!$A$9:$B$1153,2,FALSE) -> 9205210 | J15: 9205210 | K15: =INDEX('Present Base Rates by Rate Code'!$A$4:$V$50,MATCH('GSLD(T)-1'!$B15,'Present Base Rates by Rate Code'!$A$4:$A$50,0),MATCH('GSLD(T)-1'!C15,'Present Base Rates by Rate Code'!$A$4:$V$4,0)) -> 9.96 | L15: =J15*K15 -> 91683891.6 | N15: =J15 -> 9205210 | O15: =K15*(1+$Q$6) -> 12.07209045 | P15: =N15*O15 -> 111126127.8 | R15: =N15 -> 9205210 | S15: =ROUND(O15*(1+$U$6),1) -> 12.1 | T15: =R15*S15 -> 111383041 | V15: =N15 -> 9205210 | W15: =S15 -> 12.1 | X15: =V15*W15 -> 111383041 | Z15: =W15/K15-1 -> 0.2148594378 | AA15: =W15-K15 -> 2.14
A16: GSLD-1 - 62Transformation Credit | B16: General Service Large Demand (GSLD-1) | C16: Transformation Rider Credit ($/kW) | D16: 7 | E16: Transformation Credit | H16: =VLOOKUP($A16,'Billing Determinants (Units)'!$A$9:$B$1153,2,FALSE) -> 96561 | J16: 96561 | K16: =INDEX('Present Base Rates by Rate Code'!$A$4:$V$50,MATCH('GSLD(T)-1'!$B16,'Present Base Rates by Rate Code'!$A$4:$A$50,0),MATCH('GSLD(T)-1'!C16,'Present Base Rates by Rate Code'!$A$4:$V$4,0)) -> -0.3 | L16: =J16*K16 -> -28968.3 | N16: =J16 -> 96561 | O16: ='Transformer Credit'!$E$9 -> -0.23 | P16: =N16*O16 -> -22209.03 | Q16: =P16-L16 -> 6759.27 | R16: =N16 -> 96561 | S16: =O16 -> -0.23 | T16: =R16*S16 -> -22209.03 | U16: =T16-P16 -> 0 | V16: =N16 -> 96561 | W16: =S16 -> -0.23 | X16: =V16*W16 -> -22209.03 | Z16: =W16/K16-1 -> -0.2333333333 | AA16: =W16-K16 -> 0.07
B17: General Service Large Demand (GSLD-1) | D17: 8 | E17: Subtotal | L17: =SUM(L13:L16) -> 142839795.8 | P17: =SUM(P13:P16) -> 173143798.1 | T17: =SUM(T13:T16) -> 173392210.5 | X17: =SUM(X13:X16) -> 174059898.3 | AA17: =P17/L17-1 -> 0.212153778 | AD17: Billing Units | AE17: kW | AF17: =N15+N29+N41+N52+N63+N77+N78+N94+N95 -> 23361095 | AG17: kWh | AH17: =N14+N27+N28+N40+N50+N51+N60+N61+N74+N75+N76+N90+N91+N92+N93 -> 10507497706
B18: General Service Large Demand (GSLD-1) | D18: 9 | E18: CDR Credit
A19: GSLD-1 - 62Adder | B19: General Service Large Demand (GSLD-1) | C19: Commercial / Industrial Demand Rider (CDR) Adder per Customer | D19: 10 | E19: Adder | H19: =VLOOKUP($A19,'Billing Determinants (Units)'!$A$9:$B$1153,2,FALSE) -> 288 | J19: 288 | K19: =INDEX('Present Base Rates by Rate Code'!$A$4:$V$50,MATCH('GSLD(T)-1'!$B19,'Present Base Rates by Rate Code'!$A$4:$A$50,0),MATCH('GSLD(T)-1'!C19,'Present Base Rates by Rate Code'!$A$4:$V$4,0)) -> 140.52 | L19: =J19*K19 -> 40469.76 | N19: =J19 -> 288 | O19: 150 | P19: =N19*O19 -> 43200 | Q19: =P19-L19 -> 2730.24 | R19: =N19 -> 288 | S19: =O19 -> 150 | T19: =R19*S19 -> 43200 | U19: =T19-P19 -> 0 | V19: =N19 -> 288 | W19: =S19 -> 150 | X19: =V19*W19 -> 43200 | Z19: =W19/K19-1 -> 0.06746370623 | AA19: =W19-K19 -> 9.48 | AD19: Unit Costs per E-6b | AF19: ='E-6b Proposed Equalized'!J31 -> 16.12 | AH19: ='E-6b Proposed Equalized'!J41 -> 0.01182
A20: GSLD-1 - 62Credit | B20: General Service Large Demand (GSLD-1) | C20: Commercial / Industrial Demand Rider Credit (CDR) ($/kW) | D20: 11 | E20: Credit | H20: =VLOOKUP($A20,'Billing Determinants (Units)'!$A$9:$B$1153,2,FALSE) -> 141503.9371 | J20: 141503.9371 | K20: =INDEX('Present Base Rates by Rate Code'!$A$4:$V$50,MATCH('GSLD(T)-1'!$B20,'Present Base Rates by Rate Code'!$A$4:$A$50,0),MATCH('GSLD(T)-1'!C20,'Present Base Rates by Rate Code'!$A$4:$V$4,0)) -> -8.2 | L20: =J20*K20 -> -1160332.284 | N20: =J20 -> 141503.9371 | O20: ='CDR Credit'!D13 -> -5.26 | P20: =N20*O20 -> -744310.7093 | Q20: =P20-L20 -> 416021.5752 | R20: =N20 -> 141503.9371 | S20: =O20 -> -5.26 | T20: =R20*S20 -> -744310.7093 | U20: =T20-P20 -> 0 | V20: =N20 -> 141503.9371 | W20: =S20 -> -5.26 | X20: =V20*W20 -> -744310.7093 | Z20: =W20/K20-1 -> -0.3585365854 | AA20: =W20-K20 -> 2.94
A21: Total | B21: General Service Large Demand (GSLD-1) | D21: 12 | E21: Total | L21: =SUM(L17:L20) -> 141719933.3 | P21: =SUM(P17:P20) -> 172442687.4 | T21: =SUM(T17:T20) -> 172691099.8 | X21: =SUM(X17:X20) -> 173358787.6 | AA21: =X21/L21-1 -> 0.2232491479 | AD21: Rate Calculated | AF21: =W15 -> 12.1 | AH21: =W28 -> 0.01254
A22: =C22&E22 ->  | D22: 13
A23: RATE SCHEDULE GSLDT-1 - 64 | D23: 14 | E23: RATE SCHEDULE GSLDT-1 - 64 | AD23: Difference | AF23: =AF21-AF19 -> -4.02 | AH23: =AH21-AH19 -> 0.00072
D24: 15 | AD24: % Difference | AF24: =AF23/AF19 -> -0.2493796526 | AH24: =AH23/AH19 -> 0.06091370558
A25: GSLDT-1 - 64Customer | B25: General Service Large Demand-TOU (GSLDT-1) | C25: Customer Charge | D25: 16 | E25: Customer | H25: =VLOOKUP($A25,'Billing Determinants (Units)'!$A$9:$B$1153,2,FALSE) -> 13260 | J25: 13260 | K25: =INDEX('Present Base Rates by Rate Code'!$A$4:$V$50,MATCH('GSLD(T)-1'!$B25,'Present Base Rates by Rate Code'!$A$4:$A$50,0),MATCH('GSLD(T)-1'!C25,'Present Base Rates by Rate Code'!$A$4:$V$4,0)) -> 61.83 | L25: =J25*K25 -> 819865.8 | N25: =J25 -> 13260 | O25: =O13 -> 75 | P25: =N25*O25 -> 994500 | Q25: =P25-L25 -> 174634.2 | R25: =N25 -> 13260 | S25: =S13 -> 75 | T25: =R25*S25 -> 994500 | U25: =T25-P25 -> 0 | V25: =N25 -> 13260 | W25: =S25 -> 75 | X25: =V25*W25 -> 994500 | Z25: =W25/K25-1 -> 0.2130033964 | AA25: =W25-K25 -> 13.17
A26: GSLDT-1 - 64Non-Fuel Energy | B26: General Service Large Demand-TOU (GSLDT-1) | D26: 17 | E26: Non-Fuel Energy | N26: 0 | R26: 0 | V26: 0
A27: GSLDT-1 - 64Non-Fuel Energy - On Peak | B27: General Service Large Demand-TOU (GSLDT-1) | C27: On-Peak Energy Charge $/kWh | D27: 18 | E27: Non-Fuel Energy - On Peak | H27: =VLOOKUP($A27,'Billing Determinants (Units)'!$A$9:$B$1153,2,FALSE) -> 1179751800 | J27: 1179751800 | K27: =INDEX('Present Base Rates by Rate Code'!$A$4:$V$50,MATCH('GSLD(T)-1'!$B27,'Present Base Rates by Rate Code'!$A$4:$A$50,0),MATCH('GSLD(T)-1'!C27,'Present Base Rates by Rate Code'!$A$4:$V$4,0)) -> 0.0238 | L27: =J27*K27 -> 28078092.84 | N27: 1179751800 | O27: =K27*(1+$Q$6) -> 0.02884696313 | P27: =N27*O27 -> 34032256.68 | R27: 1179751800 | S27: =ROUND(O27*(1+$U$6),5) -> 0.02885 | T27: =R27*S27 -> 34035839.43 | V27: 1179751800 | W27: =I114 -> 0.02892 | X27: =V27*W27 -> 34118422.06 | Z27: =W27/K27-1 -> 0.2151260504 | AA27: =W27-K27 -> 0.00512 | AD27: Note: The use of the percent increase method maintains the shift of
A28: GSLDT-1 - 64Non-Fuel Energy - Off Peak | B28: General Service Large Demand-TOU (GSLDT-1) | C28: Off-Peak Energy Charge $/kWh | D28: 19 | E28: Non-Fuel Energy - Off Peak | H28: =VLOOKUP($A28,'Billing Determinants (Units)'!$A$9:$B$1153,2,FALSE) -> 3363185270 | J28: 3363185270 | K28: =INDEX('Present Base Rates by Rate Code'!$A$4:$V$50,MATCH('GSLD(T)-1'!$B28,'Present Base Rates by Rate Code'!$A$4:$A$50,0),MATCH('GSLD(T)-1'!C28,'Present Base Rates by Rate Code'!$A$4:$V$4,0)) -> 0.01035 | L28: =J28*K28 -> 34808967.54 | N28: 3363185270 | O28: =K28*(1+$Q$6) -> 0.01254479279 | P28: =N28*O28 -> 42190462.33 | R28: 3363185270 | S28: =ROUND(O28*(1+$U$6),5) -> 0.01254 | T28: =R28*S28 -> 42174343.29 | V28: 3363185270 | W28: =I115 -> 0.01254 | X28: =V28*W28 -> 42174343.29 | Z28: =W28/K28-1 -> 0.2115942029 | AA28: =W28-K28 -> 0.00219 | AD28: some demand costs to energy charges approved in past rate cases
A29: GSLDT-1 - 64Demand | B29: General Service Large Demand-TOU (GSLDT-1) | C29: On-Peak Demand Charge $/kW | D29: 20 | E29: Demand | H29: =VLOOKUP($A29,'Billing Determinants (Units)'!$A$9:$B$1153,2,FALSE) -> 8493253 | J29: 8493253 | K29: =INDEX('Present Base Rates by Rate Code'!$A$4:$V$50,MATCH('GSLD(T)-1'!$B29,'Present Base Rates by Rate Code'!$A$4:$A$50,0),MATCH('GSLD(T)-1'!C29,'Present Base Rates by Rate Code'!$A$4:$V$4,0)) -> 9.96 | L29: =J29*K29 -> 84592799.88 | N29: 8493253 | O29: =K29*(1+$Q$6) -> 12.07209045 | P29: =N29*O29 -> 102531318.5 | R29: 8493253 | S29: =ROUND(O29*(1+$U$6),1) -> 12.1 | T29: =R29*S29 -> 102768361.3 | V29: 8493253 | W29: =S29 -> 12.1 | X29: =V29*W29 -> 102768361.3 | Z29: =W29/K29-1 -> 0.2148594378 | AA29: =W29-K29 -> 2.14 | AD29: to limit impacts to low load factor customers.
A30: GSLDT-1 - 64Transformation Credit | B30: General Service Large Demand-TOU (GSLDT-1) | C30: Transformation Rider Credit ($/kW) | D30: 21 | E30: Transformation Credit | H30: =VLOOKUP($A30,'Billing Determinants (Units)'!$A$9:$B$1153,2,FALSE) -> 126135 | J30: 126135 | K30: =INDEX('Present Base Rates by Rate Code'!$A$4:$V$50,MATCH('GSLD(T)-1'!$B30,'Present Base Rates by Rate Code'!$A$4:$A$50,0),MATCH('GSLD(T)-1'!C30,'Present Base Rates by Rate Code'!$A$4:$V$4,0)) -> -0.3 | L30: =J30*K30 -> -37840.5 | N30: 126135 | O30: =+O16 -> -0.23 | P30: =N30*O30 -> -29011.05 | Q30: =P30-L30 -> 8829.45 | R30: 126135 | S30: =+S16 -> -0.23 | T30: =R30*S30 -> -29011.05 | U30: =T30-P30 -> 0 | V30: 126135 | W30: =O30 -> -0.23 | X30: =V30*W30 -> -29011.05 | Z30: =W30/K30-1 -> -0.2333333333 | AA30: =W30-K30 -> 0.07
A31: GSLDT-1 - 64Subtotal | B31: General Service Large Demand-TOU (GSLDT-1) | D31: 22 | E31: Subtotal | L31: =SUM(L25:L30) -> 148261885.6 | P31: =SUM(P25:P30) -> 179719526.4 | T31: =SUM(T25:T30) -> 179944033 | X31: =SUM(X25:X30) -> 180026615.6 | AA31: =P31/L31-1 -> 0.2121761823
A32: GSLDT-1 - 64CDR Credit | B32: General Service Large Demand-TOU (GSLDT-1) | D32: 23 | E32: CDR Credit
A33: GSLDT-1 - 64Adder | B33: General Service Large Demand-TOU (GSLDT-1) | C33: Commercial / Industrial Demand Rider (CDR) Adder per Customer | D33: 24 | E33: Adder | H33: =VLOOKUP($A33,'Billing Determinants (Units)'!$A$9:$B$1153,2,FALSE) -> 3744 | J33: 3744 | K33: =INDEX('Present Base Rates by Rate Code'!$A$4:$V$50,MATCH('GSLD(T)-1'!$B33,'Present Base Rates by Rate Code'!$A$4:$A$50,0),MATCH('GSLD(T)-1'!C33,'Present Base Rates by Rate Code'!$A$4:$V$4,0)) -> 140.52 | L33: =J33*K33 -> 526106.88 | N33: =J33 -> 3744 | O33: =O19 -> 150 | P33: =N33*O33 -> 561600 | Q33: =P33-L33 -> 35493.12 | R33: =N33 -> 3744 | S33: =S19 -> 150 | T33: =R33*S33 -> 561600 | U33: =T33-P33 -> 0 | V33: =N33 -> 3744 | W33: =O33 -> 150 | X33: =V33*W33 -> 561600 | Z33: =W33/K33-1 -> 0.06746370623 | AA33: =W33-K33 -> 9.48
A34: GSLDT-1 - 64Credit | B34: General Service Large Demand-TOU (GSLDT-1) | C34: Commercial / Industrial Demand Rider Credit (CDR) ($/kW) | D34: 25 | E34: Credit | H34: =VLOOKUP($A34,'Billing Determinants (Units)'!$A$9:$B$1153,2,FALSE) -> 1250514.109 | J34: 1250514.109 | K34: =INDEX('Present Base Rates by Rate Code'!$A$4:$V$50,MATCH('GSLD(T)-1'!$B34,'Present Base Rates by Rate Code'!$A$4:$A$50,0),MATCH('GSLD(T)-1'!C34,'Present Base Rates by Rate Code'!$A$4:$V$4,0)) -> -8.2 | L34: =J34*K34 -> -10254215.69 | N34: =J34 -> 1250514.109 | O34: =O20 -> -5.26 | P34: =N34*O34 -> -6577704.211 | Q34: =P34-L34 -> 3676511.479 | R34: =N34 -> 1250514.109 | S34: =S20 -> -5.26 | T34: =R34*S34 -> -6577704.211 | U34: =T34-P34 -> 0 | V34: =N34 -> 1250514.109 | W34: =O34 -> -5.26 | X34: =V34*W34 -> -6577704.211 | Z34: =W34/K34-1 -> -0.3585365854 | AA34: =W34-K34 -> 2.94
A35: Total | D35: 26 | E35: Total | L35: =SUM(L31:L34) -> 138533776.8 | P35: =SUM(P31:P34) -> 173703422.2 | T35: =SUM(T31:T34) -> 173927928.8 | X35: =SUM(X31:X34) -> 174010511.4 | AA35: =X35/L35-1 -> 0.2560872551
D36: 27
A37: RATE SCHEDULE CS-1 - 73 | D37: 28 | E37: RATE SCHEDULE CS-1 - 73
D38: 29
A39: CS-1 - 73Customer | B39: Curtailable Service (CS-1) | C39: Customer Charge | D39: 30 | E39: Customer | H39: =VLOOKUP($A39,'Billing Determinants (Units)'!$A$9:$B$1153,2,FALSE) -> 228 | J39: 228 | K39: =INDEX('Present Base Rates by Rate Code'!$A$4:$V$50,MATCH('GSLD(T)-1'!$B39,'Present Base Rates by Rate Code'!$A$4:$A$50,0),MATCH('GSLD(T)-1'!C39,'Present Base Rates by Rate Code'!$A$4:$V$4,0)) -> 89.93 | L39: =J39*K39 -> 20504.04 | N39: =J39 -> 228 | O39: =O13+25 -> 100 | P39: =N39*O39 -> 22800 | Q39: =P39-L39 -> 2295.96 | R39: =N39 -> 228 | S39: =ROUND(O39,0) -> 100 | T39: =R39*S39 -> 22800 | U39: =T39-P39 -> 0 | V39: =N39 -> 228 | W39: =S39 -> 100 | X39: =V39*W39 -> 22800 | Z39: =+W39/K39-1 -> 0.1119759813 | AA39: =W39-K39 -> 10.07
A40: CS-1 - 73Non-Fuel Energy | B40: Curtailable Service (CS-1) | C40: Energy Charges $/kWh | D40: 31 | E40: Non-Fuel Energy | H40: =VLOOKUP($A40,'Billing Determinants (Units)'!$A$9:$B$1153,2,FALSE) -> 61597450 | J40: 61597450 | K40: =INDEX('Present Base Rates by Rate Code'!$A$4:$V$50,MATCH('GSLD(T)-1'!$B40,'Present Base Rates by Rate Code'!$A$4:$A$50,0),MATCH('GSLD(T)-1'!C40,'Present Base Rates by Rate Code'!$A$4:$V$4,0)) -> 0.0143 | L40: =J40*K40 -> 880843.535 | N40: =J40 -> 61597450 | O40: =K40*(1+$Q$6) -> 0.01733241903 | P40: =N40*O40 -> 1067632.814 | R40: =N40 -> 61597450 | S40: =S14 -> 0.01733 | T40: =R40*S40 -> 1067483.809 | V40: =N40 -> 61597450 | W40: =W14 -> 0.01752 | X40: =V40*W40 -> 1079187.324 | Z40: =+W40/K40-1 -> 0.2251748252 | AA40: =W40-K40 -> 0.00322
A41: CS-1 - 73Demand | B41: Curtailable Service (CS-1) | C41: Demand Charge $/kW | D41: 32 | E41: Demand | H41: =VLOOKUP($A41,'Billing Determinants (Units)'!$A$9:$B$1153,2,FALSE) -> 194440 | J41: 194440 | K41: =INDEX('Present Base Rates by Rate Code'!$A$4:$V$50,MATCH('GSLD(T)-1'!$B41,'Present Base Rates by Rate Code'!$A$4:$A$50,0),MATCH('GSLD(T)-1'!C41,'Present Base Rates by Rate Code'!$A$4:$V$4,0)) -> 9.96 | L41: =J41*K41 -> 1936622.4 | N41: =J41 -> 194440 | O41: =K41*(1+$Q$6) -> 12.07209045 | P41: =N41*O41 -> 2347297.268 | R41: =N41 -> 194440 | S41: =S15 -> 12.1 | T41: =R41*S41 -> 2352724 | V41: =N41 -> 194440 | W41: =S41 -> 12.1 | X41: =V41*W41 -> 2352724 | Z41: =+W41/K41-1 -> 0.2148594378 | AA41: =W41-K41 -> 2.14
A42: CS-1 - 73Transformation Credit | B42: Curtailable Service (CS-1) | C42: Transformation Rider Credit ($/kW) | D42: 33 | E42: Transformation Credit | H42: =VLOOKUP($A42,'Billing Determinants (Units)'!$A$9:$B$1153,2,FALSE) -> 37763 | J42: 37763 | K42: =INDEX('Present Base Rates by Rate Code'!$A$4:$V$50,MATCH('GSLD(T)-1'!$B42,'Present Base Rates by Rate Code'!$A$4:$A$50,0),MATCH('GSLD(T)-1'!C42,'Present Base Rates by Rate Code'!$A$4:$V$4,0)) -> -0.3 | L42: =J42*K42 -> -11328.9 | N42: =J42 -> 37763 | O42: =O30 -> -0.23 | P42: =N42*O42 -> -8685.49 | Q42: =P42-L42 -> 2643.41 | R42: =N42 -> 37763 | S42: =S30 -> -0.23 | T42: =R42*S42 -> -8685.49 | U42: =T42-P42 -> 0 | V42: =N42 -> 37763 | W42: =S42 -> -0.23 | X42: =V42*W42 -> -8685.49 | Z42: =W42/K42-1 -> -0.2333333333 | AA42: =W42-K42 -> 0.07
A43: CS-1 - 73Curtailable Credit | B43: Curtailable Service (CS-1) | C43: Curtailment Credit ($/kW) | D43: 34 | E43: Curtailable Credit | H43: =-VLOOKUP($A43,'Billing Determinants (Units)'!$A$9:$B$1153,2,FALSE) -> 156101 | J43: 156101 | K43: =INDEX('Present Base Rates by Rate Code'!$A$4:$V$50,MATCH('GSLD(T)-1'!$B43,'Present Base Rates by Rate Code'!$A$4:$A$50,0),MATCH('GSLD(T)-1'!C43,'Present Base Rates by Rate Code'!$A$4:$V$4,0)) -> -1.93 | L43: =J43*K43 -> -301274.93 | N43: =J43 -> 156101 | O43: =K43 -> -1.93 | P43: =N43*O43 -> -301274.93 | Q43: =P43-L43 -> 0 | R43: =N43 -> 156101 | S43: =O43 -> -1.93 | T43: =R43*S43 -> -301274.93 | U43: =T43-P43 -> 0 | V43: =N43 -> 156101 | W43: =S43 -> -1.93 | X43: =V43*W43 -> -301274.93 | Z43: =W43/K43-1 -> 0 | AA43: =W43-K43 -> 0
A44: Total | B44: Curtailable Service (CS-1) | D44: 35 | E44: Total | L44: =SUM(L39:L43) -> 2525366.145 | P44: =SUM(P39:P43) -> 3127769.662 | T44: =SUM(T39:T43) -> 3133047.388 | X44: =SUM(X39:X43) -> 3144750.904 | AA44: =X44/L44-1 -> 0.2452653292
D45: 36
A46: RATE SCHEDULE CST-1 - 74 | D46: 37 | E46: RATE SCHEDULE CST-1 - 74
D47: 38
A48: CST-1 - 74Customer | B48: Curtailable Service-TOU (CST-1) | C48: Customer Charge | D48: 39 | E48: Customer | H48: =VLOOKUP($A48,'Billing Determinants (Units)'!$A$9:$B$1153,2,FALSE) -> 84 | J48: 84 | K48: =INDEX('Present Base Rates by Rate Code'!$A$4:$V$50,MATCH('GSLD(T)-1'!$B48,'Present Base Rates by Rate Code'!$A$4:$A$50,0),MATCH('GSLD(T)-1'!C48,'Present Base Rates by Rate Code'!$A$4:$V$4,0)) -> 89.93 | L48: =J48*K48 -> 7554.12 | N48: =J48 -> 84 | O48: =O39 -> 100 | P48: =N48*O48 -> 8400 | Q48: =P48-L48 -> 845.88 | R48: =N48 -> 84 | S48: =S39 -> 100 | T48: =R48*S48 -> 8400 | U48: =T48-P48 -> 0 | V48: =N48 -> 84 | W48: =S48 -> 100 | X48: =V48*W48 -> 8400 | Z48: =+W48/K48-1 -> 0.1119759813 | AA48: =W48-K48 -> 10.07
A49: CST-1 - 74Non-Fuel Energy | B49: Curtailable Service-TOU (CST-1) | D49: 40 | E49: Non-Fuel Energy | N49: 0 | R49: 0 | V49: 0
A50: CST-1 - 74Non-Fuel Energy - On Peak | B50: Curtailable Service-TOU (CST-1) | C50: On-Peak Energy Charge $/kWh | D50: 41 | E50: Non-Fuel Energy - On Peak | H50: =VLOOKUP($A50,'Billing Determinants (Units)'!$A$9:$B$1153,2,FALSE) -> 8593188 | J50: 8593188 | K50: =INDEX('Present Base Rates by Rate Code'!$A$4:$V$50,MATCH('GSLD(T)-1'!$B50,'Present Base Rates by Rate Code'!$A$4:$A$50,0),MATCH('GSLD(T)-1'!C50,'Present Base Rates by Rate Code'!$A$4:$V$4,0)) -> 0.0238 | L50: =J50*K50 -> 204517.8744 | N50: 8593188 | O50: =K50*(1+$Q$6) -> 0.02884696313 | P50: =N50*O50 -> 247887.3774 | R50: 8593188 | S50: =S27 -> 0.02885 | T50: =R50*S50 -> 247913.4738 | V50: 8593188 | W50: =W27 -> 0.02892 | X50: =V50*W50 -> 248514.997 | Z50: =+W50/K50-1 -> 0.2151260504 | AA50: =W50-K50 -> 0.00512
A51: CST-1 - 74Non-Fuel Energy - Off Peak | B51: Curtailable Service-TOU (CST-1) | C51: Off-Peak Energy Charge $/kWh | D51: 42 | E51: Non-Fuel Energy - Off Peak | H51: =VLOOKUP($A51,'Billing Determinants (Units)'!$A$9:$B$1153,2,FALSE) -> 26006483 | J51: 26006483 | K51: =INDEX('Present Base Rates by Rate Code'!$A$4:$V$50,MATCH('GSLD(T)-1'!$B51,'Present Base Rates by Rate Code'!$A$4:$A$50,0),MATCH('GSLD(T)-1'!C51,'Present Base Rates by Rate Code'!$A$4:$V$4,0)) -> 0.01035 | L51: =J51*K51 -> 269167.0991 | N51: 26006483 | O51: =K51*(1+$Q$6) -> 0.01254479279 | P51: 326245.9405 | R51: 26006483 | S51: =S28 -> 0.01254 | T51: 326121.2968 | V51: 26006483 | W51: =W28 -> 0.01254 | X51: 326121.2968 | Z51: =+W51/K51-1 -> 0.2115942029 | AA51: 0.00219
A52: CST-1 - 74Demand | B52: Curtailable Service-TOU (CST-1) | C52: On-Peak Demand Charge $/kW | D52: 43 | E52: Demand | H52: =VLOOKUP($A52,'Billing Determinants (Units)'!$A$9:$B$1153,2,FALSE) -> 68102 | J52: 68102 | K52: =INDEX('Present Base Rates by Rate Code'!$A$4:$V$50,MATCH('GSLD(T)-1'!$B52,'Present Base Rates by Rate Code'!$A$4:$A$50,0),MATCH('GSLD(T)-1'!C52,'Present Base Rates by Rate Code'!$A$4:$V$4,0)) -> 9.96 | L52: =J52*K52 -> 678295.92 | N52: 68102 | O52: =K52*(1+$Q$6) -> 12.07209045 | P52: 822133.5041 | R52: 68102 | S52: =S29 -> 12.1 | T52: 824034.2 | V52: 68102 | W52: =S52 -> 12.1 | X52: 824034.2 | Z52: =+W52/K52-1 -> 0.2148594378 | AA52: 2.14
A53: CST-1 - 74Transformation Credit | B53: Curtailable Service-TOU (CST-1) | C53: Transformation Rider Credit ($/kW) | D53: 44 | E53: Transformation Credit | H53: =VLOOKUP($A53,'Billing Determinants (Units)'!$A$9:$B$1153,2,FALSE) -> 13893 | J53: 13893 | K53: =INDEX('Present Base Rates by Rate Code'!$A$4:$V$50,MATCH('GSLD(T)-1'!$B53,'Present Base Rates by Rate Code'!$A$4:$A$50,0),MATCH('GSLD(T)-1'!C53,'Present Base Rates by Rate Code'!$A$4:$V$4,0)) -> -0.3 | L53: =J53*K53 -> -4167.9 | N53: 13893 | O53: =O42 -> -0.23 | P53: -3195.39 | Q53: =P53-L53 -> 972.51 | R53: 13893 | S53: =O53 -> -0.23 | T53: -3195.39 | U53: =T53-P53 -> 0 | V53: 13893 | W53: =S53 -> -0.23 | X53: -3195.39 | Z53: =W53/K53-1 -> -0.2333333333 | AA53: 0.07
A54: CST-1 - 74Curtailable Credit | B54: Curtailable Service-TOU (CST-1) | C54: Curtailment Credit ($/kW) | D54: 45 | E54: Curtailable Credit | H54: =-VLOOKUP($A54,'Billing Determinants (Units)'!$A$9:$B$1153,2,FALSE) -> 44737 | J54: 44737 | K54: =INDEX('Present Base Rates by Rate Code'!$A$4:$V$50,MATCH('GSLD(T)-1'!$B54,'Present Base Rates by Rate Code'!$A$4:$A$50,0),MATCH('GSLD(T)-1'!C54,'Present Base Rates by Rate Code'!$A$4:$V$4,0)) -> -1.93 | L54: =J54*K54 -> -86342.41 | N54: 44737 | O54: =K54 -> -1.93 | P54: -86342.41 | Q54: =P54-L54 -> 0 | R54: 44737 | S54: =O54 -> -1.93 | T54: -86342.41 | U54: =T54-P54 -> 0 | V54: 44737 | W54: =S54 -> -1.93 | X54: -86342.41 | Z54: =W54/K54-1 -> 0 | AA54: 0
A55: Total | D55: 46 | E55: Total | L55: =SUM(L48:L54) -> 1069024.703 | P55: =SUM(P48:P54) -> 1315129.022 | T55: =SUM(T48:T54) -> 1316931.171 | X55: =SUM(X48:X54) -> 1317532.694 | AA55: =X55/L55-1 -> 0.2324623458
D56: 47
A57: RATE SCHEDULE HLFT - 164 | D57: 48 | E57: RATE SCHEDULE HLFT - 164
D58: 49 | H58: 500 - 1,999 kW
A59: HLFT - 164Customer | B59: High Load Factor-TOU (500 - 1,999 kW) | C59: Customer Charge | D59: 50 | E59: Customer | H59: =VLOOKUP($A59,'Billing Determinants (Units)'!$A$9:$B$1153,2,FALSE) -> 3430 | J59: 3430 | K59: =INDEX('Present Base Rates by Rate Code'!$A$4:$V$50,MATCH('GSLD(T)-1'!$B59,'Present Base Rates by Rate Code'!$A$4:$A$50,0),MATCH('GSLD(T)-1'!C59,'Present Base Rates by Rate Code'!$A$4:$V$4,0)) -> 61.83 | L59: =J59*K59 -> 212076.9 | N59: =J59 -> 3430 | O59: =O13 -> 75 | P59: =N59*O59 -> 257250 | Q59: =P59-L59 -> 45173.1 | R59: =N59 -> 3430 | S59: =S13 -> 75 | T59: =R59*S59 -> 257250 | U59: =T59-P59 -> 0 | V59: =N59 -> 3430 | W59: =S59 -> 75 | X59: =V59*W59 -> 257250 | Z59: =+W59/K59-1 -> 0.2130033964 | AA59: =W59-K59 -> 13.17
A60: HLFT - 164Non-Fuel Energy - On Peak | B60: High Load Factor-TOU (500 - 1,999 kW) | C60: On-Peak Energy Charge $/kWh | D60: 51 | E60: Non-Fuel Energy - On Peak | H60: =VLOOKUP($A60,'Billing Determinants (Units)'!$A$9:$B$1153,2,FALSE) -> 359378356 | J60: 359378356 | K60: =INDEX('Present Base Rates by Rate Code'!$A$4:$V$50,MATCH('GSLD(T)-1'!$B60,'Present Base Rates by Rate Code'!$A$4:$A$50,0),MATCH('GSLD(T)-1'!C60,'Present Base Rates by Rate Code'!$A$4:$V$4,0)) -> 0.00885 | L60: 3180498.451 | N60: 359378356 | O60: =K60*(1+$Q$6) -> 0.01072670688 | P60: 3854946.284 | R60: 359378356 | S60: =ROUND(O60*(1+$U$6),5) -> 0.01073 | T60: 3856129.76 | V60: 359378356 | W60: =J136 -> 0.01144 | X60: 4111288.393 | Z60: =+W60/K60-1 -> 0.2926553672 | AA60: 0.00259
A61: HLFT - 164Non-Fuel Energy - Off Peak | B61: High Load Factor-TOU (500 - 1,999 kW) | C61: Off-Peak Energy Charge $/kWh | D61: 52 | E61: Non-Fuel Energy - Off Peak | H61: =VLOOKUP($A61,'Billing Determinants (Units)'!$A$9:$B$1153,2,FALSE) -> 1058637133 | J61: 1058637133 | K61: =INDEX('Present Base Rates by Rate Code'!$A$4:$V$50,MATCH('GSLD(T)-1'!$B61,'Present Base Rates by Rate Code'!$A$4:$A$50,0),MATCH('GSLD(T)-1'!C61,'Present Base Rates by Rate Code'!$A$4:$V$4,0)) -> 0.00885 | L61: 9368938.627 | N61: 1058637133 | O61: =K61*(1+$Q$6) -> 0.01072670688 | P61: 11355690.22 | R61: 1058637133 | S61: =ROUND(O61*(1+$U$6),5) -> 0.01073 | T61: 11359176.44 | V61: 1058637133 | W61: =J137 -> 0.01073 | X61: 11359176.44 | Z61: =+W61/K61-1 -> 0.2124293785 | AA61: 0.00188
A62: HLFT - 164Demand - On-Peak | B62: High Load Factor-TOU (500 - 1,999 kW) | C62: On-Peak Demand Charge $/kW | D62: 53 | E62: Demand - On-Peak | H62: =VLOOKUP($A62,'Billing Determinants (Units)'!$A$9:$B$1153,2,FALSE) -> 2335909 | J62: 2335909 | K62: =INDEX('Present Base Rates by Rate Code'!$A$4:$V$50,MATCH('GSLD(T)-1'!$B62,'Present Base Rates by Rate Code'!$A$4:$A$50,0),MATCH('GSLD(T)-1'!C62,'Present Base Rates by Rate Code'!$A$4:$V$4,0)) -> 10.52 | L62: 24573762.68 | N62: 2335909 | O62: =K62*(1+$Q$6) -> 12.75084253 | P62: 29784807.82 | R62: 2335909 | S62: =ROUND(O62*(1+$U$6),1) -> 12.8 | T62: 29899635.2 | V62: 2335909 | W62: =S62 -> 12.8 | X62: 29899635.2 | Z62: =+W62/K62-1 -> 0.216730038 | AA62: 2.28
A63: HLFT - 164Demand - Maximum | B63: High Load Factor-TOU (500 - 1,999 kW) | C63: Maximum Demand Charge $/kW | D63: 54 | E63: Demand - Maximum | H63: =VLOOKUP($A63,'Billing Determinants (Units)'!$A$9:$B$1153,2,FALSE) -> 2477396 | J63: 2477396 | K63: =INDEX('Present Base Rates by Rate Code'!$A$4:$V$50,MATCH('GSLD(T)-1'!$B63,'Present Base Rates by Rate Code'!$A$4:$A$50,0),MATCH('GSLD(T)-1'!C63,'Present Base Rates by Rate Code'!$A$4:$V$4,0)) -> 2.24 | L63: 5549367.04 | N63: 2477396 | O63: =K63*(1+$Q$6) -> 2.715008295 | P63: 6726150.69 | R63: 2477396 | S63: =ROUND(O63*(1+$U$6),1) -> 2.7 | T63: 6688969.2 | V63: 2477396 | W63: =S63 -> 2.7 | X63: 6688969.2 | Z63: =+W63/K63-1 -> 0.2053571429 | AA63: 0.46
A64: HLFT - 164Transformation Credit | B64: High Load Factor-TOU (500 - 1,999 kW) | C64: Transformation Rider Credit ($/kW) | D64: 55 | E64: Transformation Credit | H64: =VLOOKUP($A64,'Billing Determinants (Units)'!$A$9:$B$1153,2,FALSE) -> 82217 | J64: 82217 | K64: =INDEX('Present Base Rates by Rate Code'!$A$4:$V$50,MATCH('GSLD(T)-1'!$B64,'Present Base Rates by Rate Code'!$A$4:$A$50,0),MATCH('GSLD(T)-1'!C64,'Present Base Rates by Rate Code'!$A$4:$V$4,0)) -> -0.3 | L64: -24665.1 | N64: 82217 | O64: =O16 -> -0.23 | P64: -18909.91 | Q64: =P64-L64 -> 5755.19 | R64: 82217 | S64: =S16 -> -0.23 | T64: -18909.91 | U64: =T64-P64 -> 0 | V64: 82217 | W64: =S64 -> -0.23 | X64: -18909.91 | Z64: =W64/K64-1 -> -0.2333333333 | AA64: 0.07
D65: 56 | E65: Subtotal | L65: =SUM(L59:L64) -> 42859978.6 | P65: =SUM(P59:P64) -> 51959935.1 | T65: =SUM(T59:T64) -> 52042250.69 | X65: =SUM(X59:X64) -> 52297409.32 | AA65: =P65/L65-1 -> 0.2123182698
D66: 57 | E66: CDR Credit
A67: HLFT - 164Adder | B67: High Load Factor-TOU (500 - 1,999 kW) | C67: Commercial / Industrial Demand Rider (CDR) Adder per Customer | D67: 58 | E67: Adder | H67: =VLOOKUP($A67,'Billing Determinants (Units)'!$A$9:$B$1153,2,FALSE) -> 48 | J67: 48 | K67: =INDEX('Present Base Rates by Rate Code'!$A$4:$V$50,MATCH('GSLD(T)-1'!$B67,'Present Base Rates by Rate Code'!$A$4:$A$50,0),MATCH('GSLD(T)-1'!C67,'Present Base Rates by Rate Code'!$A$4:$V$4,0)) -> 140.52 | L67: =J67*K67 -> 6744.96 | N67: =J67 -> 48 | O67: =O33 -> 150 | P67: =N67*O67 -> 7200 | Q67: =P67-L67 -> 455.04 | R67: =N67 -> 48 | S67: =S33 -> 150 | T67: =R67*S67 -> 7200 | U67: =T67-P67 -> 0 | V67: =N67 -> 48 | W67: =O67 -> 150 | X67: =V67*W67 -> 7200 | Z67: =W67/K67-1 -> 0.06746370623 | AA67: =W67-K67 -> 9.48
A68: HLFT - 164Credit | B68: High Load Factor-TOU (500 - 1,999 kW) | C68: Commercial / Industrial Demand Rider Credit (CDR) ($/kW) | D68: 59 | E68: Credit | H68: =VLOOKUP($A68,'Billing Determinants (Units)'!$A$9:$B$1153,2,FALSE) -> 20064.7733 | J68: 20064.7733 | K68: =INDEX('Present Base Rates by Rate Code'!$A$4:$V$50,MATCH('GSLD(T)-1'!$B68,'Present Base Rates by Rate Code'!$A$4:$A$50,0),MATCH('GSLD(T)-1'!C68,'Present Base Rates by Rate Code'!$A$4:$V$4,0)) -> -8.2 | L68: =J68*K68 -> -164531.1411 | N68: =J68 -> 20064.7733 | O68: =O34 -> -5.26 | P68: =N68*O68 -> -105540.7076 | Q68: =P68-L68 -> 58990.43351 | R68: =N68 -> 20064.7733 | S68: =S34 -> -5.26 | T68: =R68*S68 -> -105540.7076 | U68: =T68-P68 -> 0 | V68: =N68 -> 20064.7733 | W68: =S68 -> -5.26 | X68: =V68*W68 -> -105540.7076 | Z68: =W68/K68-1 -> -0.3585365854 | AA68: =W68-K68 -> 2.94
A69: Total | D69: 60 | E69: Total | L69: =SUM(L65:L68) -> 42702192.42 | P69: =SUM(P65:P68) -> 51861594.39 | T69: =SUM(T65:T68) -> 51943909.98 | X69: =SUM(X65:X68) -> 52199068.61 | AA69: =X69/L69-1 -> 0.2223978596
D70: 61
A71: RATE SCHEDULE SDTR - 264 | D71: 62 | E71: RATE SCHEDULE SDTR - 264
D72: 63 | H72: Option A - GSLD-1 | N72: Option A - GSLD-1 | R72: Option A - GSLD-1 | V72: Option A - GSLD-1
A73: SDTR - 264Customer | B73: Seasonal Demand TOU Rider (SDTR) (500 - 1,999 kW) Option A Summer | C73: Customer Charge | D73: 64 | E73: Customer | H73: =VLOOKUP($A73,'Billing Determinants (Units)'!$A$9:$B$1153,2,FALSE) -> 4782 | J73: 4782 | K73: =INDEX('Present Base Rates by Rate Code'!$A$4:$V$50,MATCH('GSLD(T)-1'!$B73,'Present Base Rates by Rate Code'!$A$4:$A$50,0),MATCH('GSLD(T)-1'!C73,'Present Base Rates by Rate Code'!$A$4:$V$4,0)) -> 61.83 | L73: =J73*K73 -> 295671.06 | N73: =J73 -> 4782 | O73: =+$O$25 -> 75 | P73: =N73*O73 -> 358650 | Q73: =P73-L73 -> 62978.94 | R73: =N73 -> 4782 | S73: =ROUND(+$O$25,0) -> 75 | T73: =R73*S73 -> 358650 | U73: =T73-P73 -> 0 | V73: =N73 -> 4782 | W73: =S73 -> 75 | X73: =V73*W73 -> 358650 | Z73: =+W73/K73-1 -> 0.2130033964 | AA73: =W73-K73 -> 13.17
A74: SDTR - 264Non-Fuel Energy - Seasonal On Peak | B74: Seasonal Demand TOU Rider (SDTR) (500 - 1,999 kW) Option A Summer | C74: On-Peak Energy Charge $/kWh | D74: 65 | E74: Non-Fuel Energy - Seasonal On Peak | H74: =VLOOKUP($A74,'Billing Determinants (Units)'!$A$9:$B$1153,2,FALSE) -> 30621526 | J74: 30621526 | K74: =INDEX('Present Base Rates by Rate Code'!$A$4:$V$50,MATCH('GSLD(T)-1'!$B74,'Present Base Rates by Rate Code'!$A$4:$A$50,0),MATCH('GSLD(T)-1'!C74,'Present Base Rates by Rate Code'!$A$4:$V$4,0)) -> 0.0504 | L74: 1543324.91 | N74: 30621526 | O74: =K74*(1+$Q$6) -> 0.06108768663 | P74: 1870598.185 | R74: 30621526 | S74: =ROUND(O74*(1+$U$6),5) -> 0.06109 | T74: 1870669.023 | V74: =N74 -> 30621526 | W74: ='SDTR Workpaper'!D42 -> 0.0633 | X74: 1938342.596 | Z74: 0.255952381 | AA74: 0.0129
A75: SDTR - 264Non-Fuel Energy - Seasonal Off Peak | B75: Seasonal Demand TOU Rider (SDTR) (500 - 1,999 kW) Option A Summer | C75: Off-Peak Energy Charge $/kWh | D75: 66 | E75: Non-Fuel Energy - Seasonal Off Peak | H75: =VLOOKUP($A75,'Billing Determinants (Units)'!$A$9:$B$1153,2,FALSE) -> 279614359 | J75: 279614359 | K75: =INDEX('Present Base Rates by Rate Code'!$A$4:$V$50,MATCH('GSLD(T)-1'!$B75,'Present Base Rates by Rate Code'!$A$4:$A$50,0),MATCH('GSLD(T)-1'!C75,'Present Base Rates by Rate Code'!$A$4:$V$4,0)) -> 0.01035 | L75: 2894008.616 | N75: 279614359 | O75: =K75*(1+$Q$6) -> 0.01254479279 | P75: 3507704.195 | R75: 279614359 | S75: =ROUND(O75*(1+$U$6),5) -> 0.01254 | T75: 3506364.062 | V75: 279614359 | W75: ='SDTR Workpaper'!D43 -> 0.01254 | X75: 3506364.062 | Z75: 0.2115942029 | AA75: 0.00219
A76: SDTR - 264Non-Fuel Energy - Non-Seasonal | B76: Seasonal Demand TOU Rider (SDTR) (500 - 1,999 kW) Option A Winter | C76: Energy Charges $/kWh | D76: =D75+1 -> 67 | E76: Non-Fuel Energy - Non-Seasonal | H76: =VLOOKUP($A76,'Billing Determinants (Units)'!$A$9:$B$1153,2,FALSE) -> 582138059 | J76: =H76+I76 -> 582138059 | K76: =INDEX('Present Base Rates by Rate Code'!$A$4:$V$50,MATCH('GSLD(T)-1'!$B76,'Present Base Rates by Rate Code'!$A$4:$A$50,0),MATCH('GSLD(T)-1'!C76,'Present Base Rates by Rate Code'!$A$4:$V$4,0)) -> 0.0143 | L76: 8324574.244 | N76: 582138059 | O76: =K76*(1+$Q$6) -> 0.01733241903 | P76: 10089860.77 | R76: 582138059 | S76: =ROUND(O76*(1+$U$6),5) -> 0.01733 | T76: 10088452.56 | V76: 582138059 | W76: ='SDTR Workpaper'!D45 -> 0.01752 | X76: 10199058.79 | Z76: 0.2251748252 | AA76: 0.00322
A77: SDTR - 264Demand - Seasonal On-Peak | B77: Seasonal Demand TOU Rider (SDTR) (500 - 1,999 kW) Option A Summer | C77: On-Peak Demand Charge $/kW | D77: 68 | E77: Demand - Seasonal On-Peak | H77: =VLOOKUP($A77,'Billing Determinants (Units)'!$A$9:$B$1153,2,FALSE) -> 791290 | J77: 791290 | K77: =INDEX('Present Base Rates by Rate Code'!$A$4:$V$50,MATCH('GSLD(T)-1'!$B77,'Present Base Rates by Rate Code'!$A$4:$A$50,0),MATCH('GSLD(T)-1'!C77,'Present Base Rates by Rate Code'!$A$4:$V$4,0)) -> 10.96 | L77: 8672538.4 | N77: 791290 | O77: =K77*(1+$Q$6) -> 13.28414773 | P77: 10511613.26 | R77: 791290 | S77: =ROUND(O77*(1+$U$6),1) -> 13.3 | T77: 10524157 | V77: 791290 | W77: ='SDTR Workpaper'!D39 -> 12.5 | X77: 9891125 | Z77: 0.1405109489 | AA77: 1.54
A78: SDTR - 264Demand - Non-Seasonal | B78: Seasonal Demand TOU Rider (SDTR) (500 - 1,999 kW) Option A Winter | C78: Demand Charge $/kW | D78: 69 | E78: Demand - Non-Seasonal | H78: =VLOOKUP($A78,'Billing Determinants (Units)'!$A$9:$B$1153,2,FALSE) -> 2031926 | J78: 2031926 | K78: =INDEX('Present Base Rates by Rate Code'!$A$4:$V$50,MATCH('GSLD(T)-1'!$B78,'Present Base Rates by Rate Code'!$A$4:$A$50,0),MATCH('GSLD(T)-1'!C78,'Present Base Rates by Rate Code'!$A$4:$V$4,0)) -> 9.61 | L78: 19526808.86 | N78: 2031926 | O78: =K78*(1+$Q$6) -> 11.64787041 | P78: 23667610.73 | R78: 2031926 | S78: =ROUND(O78*(1+$U$6),1) -> 11.6 | T78: 23570341.6 | V78: 2031926 | W78: ='SDTR Workpaper'!D40 -> 11.9 | X78: 24179919.4 | Z78: 0.2382934443 | AA78: 2.29
A79: SDTR - 264Transformation Credit | B79: Seasonal Demand TOU Rider (SDTR) (500 - 1,999 kW) Option A Summer | C79: Transformation Rider Credit ($/kW) | D79: 70 | E79: Transformation Credit | H79: =VLOOKUP($A79,'Billing Determinants (Units)'!$A$9:$B$1153,2,FALSE) -> 33076 | J79: 33076 | K79: =INDEX('Present Base Rates by Rate Code'!$A$4:$V$50,MATCH('GSLD(T)-1'!$B79,'Present Base Rates by Rate Code'!$A$4:$A$50,0),MATCH('GSLD(T)-1'!C79,'Present Base Rates by Rate Code'!$A$4:$V$4,0)) -> -0.3 | L79: -9922.8 | N79: 33076 | O79: =+O16 -> -0.23 | P79: -7607.48 | Q79: =P79-L79 -> 2315.32 | R79: 33076 | S79: =+S16 -> -0.23 | T79: -7607.48 | U79: =T79-P79 -> 0 | V79: 33076 | W79: =S79 -> -0.23 | X79: -7607.48 | Z79: =W79/K79-1 -> -0.2333333333 | AA79: 0.07
A80: SDTR - 264Subtotal | D80: 71 | E80: Subtotal | L80: =SUM(L73:L79) -> 41247003.29 | P80: =SUM(P73:P79) -> 49998429.65 | T80: =SUM(T73:T79) -> 49911026.77 | X80: =SUM(X73:X79) -> 50065852.37 | AA80: =P80/L80-1 -> 0.2121712043
A81: SDTR - 264CDR Credit | D81: 72 | E81: CDR Credit
A82: SDTR - 264Adder | B82: Seasonal Demand TOU Rider (SDTR) (500 - 1,999 kW) Option A Summer | C82: Commercial / Industrial Demand Rider (CDR) Adder per Customer | D82: 73 | E82: Adder | H82: =VLOOKUP($A82,'Billing Determinants (Units)'!$A$9:$B$1153,2,FALSE) -> 0 | J82: 0 | K82: =INDEX('Present Base Rates by Rate Code'!$A$4:$V$50,MATCH('GSLD(T)-1'!$B82,'Present Base Rates by Rate Code'!$A$4:$A$50,0),MATCH('GSLD(T)-1'!C82,'Present Base Rates by Rate Code'!$A$4:$V$4,0)) -> 140.52 | L82: =J82*K82 -> 0 | N82: =J82 -> 0 | O82: =O67 -> 150 | P82: =N82*O82 -> 0 | Q82: =P82-L82 -> 0 | R82: =N82 -> 0 | S82: =S67 -> 150 | T82: =R82*S82 -> 0 | U82: =T82-P82 -> 0 | V82: =N82 -> 0 | W82: =S82 -> 150 | X82: =V82*W82 -> 0 | Z82: =W82/K82-1 -> 0.06746370623 | AA82: =W82-K82 -> 9.48
A83: SDTR - 264Credit | B83: Seasonal Demand TOU Rider (SDTR) (500 - 1,999 kW) Option A Summer | C83: Commercial / Industrial Demand Rider Credit (CDR) ($/kW) | D83: 74 | E83: Credit | H83: =VLOOKUP($A83,'Billing Determinants (Units)'!$A$9:$B$1153,2,FALSE) -> 0 | J83: 0 | K83: =INDEX('Present Base Rates by Rate Code'!$A$4:$V$50,MATCH('GSLD(T)-1'!$B83,'Present Base Rates by Rate Code'!$A$4:$A$50,0),MATCH('GSLD(T)-1'!C83,'Present Base Rates by Rate Code'!$A$4:$V$4,0)) -> -8.2 | L83: =J83*K83 -> 0 | N83: =J83 -> 0 | O83: =O68 -> -5.26 | P83: =N83*O83 -> 0 | Q83: =P83-L83 -> 0 | R83: =N83 -> 0 | S83: =S68 -> -5.26 | T83: =R83*S83 -> 0 | U83: =T83-P83 -> 0 | V83: =N83 -> 0 | W83: =S83 -> -5.26 | X83: =V83*W83 -> 0 | Z83: =W83/K83-1 -> -0.3585365854 | AA83: =W83-K83 -> 2.94
A84: Total | D84: 75 | E84: Total | L84: =SUM(L80:L83) -> 41247003.29 | P84: =SUM(P80:P83) -> 49998429.65 | T84: =SUM(T80:T83) -> 49911026.77 | X84: =SUM(X80:X83) -> 50065852.37 | AA84: =X84/L84-1 -> 0.2138058132
D85: 76
D86: 77
A87: RATE SCHEDULE SDTR - 364 | D87: 78 | E87: RATE SCHEDULE SDTR - 364
D88: 79 | H88: Option B - GSLDT-1 | N88: Option B - GSLDT-1 | R88: Option B - GSLDT-1 | V88: Option B - GSLDT-1
A89: SDTR - 364Customer | B89: Seasonal Demand TOU Rider (SDTR) (500 - 1,999 kW) Option B Summer | C89: Customer Charge | D89: 80 | E89: Customer | H89: =VLOOKUP($A89,'Billing Determinants (Units)'!$A$9:$B$1153,2,FALSE) -> 259 | J89: 259 | K89: =INDEX('Present Base Rates by Rate Code'!$A$4:$V$50,MATCH('GSLD(T)-1'!$B89,'Present Base Rates by Rate Code'!$A$4:$A$50,0),MATCH('GSLD(T)-1'!C89,'Present Base Rates by Rate Code'!$A$4:$V$4,0)) -> 61.83 | L89: =J89*K89 -> 16013.97 | N89: =J89 -> 259 | O89: =+$O$25 -> 75 | P89: =N89*O89 -> 19425 | Q89: =P89-L89 -> 3411.03 | R89: =N89 -> 259 | S89: =ROUND(+$O$25,0) -> 75 | T89: =R89*S89 -> 19425 | U89: =T89-P89 -> 0 | V89: =N89 -> 259 | W89: =S89 -> 75 | X89: =V89*W89 -> 19425 | Z89: =+W89/K89-1 -> 0.2130033964 | AA89: =W89-K89 -> 13.17
A90: SDTR - 364Non-Fuel Energy - Seasonal On Peak | B90: Seasonal Demand TOU Rider (SDTR) (500 - 1,999 kW) Option B Summer | C90: On-Peak Energy Charge $/kWh | D90: 81 | E90: Non-Fuel Energy - Seasonal On Peak | H90: =VLOOKUP($A90,'Billing Determinants (Units)'!$A$9:$B$1153,2,FALSE) -> 1490844 | J90: 1490844 | K90: =INDEX('Present Base Rates by Rate Code'!$A$4:$V$50,MATCH('GSLD(T)-1'!$B90,'Present Base Rates by Rate Code'!$A$4:$A$50,0),MATCH('GSLD(T)-1'!C90,'Present Base Rates by Rate Code'!$A$4:$V$4,0)) -> 0.0504 | L90: 75138.5376 | N90: 1490844 | O90: =K90*(1+$Q$6) -> 0.06108768663 | P90: 91072.21109 | R90: 1490844 | S90: =ROUND(O90*(1+$U$6),5) -> 0.06109 | T90: 91075.65996 | V90: =N90 -> 1490844 | W90: ='SDTR Workpaper'!D42 -> 0.0633 | X90: 94370.4252 | Z90: 0.255952381 | AA90: 0.0129
A91: SDTR - 364Non-Fuel Energy - Seasonal Off Peak | B91: Seasonal Demand TOU Rider (SDTR) (500 - 1,999 kW) Option B Summer | C91: Off-Peak Energy Charge $/kWh | D91: 82 | E91: Non-Fuel Energy - Seasonal Off Peak | H91: =VLOOKUP($A91,'Billing Determinants (Units)'!$A$9:$B$1153,2,FALSE) -> 15556935 | J91: 15556935 | K91: =INDEX('Present Base Rates by Rate Code'!$A$4:$V$50,MATCH('GSLD(T)-1'!$B91,'Present Base Rates by Rate Code'!$A$4:$A$50,0),MATCH('GSLD(T)-1'!C91,'Present Base Rates by Rate Code'!$A$4:$V$4,0)) -> 0.01035 | L91: 161014.2772 | N91: 15556935 | O91: 0.01254479279 | P91: 195158.526 | R91: 15556935 | S91: =ROUND(O91*(1+$U$6),5) -> 0.01254 | T91: 195083.9649 | V91: 15556935 | W91: ='SDTR Workpaper'!D43 -> 0.01254 | X91: 195083.9649 | Z91: 0.2115942029 | AA91: 0.00219
A92: SDTR - 364Non-Fuel Energy - Non-Seasonal On Peak | B92: Seasonal Demand TOU Rider (SDTR) (500 - 1,999 kW) Option B Winter | C92: On-Peak Energy Charge $/kWh | D92: 83 | E92: Non-Fuel Energy - Non-Seasonal On Peak | H92: =VLOOKUP($A92,'Billing Determinants (Units)'!$A$9:$B$1153,2,FALSE) -> 5281435 | J92: 5281435 | K92: =INDEX('Present Base Rates by Rate Code'!$A$4:$V$50,MATCH('GSLD(T)-1'!$B92,'Present Base Rates by Rate Code'!$A$4:$A$50,0),MATCH('GSLD(T)-1'!C92,'Present Base Rates by Rate Code'!$A$4:$V$4,0)) -> 0.0271 | L92: 143126.8885 | N92: 5281435 | O92: 0.03284675214 | P92: 173477.9864 | R92: 5281435 | S92: =ROUND(O92*(1+$U$6),5) -> 0.03285 | T92: 173495.1397 | V92: 5281435 | W92: ='SDTR Workpaper'!D46 -> 0.03779 | X92: 199585.4286 | Z92: 0.3944649446 | AA92: 0.01069
A93: SDTR - 364Non-Fuel Energy - Non-Seasonal Off Peak | B93: Seasonal Demand TOU Rider (SDTR) (500 - 1,999 kW) Option B Winter | C93: Off-Peak Energy Charge $/kWh | D93: 84 | E93: Non-Fuel Energy - Non-Seasonal Off Peak | H93: =VLOOKUP($A93,'Billing Determinants (Units)'!$A$9:$B$1153,2,FALSE) -> 21498673 | J93: 21498673 | K93: =INDEX('Present Base Rates by Rate Code'!$A$4:$V$50,MATCH('GSLD(T)-1'!$B93,'Present Base Rates by Rate Code'!$A$4:$A$50,0),MATCH('GSLD(T)-1'!C93,'Present Base Rates by Rate Code'!$A$4:$V$4,0)) -> 0.01035 | L93: 222511.2655 | N93: 21498673 | O93: 0.01254479279 | P93: 269696.3981 | R93: 21498673 | S93: =ROUND(O93*(1+$U$6),5) -> 0.01254 | T93: 269593.3594 | V93: 21498673 | W93: ='SDTR Workpaper'!D47 -> 0.01254 | X93: 269593.3594 | Z93: 0.2115942029 | AA93: 0.00219
A94: SDTR - 364Demand - Seasonal On-Peak | B94: Seasonal Demand TOU Rider (SDTR) (500 - 1,999 kW) Option B Summer | C94: On-Peak Demand Charge $/kW | D94: 85 | E94: Demand - Seasonal On-Peak | H94: =VLOOKUP($A94,'Billing Determinants (Units)'!$A$9:$B$1153,2,FALSE) -> 31334 | J94: 31334 | K94: =INDEX('Present Base Rates by Rate Code'!$A$4:$V$50,MATCH('GSLD(T)-1'!$B94,'Present Base Rates by Rate Code'!$A$4:$A$50,0),MATCH('GSLD(T)-1'!C94,'Present Base Rates by Rate Code'!$A$4:$V$4,0)) -> 10.96 | L94: 343420.64 | N94: 31334 | O94: 13.28414773 | P94: 416245.4849 | R94: 31334 | S94: =ROUND(O94*(1+$U$6),1) -> 13.3 | T94: 416742.2 | V94: 31334 | W94: =W77 -> 12.5 | X94: 391675 | Z94: 0.1405109489 | AA94: 1.54
A95: SDTR - 364Demand - Non-Seasonal On Peak | B95: Seasonal Demand TOU Rider (SDTR) (500 - 1,999 kW) Option B Winter | C95: On-Peak Demand Charge $/kW | D95: 86 | E95: Demand - Non-Seasonal On Peak | H95: =VLOOKUP($A95,'Billing Determinants (Units)'!$A$9:$B$1153,2,FALSE) -> 68144 | J95: 68144 | K95: =INDEX('Present Base Rates by Rate Code'!$A$4:$V$50,MATCH('GSLD(T)-1'!$B95,'Present Base Rates by Rate Code'!$A$4:$A$50,0),MATCH('GSLD(T)-1'!C95,'Present Base Rates by Rate Code'!$A$4:$V$4,0)) -> 9.61 | L95: 654863.84 | N95: 68144 | O95: 11.64787041 | P95: 793732.4811 | R95: 68144 | S95: =ROUND(O95*(1+$U$6),1) -> 11.6 | T95: 790470.4 | V95: 68144 | W95: =W78 -> 11.9 | X95: 810913.6 | Z95: 0.2382934443 | AA95: 2.29
A96: SDTR - 364Transformation Credit | B96: Seasonal Demand TOU Rider (SDTR) (500 - 1,999 kW) Option B Summer | C96: Transformation Rider Credit ($/kW) | D96: 87 | E96: Transformation Credit | J96: 0 | K96: =INDEX('Present Base Rates by Rate Code'!$A$4:$V$50,MATCH('GSLD(T)-1'!$B96,'Present Base Rates by Rate Code'!$A$4:$A$50,0),MATCH('GSLD(T)-1'!C96,'Present Base Rates by Rate Code'!$A$4:$V$4,0)) -> -0.3 | L96: 0 | N96: 0 | O96: =O79 -> -0.23 | P96: 0 | Q96: =P96-L96 -> 0 | R96: 0 | S96: =S79 -> -0.23 | T96: 0 | U96: =T96-P96 -> 0 | V96: 0 | W96: =S96 -> -0.23 | X96: 0 | Z96: =W96/K96-1 -> -0.2333333333 | AA96: 0.07
A97: SDTR - 364Subtotal | D97: 88 | E97: Subtotal | L97: =SUM(L89:L96) -> 1616089.419 | P97: =SUM(P89:P96) -> 1958808.088 | T97: =SUM(T89:T96) -> 1955885.724 | X97: =SUM(X89:X96) -> 1980646.778 | AA97: =P97/L97-1 -> 0.2120666497
A98: SDTR - 364CDR Credit | D98: 89 | E98: CDR Credit
A99: SDTR - 364Adder | B99: Seasonal Demand TOU Rider (SDTR) (500 - 1,999 kW) Option B Summer | C99: Commercial / Industrial Demand Rider (CDR) Adder per Customer | D99: 90 | E99: Adder | H99: =VLOOKUP($A99,'Billing Determinants (Units)'!$A$9:$B$1153,2,FALSE) -> 0 | J99: 0 | K99: =INDEX('Present Base Rates by Rate Code'!$A$4:$V$50,MATCH('GSLD(T)-1'!$B99,'Present Base Rates by Rate Code'!$A$4:$A$50,0),MATCH('GSLD(T)-1'!C99,'Present Base Rates by Rate Code'!$A$4:$V$4,0)) -> 140.52 | L99: =H99*K99 -> 0 | N99: =J99 -> 0 | O99: =O82 -> 150 | P99: =N99*O99 -> 0 | Q99: =P99-L99 -> 0 | R99: =N99 -> 0 | S99: =S82 -> 150 | T99: =R99*S99 -> 0 | U99: =T99-P99 -> 0 | V99: =N99 -> 0 | W99: =S99 -> 150 | X99: =V99*W99 -> 0 | Z99: =W99/K99-1 -> 0.06746370623 | AA99: =W99-K99 -> 9.48
A100: SDTR - 364Credit | B100: Seasonal Demand TOU Rider (SDTR) (500 - 1,999 kW) Option B Summer | C100: Commercial / Industrial Demand Rider Credit (CDR) ($/kW) | D100: 91 | E100: Credit | H100: =VLOOKUP($A100,'Billing Determinants (Units)'!$A$9:$B$1153,2,FALSE) -> 0 | J100: 0 | K100: =INDEX('Present Base Rates by Rate Code'!$A$4:$V$50,MATCH('GSLD(T)-1'!$B100,'Present Base Rates by Rate Code'!$A$4:$A$50,0),MATCH('GSLD(T)-1'!C100,'Present Base Rates by Rate Code'!$A$4:$V$4,0)) -> -8.2 | L100: =H100*K100 -> 0 | N100: =J100 -> 0 | O100: =O83 -> -5.26 | P100: =N100*O100 -> 0 | Q100: =P100-L100 -> 0 | R100: =N100 -> 0 | S100: =S83 -> -5.26 | T100: =R100*S100 -> 0 | U100: =T100-P100 -> 0 | V100: =N100 -> 0 | W100: =S100 -> -5.26 | X100: =V100*W100 -> 0 | Z100: =W100/K100-1 -> -0.3585365854 | AA100: =W100-K100 -> 2.94
D101: 92 | E101: Total | L101: =SUM(L97:L100) -> 1616089.419 | P101: =SUM(P97:P100) -> 1958808.088 | T101: =SUM(T97:T100) -> 1955885.724 | X101: =SUM(X97:X100) -> 1980646.778 | AA101: =X101/L101-1 -> 0.2255799432
D102: 93
D103: 94 | E103: TOTALS | L103: =L21+L35+L44+L55+L69+L84+L101 -> 369413386 | P103: =P21+P35+P44+P55+P69+P84+P101 -> 454407840.4 | Q103: =SUM(Q13:Q100) -> 4705459.258 | T103: =T21+T35+T44+T55+T69+T84+T101 -> 454879829.6 | U103: =SUM(U13:U100) -> 0 | X103: =X21+X35+X44+X55+X69+X84+X101 -> 456077150.3
D104: 95
D105: 96 | N105: a | O105: target revenue | P105: =('E-8 Parity Analysis Final'!W21*1000)+L103 -> 454407840.4 | R105: a | S105: target revenue | T105: =P105 -> 454407840.4 | W105: Increase | X105: =X103-L103 -> 86663764.36
D106: 97 | E106: Calculate Revenue Neutrality for Current Rates Before applying increase | N106: b | O106: Present revenue | P106: =L103 -> 369413386 | R106: b | S106: Present revenue | T106: =P103 -> 454407840.4 | W106: Target | X106: =P114 -> 84994454.44
D107: 98 | N107: c | O107: Proposed Increase | P107: =P105-P106 -> 84994454.44 | R107: c | S107: Proposed Increase | T107: =T105-T106 -> 0 | W107: Diff | X107: =X105-X106 -> 1669309.912
D108: 99 | N108: d | O108: Override Revenue | P108: =Q103 -> 4705459.258 | R108: d | S108: Override Revenue | T108: =U103 -> 0 | W108: Adj | X108: =ROUND(0.000191005371049316,5) -> 0.00019
D109: 100 | E109: TOU Off-Peak Energy | H109: =S28 -> 0.01254 | N109: e | O109: Increase of Non-Override Revenue | P109: =P107-P108 -> 80288995.19 | R109: e | S109: Increase of Non-Override Revenue | T109: =T107+T108 -> 0
D110: 101 | N110: f | O110: Non-Override Revenue | P110: =L14+L15+L27+L28+L29+L40+L41+L50+L51+L52+L60+L61+L62+L63+L74+L75+L76+L77+L78+L90+L91+L92+L93+L94+L95 -> 378619386.6 | R110: f | S110: Non-Override Revenue | T110: =P14+P15+P27+P28+P29+P40+P41+P50+P51+P52+P60+P61+P62+P63+P74+P75+P76+P77+P78+P90+P91+P92+P93+P94+P95 -> 458908381.7
D111: 102 | N111: g | O111: adjustment factor | P111: =P109/P110 -> 0.2120572745 | R111: g | S111: adjustment factor | T111: =T109/T110 -> 0 | W111: UI | X111: 476119179
D112: 103 | E112: TOU revenue neutral calculation | G112: Step 1 | W112: Difference | X112: =X103-X111 -> -20042028.64
D113: 104 | E113: on pk class average per Load Research Study | F113: 0.3040045634 | H113: Energy Revenue | O113: Increase | P113: =P103-L103 -> 84994454.44 | S113: Increase | T113: =T103-P103 -> 471989.1799
D114: 105 | E114: on peak | F114: =((+SUM($J$27:$J$28))+(SUM($J$50:$J$51)))*$F$113 -> 1391592058 | G114: =ROUND((H117-H115)/F114,5) -> 0.02892 | H114: =+F114*G114 -> 40244842.32 | I114: =ROUND(IF(G114>G115,G114,H116/F117),5) -> 0.02892 | O114: Target Increase | P114: ='E-8 Parity Analysis Final'!W21*1000 -> 84994454.44 | S114: Target Increase | T114: =T109 -> 0
D115: 106 | E115: off peak | F115: =((+SUM($J$27:$J$28))+(SUM($J$50:$J$51)))-F114 -> 3185944683 | G115: =H109 -> 0.01254 | H115: =+F115*G115 -> 39951746.32 | I115: =ROUND(IF(G114>G115,G115,H116/F117),5) -> 0.01254 | O115: Difference | P115: =P113-P114 -> 0 | S115: Difference | T115: =T113-T114 -> 471989.1799
D116: 107 | E116: total at class on-pk | H116: =SUM(H114:H115) -> 80196588.65
D117: 108 | E117: total rev required at GSLD1 rates | F117: =SUM(F114:F115) -> 4577536741 | G117: =W14 -> 0.01752 | H117: =G117*F117 -> 80198443.7
D118: 109 | E118: Difference | H118: =+H116-H117 -> -1855.056212
D119: 110 | L119: Step 1 - Set customer charge and CDR adder (if applicable) based on customer charge workpaper; transformation credit (if applicable) based on transformer credit workpaper; curtailment credit (if applicable) based on present curtailment credit;
D120: 111 | L120: and CDR credit (if applicable) based on CILC/CDR credit workpaper. These revenues/credits become "override revenues". Exclude override revenue from % increase calculations and apply the percent increase to only non-override rates.
D121: 112 | E121: HLFT Revenue at GSLD-1 rate and target Load Factor | L121: Step 2 - Round results of Step 1
D122: 113 | E122: Target Load Factor | G122: 0.7 | L122: Step 3 - Calculate revenue neutral and/or rounding adjustment. For rate classes with SDTR, refer to SDTR workpaper.
D123: 114 | E123: Average Class On-Peak % | G123: =+F113 -> 0.3040045634 | H123: =100%-G123 -> 0.6959954366 | L123: Step 4 - Compare to Unit Costs for reasonableness. Depending on changes in other rates (Customer, Demand, etc.), unit costs may differ from final energy rates to achieve target revenues.
D124: 115 | H124: Parent rates
D125: 116 | E125: accounts | G125: =+N59 -> 3430 | H125: =W13 -> 75 | I125: =G125*H125 -> 257250
D126: 117 | E126: kW | F126: on-peak kw | G126: =+N62 -> 2335909 | H126: =W15 -> 12.1 | I126: =G126*H126 -> 28264498.9
D127: 118 | E127: kWh | F127: max pk kw *8760*70% | G127: =(N63/12)*8760*G122 -> 1265949356 | H127: =W14 -> 0.01752 | I127: =G127*H127 -> 22179432.72
D128: 119 | E128: Total Revenue required | I128: =SUM(I125:I127) -> 50701181.62
D129: 120 | E129: Proposed HLFT Demand/Customer Rev | I129: =+SUM(X59,X62:X63) -> 36845854.4
D130: 121 | E130: Net Energy Revenue required | I130: =I128-I129 -> 13855327.22
D131: 122
D132: 123
D133: 124 | E133: Adjusted Energy Charges
D134: 125 | E134: HLFT Off-Peak Energy | H134: =S61 -> 0.01073
D135: 126
D136: 127 | E136: kWh On-Peak | G136: =G127*G123 -> 384854381.2 | H136: =ROUND((I130-I137)/G136,5) -> 0.01144 | I136: =G136*H136 -> 4402734.121 | J136: =ROUND(IF(H136>H137,H136,I138/G138),5) -> 0.01144
D137: 128 | E137: kWh Off-Peak | G137: =G127-G136 -> 881094974.8 | H137: =H134 -> 0.01073 | I137: =G137*H137 -> 9454149.079 | J137: =ROUND(IF(H136>H137,H137,I138/G138),5) -> 0.01073
D138: 129 | E138: Total | G138: =SUM(G136:G137) -> 1265949356 | H138: =H136-H137 -> 0.00071 | I138: =SUM(I136:I137) -> 13856883.2
D139: 130 | E139: Difference | I139: =I138-I130 -> 1555.983422

Sheet GSLD(T)-2
A1: OPC 015168
A2: FPL RC-16
D4: MFR E-14 Workpapers - 2017
D5: Rate Class GSLD(T)-2 | J5: Present Revenues (with WCEC3 in Base) | N5: Percent increase calculation | R5: Rounded | V5: Final adjustments to achieve target revenues
Q6: =P111 -> 0.2080038815 | U6: 0 | AB6: =(X103-L103)/L103 -> 0.2327244946
A7: Ref. for linking data | E7: -1 | F7: =E7-1 -> -2 | G7: =F7-1 -> -3 | H7: -4 | I7: -5 | J7: -6 | K7: -7 | L7: -8 | M7: -9 | N7: -10 | O7: -11 | P7: -12 | Q7: -13 | R7: -14 | S7: -15 | T7: -16 | U7: -17 | V7: -18 | W7: -19 | X7: -20 | Y7: -21 | Z7: -22 | AA7: -23
D8: Line | E8: TYPE OF | H8: PRESENT REVENUE CALCULATION | N8: PROPOSED REVENUE CALCULATION | R8: PROPOSED REVENUE CALCULATION | V8: PROPOSED REVENUE CALCULATION
D9: No. | E9: CHARGES | H9: UNITS | J9: UNITS | K9: CHARGE/UNIT | L9: $ REVENUE | N9: UNITS | O9: CHARGE/UNIT | P9: $ REVENUE | R9: UNITS | S9: CHARGE/UNIT | T9: $ REVENUE | V9: UNITS | W9: CHARGE/UNIT | X9: $ REVENUE | AA9: INCREASE
A10: Reference for Billing Units | B10: Reference for Rates | C10: Reference for Rates | D10: 1 | Q10: Override | U10: Override | AD10: Comparison of Unit Costs to Calculated Rates
D11: =D10+1 -> 2 | E11: RATE SCHEDULE GSLD-2 - 63 | Q11: Revenue | U11: Revenue | AC11: Override
D12: =D11+1 -> 3 | AC12: Calculated
A13: GSLD-2 - 63Customer | B13: General Service Large Demand (GSLD-2) | C13: Customer Charge | D13: 4 | E13: Customer | H13: =VLOOKUP($A13,'Billing Determinants (Units)'!$A$9:$B$1153,2,FALSE) -> 456 | J13: =H13+I13 -> 456 | K13: =INDEX('Present Base Rates by Rate Code'!$A$4:$V$50,MATCH('GSLD(T)-2'!$B13,'Present Base Rates by Rate Code'!$A$4:$A$50,0),MATCH('GSLD(T)-2'!C13,'Present Base Rates by Rate Code'!$A$4:$V$4,0)) -> 219.22 | L13: =J13*K13 -> 99964.32 | N13: =J13 -> 456 | O13: ='E-6b Proposed Equalized'!$K$69 -> 250 | P13: =N13*O13 -> 114000 | Q13: =P13-L13 -> 14035.68 | R13: =N13 -> 456 | S13: =ROUND(O13,0) -> 250 | T13: =R13*S13 -> 114000 | U13: =T13-P13 -> 0 | V13: =J13 -> 456 | W13: =S13 -> 250 | X13: =V13*W13 -> 114000 | Z13: =W13/K13-1 -> 0.1404068972 | AA13: =W13-K13 -> 30.78
A14: GSLD-2 - 63Non-Fuel Energy | B14: General Service Large Demand (GSLD-2) | C14: Energy Charges $/kWh | D14: 5 | E14: Non-Fuel Energy | H14: =VLOOKUP($A14,'Billing Determinants (Units)'!$A$9:$B$1153,2,FALSE) -> 492140915 | J14: =H14+I14 -> 492140915 | K14: =INDEX('Present Base Rates by Rate Code'!$A$4:$V$50,MATCH('GSLD(T)-2'!$B14,'Present Base Rates by Rate Code'!$A$4:$A$50,0),MATCH('GSLD(T)-2'!C14,'Present Base Rates by Rate Code'!$A$4:$V$4,0)) -> 0.01287 | L14: =J14*K14 -> 6333853.576 | N14: =J14 -> 492140915 | O14: =K14*(1+$Q$6) -> 0.01554700996 | P14: =N14*O14 -> 7651319.705 | R14: =N14 -> 492140915 | S14: =ROUND(O14*(1+$U$6),5) -> 0.01555 | T14: =R14*S14 -> 7652791.228 | V14: =J14 -> 492140915 | W14: =S14+X108 -> 0.01563 | X14: =V14*W14 -> 7692162.501 | Z14: =W14/K14-1 -> 0.2144522145 | AA14: =W14-K14 -> 0.00276 | AF14: Demand | AI14: Energy
A15: GSLD-2 - 63Demand | B15: General Service Large Demand (GSLD-2) | C15: Demand Charge $/kW | D15: 6 | E15: Demand | H15: =VLOOKUP($A15,'Billing Determinants (Units)'!$A$9:$B$1153,2,FALSE) -> 1130095 | J15: 1130095 | K15: =INDEX('Present Base Rates by Rate Code'!$A$4:$V$50,MATCH('GSLD(T)-2'!$B15,'Present Base Rates by Rate Code'!$A$4:$A$50,0),MATCH('GSLD(T)-2'!C15,'Present Base Rates by Rate Code'!$A$4:$V$4,0)) -> 10.28 | L15: =J15*K15 -> 11617376.6 | N15: 1130095 | O15: =K15*(1+$Q$6) -> 12.4182799 | P15: =N15*O15 -> 14033836.03 | R15: 1130095 | S15: =ROUND(O15*(1+$U$6),1) -> 12.4 | T15: =R15*S15 -> 14013178 | V15: =J15 -> 1130095 | W15: =S15 -> 12.4 | X15: =V15*W15 -> 14013178 | Z15: =W15/K15-1 -> 0.2062256809 | AA15: =W15-K15 -> 2.12
A16: GSLD-2 - 63Transformation Credit | B16: General Service Large Demand (GSLD-2) | C16: Transformation Rider Credit ($/kW) | D16: 7 | E16: Transformation Credit | H16: =VLOOKUP($A16,'Billing Determinants (Units)'!$A$9:$B$1153,2,FALSE) -> 289104 | J16: 289104 | K16: =INDEX('Present Base Rates by Rate Code'!$A$4:$V$50,MATCH('GSLD(T)-2'!$B16,'Present Base Rates by Rate Code'!$A$4:$A$50,0),MATCH('GSLD(T)-2'!C16,'Present Base Rates by Rate Code'!$A$4:$V$4,0)) -> -0.3 | L16: =J16*K16 -> -86731.2 | N16: 289104 | O16: ='Transformer Credit'!$E$9 -> -0.23 | P16: =N16*O16 -> -66493.92 | Q16: =P16-L16 -> 20237.28 | R16: 289104 | S16: =O16 -> -0.23 | T16: =R16*S16 -> -66493.92 | U16: =T16-P16 -> 0 | V16: =J16 -> 289104 | W16: =S16 -> -0.23 | X16: =V16*W16 -> -66493.92 | Z16: =W16/K16-1 -> -0.2333333333 | AA16: =W16-K16 -> 0.07
A17: GSLD-2 - 63Subtotal | B17: General Service Large Demand (GSLD-2) | D17: 8 | E17: Subtotal | L17: =SUM(L13:L16) -> 17964463.3 | P17: =SUM(P13:P16) -> 21732661.81 | T17: =SUM(T13:T16) -> 21713475.31 | X17: =SUM(X13:X16) -> 21752846.58 | AA17: =X17/L17-1 -> 0.2108820744 | AD17: Billing Units | AE17: kW | AF17: =V15+V29+V41+V52+V63+V77+V78+V94+V95 -> 4601023 | AH17: kWh | AI17: =V14+V27+V28+V40+V50+V51+V60+V61+V74+V75+V76+V90+V91+V92+V93 -> 2515470925
A18: GSLD-2 - 63CDR Credit | B18: General Service Large Demand (GSLD-2) | D18: 9 | E18: CDR Credit
A19: GSLD-2 - 63Adder | B19: General Service Large Demand (GSLD-2) | C19: Commercial / Industrial Demand Rider (CDR) Adder per Customer | D19: 10 | E19: Adder | H19: =VLOOKUP($A19,'Billing Determinants (Units)'!$A$9:$B$1153,2,FALSE) -> 79 | J19: 79 | K19: =INDEX('Present Base Rates by Rate Code'!$A$4:$V$50,MATCH('GSLD(T)-2'!$B19,'Present Base Rates by Rate Code'!$A$4:$A$50,0),MATCH('GSLD(T)-2'!C19,'Present Base Rates by Rate Code'!$A$4:$V$4,0)) -> 56.21 | L19: =J19*K19 -> 4440.59 | N19: 79 | O19: ='E-6b Proposed Equalized'!$K$75 -> 75 | P19: =N19*O19 -> 5925 | Q19: =P19-L19 -> 1484.41 | R19: 79 | S19: =O19 -> 75 | T19: =R19*S19 -> 5925 | U19: =T19-P19 -> 0 | V19: =J19 -> 79 | W19: =S19 -> 75 | X19: =V19*W19 -> 5925 | Z19: =W19/K19-1 -> 0.3342821562 | AA19: =W19-K19 -> 18.79 | AD19: Unit Costs per E-6b | AF19: ='E-6b Proposed Equalized'!K31 -> 15.05 | AI19: ='E-6b Proposed Equalized'!K41 -> 0.01175
A20: GSLD-2 - 63Credit | B20: General Service Large Demand (GSLD-2) | C20: Commercial / Industrial Demand Rider Credit (CDR) ($/kW) | D20: 11 | E20: Credit | H20: =VLOOKUP($A20,'Billing Determinants (Units)'!$A$9:$B$1153,2,FALSE) -> 144297.2269 | J20: 144297.2269 | K20: =INDEX('Present Base Rates by Rate Code'!$A$4:$V$50,MATCH('GSLD(T)-2'!$B20,'Present Base Rates by Rate Code'!$A$4:$A$50,0),MATCH('GSLD(T)-2'!C20,'Present Base Rates by Rate Code'!$A$4:$V$4,0)) -> -8.2 | L20: =J20*K20 -> -1183237.261 | N20: 144297.2269 | O20: ='CDR Credit'!D13 -> -5.26 | P20: =N20*O20 -> -759003.4136 | Q20: =P20-L20 -> 424233.8471 | R20: 144297.2269 | S20: =O20 -> -5.26 | T20: =R20*S20 -> -759003.4136 | U20: =T20-P20 -> 0 | V20: =J20 -> 144297.2269 | W20: =S20 -> -5.26 | X20: =V20*W20 -> -759003.4136 | Z20: =W20/K20-1 -> -0.3585365854 | AA20: =W20-K20 -> 2.94
A21: Total | D21: 12 | E21: Total | L21: =SUM(L17:L20) -> 16785666.63 | P21: =SUM(P17:P20) -> 20979583.4 | T21: =SUM(T17:T20) -> 20960396.89 | X21: =SUM(X17:X20) -> 20999768.17 | AA21: =X21/L21-1 -> 0.2510535707 | AD21: Rate Calculated | AF21: =W15 -> 12.4 | AI21: =W28 -> 0.01212
D22: 13
A23: RATE SCHEDULE GSLDT-2 - 65 | D23: 14 | E23: RATE SCHEDULE GSLDT-2 - 65 | AD23: Difference | AF23: =AF21-AF19 -> -2.65 | AI23: =AI21-AI19 -> 0.00037
D24: 15 | AD24: % Difference | AF24: =AF23/AF19 -> -0.1760797342 | AI24: =AI23/AI19 -> 0.0314893617
A25: GSLDT-2 - 65Customer | B25: General Service Large Demand-TOU (GSLDT-2) | C25: Customer Charge | D25: 16 | E25: Customer | H25: =VLOOKUP($A25,'Billing Determinants (Units)'!$A$9:$B$1153,2,FALSE) -> 822 | J25: 822 | K25: =INDEX('Present Base Rates by Rate Code'!$A$4:$V$50,MATCH('GSLD(T)-2'!$B25,'Present Base Rates by Rate Code'!$A$4:$A$50,0),MATCH('GSLD(T)-2'!C25,'Present Base Rates by Rate Code'!$A$4:$V$4,0)) -> 219.22 | L25: =J25*K25 -> 180198.84 | N25: 822 | O25: =O13 -> 250 | P25: =N25*O25 -> 205500 | Q25: =P25-L25 -> 25301.16 | R25: 822 | S25: =S13 -> 250 | T25: =R25*S25 -> 205500 | U25: =T25-P25 -> 0 | V25: =J25 -> 822 | W25: =S25 -> 250 | X25: =V25*W25 -> 205500 | Z25: =W25/K25-1 -> 0.1404068972 | AA25: =W25-K25 -> 30.78
A26: GSLDT-2 - 65Non-Fuel Energy | B26: General Service Large Demand-TOU (GSLDT-2) | D26: 17 | E26: Non-Fuel Energy | AD26: Note: The use of the percent increase method maintains the shift of
A27: GSLDT-2 - 65Non-Fuel Energy - On Peak | B27: General Service Large Demand-TOU (GSLDT-2) | C27: On-Peak Energy Charge $/kWh | D27: 18 | E27: Non-Fuel Energy - On Peak | H27: =VLOOKUP($A27,'Billing Determinants (Units)'!$A$9:$B$1153,2,FALSE) -> 220427263 | J27: 220427263 | K27: =INDEX('Present Base Rates by Rate Code'!$A$4:$V$50,MATCH('GSLD(T)-2'!$B27,'Present Base Rates by Rate Code'!$A$4:$A$50,0),MATCH('GSLD(T)-2'!C27,'Present Base Rates by Rate Code'!$A$4:$V$4,0)) -> 0.02041 | L27: =J27*K27 -> 4498920.438 | N27: 220427263 | O27: =K27*(1+$Q$6) -> 0.02465535922 | P27: =N27*O27 -> 5434713.352 | R27: 220427263 | S27: =ROUND(O27*(1+$U$6),5) -> 0.02466 | T27: =R27*S27 -> 5435736.306 | V27: =J27 -> 220427263 | W27: =I114 -> 0.02454 | X27: =V27*W27 -> 5409285.034 | Z27: =W27/K27-1 -> 0.2023517883 | AA27: =W27-K27 -> 0.00413 | AD27: some demand costs to energy charges approved in past rate cases
A28: GSLDT-2 - 65Non-Fuel Energy - Off Peak | B28: General Service Large Demand-TOU (GSLDT-2) | C28: Off-Peak Energy Charge $/kWh | D28: 19 | E28: Non-Fuel Energy - Off Peak | H28: =VLOOKUP($A28,'Billing Determinants (Units)'!$A$9:$B$1153,2,FALSE) -> 723538296 | J28: 723538296 | K28: =INDEX('Present Base Rates by Rate Code'!$A$4:$V$50,MATCH('GSLD(T)-2'!$B28,'Present Base Rates by Rate Code'!$A$4:$A$50,0),MATCH('GSLD(T)-2'!C28,'Present Base Rates by Rate Code'!$A$4:$V$4,0)) -> 0.01003 | L28: =J28*K28 -> 7257089.109 | N28: 723538296 | O28: =K28*(1+$Q$6) -> 0.01211627893 | P28: =N28*O28 -> 8766591.812 | R28: 723538296 | S28: =ROUND(O28*(1+$U$6),5) -> 0.01212 | T28: =R28*S28 -> 8769284.148 | V28: =J28 -> 723538296 | W28: =I115 -> 0.01212 | X28: =V28*W28 -> 8769284.148 | Z28: =W28/K28-1 -> 0.2083748754 | AA28: =W28-K28 -> 0.00209 | AD28: to limit impacts to low load factor customers.
A29: GSLDT-2 - 65Demand | B29: General Service Large Demand-TOU (GSLDT-2) | C29: On-Peak Demand Charge $/kW | D29: 20 | E29: Demand | H29: =VLOOKUP($A29,'Billing Determinants (Units)'!$A$9:$B$1153,2,FALSE) -> 1622776 | J29: 1622776 | K29: =INDEX('Present Base Rates by Rate Code'!$A$4:$V$50,MATCH('GSLD(T)-2'!$B29,'Present Base Rates by Rate Code'!$A$4:$A$50,0),MATCH('GSLD(T)-2'!C29,'Present Base Rates by Rate Code'!$A$4:$V$4,0)) -> 10.28 | L29: =J29*K29 -> 16682137.28 | N29: 1622776 | O29: =K29*(1+$Q$6) -> 12.4182799 | P29: =N29*O29 -> 20152086.59 | R29: 1622776 | S29: =ROUND(O29*(1+$U$6),1) -> 12.4 | T29: =R29*S29 -> 20122422.4 | V29: =J29 -> 1622776 | W29: =S29 -> 12.4 | X29: =V29*W29 -> 20122422.4 | Z29: =W29/K29-1 -> 0.2062256809 | AA29: =W29-K29 -> 2.12
A30: GSLDT-2 - 65Transformation Credit | B30: General Service Large Demand-TOU (GSLDT-2) | C30: Transformation Rider Credit ($/kW) | D30: 21 | E30: Transformation Credit | H30: =VLOOKUP($A30,'Billing Determinants (Units)'!$A$9:$B$1153,2,FALSE) -> 336544 | J30: 336544 | K30: =INDEX('Present Base Rates by Rate Code'!$A$4:$V$50,MATCH('GSLD(T)-2'!$B30,'Present Base Rates by Rate Code'!$A$4:$A$50,0),MATCH('GSLD(T)-2'!C30,'Present Base Rates by Rate Code'!$A$4:$V$4,0)) -> -0.3 | L30: =J30*K30 -> -100963.2 | N30: 336544 | O30: =+O16 -> -0.23 | P30: =N30*O30 -> -77405.12 | Q30: =P30-L30 -> 23558.08 | R30: 336544 | S30: =+S16 -> -0.23 | T30: =R30*S30 -> -77405.12 | U30: =T30-P30 -> 0 | V30: =J30 -> 336544 | W30: =S30 -> -0.23 | X30: =V30*W30 -> -77405.12 | Z30: =W30/K30-1 -> -0.2333333333 | AA30: =W30-K30 -> 0.07
A31: GSLDT-2 - 65Subtotal | B31: General Service Large Demand-TOU (GSLDT-2) | D31: 22 | E31: Subtotal | L31: =SUM(L25:L30) -> 28517382.47 | P31: =SUM(P25:P30) -> 34481486.63 | T31: =SUM(T25:T30) -> 34455537.73 | X31: =SUM(X25:X30) -> 34429086.46 | AA31: =X31/L31-1 -> 0.2073017747
A32: GSLDT-2 - 65CDR Credit | B32: General Service Large Demand-TOU (GSLDT-2) | D32: 23 | E32: CDR Credit
A33: GSLDT-2 - 65Adder | B33: General Service Large Demand-TOU (GSLDT-2) | C33: Commercial / Industrial Demand Rider (CDR) Adder per Customer | D33: 24 | E33: Adder | H33: =VLOOKUP($A33,'Billing Determinants (Units)'!$A$9:$B$1153,2,FALSE) -> 132 | J33: 132 | K33: =INDEX('Present Base Rates by Rate Code'!$A$4:$V$50,MATCH('GSLD(T)-2'!$B33,'Present Base Rates by Rate Code'!$A$4:$A$50,0),MATCH('GSLD(T)-2'!C33,'Present Base Rates by Rate Code'!$A$4:$V$4,0)) -> 56.21 | L33: =J33*K33 -> 7419.72 | N33: 132 | O33: =O19 -> 75 | P33: =N33*O33 -> 9900 | Q33: =P33-L33 -> 2480.28 | R33: 132 | S33: =S19 -> 75 | T33: =R33*S33 -> 9900 | U33: =T33-P33 -> 0 | V33: =J33 -> 132 | W33: =S33 -> 75 | X33: =V33*W33 -> 9900 | Z33: =W33/K33-1 -> 0.3342821562 | AA33: =W33-K33 -> 18.79
A34: GSLDT-2 - 65Credit | B34: General Service Large Demand-TOU (GSLDT-2) | C34: Commercial / Industrial Demand Rider Credit (CDR) ($/kW) | D34: 25 | E34: Credit | H34: =VLOOKUP($A34,'Billing Determinants (Units)'!$A$9:$B$1153,2,FALSE) -> 201723.3925 | J34: 201723.3925 | K34: =INDEX('Present Base Rates by Rate Code'!$A$4:$V$50,MATCH('GSLD(T)-2'!$B34,'Present Base Rates by Rate Code'!$A$4:$A$50,0),MATCH('GSLD(T)-2'!C34,'Present Base Rates by Rate Code'!$A$4:$V$4,0)) -> -8.2 | L34: =J34*K34 -> -1654131.818 | N34: 201723.3925 | O34: =O20 -> -5.26 | P34: =N34*O34 -> -1061065.044 | Q34: =P34-L34 -> 593066.7739 | R34: 201723.3925 | S34: =S20 -> -5.26 | T34: =R34*S34 -> -1061065.044 | U34: =T34-P34 -> 0 | V34: =J34 -> 201723.3925 | W34: =S34 -> -5.26 | X34: =V34*W34 -> -1061065.044 | Z34: =W34/K34-1 -> -0.3585365854 | AA34: =W34-K34 -> 2.94
A35: Total | D35: 26 | E35: Total | L35: =SUM(L31:L34) -> 26870670.37 | P35: =SUM(P31:P34) -> 33430321.59 | T35: =SUM(T31:T34) -> 33404372.69 | X35: =SUM(X31:X34) -> 33377921.42 | AA35: =X35/L35-1 -> 0.2421692857
D36: 27
A37: RATE SCHEDULE CS-2 - 71 | D37: 28 | E37: RATE SCHEDULE CS-2 - 71
D38: 29
A39: CS-2 - 71Customer | B39: Curtailable Service (CS-2) | C39: Customer Charge | D39: 30 | E39: Customer | H39: =VLOOKUP($A39,'Billing Determinants (Units)'!$A$9:$B$1153,2,FALSE) -> 12 | J39: 12 | K39: =INDEX('Present Base Rates by Rate Code'!$A$4:$V$50,MATCH('GSLD(T)-2'!$B39,'Present Base Rates by Rate Code'!$A$4:$A$50,0),MATCH('GSLD(T)-2'!C39,'Present Base Rates by Rate Code'!$A$4:$V$4,0)) -> 247.32 | L39: =J39*K39 -> 2967.84 | N39: 12 | O39: =O25+25 -> 275 | P39: =N39*O39 -> 3300 | Q39: =P39-L39 -> 332.16 | R39: 12 | S39: =ROUND(O39,0) -> 275 | T39: =R39*S39 -> 3300 | U39: =T39-P39 -> 0 | V39: =J39 -> 12 | W39: =S39 -> 275 | X39: =V39*W39 -> 3300 | Z39: =+W39/K39-1 -> 0.11191978 | AA39: =W39-K39 -> 27.68
A40: CS-2 - 71Non-Fuel Energy | B40: Curtailable Service (CS-2) | C40: Energy Charges $/kWh | D40: 31 | E40: Non-Fuel Energy | H40: =VLOOKUP($A40,'Billing Determinants (Units)'!$A$9:$B$1153,2,FALSE) -> 24329965 | J40: 24329965 | K40: =INDEX('Present Base Rates by Rate Code'!$A$4:$V$50,MATCH('GSLD(T)-2'!$B40,'Present Base Rates by Rate Code'!$A$4:$A$50,0),MATCH('GSLD(T)-2'!C40,'Present Base Rates by Rate Code'!$A$4:$V$4,0)) -> 0.01287 | L40: =J40*K40 -> 313126.6495 | N40: 24329965 | O40: =O14 -> 0.01554700996 | P40: =N40*O40 -> 378258.2081 | R40: 24329965 | S40: =S14 -> 0.01555 | T40: =R40*S40 -> 378330.9557 | V40: =J40 -> 24329965 | W40: =W14 -> 0.01563 | X40: =V40*W40 -> 380277.3529 | Z40: =+W40/K40-1 -> 0.2144522145 | AA40: =W40-K40 -> 0.00276
A41: CS-2 - 71Demand | B41: Curtailable Service (CS-2) | C41: Demand Charge $/kW | D41: 32 | E41: Demand | H41: =VLOOKUP($A41,'Billing Determinants (Units)'!$A$9:$B$1153,2,FALSE) -> 52755 | J41: 52755 | K41: =INDEX('Present Base Rates by Rate Code'!$A$4:$V$50,MATCH('GSLD(T)-2'!$B41,'Present Base Rates by Rate Code'!$A$4:$A$50,0),MATCH('GSLD(T)-2'!C41,'Present Base Rates by Rate Code'!$A$4:$V$4,0)) -> 10.28 | L41: =J41*K41 -> 542321.4 | N41: 52755 | O41: =O15 -> 12.4182799 | P41: =N41*O41 -> 655126.3562 | R41: 52755 | S41: =S15 -> 12.4 | T41: =R41*S41 -> 654162 | V41: =J41 -> 52755 | W41: =S41 -> 12.4 | X41: =V41*W41 -> 654162 | Z41: =+W41/K41-1 -> 0.2062256809 | AA41: =W41-K41 -> 2.12
A42: CS-2 - 71Transformation Credit | B42: Curtailable Service (CS-2) | C42: Transformation Rider Credit ($/kW) | D42: 33 | E42: Transformation Credit | H42: =VLOOKUP($A42,'Billing Determinants (Units)'!$A$9:$B$1153,2,FALSE) -> 38598 | J42: 38598 | K42: =INDEX('Present Base Rates by Rate Code'!$A$4:$V$50,MATCH('GSLD(T)-2'!$B42,'Present Base Rates by Rate Code'!$A$4:$A$50,0),MATCH('GSLD(T)-2'!C42,'Present Base Rates by Rate Code'!$A$4:$V$4,0)) -> -0.3 | L42: =J42*K42 -> -11579.4 | N42: 38598 | O42: =O30 -> -0.23 | P42: =N42*O42 -> -8877.54 | Q42: =P42-L42 -> 2701.86 | R42: 38598 | S42: =S30 -> -0.23 | T42: =R42*S42 -> -8877.54 | U42: =T42-P42 -> 0 | V42: =J42 -> 38598 | W42: =S42 -> -0.23 | X42: =V42*W42 -> -8877.54 | Z42: =W42/K42-1 -> -0.2333333333 | AA42: =W42-K42 -> 0.07
A43: CS-2 - 71Curtailable Credit | B43: Curtailable Service (CS-2) | C43: Curtailment Credit ($/kW) | D43: 34 | E43: Curtailable Credit | H43: =-VLOOKUP($A43,'Billing Determinants (Units)'!$A$9:$B$1153,2,FALSE) -> 30809 | J43: 30809 | K43: =INDEX('Present Base Rates by Rate Code'!$A$4:$V$50,MATCH('GSLD(T)-2'!$B43,'Present Base Rates by Rate Code'!$A$4:$A$50,0),MATCH('GSLD(T)-2'!C43,'Present Base Rates by Rate Code'!$A$4:$V$4,0)) -> -1.93 | L43: =J43*K43 -> -59461.37 | N43: 30809 | O43: =K43 -> -1.93 | P43: =N43*O43 -> -59461.37 | Q43: =P43-L43 -> 0 | R43: 30809 | S43: =O43 -> -1.93 | T43: =R43*S43 -> -59461.37 | U43: =T43-P43 -> 0 | V43: =J43 -> 30809 | W43: =S43 -> -1.93 | X43: =V43*W43 -> -59461.37 | Z43: =W43/K43-1 -> 0 | AA43: =W43-K43 -> 0
A44: Total | B44: Curtailable Service (CS-2) | D44: 35 | E44: Total | L44: =SUM(L39:L43) -> 787375.1195 | P44: =SUM(P39:P43) -> 968345.6543 | T44: =SUM(T39:T43) -> 967454.0457 | X44: =SUM(X39:X43) -> 969400.4429 | AA44: =X44/L44-1 -> 0.2311799279
D45: 36
A46: RATE SCHEDULE CST-2 - 75 | D46: 37 | E46: RATE SCHEDULE CST-2 - 75
D47: 38
A48: CST-2 - 75Customer | B48: Curtailable Service-TOU (CST-2) | C48: Customer Charge | D48: 39 | E48: Customer | H48: =VLOOKUP($A48,'Billing Determinants (Units)'!$A$9:$B$1153,2,FALSE) -> 36 | J48: 36 | K48: =INDEX('Present Base Rates by Rate Code'!$A$4:$V$50,MATCH('GSLD(T)-2'!$B48,'Present Base Rates by Rate Code'!$A$4:$A$50,0),MATCH('GSLD(T)-2'!C48,'Present Base Rates by Rate Code'!$A$4:$V$4,0)) -> 247.32 | L48: =J48*K48 -> 8903.52 | N48: 36 | O48: =O39 -> 275 | P48: =N48*O48 -> 9900 | Q48: =P48-L48 -> 996.48 | R48: 36 | S48: =O48 -> 275 | T48: =R48*S48 -> 9900 | U48: =T48-P48 -> 0 | V48: =J48 -> 36 | W48: =S48 -> 275 | X48: =V48*W48 -> 9900 | Z48: =+W48/K48-1 -> 0.11191978 | AA48: =W48-K48 -> 27.68
A49: CST-2 - 75Non-Fuel Energy | B49: Curtailable Service-TOU (CST-2) | D49: 40 | E49: Non-Fuel Energy
A50: CST-2 - 75Non-Fuel Energy - On Peak | B50: Curtailable Service-TOU (CST-2) | C50: On-Peak Energy Charge $/kWh | D50: 41 | E50: Non-Fuel Energy - On Peak | H50: =VLOOKUP($A50,'Billing Determinants (Units)'!$A$9:$B$1153,2,FALSE) -> 6458650 | J50: 6458650 | K50: =INDEX('Present Base Rates by Rate Code'!$A$4:$V$50,MATCH('GSLD(T)-2'!$B50,'Present Base Rates by Rate Code'!$A$4:$A$50,0),MATCH('GSLD(T)-2'!C50,'Present Base Rates by Rate Code'!$A$4:$V$4,0)) -> 0.02041 | L50: =J50*K50 -> 131821.0465 | N50: 6458650 | O50: =O27 -> 0.02465535922 | P50: =N50*O50 -> 159240.3358 | R50: 6458650 | S50: =S27 -> 0.02466 | T50: =R50*S50 -> 159270.309 | V50: =J50 -> 6458650 | W50: =W27 -> 0.02454 | X50: =V50*W50 -> 158495.271 | Z50: =+W50/K50-1 -> 0.2023517883 | AA50: =W50-K50 -> 0.00413
A51: CST-2 - 75Non-Fuel Energy - Off Peak | B51: Curtailable Service-TOU (CST-2) | C51: Off-Peak Energy Charge $/kWh | D51: 42 | E51: Non-Fuel Energy - Off Peak | H51: =VLOOKUP($A51,'Billing Determinants (Units)'!$A$9:$B$1153,2,FALSE) -> 22642911 | J51: 22642911 | K51: =INDEX('Present Base Rates by Rate Code'!$A$4:$V$50,MATCH('GSLD(T)-2'!$B51,'Present Base Rates by Rate Code'!$A$4:$A$50,0),MATCH('GSLD(T)-2'!C51,'Present Base Rates by Rate Code'!$A$4:$V$4,0)) -> 0.01003 | L51: =J51*K51 -> 227108.3973 | N51: 22642911 | O51: =O28 -> 0.01211627893 | P51: =N51*O51 -> 274347.8255 | R51: 22642911 | S51: =S28 -> 0.01212 | T51: =R51*S51 -> 274432.0813 | V51: =J51 -> 22642911 | W51: =W28 -> 0.01212 | X51: 274432.0813 | Z51: =+W51/K51-1 -> 0.2083748754 | AA51: 0.00209
A52: CST-2 - 75Demand | B52: Curtailable Service-TOU (CST-2) | C52: On-Peak Demand Charge $/kW | D52: 43 | E52: Demand | H52: =VLOOKUP($A52,'Billing Determinants (Units)'!$A$9:$B$1153,2,FALSE) -> 65472 | J52: 65472 | K52: =INDEX('Present Base Rates by Rate Code'!$A$4:$V$50,MATCH('GSLD(T)-2'!$B52,'Present Base Rates by Rate Code'!$A$4:$A$50,0),MATCH('GSLD(T)-2'!C52,'Present Base Rates by Rate Code'!$A$4:$V$4,0)) -> 10.28 | L52: =J52*K52 -> 673052.16 | N52: 65472 | O52: =O29 -> 12.4182799 | P52: =N52*O52 -> 813049.6218 | R52: 65472 | S52: =S29 -> 12.4 | T52: =R52*S52 -> 811852.8 | V52: =J52 -> 65472 | W52: =S52 -> 12.4 | X52: 811852.8 | Z52: =+W52/K52-1 -> 0.2062256809 | AA52: 2.12
A53: CST-2 - 75Transformation Credit | B53: Curtailable Service-TOU (CST-2) | C53: Transformation Rider Credit ($/kW) | D53: 44 | E53: Transformation Credit | H53: =VLOOKUP($A53,'Billing Determinants (Units)'!$A$9:$B$1153,2,FALSE) -> 18281 | J53: 18281 | K53: =INDEX('Present Base Rates by Rate Code'!$A$4:$V$50,MATCH('GSLD(T)-2'!$B53,'Present Base Rates by Rate Code'!$A$4:$A$50,0),MATCH('GSLD(T)-2'!C53,'Present Base Rates by Rate Code'!$A$4:$V$4,0)) -> -0.3 | L53: =J53*K53 -> -5484.3 | N53: 18281 | O53: =O42 -> -0.23 | P53: =N53*O53 -> -4204.63 | Q53: =P53-L53 -> 1279.67 | R53: 18281 | S53: =O53 -> -0.23 | T53: =R53*S53 -> -4204.63 | U53: =T53-P53 -> 0 | V53: =J53 -> 18281 | W53: =S53 -> -0.23 | X53: -4204.63 | Z53: =W53/K53-1 -> -0.2333333333 | AA53: 0.07
A54: CST-2 - 75Curtailable Credit | B54: Curtailable Service-TOU (CST-2) | C54: Curtailment Credit ($/kW) | D54: 45 | E54: Curtailable Credit | H54: =-VLOOKUP($A54,'Billing Determinants (Units)'!$A$9:$B$1153,2,FALSE) -> 36335 | J54: 36335 | K54: =INDEX('Present Base Rates by Rate Code'!$A$4:$V$50,MATCH('GSLD(T)-2'!$B54,'Present Base Rates by Rate Code'!$A$4:$A$50,0),MATCH('GSLD(T)-2'!C54,'Present Base Rates by Rate Code'!$A$4:$V$4,0)) -> -1.93 | L54: =J54*K54 -> -70126.55 | N54: 36335 | O54: =K54 -> -1.93 | P54: =N54*O54 -> -70126.55 | Q54: =P54-L54 -> 0 | R54: 36335 | S54: =O54 -> -1.93 | T54: =R54*S54 -> -70126.55 | U54: =T54-P54 -> 0 | V54: =J54 -> 36335 | W54: =S54 -> -1.93 | X54: -70126.55 | Z54: =W54/K54-1 -> 0 | AA54: 0
A55: Total | B55: Curtailable Service-TOU (CST-2) | D55: 46 | E55: Total | L55: =SUM(L48:L54) -> 965274.2738 | P55: =SUM(P48:P54) -> 1182206.603 | T55: =SUM(T48:T54) -> 1181124.01 | X55: =SUM(X48:X54) -> 1180348.972 | AA55: =X55/L55-1 -> 0.2228120072
D56: 47
A57: RATE SCHEDULE HLFT - 165 | D57: 48 | E57: RATE SCHEDULE HLFT - 165
D58: 49 | H58: = or > 2,000 kW | V58: =J58 -> 0
A59: HLFT - 165Customer | B59: High Load Factor-TOU (2,000 kW or more) | C59: Customer Charge | D59: 50 | E59: Customer | H59: =VLOOKUP($A59,'Billing Determinants (Units)'!$A$9:$B$1153,2,FALSE) -> 420 | J59: 420 | K59: =INDEX('Present Base Rates by Rate Code'!$A$4:$V$50,MATCH('GSLD(T)-2'!$B59,'Present Base Rates by Rate Code'!$A$4:$A$50,0),MATCH('GSLD(T)-2'!C59,'Present Base Rates by Rate Code'!$A$4:$V$4,0)) -> 219.22 | L59: =J59*K59 -> 92072.4 | N59: 420 | O59: =O25 -> 250 | P59: =N59*O59 -> 105000 | Q59: =P59-L59 -> 12927.6 | R59: 420 | S59: =ROUND(O59,0) -> 250 | T59: =R59*S59 -> 105000 | U59: =T59-P59 -> 0 | V59: 420 | W59: =S59 -> 250 | X59: =V59*W59 -> 105000 | Z59: =+W59/K59-1 -> 0.1404068972 | AA59: =W59-K59 -> 30.78
A60: HLFT - 165Non-Fuel Energy - On Peak | B60: High Load Factor-TOU (2,000 kW or more) | C60: On-Peak Energy Charge $/kWh | D60: 51 | E60: Non-Fuel Energy - On Peak | H60: =VLOOKUP($A60,'Billing Determinants (Units)'!$A$9:$B$1153,2,FALSE) -> 226149568 | J60: 226149568 | K60: =INDEX('Present Base Rates by Rate Code'!$A$4:$V$50,MATCH('GSLD(T)-2'!$B60,'Present Base Rates by Rate Code'!$A$4:$A$50,0),MATCH('GSLD(T)-2'!C60,'Present Base Rates by Rate Code'!$A$4:$V$4,0)) -> 0.0081 | L60: 1831811.501 | N60: 226149568 | O60: =K60*(1+$Q$6) -> 0.00978483144 | P60: 2212835.403 | R60: 226149568 | S60: =ROUND(O60*(1+$U$6),5) -> 0.00978 | T60: 2211742.775 | V60: 226149568 | W60: =J136 -> 0.00977 | X60: 2209481.279 | Z60: =+W60/K60-1 -> 0.2061728395 | AA60: 0.00167
A61: HLFT - 165Non-Fuel Energy - Off Peak | B61: High Load Factor-TOU (2,000 kW or more) | C61: Off-Peak Energy Charge $/kWh | D61: 52 | E61: Non-Fuel Energy - Off Peak | H61: =VLOOKUP($A61,'Billing Determinants (Units)'!$A$9:$B$1153,2,FALSE) -> 652628746 | J61: 652628746 | K61: =INDEX('Present Base Rates by Rate Code'!$A$4:$V$50,MATCH('GSLD(T)-2'!$B61,'Present Base Rates by Rate Code'!$A$4:$A$50,0),MATCH('GSLD(T)-2'!C61,'Present Base Rates by Rate Code'!$A$4:$V$4,0)) -> 0.0081 | L61: 5286292.843 | N61: 652628746 | O61: =K61*(1+$Q$6) -> 0.00978483144 | P61: 6385862.273 | R61: 652628746 | S61: =ROUND(O61*(1+$U$6),5) -> 0.00978 | T61: 6382709.136 | V61: 652628746 | W61: =J137 -> 0.00977 | X61: 6376182.848 | Z61: =+W61/K61-1 -> 0.2061728395 | AA61: 0.00167
A62: HLFT - 165Demand - On-Peak | B62: High Load Factor-TOU (2,000 kW or more) | C62: On-Peak Demand Charge $/kW | D62: 53 | E62: Demand - On-Peak | H62: =VLOOKUP($A62,'Billing Determinants (Units)'!$A$9:$B$1153,2,FALSE) -> 1430474 | J62: 1430474 | K62: =INDEX('Present Base Rates by Rate Code'!$A$4:$V$50,MATCH('GSLD(T)-2'!$B62,'Present Base Rates by Rate Code'!$A$4:$A$50,0),MATCH('GSLD(T)-2'!C62,'Present Base Rates by Rate Code'!$A$4:$V$4,0)) -> 10.51 | L62: 15034281.74 | N62: 1430474 | O62: =K62*(1+$Q$6) -> 12.69612079 | P62: 18161470.7 | R62: 1430474 | S62: =ROUND(O62*(1+$U$6),1) -> 12.7 | T62: 18167019.8 | V62: 1430474 | W62: =S62 -> 12.7 | X62: 18167019.8 | Z62: =+W62/K62-1 -> 0.2083729781 | AA62: 2.19
A63: HLFT - 165Demand - Maximum | B63: High Load Factor-TOU (2,000 kW or more) | C63: Maximum Demand Charge $/kW | D63: 54 | E63: Demand - Maximum | H63: =VLOOKUP($A63,'Billing Determinants (Units)'!$A$9:$B$1153,2,FALSE) -> 1462801 | J63: 1462801 | K63: =INDEX('Present Base Rates by Rate Code'!$A$4:$V$50,MATCH('GSLD(T)-2'!$B63,'Present Base Rates by Rate Code'!$A$4:$A$50,0),MATCH('GSLD(T)-2'!C63,'Present Base Rates by Rate Code'!$A$4:$V$4,0)) -> 2.24 | L63: 3276674.24 | N63: 1462801 | O63: =K63*(1+$Q$6) -> 2.705928695 | P63: 3958235.2 | R63: 1462801 | S63: =ROUND(O63*(1+$U$6),1) -> 2.7 | T63: 3949562.7 | V63: 1462801 | W63: =S63 -> 2.7 | X63: 3949562.7 | Z63: =+W63/K63-1 -> 0.2053571429 | AA63: 0.46
A64: HLFT - 165Transformation Credit | B64: High Load Factor-TOU (2,000 kW or more) | C64: Transformation Rider Credit ($/kW) | D64: 55 | E64: Transformation Credit | H64: =VLOOKUP($A64,'Billing Determinants (Units)'!$A$9:$B$1153,2,FALSE) -> 179828 | J64: 179828 | K64: =INDEX('Present Base Rates by Rate Code'!$A$4:$V$50,MATCH('GSLD(T)-2'!$B64,'Present Base Rates by Rate Code'!$A$4:$A$50,0),MATCH('GSLD(T)-2'!C64,'Present Base Rates by Rate Code'!$A$4:$V$4,0)) -> -0.3 | L64: -53948.4 | N64: 179828 | O64: =O16 -> -0.23 | P64: -41360.44 | Q64: =P64-L64 -> 12587.96 | R64: 179828 | S64: =S16 -> -0.23 | T64: -41360.44 | U64: =T64-P64 -> 0 | V64: 179828 | W64: =S64 -> -0.23 | X64: -41360.44 | Z64: =W64/K64-1 -> -0.2333333333 | AA64: 0.07
B65: High Load Factor-TOU (2,000 kW or more) | D65: 56 | E65: Subtotal | L65: =SUM(L59:L64) -> 25467184.32 | P65: =SUM(P59:P64) -> 30782043.13 | T65: =SUM(T59:T64) -> 30774673.97 | X65: =SUM(X59:X64) -> 30765886.19 | AA65: =X65/L65-1 -> 0.2080599801
B66: High Load Factor-TOU (2,000 kW or more) | D66: 57 | E66: CDR Credit
A67: HLFT - 165Adder | B67: High Load Factor-TOU (2,000 kW or more) | C67: Commercial / Industrial Demand Rider (CDR) Adder per Customer | D67: 58 | E67: Adder | H67: =VLOOKUP($A67,'Billing Determinants (Units)'!$A$9:$B$1153,2,FALSE) -> 24 | J67: 24 | K67: =INDEX('Present Base Rates by Rate Code'!$A$4:$V$50,MATCH('GSLD(T)-2'!$B67,'Present Base Rates by Rate Code'!$A$4:$A$50,0),MATCH('GSLD(T)-2'!C67,'Present Base Rates by Rate Code'!$A$4:$V$4,0)) -> 56.21 | L67: =J67*K67 -> 1349.04 | N67: 24 | O67: =O33 -> 75 | P67: =N67*O67 -> 1800 | Q67: =P67-L67 -> 450.96 | R67: 24 | S67: =S33 -> 75 | T67: =R67*S67 -> 1800 | U67: =T67-P67 -> 0 | V67: =J67 -> 24 | W67: =S67 -> 75 | X67: =V67*W67 -> 1800 | Z67: =W67/K67-1 -> 0.3342821562 | AA67: =W67-K67 -> 18.79
A68: HLFT - 165Credit | B68: High Load Factor-TOU (2,000 kW or more) | C68: Commercial / Industrial Demand Rider Credit (CDR) ($/kW) | D68: 59 | E68: Credit | H68: =VLOOKUP($A68,'Billing Determinants (Units)'!$A$9:$B$1153,2,FALSE) -> 17580.32876 | J68: 17580.32876 | K68: =INDEX('Present Base Rates by Rate Code'!$A$4:$V$50,MATCH('GSLD(T)-2'!$B68,'Present Base Rates by Rate Code'!$A$4:$A$50,0),MATCH('GSLD(T)-2'!C68,'Present Base Rates by Rate Code'!$A$4:$V$4,0)) -> -8.2 | L68: =J68*K68 -> -144158.6958 | N68: 17580.32876 | O68: =O34 -> -5.26 | P68: =N68*O68 -> -92472.52927 | Q68: =P68-L68 -> 51686.16655 | R68: 17580.32876 | S68: =S34 -> -5.26 | T68: =R68*S68 -> -92472.52927 | U68: =T68-P68 -> 0 | V68: =J68 -> 17580.32876 | W68: =S68 -> -5.26 | X68: =V68*W68 -> -92472.52927 | Z68: =W68/K68-1 -> -0.3585365854 | AA68: =W68-K68 -> 2.94
A69: Total | D69: 60 | E69: Total | L69: =SUM(L65:L68) -> 25324374.67 | P69: =SUM(P65:P68) -> 30691370.61 | T69: =SUM(T65:T68) -> 30684001.44 | X69: =SUM(X65:X68) -> 30675213.66 | AA69: =X69/L69-1 -> 0.2112920481
D70: 61
A71: RATE SCHEDULE SDTR - 265 | D71: 62 | E71: RATE SCHEDULE SDTR - 265
D72: 63 | H72: Option A - GSLD-2 | V72: =J72 -> 0
A73: SDTR - 265Customer | B73: Seasonal Demand TOU Rider (SDTR) (2,000 kW and greater) Option A Summer | C73: Customer Charge | D73: 64 | E73: Customer | H73: =VLOOKUP($A73,'Billing Determinants (Units)'!$A$9:$B$1153,2,FALSE) -> 48 | J73: 48 | K73: =INDEX('Present Base Rates by Rate Code'!$A$4:$V$50,MATCH('GSLD(T)-2'!$B73,'Present Base Rates by Rate Code'!$A$4:$A$50,0),MATCH('GSLD(T)-2'!C73,'Present Base Rates by Rate Code'!$A$4:$V$4,0)) -> 219.22 | L73: =J73*K73 -> 10522.56 | N73: 48 | O73: =O59 -> 250 | P73: =N73*O73 -> 12000 | Q73: =P73-L73 -> 1477.44 | R73: 48 | S73: =ROUND(O73,0) -> 250 | T73: =R73*S73 -> 12000 | U73: =T73-P73 -> 0 | V73: 48 | W73: =S73 -> 250 | X73: =V73*W73 -> 12000 | Z73: =+W73/K73-1 -> 0.1404068972 | AA73: =W73-K73 -> 30.78
A74: SDTR - 265Non-Fuel Energy - Seasonal On Peak | B74: Seasonal Demand TOU Rider (SDTR) (2,000 kW and greater) Option A Summer | C74: On-Peak Energy Charge $/kWh | D74: 65 | E74: Non-Fuel Energy - Seasonal On Peak | H74: =VLOOKUP($A74,'Billing Determinants (Units)'!$A$9:$B$1153,2,FALSE) -> 563374 | J74: 563374 | K74: =INDEX('Present Base Rates by Rate Code'!$A$4:$V$50,MATCH('GSLD(T)-2'!$B74,'Present Base Rates by Rate Code'!$A$4:$A$50,0),MATCH('GSLD(T)-2'!C74,'Present Base Rates by Rate Code'!$A$4:$V$4,0)) -> 0.04302 | L74: 24236.34948 | N74: 563374 | O74: =K74*(1+$Q$6) -> 0.05196832698 | P74: 29277.60425 | R74: 563374 | S74: =ROUND(O74*(1+$U$6),5) -> 0.05197 | T74: 29278.54678 | V74: 563374 | W74: ='SDTR Workpaper'!E42 -> 0.05029 | X74: 28332.07846 | Z74: 0.1689911669 | AA74: 0.00727
A75: SDTR - 265Non-Fuel Energy - Seasonal Off Peak | B75: Seasonal Demand TOU Rider (SDTR) (2,000 kW and greater) Option A Summer | C75: Off-Peak Energy Charge $/kWh | D75: 66 | E75: Non-Fuel Energy - Seasonal Off Peak | H75: =VLOOKUP($A75,'Billing Determinants (Units)'!$A$9:$B$1153,2,FALSE) -> 6688628 | J75: 6688628 | K75: =INDEX('Present Base Rates by Rate Code'!$A$4:$V$50,MATCH('GSLD(T)-2'!$B75,'Present Base Rates by Rate Code'!$A$4:$A$50,0),MATCH('GSLD(T)-2'!C75,'Present Base Rates by Rate Code'!$A$4:$V$4,0)) -> 0.00931 | L75: 62271.12668 | N75: 6688628 | O75: =K75*(1+$Q$6) -> 0.01124651614 | P75: 75223.76274 | R75: 6688628 | S75: =ROUND(O75*(1+$U$6),5) -> 0.01125 | T75: 75247.065 | V75: 6688628 | W75: ='SDTR Workpaper'!E43 -> 0.01212 | X75: 81066.17136 | Z75: 0.3018259936 | AA75: 0.00281
A76: SDTR - 265Non-Fuel Energy - Non-Seasonal | B76: Seasonal Demand TOU Rider (SDTR) (2,000 kW and greater) Option A Winter | C76: Energy Charges $/kWh | D76: =D75+1 -> 67 | E76: Non-Fuel Energy - Non-Seasonal | H76: =VLOOKUP($A76,'Billing Determinants (Units)'!$A$9:$B$1153,2,FALSE) -> 28999772 | J76: =H76+I76 -> 28999772 | K76: =INDEX('Present Base Rates by Rate Code'!$A$4:$V$50,MATCH('GSLD(T)-2'!$B76,'Present Base Rates by Rate Code'!$A$4:$A$50,0),MATCH('GSLD(T)-2'!C76,'Present Base Rates by Rate Code'!$A$4:$V$4,0)) -> 0.01287 | L76: 373227.0656 | N76: =J76 -> 28999772 | O76: =K76*(1+$Q$6) -> 0.01554700996 | P76: 450859.744 | R76: =N76 -> 28999772 | S76: =ROUND(O76*(1+$U$6),5) -> 0.01555 | T76: 450946.4546 | V76: 28999772 | W76: ='SDTR Workpaper'!E45 -> 0.01563 | X76: 453266.4364 | Z76: 0.2144522145 | AA76: 0.00276
A77: SDTR - 265Demand - Seasonal On-Peak | B77: Seasonal Demand TOU Rider (SDTR) (2,000 kW and greater) Option A Summer | C77: On-Peak Demand Charge $/kW | D77: 68 | E77: Demand - Seasonal On-Peak | H77: =VLOOKUP($A77,'Billing Determinants (Units)'!$A$9:$B$1153,2,FALSE) -> 15517 | J77: 15517 | K77: =INDEX('Present Base Rates by Rate Code'!$A$4:$V$50,MATCH('GSLD(T)-2'!$B77,'Present Base Rates by Rate Code'!$A$4:$A$50,0),MATCH('GSLD(T)-2'!C77,'Present Base Rates by Rate Code'!$A$4:$V$4,0)) -> 11.29 | L77: 175186.93 | N77: 15517 | O77: =K77*(1+$Q$6) -> 13.63836382 | P77: 211626.4914 | R77: 15517 | S77: =ROUND(O77*(1+$U$6),1) -> 13.6 | T77: 211031.2 | V77: 15517 | W77: ='SDTR Workpaper'!E39 -> 12.5 | X77: 193962.5 | Z77: 0.1071744907 | AA77: 1.21
A78: SDTR - 265Demand - Non-Seasonal | B78: Seasonal Demand TOU Rider (SDTR) (2,000 kW and greater) Option A Winter | C78: Demand Charge $/kW | D78: 69 | E78: Demand - Non-Seasonal | H78: =VLOOKUP($A78,'Billing Determinants (Units)'!$A$9:$B$1153,2,FALSE) -> 71177 | J78: 71177 | K78: =INDEX('Present Base Rates by Rate Code'!$A$4:$V$50,MATCH('GSLD(T)-2'!$B78,'Present Base Rates by Rate Code'!$A$4:$A$50,0),MATCH('GSLD(T)-2'!C78,'Present Base Rates by Rate Code'!$A$4:$V$4,0)) -> 10.05 | L78: 715328.85 | N78: 71177 | O78: =K78*(1+$Q$6) -> 12.14043901 | P78: 864120.0274 | R78: 71177 | S78: =ROUND(O78*(1+$U$6),1) -> 12.1 | T78: 861241.7 | V78: 71177 | W78: ='SDTR Workpaper'!E40 -> 12.4 | X78: 882594.8 | Z78: 0.2338308458 | AA78: 2.35
A79: SDTR - 265Transformation Credit | B79: Seasonal Demand TOU Rider (SDTR) (2,000 kW and greater) Option A Summer | C79: Transformation Rider Credit ($/kW) | D79: 70 | E79: Transformation Credit | H79: =VLOOKUP($A79,'Billing Determinants (Units)'!$A$9:$B$1153,2,FALSE) -> 4570 | J79: 4570 | K79: =INDEX('Present Base Rates by Rate Code'!$A$4:$V$50,MATCH('GSLD(T)-2'!$B79,'Present Base Rates by Rate Code'!$A$4:$A$50,0),MATCH('GSLD(T)-2'!C79,'Present Base Rates by Rate Code'!$A$4:$V$4,0)) -> -0.3 | L79: -1371 | N79: 4570 | O79: =+O16 -> -0.23 | P79: -1051.1 | Q79: =P79-L79 -> 319.9 | R79: 4570 | S79: =+S16 -> -0.23 | T79: -1051.1 | U79: =T79-P79 -> 0 | V79: 4570 | W79: =S79 -> -0.23 | X79: -1051.1 | Z79: =W79/K79-1 -> -0.2333333333 | AA79: 0.07
A80: SDTR - 265Subtotal | D80: 71 | E80: Subtotal | L80: =SUM(L73:L79) -> 1359401.882 | P80: =SUM(P73:P79) -> 1642056.53 | T80: =SUM(T73:T79) -> 1638693.866 | X80: =SUM(X73:X79) -> 1650170.886 | AA80: =X80/L80-1 -> 0.2138948079
A81: SDTR - 265CDR Credit | D81: 72 | E81: CDR Credit
A82: SDTR - 265Adder | B82: Seasonal Demand TOU Rider (SDTR) (2,000 kW and greater) Option A Summer | C82: Commercial / Industrial Demand Rider (CDR) Adder per Customer | D82: 73 | E82: Adder | H82: =VLOOKUP($A82,'Billing Determinants (Units)'!$A$9:$B$1153,2,FALSE) -> 0 | K82: =INDEX('Present Base Rates by Rate Code'!$A$4:$V$50,MATCH('GSLD(T)-2'!$B82,'Present Base Rates by Rate Code'!$A$4:$A$50,0),MATCH('GSLD(T)-2'!C82,'Present Base Rates by Rate Code'!$A$4:$V$4,0)) -> 56.21 | L82: =J82*K82 -> 0 | N82: 0 | O82: =O67 -> 75 | P82: =N82*O82 -> 0 | Q82: =P82-L82 -> 0 | R82: 0 | S82: =S67 -> 75 | T82: =R82*S82 -> 0 | U82: =T82-P82 -> 0 | V82: =J82 -> 0 | W82: =S82 -> 75 | X82: =V82*W82 -> 0 | Z82: =W82/K82-1 -> 0.3342821562 | AA82: =W82-K82 -> 18.79
A83: SDTR - 265Credit | B83: Seasonal Demand TOU Rider (SDTR) (2,000 kW and greater) Option A Summer | C83: Commercial / Industrial Demand Rider Credit (CDR) ($/kW) | D83: 74 | E83: Credit | H83: =VLOOKUP($A83,'Billing Determinants (Units)'!$A$9:$B$1153,2,FALSE) -> 0 | K83: =INDEX('Present Base Rates by Rate Code'!$A$4:$V$50,MATCH('GSLD(T)-2'!$B83,'Present Base Rates by Rate Code'!$A$4:$A$50,0),MATCH('GSLD(T)-2'!C83,'Present Base Rates by Rate Code'!$A$4:$V$4,0)) -> -8.2 | L83: =J83*K83 -> 0 | N83: 0 | O83: =O68 -> -5.26 | P83: =N83*O83 -> 0 | Q83: =P83-L83 -> 0 | R83: 0 | S83: =S68 -> -5.26 | T83: =R83*S83 -> 0 | U83: =T83-P83 -> 0 | V83: =J83 -> 0 | W83: =S83 -> -5.26 | X83: =V83*W83 -> 0 | Z83: =W83/K83-1 -> -0.3585365854 | AA83: =W83-K83 -> 2.94
A84: Total | D84: 75 | E84: Total | L84: =SUM(L80:L83) -> 1359401.882 | P84: =SUM(P80:P83) -> 1642056.53 | T84: =SUM(T80:T83) -> 1638693.866 | X84: =SUM(X80:X83) -> 1650170.886 | AA84: =X84/L84-1 -> 0.2138948079
D85: 76
D86: 77
A87: RATE SCHEDULE SDTR - 365 | D87: 78 | E87: RATE SCHEDULE SDTR - 365
D88: 79 | H88: Option B - GSLDT-2 | V88: =J88 -> 0
A89: SDTR - 365Customer | B89: Seasonal Demand TOU Rider (SDTR) (2,000 kW and greater) Option B Summer | C89: Customer Charge | D89: 80 | E89: Customer | H89: =VLOOKUP($A89,'Billing Determinants (Units)'!$A$9:$B$1153,2,FALSE) -> 96 | J89: 96 | K89: =INDEX('Present Base Rates by Rate Code'!$A$4:$V$50,MATCH('GSLD(T)-2'!$B89,'Present Base Rates by Rate Code'!$A$4:$A$50,0),MATCH('GSLD(T)-2'!C89,'Present Base Rates by Rate Code'!$A$4:$V$4,0)) -> 219.22 | L89: =J89*K89 -> 21045.12 | N89: =J89 -> 96 | O89: =O73 -> 250 | P89: =N89*O89 -> 24000 | Q89: =P89-L89 -> 2954.88 | R89: =N89 -> 96 | S89: =ROUND(O89,0) -> 250 | T89: =R89*S89 -> 24000 | U89: =T89-P89 -> 0 | V89: 96 | W89: =S89 -> 250 | X89: =V89*W89 -> 24000 | Z89: =+W89/K89-1 -> 0.1404068972 | AA89: =W89-K89 -> 30.78
A90: SDTR - 365Non-Fuel Energy - Seasonal On Peak | B90: Seasonal Demand TOU Rider (SDTR) (2,000 kW and greater) Option B Summer | C90: On-Peak Energy Charge $/kWh | D90: 81 | E90: Non-Fuel Energy - Seasonal On Peak | H90: =VLOOKUP($A90,'Billing Determinants (Units)'!$A$9:$B$1153,2,FALSE) -> 3713968 | J90: 3713968 | K90: =INDEX('Present Base Rates by Rate Code'!$A$4:$V$50,MATCH('GSLD(T)-2'!$B90,'Present Base Rates by Rate Code'!$A$4:$A$50,0),MATCH('GSLD(T)-2'!C90,'Present Base Rates by Rate Code'!$A$4:$V$4,0)) -> 0.04302 | L90: 159774.9034 | N90: 3713968 | O90: =K90*(1+$Q$6) -> 0.05196832698 | P90: 193008.7034 | R90: 3713968 | S90: =ROUND(O90*(1+$U$6),5) -> 0.05197 | T90: 193014.917 | V90: 3713968 | W90: ='SDTR Workpaper'!E42 -> 0.05029 | X90: 186775.4507 | Z90: 0.1689911669 | AA90: 0.00727
A91: SDTR - 365Non-Fuel Energy - Seasonal Off Peak | B91: Seasonal Demand TOU Rider (SDTR) (2,000 kW and greater) Option B Summer | C91: Off-Peak Energy Charge $/kWh | D91: 82 | E91: Non-Fuel Energy - Seasonal Off Peak | H91: =VLOOKUP($A91,'Billing Determinants (Units)'!$A$9:$B$1153,2,FALSE) -> 35553401 | J91: 35553401 | K91: =INDEX('Present Base Rates by Rate Code'!$A$4:$V$50,MATCH('GSLD(T)-2'!$B91,'Present Base Rates by Rate Code'!$A$4:$A$50,0),MATCH('GSLD(T)-2'!C91,'Present Base Rates by Rate Code'!$A$4:$V$4,0)) -> 0.00931 | L91: 331002.1633 | N91: 35553401 | O91: 0.01124651614 | P91: 399851.8981 | R91: 35553401 | S91: =ROUND(O91*(1+$U$6),5) -> 0.01125 | T91: 399975.7612 | V91: 35553401 | W91: ='SDTR Workpaper'!E43 -> 0.01212 | X91: 430907.2201 | Z91: 0.3018259936 | AA91: 0.00281
A92: SDTR - 365Non-Fuel Energy - Non-Seasonal On Peak | B92: Seasonal Demand TOU Rider (SDTR) (2,000 kW and greater) Option B Winter | C92: On-Peak Energy Charge $/kWh | D92: 83 | E92: Non-Fuel Energy - Non-Seasonal On Peak | H92: =VLOOKUP($A92,'Billing Determinants (Units)'!$A$9:$B$1153,2,FALSE) -> 11277036 | J92: 11277036 | K92: =INDEX('Present Base Rates by Rate Code'!$A$4:$V$50,MATCH('GSLD(T)-2'!$B92,'Present Base Rates by Rate Code'!$A$4:$A$50,0),MATCH('GSLD(T)-2'!C92,'Present Base Rates by Rate Code'!$A$4:$V$4,0)) -> 0.02479 | L92: 279557.7224 | N92: 11277036 | O92: 0.02994641622 | P92: 337706.8138 | R92: 11277036 | S92: =ROUND(O92*(1+$U$6),5) -> 0.02995 | T92: 337747.2282 | V92: 11277036 | W92: ='SDTR Workpaper'!E46 -> 0.03442 | X92: 388155.5791 | Z92: 0.38846309 | AA92: 0.00963
A93: SDTR - 365Non-Fuel Energy - Non-Seasonal Off Peak | B93: Seasonal Demand TOU Rider (SDTR) (2,000 kW and greater) Option B Winter | C93: Off-Peak Energy Charge $/kWh | D93: 84 | E93: Non-Fuel Energy - Non-Seasonal Off Peak | H93: =VLOOKUP($A93,'Billing Determinants (Units)'!$A$9:$B$1153,2,FALSE) -> 60358432 | J93: 60358432 | K93: =INDEX('Present Base Rates by Rate Code'!$A$4:$V$50,MATCH('GSLD(T)-2'!$B93,'Present Base Rates by Rate Code'!$A$4:$A$50,0),MATCH('GSLD(T)-2'!C93,'Present Base Rates by Rate Code'!$A$4:$V$4,0)) -> 0.00931 | L93: 561937.0019 | N93: 60358432 | O93: 0.01124651614 | P93: 678822.0795 | R93: 60358432 | S93: =ROUND(O93*(1+$U$6),5) -> 0.01125 | T93: 679032.36 | V93: 60358432 | W93: ='SDTR Workpaper'!E47 -> 0.01212 | X93: 731544.1958 | Z93: 0.3018259936 | AA93: 0.00281
A94: SDTR - 365Demand - Seasonal On-Peak | B94: Seasonal Demand TOU Rider (SDTR) (2,000 kW and greater) Option B Summer | C94: On-Peak Demand Charge $/kW | D94: 85 | E94: Demand - Seasonal On-Peak | H94: =VLOOKUP($A94,'Billing Determinants (Units)'!$A$9:$B$1153,2,FALSE) -> 54996 | J94: 54996 | K94: =INDEX('Present Base Rates by Rate Code'!$A$4:$V$50,MATCH('GSLD(T)-2'!$B94,'Present Base Rates by Rate Code'!$A$4:$A$50,0),MATCH('GSLD(T)-2'!C94,'Present Base Rates by Rate Code'!$A$4:$V$4,0)) -> 11.29 | L94: 620904.84 | N94: 54996 | O94: 13.63836382 | P94: 750055.4568 | R94: 54996 | S94: =ROUND(O94*(1+$U$6),1) -> 13.6 | T94: 747945.6 | V94: 54996 | W94: =W77 -> 12.5 | X94: 687450 | Z94: 0.1071744907 | AA94: 1.21
A95: SDTR - 365Demand - Non-Seasonal On Peak | B95: Seasonal Demand TOU Rider (SDTR) (2,000 kW and greater) Option B Winter | C95: On-Peak Demand Charge $/kW | D95: 86 | E95: Demand - Non-Seasonal On Peak | H95: =VLOOKUP($A95,'Billing Determinants (Units)'!$A$9:$B$1153,2,FALSE) -> 125434 | J95: 125434 | K95: =INDEX('Present Base Rates by Rate Code'!$A$4:$V$50,MATCH('GSLD(T)-2'!$B95,'Present Base Rates by Rate Code'!$A$4:$A$50,0),MATCH('GSLD(T)-2'!C95,'Present Base Rates by Rate Code'!$A$4:$V$4,0)) -> 10.05 | L95: 1260611.7 | N95: 125434 | O95: 12.14043901 | P95: 1522823.827 | R95: 125434 | S95: =ROUND(O95*(1+$U$6),1) -> 12.1 | T95: 1517751.4 | V95: 125434 | W95: =W78 -> 12.4 | X95: 1555381.6 | Z95: 0.2338308458 | AA95: 2.35
A96: SDTR - 365Transformation Credit | B96: Seasonal Demand TOU Rider (SDTR) (2,000 kW and greater) Option B Summer | C96: Transformation Rider Credit ($/kW) | D96: 87 | E96: Transformation Credit | H96: =VLOOKUP($A96,'Billing Determinants (Units)'!$A$9:$B$1153,2,FALSE) -> 8122 | J96: 8122 | K96: =INDEX('Present Base Rates by Rate Code'!$A$4:$V$50,MATCH('GSLD(T)-2'!$B96,'Present Base Rates by Rate Code'!$A$4:$A$50,0),MATCH('GSLD(T)-2'!C96,'Present Base Rates by Rate Code'!$A$4:$V$4,0)) -> -0.3 | L96: -2436.6 | N96: 8122 | O96: =O16 -> -0.23 | P96: -1868.06 | Q96: =P96-L96 -> 568.54 | R96: 8122 | S96: =S16 -> -0.23 | T96: -1868.06 | U96: =T96-P96 -> 0 | V96: 8122 | W96: =S96 -> -0.23 | X96: -1868.06 | Z96: =W96/K96-1 -> -0.2333333333 | AA96: 0.07
A97: SDTR - 365Subtotal | D97: 88 | E97: Subtotal | L97: =SUM(L89:L96) -> 3232396.851 | P97: =SUM(P89:P96) -> 3904400.718 | T97: =SUM(T89:T96) -> 3897599.206 | X97: =SUM(X89:X96) -> 4002345.986 | AA97: =X97/L97-1 -> 0.2381975884
A98: SDTR - 365CDR Credit | D98: 89 | E98: CDR Credit
A99: SDTR - 365Adder | B99: Seasonal Demand TOU Rider (SDTR) (2,000 kW and greater) Option B Summer | C99: Commercial / Industrial Demand Rider (CDR) Adder per Customer | D99: 90 | E99: Adder | H99: =VLOOKUP($A99,'Billing Determinants (Units)'!$A$9:$B$1153,2,FALSE) -> 0 | J99: 0 | K99: =INDEX('Present Base Rates by Rate Code'!$A$4:$V$50,MATCH('GSLD(T)-2'!$B99,'Present Base Rates by Rate Code'!$A$4:$A$50,0),MATCH('GSLD(T)-2'!C99,'Present Base Rates by Rate Code'!$A$4:$V$4,0)) -> 56.21 | L99: =J99*K99 -> 0 | N99: 0 | O99: =O82 -> 75 | P99: =N99*O99 -> 0 | Q99: =P99-L99 -> 0 | R99: 0 | S99: =S82 -> 75 | T99: =R99*S99 -> 0 | U99: =T99-P99 -> 0 | V99: =J99 -> 0 | W99: =S99 -> 75 | X99: =V99*W99 -> 0 | Z99: =W99/K99-1 -> 0.3342821562 | AA99: =W99-K99 -> 18.79
A100: SDTR - 365Credit | B100: Seasonal Demand TOU Rider (SDTR) (2,000 kW and greater) Option B Summer | C100: Commercial / Industrial Demand Rider Credit (CDR) ($/kW) | D100: 91 | E100: Credit | H100: =VLOOKUP($A100,'Billing Determinants (Units)'!$A$9:$B$1153,2,FALSE) -> 0 | J100: 0 | K100: =INDEX('Present Base Rates by Rate Code'!$A$4:$V$50,MATCH('GSLD(T)-2'!$B100,'Present Base Rates by Rate Code'!$A$4:$A$50,0),MATCH('GSLD(T)-2'!C100,'Present Base Rates by Rate Code'!$A$4:$V$4,0)) -> -8.2 | L100: =J100*K100 -> 0 | N100: 0 | O100: =O83 -> -5.26 | P100: =N100*O100 -> 0 | Q100: =P100-L100 -> 0 | R100: 0 | S100: =S83 -> -5.26 | T100: =R100*S100 -> 0 | U100: =T100-P100 -> 0 | V100: =J100 -> 0 | W100: =S100 -> -5.26 | X100: =V100*W100 -> 0 | Z100: =W100/K100-1 -> -0.3585365854 | AA100: =W100-K100 -> 2.94
A101: Total | D101: 92 | E101: Total | L101: =SUM(L97:L100) -> 3232396.851 | P101: =SUM(P97:P100) -> 3904400.718 | T101: =SUM(T97:T100) -> 3897599.206 | X101: =SUM(X97:X100) -> 4002345.986 | AA101: =X101/L101-1 -> 0.2381975884
D102: 93
D103: 94 | E103: TOTALS | L103: =L21+L35+L44+L55+L69+L84+L101 -> 75325159.79 | P103: =P21+P35+P44+P55+P69+P84+P101 -> 92798285.09 | Q103: =SUM(Q13:Q100) -> 1192681.128 | T103: =T21+T35+T44+T55+T69+T84+T101 -> 92733642.15 | U103: =SUM(U13:U100) -> 0 | X103: =X21+X35+X44+X55+X69+X84+X101 -> 92855169.53
D104: 95
D105: 96 | N105: a | O105: target revenue | P105: =('E-8 Parity Analysis Final'!W22*1000)+L103 -> 92798285.09 | R105: a | S105: target revenue | T105: =P105 -> 92798285.09 | W105: Increase | X105: =X103-L103 -> 17530009.74
D106: 97 | N106: b | O106: Present revenue | P106: =L103 -> 75325159.79 | R106: b | S106: Present revenue | T106: =P103 -> 92798285.09 | W106: Target | X106: =P114 -> 17473125.31
D107: 98 | N107: c | O107: Proposed Increase | P107: =P105-P106 -> 17473125.31 | R107: c | S107: Proposed Increase | T107: =T105-T106 -> 0 | W107: Diff | X107: =X105-X106 -> 56884.4367
D108: 99 | N108: d | O108: Override Revenue | P108: =Q103 -> 1192681.128 | R108: d | S108: Override Revenue | T108: =U103 -> 0 | W108: Adj | X108: 8e-05
D109: 100 | E109: TOU Off-Peak Energy | H109: =S28 -> 0.01212 | N109: e | O109: Increase of Non-Override Revenue | P109: =P107-P108 -> 16280444.18 | R109: e | S109: Increase of Non-Override Revenue | T109: =T107-T108 -> 0
D110: 101 | N110: f | O110: Non-Override Revenue | P110: =L14+L15+L27+L28+L29+L40+L41+L50+L51+L52+L60+L61+L62+L63+L74+L75+L76+L77+L78+L90+L91+L92+L93+L94+L95 -> 78269905.63 | R110: f | S110: Non-Override Revenue | T110: =P14+P15+P27+P28+P29+P40+P41+P50+P51+P52+P60+P61+P62+P63+P74+P75+P76+P77+P78+P90+P91+P92+P93+P94+P95 -> 94550349.81
D111: 102 | N111: g | O111: adjustment factor | P111: =P109/P110 -> 0.2080038815 | R111: g | S111: adjustment factor | T111: =T109/T110 -> 0 | W111: UI | X111: 98988009
D112: 103 | E112: TOU revenue neutral calculation | W112: Difference | X112: =X103-X111 -> -6132839.469
D113: 104 | E113: on pk class average per Load Research Study | F113: 0.2824981538 | H113: Energy Revenue | O113: Increase | P113: =P103-L103 -> 17473125.31 | S113: Increase | T113: =T103-P103 -> -64642.94019
D114: 105 | E114: on peak | F114: =+SUM($J$27:$J$28)*$F$113 -> 266668527.7 | G114: =ROUND((H117-H115)/F114,5) -> 0.02454 | H114: =+F114*G114 -> 6544045.67 | I114: =ROUND(IF(G114>G115,G114,H116/F117),5) -> 0.02454 | O114: Target Increase | P114: =P107 -> 17473125.31 | S114: Target Increase | T114: =T107 -> 0
D115: 106 | E115: off peak | F115: =+SUM($J$27:$J$28)-$F$114 -> 677297031.3 | G115: =H109 -> 0.01212 | H115: =+F115*G115 -> 8208840.019 | I115: =ROUND(IF(G114>G115,G115,H116/F117),5) -> 0.01212 | O115: Difference | P115: =P113-P114 -> 4.470348358e-08 | S115: Difference | T115: =T113-T114 -> -64642.94019
D116: 107 | E116: total at class on-pk | H116: =SUM(H114:H115) -> 14752885.69
D117: 108 | E117: total rev required at GSLD2 rates | F117: =SUM(F114:F115) -> 943965559 | G117: =W14 -> 0.01563 | H117: =G117*F117 -> 14754181.69
D118: 109 | E118: Difference | H118: =+H116-H117 -> -1295.998 | L118: Step 1 - Set customer charge and CDR adder (if applicable) based on customer charge workpaper; transformation credit (if applicable) based on transformer credit workpaper; curtailment credit (if applicable) based on present curtailment credit;
D119: 110 | L119: and CDR credit (if applicable) based on CILC/CDR credit workpaper. These revenues/credits become "override revenues". Exclude override revenue from % increase calculations and apply the percent increase to only non-override rates.
D120: 111 | L120: Step 2 - Round results of Step 1
D121: 112 | E121: HLFT Revenue at GSLD-2 rate and target Load Factor | L121: Step 3 - Calculate revenue neutral and/or rounding adjustment. For rate classes with SDTR, refer to SDTR workpaper.
D122: 113 | E122: Target Load Factor | G122: 0.7 | L122: Step 4 - Compare to Unit Costs for reasonableness. Depending on changes in other rates (Customer, Demand, etc.), unit costs may differ from final energy rates to achieve target revenues.
D123: 114 | E123: Average Class On-Peak % | G123: =+F113 -> 0.2824981538
D124: 115 | H124: Parent rates
D125: 116 | E125: accounts | G125: =+V59 -> 420 | H125: =+$W$13 -> 250 | I125: =G125*H125 -> 105000
D126: 117 | E126: kW | F126: on-peak kw | G126: =+V62 -> 1430474 | H126: =W15 -> 12.4 | I126: =G126*H126 -> 17737877.6
D127: 118 | E127: kWh | F127: max pk kw *8760*70% | G127: =(V63/12)*8760*G122 -> 747491311 | H127: =+$W$14 -> 0.01563 | I127: =G127*H127 -> 11683289.19
D128: 119 | E128: Total Revenue required | I128: =SUM(I125:I127) -> 29526166.79
D129: 120 | E129: Proposed HLFT Demand/Customer Rev | I129: =+SUM(X59,X62:X63) -> 22221582.5
D130: 121 | E130: Net Energy Revenue required | F130: (line 115-116) | I130: =I128-I129 -> 7304584.291
D131: 122
D132: 123
D133: 124 | E133: Adjusted Energy Charges
D134: 125 | E134: HLFT Off-Peak Energy | H134: =S61 -> 0.00978
D135: 126
D136: 127 | E136: kWh On-Peak | G136: =G127*G123 -> 211164915.4 | H136: =ROUND((I130-I137)/G136,5) -> 0.00975 | I136: =G136*H136 -> 2058857.925 | J136: =ROUND(IF(H136>H137,H136,I138/G138),5) -> 0.00977
D137: 128 | E137: kWh Off-Peak | G137: =G127-G136 -> 536326395.6 | H137: =H134 -> 0.00978 | I137: =G137*H137 -> 5245272.149 | J137: =ROUND(IF(H136>H137,H137,I138/G138),5) -> 0.00977
D138: 129 | E138: Total | G138: =SUM(G136:G137) -> 747491311 | I138: =SUM(I136:I137) -> 7304130.074
D139: 130 | E139: Difference | I139: =I138-I130 -> -454.216811

Sheet GSLD(T)-3
A1: OPC 015169
A2: FPL RC-16
D4: MFR E-14 Workpapers - 2017
D5: Rate Class GSLD(T)-3 | H5: Present Revenues (with WCEC3 in Base) | L5: Percent increase calculation | P5: Rounded | T5: Final adjustments to achieve target revenues
O6: =N63 -> 0.1984342765 | S6: 0 | AA6: =(V55-J55)/J55 -> 0.2172825091
A7: Ref. for linking data | E7: -1 | F7: =E7-1 -> -2 | G7: =F7-1 -> -3 | H7: -4 | I7: -5 | J7: -6 | K7: -7 | L7: -8 | M7: -9 | N7: -10 | O7: -11 | P7: -12 | Q7: -13 | R7: -14 | S7: -15 | T7: -16 | U7: -17 | V7: -18 | W7: -19 | X7: -20 | Y7: -21 | Z7: -22
D8: Line | E8: Type of | F8: Present Revenue Calculation | L8: Proposed Revenue Calculation | P8: Proposed Revenue Calculation | T8: Proposed Revenue Calculation | Z8: Percent | AB8: Override
D9: No. | E9: Charges | F9: Units | H9: Units | I9: Charge/Unit | J9: $ Revenue | L9: Units | M9: Charge/Unit | N9: $ Revenue | P9: Units | Q9: Charge/Unit | R9: $ Revenue | T9: Units | U9: Charge/Unit | V9: $ Revenue | Z9: Increase | AB9: Calculated
A11: Reference for Billing Units | B11: Reference for Rates | C11: Reference for Rates | D11: 1 | E11: RATE SCHEDULE GSLD-3 - 91 | O11: Override | S11: Override | AA11: Comparison of Unit Costs to Calculated Rates
D12: =D11+1 -> 2 | O12: Revenue | S12: Revenue
